Workbook

Sheet dbf-e-data (hidden)
A1: Дбф файли для порталу е-дата! | H1: 1000 | K1: =IF(ЗАПОЛНИТЬ!$B$18="1 квітня",1,IF(ЗАПОЛНИТЬ!$B$18="1 липня",2,IF(ЗАПОЛНИТЬ!$B$18="1 жовтня",3,4))) -> 3 | L1: =RIGHT(LEFT(ЗАПОЛНИТЬ!$C$18,4),2) -> 18 | M1: =IF(K1=4,L1-1,L1) -> 18
A9: В тому ж місці де у вас відкритий цей файл, з'являться дбф файли:
A16: Форма 2 - Fxxxppk.dbf
A17: Форма 4-1 - RKxxxppк.dbf,
A18: Форма 4-2 - DKxxxppк.dbf,
A19: Форма 4-3 - SKxxxppк.dbf,
A20: де:
A21: xxx – код відомчої класифікаціїї;
A22: рр – дві останні цифри звітного року;
A23: k - звітний квартал
A26: Тема где обсуждается этот файл:
A27: http://budget.factor.ua/viewtopic.php?f=125&t=5712
A29: Для того чтоб создать ДБФ файл необходимо разрешить выполнение МАКРОСОВ
A30: в 2003 офисе заходим СЕРВИС-ПАРАМЕТРЫ-БЕЗОПАСНОТЬ-БЕЗОПАСНОСТЬ МАКРОСОВ и установите уровень безопасности либо низкий либо средний
A31: в 2007 офисе ФАЙЛ (слева в углу) -ПАРАМЕТРЫ - ЦЕНТР УПРАВЛЕНИЯ БЕЗОПАСНОТЬЮ - ПАРАМЕТРЫ ЦЕНТРА - БЕЗОПАСНОСТЬ МАКРОСОВ и разрешить выполнение макросов

Sheet DBF (hidden)
C1: Для того чтоб создать ДБФ файл необходимо разрешить выполнение МАКРОСОВ
C2: в 2003 офисе заходим СЕРВИС-ПАРАМЕТРЫ-БЕЗОПАСНОТЬ-БЕЗОПАСНОСТЬ МАКРОСОВ и установите уровень безопасности либо низкий либо средний
C3: в 2007 офисе ФАЙЛ (слева в углу) -ПАРАМЕТРЫ - ЦЕНТР УПРАВЛЕНИЯ БЕЗОПАСНОТЬЮ - ПАРАМЕТРЫ ЦЕНТРА - БЕЗОПАСНОСТЬ МАКРОСОВ и разрешить выполнение макросов
C4: Файл будет сохранён там же открыт этот ексель, в той же папке
D21: Це дбф тільки для казначейства, не для е-дата!

Sheet ЗАПОЛНИТЬ (hidden)
B1: Жовтим кольором виділені поля для обов'язкового заповнення
A3: Установа | B3: Комунальний заклад "Орлівська загальноосвітня школа І-ІІІ ступенів" Приморської районної ради Запорізької області
O4: змінити на ваше УДК
A5: Територія | B5: с.Орлівка Приморського району Запорізької області | G5: наприклад -смт.Слов'яносербськ (Згідно довідника КОАТУУ)
A7: Вид бюджету | F7: 2 | L7: Державний
L8: Місцевий
A9: Код відомчої класифікації видатків та кредитування державного бюджету | I9: сюда ставят распорядители госбюджетных средств к примеру - 670,280,350
A10: Код типової відомчої класифікації видатків місцевих бюджетів | H10: 06 | I10: Відділ освіти Приморського района Запорізької області | Q10: вписати назву КВК
A11: тип ліній в таблицях--->>>
A12: КОДИ
A13: за ЄДРПОУ | B13: 26291242
A14: за КОАТУУ | B14: 232484201 | P14: І квартал
A15: за КОПФГ | B15: 430 | D15: =VLOOKUP(B15,КОПФГ!A:B,2,FALSE) -> Комунальна організація (установа, заклад) | P15: ІІ квартал
A16: Звіт за | P16: ІІІ квартал
A17: Звіт за | B17: =IF(P17=1,"І квартал",IF(P17=2,"ІІ квартал","ІІІ квартал")) -> ІІІ квартал | C17: 2018 р. | P17: 3
A18: Звіт на | B18: =IF(B17="І квартал","1 квітня",IF(B17="ІІ квартал","1 липня","1 жовтня")) -> 1 жовтня | C18: 2018 р. | D18: =IF(B18="1 квітня",1,IF(B18="1 липня",2,IF(B18="1 жовтня",3,0))) -> 3 | E18: =IF(B18="1 квітня","01.04.2018",IF(B18="1 липня","01.07.2018",IF(B18="1 жовтня","01.10.2018",0))) -> 01.10.2018 | F18: 18
A19: Дата подання звіту | C19: "08" жовтня 2018 року
A20: КПОЛ | B20: 62869 | C20: для ДБФ
A21: Код ГУДКСУ | B21: 12 | C21: двухзначный код вашей области для ДБФ
A22: Код УДКСУ | B22: 15 | C22: двухзначный код вашего района для ДБФ
A23: Тип бюджета | B23: 4 | C23: 1- обласний, 2 - міський , 3 - район у місті , 4 - районий, 5 - міста у районах, 6 - селищний, 7 - сільський (нужен для дбф файла)
A24: Код бюджета | B24: 869 | C24: трёхзначный код бюджета из которого вы финансируетесь, его знают ваши казначеи, обычно это последние три цифры доходных счетов
A26: Ініціали та прізвище КЕРІВНИКА | F26: Нєтков Р.В.
A28: Ініціали та прізвище ГОЛОВНОГО БУХГАЛТЕРА | F28: Саватєєва О.І.
A30: Посада першого підпису | F30: Керівник
A31: Посада другого підпису | F31: Головний бухгалтер
A35: Для відкриття скритих листів треба зайти ФОРМАТ -ЛИСТ - ОТОБРАЗИТЬ
A36: ДЛЯ НОРМАЛЬНОЇ РОБОТИ ФОРМУЛ ЛИСТИ НЕОБХІДНО СКРИВАТИ А НЕ ВИДАЛЯТИ!!!!!
A38: Ці та інші корисні бланки можно завантажити на https://buhgalter.com.ua
A39: автор розробки: Токарев Євген Васильович

Sheet Ф.2.1
G1: Додаток 1 до Порядку складання бюджетної звітності розпорядниками та одержувачами бюджетних коштів, звітності фондами загальнообов’язкового державного соціального і пенсійного страхування (пункт 1 розділу ІІ)
A4: ЗВІТ
A5: =IF(ЗАПОЛНИТЬ!$F$7=1,CONCATENATE(шапки!A2),CONCATENATE(шапки!A2,шапки!C2)) -> про надходження та використання коштів загального фонду (форма №2д, | G5: =IF(ЗАПОЛНИТЬ!$F$7=1,шапки!C2,шапки!D2) -> №2м) | H5: =IF(ЗАПОЛНИТЬ!$F$7=1,шапки!D2,"") -> 
A6: =CONCATENATE("за ",ЗАПОЛНИТЬ!$B$17," ",ЗАПОЛНИТЬ!$C$17) -> за ІІІ квартал 2018 р.
J7: коди
A9: Установа | B9: =ЗАПОЛНИТЬ!B3 -> Комунальний заклад "Орлівська загальноосвітня школа І-ІІІ ступенів" Приморської районної ради Запорізької області | H9: за ЄДРПОУ | J9: =ЗАПОЛНИТЬ!B13 -> 26291242
A10: Територія | B10: =ЗАПОЛНИТЬ!B5 -> с.Орлівка Приморського району Запорізької області | H10: за КОАТУУ | J10: =ЗАПОЛНИТЬ!B14 -> 232484201
A11: Організаційно-правова форма господарювання | B11: =ЗАПОЛНИТЬ!D15 -> Комунальна організація (установа, заклад) | H11: за КОПФГ | J11: =ЗАПОЛНИТЬ!B15 -> 430
A12: Код та назва відомчої класифікації видатків та кредитування державного бюджету | D12: =ЗАПОЛНИТЬ!H9 -> 0 | E12: =IF(D12>0,VLOOKUP(D12,'ДовидникКВК(ГОС)'!A:B,2,FALSE),"") -> 
A13: Код та назва програмної класифікації видатків та кредитування державного бюджету | E13: =IF(D13>0,VLOOKUP(D13,ДовидникКПК!B:C,2,FALSE),"") -> 
A14: Код та назва типової відомчої класифікації видатків та кредитування місцевих бюджетів | D14: =ЗАПОЛНИТЬ!H10 -> 06 | E14: =ЗАПОЛНИТЬ!I10 -> Відділ освіти Приморського района Запорізької області
A15: Код та назва програмної класифікації видатків та кредитування місцевих бюджетів (код та назва Типової програмної класифікації видатків та кредитування місцевих бюджетів / Тимчасової класифікації видатків та кредитування для бюджетів місцевого самоврядування, які не застосовують програмно-цільового методу) | D15: 0611020 | E15: =VLOOKUP(RIGHT(D15,4),КПКВМБ!A:B,2,FALSE) -> Надання загальної середньої освіти загальноосвітніми навчальними закладами (в т. ч. школою-дитячим садком, інтернатом при школі), спеціалізованими школами, ліцеями, гімназіями, колегіумами
A16: Періодичність: квартальна, річна
A17: Одиниця виміру: грн, коп.
A19: Показники | B19: КЕКВ та/або ККК | C19: Код рядка | D19: Затверджено на звітний рік | E19: Затверджено на звітний період (рік)1 | F19: Залишок на початок звітного року | G19: Надійшло коштів за звітний період (рік) | H19: Касові за звітний період (рік) | I19: Фактичні за звітний період (рік) | J19: Залишок на кінець звітного періоду (року)
A22: 1 | B22: 2 | C22: 3 | D22: 4 | E22: 5 | F22: 6 | G22: 7 | H22: 8 | I22: 9 | J22: 9
A23: Видатки та надання кредитів - усього | B23: Х | C23: 010 | D23: =D24+D59+D79+D84+D87 -> 3378444 | E23: =E26+E29+E32+E33+E37+E45+E46+E86+E54 -> 2665196 | F23: =F24+F59+F79+F84+F87 -> 0 | G23: =G24+G59+G79+G84+G87 -> 2179163.76 | H23: =H24+H59+H79+H84+H87 -> 2179163.76 | I23: =I24+I59+I79+I84+I87 -> 0 | J23: =F23+G23-H23 -> 0
A24: у тому числі: Поточні видатки | B24: 2000 | C24: 020 | D24: =D25+D30+D47+D50+D54+D58 -> 3378444 | E24: 0 | F24: 0 | G24: 2179163.76 | H24: 2179163.76 | I24: 0 | J24: =F24+G24-H24 -> 0
A25: Оплата праці і нарахування на заробітну плату | B25: 2100 | C25: 030 | D25: =D26+D29 -> 3072790 | E25: 0 | F25: =F26+F29 -> 0 | G25: =G26+G29 -> 2026258.37 | H25: =H26+H29 -> 2026258.37 | I25: =I26+I29 -> 0 | J25: 0
A26: Оплата праці | B26: 2110 | C26: 040 | D26: =SUM(D27:D28) -> 2517887 | E26: 1989173 | F26: 0 | G26: 1655709.05 | H26: 1655709.05 | I26: 0 | J26: 0
A27: Заробітна плата | B27: 2111 | C27: 050 | D27: 2517887 | E27: 0 | F27: 0 | G27: 1655709.05 | H27: 1655709.05 | I27: 0 | J27: 0
A28: Грошове забезпечення військовослужбовців | B28: 2112 | C28: 060 | D28: 0 | E28: 0 | F28: 0 | G28: 0 | H28: 0 | I28: 0 | J28: 0
A29: Нарахування на оплату праці | B29: 2120 | C29: 070 | D29: 554903 | E29: 438584 | F29: 0 | G29: 370549.32 | H29: 370549.32 | I29: 0 | J29: 0
A30: Використання товарів і послуг | B30: 2200 | C30: 080 | D30: =SUM(D31:D37)+D44 -> 304440 | E30: 0 | F30: =SUM(F31:F37)+F44 -> 0 | G30: =SUM(G31:G37)+G44 -> 152545.65 | H30: =SUM(H31:H37)+H44 -> 152545.65 | I30: =SUM(I31:I37)+I44 -> 0 | J30: 0
A31: Предмети, матеріали, обладнання та інвентар | B31: 2210 | C31: 090 | D31: 33503 | E31: 0 | F31: 0 | G31: 33503 | H31: 33503 | I31: 0 | J31: 0
A32: Медикаменти та перев’язувальні матеріали | B32: 2220 | C32: 100 | D32: 0 | E32: 0 | F32: 0 | G32: 0 | H32: 0 | I32: 0 | J32: 0
A33: Продукти харчування | B33: 2230 | C33: 110 | D33: 78088 | E33: 45280 | F33: 0 | G33: 32024.41 | H33: 32024.41 | I33: 0 | J33: 0
A34: Оплата послуг (крім комунальних) | B34: 2240 | C34: 120 | D34: 4930 | E34: 0 | F34: 0 | G34: 4930 | H34: 4930 | I34: 0 | J34: 0
A35: Видатки на відрядження | B35: 2250 | C35: 130 | D35: 2288 | E35: 0 | F35: 0 | G35: 0 | H35: 0 | I35: 0 | J35: 0
A36: Видатки та заходи спеціального призначення | B36: 2260 | C36: 140 | D36: 0 | E36: 0 | F36: 0 | G36: 0 | H36: 0 | I36: 0 | J36: 0
A37: Оплата комунальних послуг та енергоносіїв | B37: 2270 | C37: 150 | D37: =SUM(D38:D43) -> 185117 | E37: 149710 | F37: =SUM(F38:F43) -> 0 | G37: =SUM(G38:G43) -> 82088.24 | H37: =SUM(H38:H43) -> 82088.24 | I37: =SUM(I38:I43) -> 0 | J37: =F37+G37-H37 -> 0
A38: Оплата теплопостачання | B38: 2271 | C38: 160 | D38: 0 | E38: 0 | F38: 0 | G38: 0 | H38: 0 | I38: 0 | J38: 0
A39: Оплата водопостачання та водовідведення | B39: 2272 | C39: 170 | D39: 0 | E39: 0 | F39: 0 | G39: 0 | H39: 0 | I39: 0 | J39: 0
A40: Оплата електроенергії | B40: 2273 | C40: 180 | D40: 185117 | E40: 0 | F40: 0 | G40: 82088.24 | H40: 82088.24 | I40: 0 | J40: 0
A41: Оплата природного газу | B41: 2274 | C41: 190 | D41: 0 | E41: 0 | F41: 0 | G41: 0 | H41: 0 | I41: 0 | J41: 0
A42: Оплата інших енергоносіїв | B42: 2275 | C42: 200 | D42: 0 | E42: 0 | F42: 0 | G42: 0 | H42: 0 | I42: 0 | J42: 0
A43: Оплата енергосервісу | B43: 2276 | C43: 210 | D43: 0 | E43: 0 | F43: 0 | G43: 0 | H43: 0 | I43: 0 | J43: =F43+G43-H43 -> 0
A44: Дослідження і розробки, окремі заходи по реалізації державних (регіональних) програм | B44: 2280 | C44: 220 | D44: =SUM(D45:D46) -> 514 | E44: 0 | F44: =SUM(F45:F46) -> 0 | G44: =SUM(G45:G46) -> 0 | H44: =SUM(H45:H46) -> 0 | I44: =SUM(I45:I46) -> 0 | J44: 0
A45: Дослідження і розробки, окремі заходи розвитку по реалізації державних (регіональних) програм | B45: 2281 | C45: 230 | D45: 0 | E45: 0 | F45: 0 | G45: 0 | H45: 0 | I45: 0 | J45: 0
A46: Окремі заходи по реалізації державних (регіональних) програм, не віднесені до заходів розвитку | B46: 2282 | C46: 240 | D46: 514 | E46: 514 | F46: 0 | G46: 0 | H46: 0 | I46: 0 | J46: 0
A47: Обслуговування боргових зобов’язань | B47: 2400 | C47: 250 | D47: =SUM(D48:D49) -> 0 | E47: 0 | F47: 0 | G47: 0 | H47: 0 | I47: 0 | J47: 0
A48: Обслуговування внутрішніх боргових зобов’язань | B48: 2410 | C48: 260 | D48: 0 | E48: 0 | F48: 0 | G48: 0 | H48: 0 | I48: 0 | J48: 0
A49: Обслуговування зовнішніх боргових зобов’язань | B49: 2420 | C49: 270 | D49: 0 | E49: 0 | F49: 0 | G49: 0 | H49: 0 | I49: 0 | J49: 0
A50: Поточні трансферти | B50: 2600 | C50: 280 | D50: =SUM(D51:D53) -> 0 | E50: 0 | F50: 0 | G50: 0 | H50: 0 | I50: 0 | J50: 0
A51: Субсидії та поточні трансферти підприємствам (установам, організаціям) | B51: 2610 | C51: 290 | D51: 0 | E51: 0 | F51: 0 | G51: 0 | H51: 0 | I51: 0 | J51: 0
A52: Поточні трансферти органам державного управління інших рівнів | B52: 2620 | C52: 300 | D52: 0 | E52: 0 | F52: 0 | G52: 0 | H52: 0 | I52: 0 | J52: 0
A53: Поточні трансферти урядам іноземних держав та міжнародним організаціям | B53: 2630 | C53: 310 | D53: 0 | E53: 0 | F53: 0 | G53: 0 | H53: 0 | I53: 0 | J53: 0
A54: Соціальне забезпечення | B54: 2700 | C54: 320 | D54: =SUM(D55:D57) -> 0 | E54: 0 | F54: 0 | G54: 0 | H54: 0 | I54: 0 | J54: 0
A55: Виплата пенсій і допомоги | B55: 2710 | C55: 330 | D55: 0 | E55: 0 | F55: 0 | G55: 0 | H55: 0 | I55: 0 | J55: 0
A56: Стипендії | B56: 2720 | C56: 340 | D56: 0 | E56: 0 | F56: 0 | G56: 0 | H56: 0 | I56: 0 | J56: 0
A57: Інші виплати населенню | B57: 2730 | C57: 350 | D57: 0 | E57: 0 | F57: 0 | G57: 0 | H57: 0 | I57: 0 | J57: 0
A58: Інші поточні видатки | B58: 2800 | C58: 360 | D58: 1214 | E58: 0 | F58: 0 | G58: 359.74 | H58: 359.74 | I58: 0 | J58: 0
A59: Капітальні видатки | B59: 3000 | C59: 370 | D59: =D60+D74 -> 0 | E59: 0 | F59: 0 | G59: 0 | H59: 0 | I59: 0 | J59: 0
A60: Придбання основного капіталу | B60: 3100 | C60: 380 | D60: =D61+D62+D65+D68+D72+D73 -> 0 | E60: 0 | F60: 0 | G60: 0 | H60: 0 | I60: 0 | J60: 0
A61: Придбання обладнання і предметів довгострокового користування | B61: 3110 | C61: 390 | D61: 0 | E61: 0 | F61: 0 | G61: 0 | H61: 0 | I61: 0 | J61: 0
A62: Капітальне будівництво (придбання) | B62: 3120 | C62: 400 | D62: =SUM(D63:D64) -> 0 | E62: 0 | F62: 0 | G62: 0 | H62: 0 | I62: 0 | J62: 0
A63: Капітальне будівництво (придбання) житла | B63: 3121 | C63: 410 | D63: 0 | E63: 0 | F63: 0 | G63: 0 | H63: 0 | I63: 0 | J63: 0
A64: Капітальне будівництво (придбання) інших об’єктів | B64: 3122 | C64: 420 | D64: 0 | E64: 0 | F64: 0 | G64: 0 | H64: 0 | I64: 0 | J64: 0
A65: Капітальний ремонт | B65: 3130 | C65: 430 | D65: =SUM(D66:D67) -> 0 | E65: 0 | F65: 0 | G65: 0 | H65: 0 | I65: 0 | J65: 0
A66: Капітальний ремонт житлового фонду (приміщень) | B66: 3131 | C66: 440 | D66: 0 | E66: 0 | F66: 0 | G66: 0 | H66: 0 | I66: 0 | J66: 0
A67: Капітальний ремонт інших об’єктів | B67: 3132 | C67: 450 | D67: 0 | E67: 0 | F67: 0 | G67: 0 | H67: 0 | I67: 0 | J67: 0
A68: Реконструкція та реставрація | B68: 3140 | C68: 460 | D68: =SUM(D69:D71) -> 0 | E68: 0 | F68: 0 | G68: 0 | H68: 0 | I68: 0 | J68: 0
A69: Реконструкція житлового фонду (приміщень) | B69: 3141 | C69: 470 | D69: 0 | E69: 0 | F69: 0 | G69: 0 | H69: 0 | I69: 0 | J69: 0
A70: Реконструкція та реставрація інших об’єктів | B70: 3142 | C70: 480 | D70: 0 | E70: 0 | F70: 0 | G70: 0 | H70: 0 | I70: 0 | J70: 0
A71: Реставрація пам’яток культури, історії та архітектури | B71: 3143 | C71: 490 | D71: 0 | E71: 0 | F71: 0 | G71: 0 | H71: 0 | I71: 0 | J71: 0
A72: Створення державних запасів і резервів | B72: 3150 | C72: 500 | D72: 0 | E72: 0 | F72: 0 | G72: 0 | H72: 0 | I72: 0 | J72: 0
A73: Придбання землі та нематеріальних активів | B73: 3160 | C73: 510 | D73: 0 | E73: 0 | F73: 0 | G73: 0 | H73: 0 | I73: 0 | J73: 0
A74: Капітальні трансферти | B74: 3200 | C74: 520 | D74: =SUM(D75:D78) -> 0 | E74: 0 | F74: 0 | G74: 0 | H74: 0 | I74: 0 | J74: 0
A75: Капітальні трансферти підприємствам (установам, організаціям) | B75: 3210 | C75: 530 | D75: 0 | E75: 0 | F75: 0 | G75: 0 | H75: 0 | I75: 0 | J75: 0
A76: Капітальні трансферти органам державного управління інших рівнів | B76: 3220 | C76: 540 | D76: 0 | E76: 0 | F76: 0 | G76: 0 | H76: 0 | I76: 0 | J76: 0
A77: Капітальні трансферти урядам іноземних держав та міжнародним організаціям | B77: 3230 | C77: 550 | D77: 0 | E77: 0 | F77: 0 | G77: 0 | H77: 0 | I77: 0 | J77: 0
A78: Капітальні трансферти населенню | B78: 3240 | C78: 560 | D78: 0 | E78: 0 | F78: 0 | G78: 0 | H78: 0 | I78: 0 | J78: 0
A79: Внутрішнє кредитування | B79: 4100 | C79: 570 | D79: =SUM(D80) -> 0 | E79: 0 | F79: 0 | G79: 0 | H79: 0 | I79: 0 | J79: 0
A80: Надання внутрішніх кредитів | B80: 4110 | C80: 580 | D80: =SUM(D81:D83) -> 0 | E80: 0 | F80: 0 | G80: 0 | H80: 0 | I80: 0 | J80: 0
A81: Надання кредитів органам державного управління інших рівнів | B81: 4111 | C81: 590 | D81: 0 | E81: 0 | F81: 0 | G81: 0 | H81: 0 | I81: 0 | J81: 0
A82: Надання кредитів підприємствам, установам, організаціям | B82: 4112 | C82: 600 | D82: 0 | E82: 0 | F82: 0 | G82: 0 | H82: 0 | I82: 0 | J82: 0
A83: Надання інших внутрішніх кредитів | B83: 4113 | C83: 610 | D83: 0 | E83: 0 | F83: 0 | G83: 0 | H83: 0 | I83: 0 | J83: 0
A84: Зовнішнє кредитування | B84: 4200 | C84: 620 | D84: =D85 -> 0 | E84: 0 | F84: 0 | G84: 0 | H84: 0 | I84: 0 | J84: 0
A85: Надання зовнішніх кредитів | B85: 4210 | C85: 630 | D85: 0 | E85: 0 | F85: 0 | G85: 0 | H85: 0 | I85: 0 | J85: 0
A86: Інші видатки | B86: 5000 | C86: 640 | D86: X | E86: 41935 | F86: X | G86: X | H86: X | I86: X | J86: X
A87: Нерозподілені видатки | B87: 9000 | C87: 650 | D87: 0 | E87: 0 | F87: 0 | G87: 0 | H87: 0 | I87: 0 | J87: 0
C88: 650
A100: 1 Заповнюється розпорядниками бюджетних коштів.
A101: =ЗАПОЛНИТЬ!F30 -> Керівник | G101: =ЗАПОЛНИТЬ!F26 -> Нєтков Р.В.
D102: (підпис) | G102: (ініціали, прізвище)
A103: =ЗАПОЛНИТЬ!F31 -> Головний бухгалтер | G103: =ЗАПОЛНИТЬ!F28 -> Саватєєва О.І.
A104: =ЗАПОЛНИТЬ!C19 -> "08" жовтня 2018 року | D104: (підпис) | G104: (ініціали, прізвище)

Sheet Ф.2.5 (hidden)
G1: Додаток 1 до Порядку складання бюджетної звітності розпорядниками та одержувачами бюджетних коштів, звітності фондами загальнообов’язкового державного соціального і пенсійного страхування (пункт 1 розділу ІІ)
A4: ЗВІТ
A5: =IF(ЗАПОЛНИТЬ!$F$7=1,CONCATENATE(шапки!A2),CONCATENATE(шапки!A2,шапки!C2)) -> про надходження та використання коштів загального фонду (форма №2д, | G5: =IF(ЗАПОЛНИТЬ!$F$7=1,шапки!C2,шапки!D2) -> №2м) | H5: =IF(ЗАПОЛНИТЬ!$F$7=1,шапки!D2,"") -> 
A6: =CONCATENATE("за ",ЗАПОЛНИТЬ!$B$17," ",ЗАПОЛНИТЬ!$C$17) -> за ІІІ квартал 2018 р.
J7: коди
A9: Установа | B9: =ЗАПОЛНИТЬ!B3 -> Комунальний заклад "Орлівська загальноосвітня школа І-ІІІ ступенів" Приморської районної ради Запорізької області | H9: за ЄДРПОУ | J9: =ЗАПОЛНИТЬ!B13 -> 26291242
A10: Територія | B10: =ЗАПОЛНИТЬ!B5 -> с.Орлівка Приморського району Запорізької області | H10: за КОАТУУ | J10: =ЗАПОЛНИТЬ!B14 -> 232484201
A11: Організаційно-правова форма господарювання | B11: =ЗАПОЛНИТЬ!D15 -> Комунальна організація (установа, заклад) | H11: за КОПФГ | J11: =ЗАПОЛНИТЬ!B15 -> 430
A12: Код та назва відомчої класифікації видатків та кредитування державного бюджету | D12: =ЗАПОЛНИТЬ!H9 -> 0 | E12: =IF(D12>0,VLOOKUP(D12,'ДовидникКВК(ГОС)'!A:B,2,FALSE),"") -> 
A13: Код та назва програмної класифікації видатків та кредитування державного бюджету | E13: =IF(D13>0,VLOOKUP(D13,ДовидникКПК!B:C,2,FALSE),"") -> 
A14: Код та назва типової відомчої класифікації видатків та кредитування місцевих бюджетів | D14: =ЗАПОЛНИТЬ!H10 -> 06 | E14: =ЗАПОЛНИТЬ!I10 -> Відділ освіти Приморського района Запорізької області
A15: Код та назва програмної класифікації видатків та кредитування місцевих бюджетів (код та назва Типової програмної класифікації видатків та кредитування місцевих бюджетів / Тимчасової класифікації видатків та кредитування для бюджетів місцевого самоврядування, які не застосовують програмно-цільового методу) | D15: - | E15: =VLOOKUP(RIGHT(D15,4),КПКВМБ!A:B,2,FALSE) -> -
A16: Періодичність: квартальна, річна
A17: Одиниця виміру: грн, коп.
A19: Показники | B19: КЕКВ та/або ККК | C19: Код рядка | D19: Затверджено на звітний рік | E19: Затверджено на звітний період (рік)1 | F19: Залишок на початок звітного року | G19: Надійшло коштів за звітний період (рік) | H19: Касові за звітний період (рік) | I19: Фактичні за звітний період (рік) | J19: Залишок на кінець звітного періоду (року)
A22: 1 | B22: 2 | C22: 3 | D22: 4 | E22: 5 | F22: 6 | G22: 7 | H22: 8 | I22: 9 | J22: 9
A23: Видатки та надання кредитів - усього | B23: Х | C23: 010 | D23: =D24+D59+D79+D84+D87 -> 0 | E23: =E26+E29+E32+E33+E37+E45+E46+E86+E54 -> 0 | F23: =F24+F59+F79+F84+F87 -> 0 | G23: =G24+G59+G79+G84+G87 -> 0 | H23: =H24+H59+H79+H84+H87 -> 0 | I23: =I24+I59+I79+I84+I87 -> 0 | J23: =F23+G23-H23 -> 0
A24: у тому числі: Поточні видатки | B24: 2000 | C24: 020 | D24: =D25+D30+D47+D50+D54+D58 -> 0 | E24: 0 | F24: 0 | G24: 0 | H24: 0 | I24: 0 | J24: =F24+G24-H24 -> 0
A25: Оплата праці і нарахування на заробітну плату | B25: 2100 | C25: 030 | D25: =D26+D29 -> 0 | E25: 0 | F25: =F26+F29 -> 0 | G25: =G26+G29 -> 0 | H25: =H26+H29 -> 0 | I25: =I26+I29 -> 0 | J25: 0
A26: Оплата праці | B26: 2110 | C26: 040 | D26: =SUM(D27:D28) -> 0 | E26: 0 | F26: 0 | G26: 0 | H26: 0 | I26: 0 | J26: 0
A27: Заробітна плата | B27: 2111 | C27: 050 | D27: 0 | E27: 0 | F27: 0 | G27: 0 | H27: 0 | I27: 0 | J27: 0
A28: Грошове забезпечення військовослужбовців | B28: 2112 | C28: 060 | D28: 0 | E28: 0 | F28: 0 | G28: 0 | H28: 0 | I28: 0 | J28: 0
A29: Нарахування на оплату праці | B29: 2120 | C29: 070 | D29: 0 | E29: 0 | F29: 0 | G29: 0 | H29: 0 | I29: 0 | J29: 0
A30: Використання товарів і послуг | B30: 2200 | C30: 080 | D30: =SUM(D31:D37)+D44 -> 0 | E30: 0 | F30: =SUM(F31:F37)+F44 -> 0 | G30: =SUM(G31:G37)+G44 -> 0 | H30: =SUM(H31:H37)+H44 -> 0 | I30: =SUM(I31:I37)+I44 -> 0 | J30: 0
A31: Предмети, матеріали, обладнання та інвентар | B31: 2210 | C31: 090 | D31: 0 | E31: 0 | F31: 0 | G31: 0 | H31: 0 | I31: 0 | J31: 0
A32: Медикаменти та перев’язувальні матеріали | B32: 2220 | C32: 100 | D32: 0 | E32: 0 | F32: 0 | G32: 0 | H32: 0 | I32: 0 | J32: 0
A33: Продукти харчування | B33: 2230 | C33: 110 | D33: 0 | E33: 0 | F33: 0 | G33: 0 | H33: 0 | I33: 0 | J33: 0
A34: Оплата послуг (крім комунальних) | B34: 2240 | C34: 120 | D34: 0 | E34: 0 | F34: 0 | G34: 0 | H34: 0 | I34: 0 | J34: 0
A35: Видатки на відрядження | B35: 2250 | C35: 130 | D35: 0 | E35: 0 | F35: 0 | G35: 0 | H35: 0 | I35: 0 | J35: 0
A36: Видатки та заходи спеціального призначення | B36: 2260 | C36: 140 | D36: 0 | E36: 0 | F36: 0 | G36: 0 | H36: 0 | I36: 0 | J36: 0
A37: Оплата комунальних послуг та енергоносіїв | B37: 2270 | C37: 150 | D37: =SUM(D38:D43) -> 0 | E37: 0 | F37: =SUM(F38:F43) -> 0 | G37: =SUM(G38:G43) -> 0 | H37: =SUM(H38:H43) -> 0 | I37: =SUM(I38:I43) -> 0 | J37: =F37+G37-H37 -> 0
A38: Оплата теплопостачання | B38: 2271 | C38: 160 | D38: 0 | E38: 0 | F38: 0 | G38: 0 | H38: 0 | I38: 0 | J38: 0
A39: Оплата водопостачання та водовідведення | B39: 2272 | C39: 170 | D39: 0 | E39: 0 | F39: 0 | G39: 0 | H39: 0 | I39: 0 | J39: 0
A40: Оплата електроенергії | B40: 2273 | C40: 180 | D40: 0 | E40: 0 | F40: 0 | G40: 0 | H40: 0 | I40: 0 | J40: 0
A41: Оплата природного газу | B41: 2274 | C41: 190 | D41: 0 | E41: 0 | F41: 0 | G41: 0 | H41: 0 | I41: 0 | J41: 0
A42: Оплата інших енергоносіїв | B42: 2275 | C42: 200 | D42: 0 | E42: 0 | F42: 0 | G42: 0 | H42: 0 | I42: 0 | J42: 0
A43: Оплата енергосервісу | B43: 2276 | C43: 210 | D43: 0 | E43: 0 | F43: 0 | G43: 0 | H43: 0 | I43: 0 | J43: =F43+G43-H43 -> 0
A44: Дослідження і розробки, окремі заходи по реалізації державних (регіональних) програм | B44: 2280 | C44: 220 | D44: =SUM(D45:D46) -> 0 | E44: 0 | F44: =SUM(F45:F46) -> 0 | G44: =SUM(G45:G46) -> 0 | H44: =SUM(H45:H46) -> 0 | I44: =SUM(I45:I46) -> 0 | J44: 0
A45: Дослідження і розробки, окремі заходи розвитку по реалізації державних (регіональних) програм | B45: 2281 | C45: 230 | D45: 0 | E45: 0 | F45: 0 | G45: 0 | H45: 0 | I45: 0 | J45: 0
A46: Окремі заходи по реалізації державних (регіональних) програм, не віднесені до заходів розвитку | B46: 2282 | C46: 240 | D46: 0 | E46: 0 | F46: 0 | G46: 0 | H46: 0 | I46: 0 | J46: 0
A47: Обслуговування боргових зобов’язань | B47: 2400 | C47: 250 | D47: =SUM(D48:D49) -> 0 | E47: 0 | F47: 0 | G47: 0 | H47: 0 | I47: 0 | J47: 0
A48: Обслуговування внутрішніх боргових зобов’язань | B48: 2410 | C48: 260 | D48: 0 | E48: 0 | F48: 0 | G48: 0 | H48: 0 | I48: 0 | J48: 0
A49: Обслуговування зовнішніх боргових зобов’язань | B49: 2420 | C49: 270 | D49: 0 | E49: 0 | F49: 0 | G49: 0 | H49: 0 | I49: 0 | J49: 0
A50: Поточні трансферти | B50: 2600 | C50: 280 | D50: =SUM(D51:D53) -> 0 | E50: 0 | F50: 0 | G50: 0 | H50: 0 | I50: 0 | J50: 0
A51: Субсидії та поточні трансферти підприємствам (установам, організаціям) | B51: 2610 | C51: 290 | D51: 0 | E51: 0 | F51: 0 | G51: 0 | H51: 0 | I51: 0 | J51: 0
A52: Поточні трансферти органам державного управління інших рівнів | B52: 2620 | C52: 300 | D52: 0 | E52: 0 | F52: 0 | G52: 0 | H52: 0 | I52: 0 | J52: 0
A53: Поточні трансферти урядам іноземних держав та міжнародним організаціям | B53: 2630 | C53: 310 | D53: 0 | E53: 0 | F53: 0 | G53: 0 | H53: 0 | I53: 0 | J53: 0
A54: Соціальне забезпечення | B54: 2700 | C54: 320 | D54: =SUM(D55:D57) -> 0 | E54: 0 | F54: 0 | G54: 0 | H54: 0 | I54: 0 | J54: 0
A55: Виплата пенсій і допомоги | B55: 2710 | C55: 330 | D55: 0 | E55: 0 | F55: 0 | G55: 0 | H55: 0 | I55: 0 | J55: 0
A56: Стипендії | B56: 2720 | C56: 340 | D56: 0 | E56: 0 | F56: 0 | G56: 0 | H56: 0 | I56: 0 | J56: 0
A57: Інші виплати населенню | B57: 2730 | C57: 350 | D57: 0 | E57: 0 | F57: 0 | G57: 0 | H57: 0 | I57: 0 | J57: 0
A58: Інші поточні видатки | B58: 2800 | C58: 360 | D58: 0 | E58: 0 | F58: 0 | G58: 0 | H58: 0 | I58: 0 | J58: 0
A59: Капітальні видатки | B59: 3000 | C59: 370 | D59: =D60+D74 -> 0 | E59: 0 | F59: 0 | G59: 0 | H59: 0 | I59: 0 | J59: 0
A60: Придбання основного капіталу | B60: 3100 | C60: 380 | D60: =D61+D62+D65+D68+D72+D73 -> 0 | E60: 0 | F60: 0 | G60: 0 | H60: 0 | I60: 0 | J60: 0
A61: Придбання обладнання і предметів довгострокового користування | B61: 3110 | C61: 390 | D61: 0 | E61: 0 | F61: 0 | G61: 0 | H61: 0 | I61: 0 | J61: 0
A62: Капітальне будівництво (придбання) | B62: 3120 | C62: 400 | D62: =SUM(D63:D64) -> 0 | E62: 0 | F62: 0 | G62: 0 | H62: 0 | I62: 0 | J62: 0
A63: Капітальне будівництво (придбання) житла | B63: 3121 | C63: 410 | D63: 0 | E63: 0 | F63: 0 | G63: 0 | H63: 0 | I63: 0 | J63: 0
A64: Капітальне будівництво (придбання) інших об’єктів | B64: 3122 | C64: 420 | D64: 0 | E64: 0 | F64: 0 | G64: 0 | H64: 0 | I64: 0 | J64: 0
A65: Капітальний ремонт | B65: 3130 | C65: 430 | D65: =SUM(D66:D67) -> 0 | E65: 0 | F65: 0 | G65: 0 | H65: 0 | I65: 0 | J65: 0
A66: Капітальний ремонт житлового фонду (приміщень) | B66: 3131 | C66: 440 | D66: 0 | E66: 0 | F66: 0 | G66: 0 | H66: 0 | I66: 0 | J66: 0
A67: Капітальний ремонт інших об’єктів | B67: 3132 | C67: 450 | D67: 0 | E67: 0 | F67: 0 | G67: 0 | H67: 0 | I67: 0 | J67: 0
A68: Реконструкція та реставрація | B68: 3140 | C68: 460 | D68: =SUM(D69:D71) -> 0 | E68: 0 | F68: 0 | G68: 0 | H68: 0 | I68: 0 | J68: 0
A69: Реконструкція житлового фонду (приміщень) | B69: 3141 | C69: 470 | D69: 0 | E69: 0 | F69: 0 | G69: 0 | H69: 0 | I69: 0 | J69: 0
A70: Реконструкція та реставрація інших об’єктів | B70: 3142 | C70: 480 | D70: 0 | E70: 0 | F70: 0 | G70: 0 | H70: 0 | I70: 0 | J70: 0
A71: Реставрація пам’яток культури, історії та архітектури | B71: 3143 | C71: 490 | D71: 0 | E71: 0 | F71: 0 | G71: 0 | H71: 0 | I71: 0 | J71: 0
A72: Створення державних запасів і резервів | B72: 3150 | C72: 500 | D72: 0 | E72: 0 | F72: 0 | G72: 0 | H72: 0 | I72: 0 | J72: 0
A73: Придбання землі та нематеріальних активів | B73: 3160 | C73: 510 | D73: 0 | E73: 0 | F73: 0 | G73: 0 | H73: 0 | I73: 0 | J73: 0
A74: Капітальні трансферти | B74: 3200 | C74: 520 | D74: =SUM(D75:D78) -> 0 | E74: 0 | F74: 0 | G74: 0 | H74: 0 | I74: 0 | J74: 0
A75: Капітальні трансферти підприємствам (установам, організаціям) | B75: 3210 | C75: 530 | D75: 0 | E75: 0 | F75: 0 | G75: 0 | H75: 0 | I75: 0 | J75: 0
A76: Капітальні трансферти органам державного управління інших рівнів | B76: 3220 | C76: 540 | D76: 0 | E76: 0 | F76: 0 | G76: 0 | H76: 0 | I76: 0 | J76: 0
A77: Капітальні трансферти урядам іноземних держав та міжнародним організаціям | B77: 3230 | C77: 550 | D77: 0 | E77: 0 | F77: 0 | G77: 0 | H77: 0 | I77: 0 | J77: 0
A78: Капітальні трансферти населенню | B78: 3240 | C78: 560 | D78: 0 | E78: 0 | F78: 0 | G78: 0 | H78: 0 | I78: 0 | J78: 0
A79: Внутрішнє кредитування | B79: 4100 | C79: 570 | D79: =SUM(D80) -> 0 | E79: 0 | F79: 0 | G79: 0 | H79: 0 | I79: 0 | J79: 0
A80: Надання внутрішніх кредитів | B80: 4110 | C80: 580 | D80: =SUM(D81:D83) -> 0 | E80: 0 | F80: 0 | G80: 0 | H80: 0 | I80: 0 | J80: 0
A81: Надання кредитів органам державного управління інших рівнів | B81: 4111 | C81: 590 | D81: 0 | E81: 0 | F81: 0 | G81: 0 | H81: 0 | I81: 0 | J81: 0
A82: Надання кредитів підприємствам, установам, організаціям | B82: 4112 | C82: 600 | D82: 0 | E82: 0 | F82: 0 | G82: 0 | H82: 0 | I82: 0 | J82: 0
A83: Надання інших внутрішніх кредитів | B83: 4113 | C83: 610 | D83: 0 | E83: 0 | F83: 0 | G83: 0 | H83: 0 | I83: 0 | J83: 0
A84: Зовнішнє кредитування | B84: 4200 | C84: 620 | D84: =D85 -> 0 | E84: 0 | F84: 0 | G84: 0 | H84: 0 | I84: 0 | J84: 0
A85: Надання зовнішніх кредитів | B85: 4210 | C85: 630 | D85: 0 | E85: 0 | F85: 0 | G85: 0 | H85: 0 | I85: 0 | J85: 0
A86: Інші видатки | B86: 5000 | C86: 640 | D86: X | E86: 0 | F86: X | G86: X | H86: X | I86: X | J86: X
A87: Нерозподілені видатки | B87: 9000 | C87: 650 | D87: 0 | E87: 0 | F87: 0 | G87: 0 | H87: 0 | I87: 0 | J87: 0
C88: 650
A100: 1 Заповнюється розпорядниками бюджетних коштів.
A101: =ЗАПОЛНИТЬ!F30 -> Керівник | G101: =ЗАПОЛНИТЬ!F26 -> Нєтков Р.В.
D102: (підпис) | G102: (ініціали, прізвище)
A103: =ЗАПОЛНИТЬ!F31 -> Головний бухгалтер | G103: =ЗАПОЛНИТЬ!F28 -> Саватєєва О.І.
A104: =ЗАПОЛНИТЬ!C19 -> "08" жовтня 2018 року | D104: (підпис) | G104: (ініціали, прізвище)

Sheet Ф.2.6 (hidden)
G1: Додаток 1 до Порядку складання бюджетної звітності розпорядниками та одержувачами бюджетних коштів, звітності фондами загальнообов’язкового державного соціального і пенсійного страхування (пункт 1 розділу ІІ)
A4: ЗВІТ
A5: =IF(ЗАПОЛНИТЬ!$F$7=1,CONCATENATE(шапки!A2),CONCATENATE(шапки!A2,шапки!C2)) -> про надходження та використання коштів загального фонду (форма №2д, | G5: =IF(ЗАПОЛНИТЬ!$F$7=1,шапки!C2,шапки!D2) -> №2м) | H5: =IF(ЗАПОЛНИТЬ!$F$7=1,шапки!D2,"") -> 
A6: =CONCATENATE("за ",ЗАПОЛНИТЬ!$B$17," ",ЗАПОЛНИТЬ!$C$17) -> за ІІІ квартал 2018 р.
J7: коди
A9: Установа | B9: =ЗАПОЛНИТЬ!B3 -> Комунальний заклад "Орлівська загальноосвітня школа І-ІІІ ступенів" Приморської районної ради Запорізької області | H9: за ЄДРПОУ | J9: =ЗАПОЛНИТЬ!B13 -> 26291242
A10: Територія | B10: =ЗАПОЛНИТЬ!B5 -> с.Орлівка Приморського району Запорізької області | H10: за КОАТУУ | J10: =ЗАПОЛНИТЬ!B14 -> 232484201
A11: Організаційно-правова форма господарювання | B11: =ЗАПОЛНИТЬ!D15 -> Комунальна організація (установа, заклад) | H11: за КОПФГ | J11: =ЗАПОЛНИТЬ!B15 -> 430
A12: Код та назва відомчої класифікації видатків та кредитування державного бюджету | D12: =ЗАПОЛНИТЬ!H9 -> 0 | E12: =IF(D12>0,VLOOKUP(D12,'ДовидникКВК(ГОС)'!A:B,2,FALSE),"") -> 
A13: Код та назва програмної класифікації видатків та кредитування державного бюджету | E13: =IF(D13>0,VLOOKUP(D13,ДовидникКПК!B:C,2,FALSE),"") -> 
A14: Код та назва типової відомчої класифікації видатків та кредитування місцевих бюджетів | D14: =ЗАПОЛНИТЬ!H10 -> 06 | E14: =ЗАПОЛНИТЬ!I10 -> Відділ освіти Приморського района Запорізької області
A15: Код та назва програмної класифікації видатків та кредитування місцевих бюджетів (код та назва Типової програмної класифікації видатків та кредитування місцевих бюджетів / Тимчасової класифікації видатків та кредитування для бюджетів місцевого самоврядування, які не застосовують програмно-цільового методу) | D15: - | E15: =VLOOKUP(RIGHT(D15,4),КПКВМБ!A:B,2,FALSE) -> -
A16: Періодичність: квартальна, річна
A17: Одиниця виміру: грн, коп.
A19: Показники | B19: КЕКВ та/або ККК | C19: Код рядка | D19: Затверджено на звітний рік | E19: Затверджено на звітний період (рік)1 | F19: Залишок на початок звітного року | G19: Надійшло коштів за звітний період (рік) | H19: Касові за звітний період (рік) | I19: Фактичні за звітний період (рік) | J19: Залишок на кінець звітного періоду (року)
A22: 1 | B22: 2 | C22: 3 | D22: 4 | E22: 5 | F22: 6 | G22: 7 | H22: 8 | I22: 9 | J22: 9
A23: Видатки та надання кредитів - усього | B23: Х | C23: 010 | D23: =D24+D59+D79+D84+D87 -> 0 | E23: =E26+E29+E32+E33+E37+E45+E46+E86+E54 -> 0 | F23: =F24+F59+F79+F84+F87 -> 0 | G23: =G24+G59+G79+G84+G87 -> 0 | H23: =H24+H59+H79+H84+H87 -> 0 | I23: =I24+I59+I79+I84+I87 -> 0 | J23: =F23+G23-H23 -> 0
A24: у тому числі: Поточні видатки | B24: 2000 | C24: 020 | D24: =D25+D30+D47+D50+D54+D58 -> 0 | E24: 0 | F24: 0 | G24: 0 | H24: 0 | I24: 0 | J24: =F24+G24-H24 -> 0
A25: Оплата праці і нарахування на заробітну плату | B25: 2100 | C25: 030 | D25: =D26+D29 -> 0 | E25: 0 | F25: =F26+F29 -> 0 | G25: =G26+G29 -> 0 | H25: =H26+H29 -> 0 | I25: =I26+I29 -> 0 | J25: 0
A26: Оплата праці | B26: 2110 | C26: 040 | D26: =SUM(D27:D28) -> 0 | E26: 0 | F26: 0 | G26: 0 | H26: 0 | I26: 0 | J26: 0
A27: Заробітна плата | B27: 2111 | C27: 050 | D27: 0 | E27: 0 | F27: 0 | G27: 0 | H27: 0 | I27: 0 | J27: 0
A28: Грошове забезпечення військовослужбовців | B28: 2112 | C28: 060 | D28: 0 | E28: 0 | F28: 0 | G28: 0 | H28: 0 | I28: 0 | J28: 0
A29: Нарахування на оплату праці | B29: 2120 | C29: 070 | D29: 0 | E29: 0 | F29: 0 | G29: 0 | H29: 0 | I29: 0 | J29: 0
A30: Використання товарів і послуг | B30: 2200 | C30: 080 | D30: =SUM(D31:D37)+D44 -> 0 | E30: 0 | F30: =SUM(F31:F37)+F44 -> 0 | G30: =SUM(G31:G37)+G44 -> 0 | H30: =SUM(H31:H37)+H44 -> 0 | I30: =SUM(I31:I37)+I44 -> 0 | J30: 0
A31: Предмети, матеріали, обладнання та інвентар | B31: 2210 | C31: 090 | D31: 0 | E31: 0 | F31: 0 | G31: 0 | H31: 0 | I31: 0 | J31: 0
A32: Медикаменти та перев’язувальні матеріали | B32: 2220 | C32: 100 | D32: 0 | E32: 0 | F32: 0 | G32: 0 | H32: 0 | I32: 0 | J32: 0
A33: Продукти харчування | B33: 2230 | C33: 110 | D33: 0 | E33: 0 | F33: 0 | G33: 0 | H33: 0 | I33: 0 | J33: 0
A34: Оплата послуг (крім комунальних) | B34: 2240 | C34: 120 | D34: 0 | E34: 0 | F34: 0 | G34: 0 | H34: 0 | I34: 0 | J34: 0
A35: Видатки на відрядження | B35: 2250 | C35: 130 | D35: 0 | E35: 0 | F35: 0 | G35: 0 | H35: 0 | I35: 0 | J35: 0
A36: Видатки та заходи спеціального призначення | B36: 2260 | C36: 140 | D36: 0 | E36: 0 | F36: 0 | G36: 0 | H36: 0 | I36: 0 | J36: 0
A37: Оплата комунальних послуг та енергоносіїв | B37: 2270 | C37: 150 | D37: =SUM(D38:D43) -> 0 | E37: 0 | F37: =SUM(F38:F43) -> 0 | G37: =SUM(G38:G43) -> 0 | H37: =SUM(H38:H43) -> 0 | I37: =SUM(I38:I43) -> 0 | J37: =F37+G37-H37 -> 0
A38: Оплата теплопостачання | B38: 2271 | C38: 160 | D38: 0 | E38: 0 | F38: 0 | G38: 0 | H38: 0 | I38: 0 | J38: 0
A39: Оплата водопостачання та водовідведення | B39: 2272 | C39: 170 | D39: 0 | E39: 0 | F39: 0 | G39: 0 | H39: 0 | I39: 0 | J39: 0
A40: Оплата електроенергії | B40: 2273 | C40: 180 | D40: 0 | E40: 0 | F40: 0 | G40: 0 | H40: 0 | I40: 0 | J40: 0
A41: Оплата природного газу | B41: 2274 | C41: 190 | D41: 0 | E41: 0 | F41: 0 | G41: 0 | H41: 0 | I41: 0 | J41: 0
A42: Оплата інших енергоносіїв | B42: 2275 | C42: 200 | D42: 0 | E42: 0 | F42: 0 | G42: 0 | H42: 0 | I42: 0 | J42: 0
A43: Оплата енергосервісу | B43: 2276 | C43: 210 | D43: 0 | E43: 0 | F43: 0 | G43: 0 | H43: 0 | I43: 0 | J43: =F43+G43-H43 -> 0
A44: Дослідження і розробки, окремі заходи по реалізації державних (регіональних) програм | B44: 2280 | C44: 220 | D44: =SUM(D45:D46) -> 0 | E44: 0 | F44: =SUM(F45:F46) -> 0 | G44: =SUM(G45:G46) -> 0 | H44: =SUM(H45:H46) -> 0 | I44: =SUM(I45:I46) -> 0 | J44: 0
A45: Дослідження і розробки, окремі заходи розвитку по реалізації державних (регіональних) програм | B45: 2281 | C45: 230 | D45: 0 | E45: 0 | F45: 0 | G45: 0 | H45: 0 | I45: 0 | J45: 0
A46: Окремі заходи по реалізації державних (регіональних) програм, не віднесені до заходів розвитку | B46: 2282 | C46: 240 | D46: 0 | E46: 0 | F46: 0 | G46: 0 | H46: 0 | I46: 0 | J46: 0
A47: Обслуговування боргових зобов’язань | B47: 2400 | C47: 250 | D47: =SUM(D48:D49) -> 0 | E47: 0 | F47: 0 | G47: 0 | H47: 0 | I47: 0 | J47: 0
A48: Обслуговування внутрішніх боргових зобов’язань | B48: 2410 | C48: 260 | D48: 0 | E48: 0 | F48: 0 | G48: 0 | H48: 0 | I48: 0 | J48: 0
A49: Обслуговування зовнішніх боргових зобов’язань | B49: 2420 | C49: 270 | D49: 0 | E49: 0 | F49: 0 | G49: 0 | H49: 0 | I49: 0 | J49: 0
A50: Поточні трансферти | B50: 2600 | C50: 280 | D50: =SUM(D51:D53) -> 0 | E50: 0 | F50: 0 | G50: 0 | H50: 0 | I50: 0 | J50: 0
A51: Субсидії та поточні трансферти підприємствам (установам, організаціям) | B51: 2610 | C51: 290 | D51: 0 | E51: 0 | F51: 0 | G51: 0 | H51: 0 | I51: 0 | J51: 0
A52: Поточні трансферти органам державного управління інших рівнів | B52: 2620 | C52: 300 | D52: 0 | E52: 0 | F52: 0 | G52: 0 | H52: 0 | I52: 0 | J52: 0
A53: Поточні трансферти урядам іноземних держав та міжнародним організаціям | B53: 2630 | C53: 310 | D53: 0 | E53: 0 | F53: 0 | G53: 0 | H53: 0 | I53: 0 | J53: 0
A54: Соціальне забезпечення | B54: 2700 | C54: 320 | D54: =SUM(D55:D57) -> 0 | E54: 0 | F54: 0 | G54: 0 | H54: 0 | I54: 0 | J54: 0
A55: Виплата пенсій і допомоги | B55: 2710 | C55: 330 | D55: 0 | E55: 0 | F55: 0 | G55: 0 | H55: 0 | I55: 0 | J55: 0
A56: Стипендії | B56: 2720 | C56: 340 | D56: 0 | E56: 0 | F56: 0 | G56: 0 | H56: 0 | I56: 0 | J56: 0
A57: Інші виплати населенню | B57: 2730 | C57: 350 | D57: 0 | E57: 0 | F57: 0 | G57: 0 | H57: 0 | I57: 0 | J57: 0
A58: Інші поточні видатки | B58: 2800 | C58: 360 | D58: 0 | E58: 0 | F58: 0 | G58: 0 | H58: 0 | I58: 0 | J58: 0
A59: Капітальні видатки | B59: 3000 | C59: 370 | D59: =D60+D74 -> 0 | E59: 0 | F59: 0 | G59: 0 | H59: 0 | I59: 0 | J59: 0
A60: Придбання основного капіталу | B60: 3100 | C60: 380 | D60: =D61+D62+D65+D68+D72+D73 -> 0 | E60: 0 | F60: 0 | G60: 0 | H60: 0 | I60: 0 | J60: 0
A61: Придбання обладнання і предметів довгострокового користування | B61: 3110 | C61: 390 | D61: 0 | E61: 0 | F61: 0 | G61: 0 | H61: 0 | I61: 0 | J61: 0
A62: Капітальне будівництво (придбання) | B62: 3120 | C62: 400 | D62: =SUM(D63:D64) -> 0 | E62: 0 | F62: 0 | G62: 0 | H62: 0 | I62: 0 | J62: 0
A63: Капітальне будівництво (придбання) житла | B63: 3121 | C63: 410 | D63: 0 | E63: 0 | F63: 0 | G63: 0 | H63: 0 | I63: 0 | J63: 0
A64: Капітальне будівництво (придбання) інших об’єктів | B64: 3122 | C64: 420 | D64: 0 | E64: 0 | F64: 0 | G64: 0 | H64: 0 | I64: 0 | J64: 0
A65: Капітальний ремонт | B65: 3130 | C65: 430 | D65: =SUM(D66:D67) -> 0 | E65: 0 | F65: 0 | G65: 0 | H65: 0 | I65: 0 | J65: 0
A66: Капітальний ремонт житлового фонду (приміщень) | B66: 3131 | C66: 440 | D66: 0 | E66: 0 | F66: 0 | G66: 0 | H66: 0 | I66: 0 | J66: 0
A67: Капітальний ремонт інших об’єктів | B67: 3132 | C67: 450 | D67: 0 | E67: 0 | F67: 0 | G67: 0 | H67: 0 | I67: 0 | J67: 0
A68: Реконструкція та реставрація | B68: 3140 | C68: 460 | D68: =SUM(D69:D71) -> 0 | E68: 0 | F68: 0 | G68: 0 | H68: 0 | I68: 0 | J68: 0
A69: Реконструкція житлового фонду (приміщень) | B69: 3141 | C69: 470 | D69: 0 | E69: 0 | F69: 0 | G69: 0 | H69: 0 | I69: 0 | J69: 0
A70: Реконструкція та реставрація інших об’єктів | B70: 3142 | C70: 480 | D70: 0 | E70: 0 | F70: 0 | G70: 0 | H70: 0 | I70: 0 | J70: 0
A71: Реставрація пам’яток культури, історії та архітектури | B71: 3143 | C71: 490 | D71: 0 | E71: 0 | F71: 0 | G71: 0 | H71: 0 | I71: 0 | J71: 0
A72: Створення державних запасів і резервів | B72: 3150 | C72: 500 | D72: 0 | E72: 0 | F72: 0 | G72: 0 | H72: 0 | I72: 0 | J72: 0
A73: Придбання землі та нематеріальних активів | B73: 3160 | C73: 510 | D73: 0 | E73: 0 | F73: 0 | G73: 0 | H73: 0 | I73: 0 | J73: 0
A74: Капітальні трансферти | B74: 3200 | C74: 520 | D74: =SUM(D75:D78) -> 0 | E74: 0 | F74: 0 | G74: 0 | H74: 0 | I74: 0 | J74: 0
A75: Капітальні трансферти підприємствам (установам, організаціям) | B75: 3210 | C75: 530 | D75: 0 | E75: 0 | F75: 0 | G75: 0 | H75: 0 | I75: 0 | J75: 0
A76: Капітальні трансферти органам державного управління інших рівнів | B76: 3220 | C76: 540 | D76: 0 | E76: 0 | F76: 0 | G76: 0 | H76: 0 | I76: 0 | J76: 0
A77: Капітальні трансферти урядам іноземних держав та міжнародним організаціям | B77: 3230 | C77: 550 | D77: 0 | E77: 0 | F77: 0 | G77: 0 | H77: 0 | I77: 0 | J77: 0
A78: Капітальні трансферти населенню | B78: 3240 | C78: 560 | D78: 0 | E78: 0 | F78: 0 | G78: 0 | H78: 0 | I78: 0 | J78: 0
A79: Внутрішнє кредитування | B79: 4100 | C79: 570 | D79: =SUM(D80) -> 0 | E79: 0 | F79: 0 | G79: 0 | H79: 0 | I79: 0 | J79: 0
A80: Надання внутрішніх кредитів | B80: 4110 | C80: 580 | D80: =SUM(D81:D83) -> 0 | E80: 0 | F80: 0 | G80: 0 | H80: 0 | I80: 0 | J80: 0
A81: Надання кредитів органам державного управління інших рівнів | B81: 4111 | C81: 590 | D81: 0 | E81: 0 | F81: 0 | G81: 0 | H81: 0 | I81: 0 | J81: 0
A82: Надання кредитів підприємствам, установам, організаціям | B82: 4112 | C82: 600 | D82: 0 | E82: 0 | F82: 0 | G82: 0 | H82: 0 | I82: 0 | J82: 0
A83: Надання інших внутрішніх кредитів | B83: 4113 | C83: 610 | D83: 0 | E83: 0 | F83: 0 | G83: 0 | H83: 0 | I83: 0 | J83: 0
A84: Зовнішнє кредитування | B84: 4200 | C84: 620 | D84: =D85 -> 0 | E84: 0 | F84: 0 | G84: 0 | H84: 0 | I84: 0 | J84: 0
A85: Надання зовнішніх кредитів | B85: 4210 | C85: 630 | D85: 0 | E85: 0 | F85: 0 | G85: 0 | H85: 0 | I85: 0 | J85: 0
A86: Інші видатки | B86: 5000 | C86: 640 | D86: X | E86: 0 | F86: X | G86: X | H86: X | I86: X | J86: X
A87: Нерозподілені видатки | B87: 9000 | C87: 650 | D87: 0 | E87: 0 | F87: 0 | G87: 0 | H87: 0 | I87: 0 | J87: 0
C88: 650
A100: 1 Заповнюється розпорядниками бюджетних коштів.
A101: =ЗАПОЛНИТЬ!F30 -> Керівник | G101: =ЗАПОЛНИТЬ!F26 -> Нєтков Р.В.
D102: (підпис) | G102: (ініціали, прізвище)
A103: =ЗАПОЛНИТЬ!F31 -> Головний бухгалтер | G103: =ЗАПОЛНИТЬ!F28 -> Саватєєва О.І.
A104: =ЗАПОЛНИТЬ!C19 -> "08" жовтня 2018 року | D104: (підпис) | G104: (ініціали, прізвище)

Sheet Ф.2.7 (hidden)
G1: Додаток 1 до Порядку складання бюджетної звітності розпорядниками та одержувачами бюджетних коштів, звітності фондами загальнообов’язкового державного соціального і пенсійного страхування (пункт 1 розділу ІІ)
A4: ЗВІТ
A5: =IF(ЗАПОЛНИТЬ!$F$7=1,CONCATENATE(шапки!A2),CONCATENATE(шапки!A2,шапки!C2)) -> про надходження та використання коштів загального фонду (форма №2д, | G5: =IF(ЗАПОЛНИТЬ!$F$7=1,шапки!C2,шапки!D2) -> №2м) | H5: =IF(ЗАПОЛНИТЬ!$F$7=1,шапки!D2,"") -> 
A6: =CONCATENATE("за ",ЗАПОЛНИТЬ!$B$17," ",ЗАПОЛНИТЬ!$C$17) -> за ІІІ квартал 2018 р.
J7: коди
A9: Установа | B9: =ЗАПОЛНИТЬ!B3 -> Комунальний заклад "Орлівська загальноосвітня школа І-ІІІ ступенів" Приморської районної ради Запорізької області | H9: за ЄДРПОУ | J9: =ЗАПОЛНИТЬ!B13 -> 26291242
A10: Територія | B10: =ЗАПОЛНИТЬ!B5 -> с.Орлівка Приморського району Запорізької області | H10: за КОАТУУ | J10: =ЗАПОЛНИТЬ!B14 -> 232484201
A11: Організаційно-правова форма господарювання | B11: =ЗАПОЛНИТЬ!D15 -> Комунальна організація (установа, заклад) | H11: за КОПФГ | J11: =ЗАПОЛНИТЬ!B15 -> 430
A12: Код та назва відомчої класифікації видатків та кредитування державного бюджету | D12: =ЗАПОЛНИТЬ!H9 -> 0 | E12: =IF(D12>0,VLOOKUP(D12,'ДовидникКВК(ГОС)'!A:B,2,FALSE),"") -> 
A13: Код та назва програмної класифікації видатків та кредитування державного бюджету | E13: =IF(D13>0,VLOOKUP(D13,ДовидникКПК!B:C,2,FALSE),"") -> 
A14: Код та назва типової відомчої класифікації видатків та кредитування місцевих бюджетів | D14: =ЗАПОЛНИТЬ!H10 -> 06 | E14: =ЗАПОЛНИТЬ!I10 -> Відділ освіти Приморського района Запорізької області
A15: Код та назва програмної класифікації видатків та кредитування місцевих бюджетів (код та назва Типової програмної класифікації видатків та кредитування місцевих бюджетів / Тимчасової класифікації видатків та кредитування для бюджетів місцевого самоврядування, які не застосовують програмно-цільового методу) | D15: - | E15: =VLOOKUP(RIGHT(D15,4),КПКВМБ!A:B,2,FALSE) -> -
A16: Періодичність: квартальна, річна
A17: Одиниця виміру: грн, коп.
A19: Показники | B19: КЕКВ та/або ККК | C19: Код рядка | D19: Затверджено на звітний рік | E19: Затверджено на звітний період (рік)1 | F19: Залишок на початок звітного року | G19: Надійшло коштів за звітний період (рік) | H19: Касові за звітний період (рік) | I19: Фактичні за звітний період (рік) | J19: Залишок на кінець звітного періоду (року)
A22: 1 | B22: 2 | C22: 3 | D22: 4 | E22: 5 | F22: 6 | G22: 7 | H22: 8 | I22: 9 | J22: 9
A23: Видатки та надання кредитів - усього | B23: Х | C23: 010 | D23: =D24+D59+D79+D84+D87 -> 0 | E23: =E26+E29+E32+E33+E37+E45+E46+E86+E54 -> 0 | F23: =F24+F59+F79+F84+F87 -> 0 | G23: =G24+G59+G79+G84+G87 -> 0 | H23: =H24+H59+H79+H84+H87 -> 0 | I23: =I24+I59+I79+I84+I87 -> 0 | J23: =F23+G23-H23 -> 0
A24: у тому числі: Поточні видатки | B24: 2000 | C24: 020 | D24: =D25+D30+D47+D50+D54+D58 -> 0 | E24: 0 | F24: 0 | G24: 0 | H24: 0 | I24: 0 | J24: =F24+G24-H24 -> 0
A25: Оплата праці і нарахування на заробітну плату | B25: 2100 | C25: 030 | D25: =D26+D29 -> 0 | E25: 0 | F25: =F26+F29 -> 0 | G25: =G26+G29 -> 0 | H25: =H26+H29 -> 0 | I25: =I26+I29 -> 0 | J25: 0
A26: Оплата праці | B26: 2110 | C26: 040 | D26: =SUM(D27:D28) -> 0 | E26: 0 | F26: 0 | G26: 0 | H26: 0 | I26: 0 | J26: 0
A27: Заробітна плата | B27: 2111 | C27: 050 | D27: 0 | E27: 0 | F27: 0 | G27: 0 | H27: 0 | I27: 0 | J27: 0
A28: Грошове забезпечення військовослужбовців | B28: 2112 | C28: 060 | D28: 0 | E28: 0 | F28: 0 | G28: 0 | H28: 0 | I28: 0 | J28: 0
A29: Нарахування на оплату праці | B29: 2120 | C29: 070 | D29: 0 | E29: 0 | F29: 0 | G29: 0 | H29: 0 | I29: 0 | J29: 0
A30: Використання товарів і послуг | B30: 2200 | C30: 080 | D30: =SUM(D31:D37)+D44 -> 0 | E30: 0 | F30: =SUM(F31:F37)+F44 -> 0 | G30: =SUM(G31:G37)+G44 -> 0 | H30: =SUM(H31:H37)+H44 -> 0 | I30: =SUM(I31:I37)+I44 -> 0 | J30: 0
A31: Предмети, матеріали, обладнання та інвентар | B31: 2210 | C31: 090 | D31: 0 | E31: 0 | F31: 0 | G31: 0 | H31: 0 | I31: 0 | J31: 0
A32: Медикаменти та перев’язувальні матеріали | B32: 2220 | C32: 100 | D32: 0 | E32: 0 | F32: 0 | G32: 0 | H32: 0 | I32: 0 | J32: 0
A33: Продукти харчування | B33: 2230 | C33: 110 | D33: 0 | E33: 0 | F33: 0 | G33: 0 | H33: 0 | I33: 0 | J33: 0
A34: Оплата послуг (крім комунальних) | B34: 2240 | C34: 120 | D34: 0 | E34: 0 | F34: 0 | G34: 0 | H34: 0 | I34: 0 | J34: 0
A35: Видатки на відрядження | B35: 2250 | C35: 130 | D35: 0 | E35: 0 | F35: 0 | G35: 0 | H35: 0 | I35: 0 | J35: 0
A36: Видатки та заходи спеціального призначення | B36: 2260 | C36: 140 | D36: 0 | E36: 0 | F36: 0 | G36: 0 | H36: 0 | I36: 0 | J36: 0
A37: Оплата комунальних послуг та енергоносіїв | B37: 2270 | C37: 150 | D37: =SUM(D38:D43) -> 0 | E37: 0 | F37: =SUM(F38:F43) -> 0 | G37: =SUM(G38:G43) -> 0 | H37: =SUM(H38:H43) -> 0 | I37: =SUM(I38:I43) -> 0 | J37: =F37+G37-H37 -> 0
A38: Оплата теплопостачання | B38: 2271 | C38: 160 | D38: 0 | E38: 0 | F38: 0 | G38: 0 | H38: 0 | I38: 0 | J38: 0
A39: Оплата водопостачання та водовідведення | B39: 2272 | C39: 170 | D39: 0 | E39: 0 | F39: 0 | G39: 0 | H39: 0 | I39: 0 | J39: 0
A40: Оплата електроенергії | B40: 2273 | C40: 180 | D40: 0 | E40: 0 | F40: 0 | G40: 0 | H40: 0 | I40: 0 | J40: 0
A41: Оплата природного газу | B41: 2274 | C41: 190 | D41: 0 | E41: 0 | F41: 0 | G41: 0 | H41: 0 | I41: 0 | J41: 0
A42: Оплата інших енергоносіїв | B42: 2275 | C42: 200 | D42: 0 | E42: 0 | F42: 0 | G42: 0 | H42: 0 | I42: 0 | J42: 0
A43: Оплата енергосервісу | B43: 2276 | C43: 210 | D43: 0 | E43: 0 | F43: 0 | G43: 0 | H43: 0 | I43: 0 | J43: =F43+G43-H43 -> 0
A44: Дослідження і розробки, окремі заходи по реалізації державних (регіональних) програм | B44: 2280 | C44: 220 | D44: =SUM(D45:D46) -> 0 | E44: 0 | F44: =SUM(F45:F46) -> 0 | G44: =SUM(G45:G46) -> 0 | H44: =SUM(H45:H46) -> 0 | I44: =SUM(I45:I46) -> 0 | J44: 0
A45: Дослідження і розробки, окремі заходи розвитку по реалізації державних (регіональних) програм | B45: 2281 | C45: 230 | D45: 0 | E45: 0 | F45: 0 | G45: 0 | H45: 0 | I45: 0 | J45: 0
A46: Окремі заходи по реалізації державних (регіональних) програм, не віднесені до заходів розвитку | B46: 2282 | C46: 240 | D46: 0 | E46: 0 | F46: 0 | G46: 0 | H46: 0 | I46: 0 | J46: 0
A47: Обслуговування боргових зобов’язань | B47: 2400 | C47: 250 | D47: =SUM(D48:D49) -> 0 | E47: 0 | F47: 0 | G47: 0 | H47: 0 | I47: 0 | J47: 0
A48: Обслуговування внутрішніх боргових зобов’язань | B48: 2410 | C48: 260 | D48: 0 | E48: 0 | F48: 0 | G48: 0 | H48: 0 | I48: 0 | J48: 0
A49: Обслуговування зовнішніх боргових зобов’язань | B49: 2420 | C49: 270 | D49: 0 | E49: 0 | F49: 0 | G49: 0 | H49: 0 | I49: 0 | J49: 0
A50: Поточні трансферти | B50: 2600 | C50: 280 | D50: =SUM(D51:D53) -> 0 | E50: 0 | F50: 0 | G50: 0 | H50: 0 | I50: 0 | J50: 0
A51: Субсидії та поточні трансферти підприємствам (установам, організаціям) | B51: 2610 | C51: 290 | D51: 0 | E51: 0 | F51: 0 | G51: 0 | H51: 0 | I51: 0 | J51: 0
A52: Поточні трансферти органам державного управління інших рівнів | B52: 2620 | C52: 300 | D52: 0 | E52: 0 | F52: 0 | G52: 0 | H52: 0 | I52: 0 | J52: 0
A53: Поточні трансферти урядам іноземних держав та міжнародним організаціям | B53: 2630 | C53: 310 | D53: 0 | E53: 0 | F53: 0 | G53: 0 | H53: 0 | I53: 0 | J53: 0
A54: Соціальне забезпечення | B54: 2700 | C54: 320 | D54: =SUM(D55:D57) -> 0 | E54: 0 | F54: 0 | G54: 0 | H54: 0 | I54: 0 | J54: 0
A55: Виплата пенсій і допомоги | B55: 2710 | C55: 330 | D55: 0 | E55: 0 | F55: 0 | G55: 0 | H55: 0 | I55: 0 | J55: 0
A56: Стипендії | B56: 2720 | C56: 340 | D56: 0 | E56: 0 | F56: 0 | G56: 0 | H56: 0 | I56: 0 | J56: 0
A57: Інші виплати населенню | B57: 2730 | C57: 350 | D57: 0 | E57: 0 | F57: 0 | G57: 0 | H57: 0 | I57: 0 | J57: 0
A58: Інші поточні видатки | B58: 2800 | C58: 360 | D58: 0 | E58: 0 | F58: 0 | G58: 0 | H58: 0 | I58: 0 | J58: 0
A59: Капітальні видатки | B59: 3000 | C59: 370 | D59: =D60+D74 -> 0 | E59: 0 | F59: 0 | G59: 0 | H59: 0 | I59: 0 | J59: 0
A60: Придбання основного капіталу | B60: 3100 | C60: 380 | D60: =D61+D62+D65+D68+D72+D73 -> 0 | E60: 0 | F60: 0 | G60: 0 | H60: 0 | I60: 0 | J60: 0
A61: Придбання обладнання і предметів довгострокового користування | B61: 3110 | C61: 390 | D61: 0 | E61: 0 | F61: 0 | G61: 0 | H61: 0 | I61: 0 | J61: 0
A62: Капітальне будівництво (придбання) | B62: 3120 | C62: 400 | D62: =SUM(D63:D64) -> 0 | E62: 0 | F62: 0 | G62: 0 | H62: 0 | I62: 0 | J62: 0
A63: Капітальне будівництво (придбання) житла | B63: 3121 | C63: 410 | D63: 0 | E63: 0 | F63: 0 | G63: 0 | H63: 0 | I63: 0 | J63: 0
A64: Капітальне будівництво (придбання) інших об’єктів | B64: 3122 | C64: 420 | D64: 0 | E64: 0 | F64: 0 | G64: 0 | H64: 0 | I64: 0 | J64: 0
A65: Капітальний ремонт | B65: 3130 | C65: 430 | D65: =SUM(D66:D67) -> 0 | E65: 0 | F65: 0 | G65: 0 | H65: 0 | I65: 0 | J65: 0
A66: Капітальний ремонт житлового фонду (приміщень) | B66: 3131 | C66: 440 | D66: 0 | E66: 0 | F66: 0 | G66: 0 | H66: 0 | I66: 0 | J66: 0
A67: Капітальний ремонт інших об’єктів | B67: 3132 | C67: 450 | D67: 0 | E67: 0 | F67: 0 | G67: 0 | H67: 0 | I67: 0 | J67: 0
A68: Реконструкція та реставрація | B68: 3140 | C68: 460 | D68: =SUM(D69:D71) -> 0 | E68: 0 | F68: 0 | G68: 0 | H68: 0 | I68: 0 | J68: 0
A69: Реконструкція житлового фонду (приміщень) | B69: 3141 | C69: 470 | D69: 0 | E69: 0 | F69: 0 | G69: 0 | H69: 0 | I69: 0 | J69: 0
A70: Реконструкція та реставрація інших об’єктів | B70: 3142 | C70: 480 | D70: 0 | E70: 0 | F70: 0 | G70: 0 | H70: 0 | I70: 0 | J70: 0
A71: Реставрація пам’яток культури, історії та архітектури | B71: 3143 | C71: 490 | D71: 0 | E71: 0 | F71: 0 | G71: 0 | H71: 0 | I71: 0 | J71: 0
A72: Створення державних запасів і резервів | B72: 3150 | C72: 500 | D72: 0 | E72: 0 | F72: 0 | G72: 0 | H72: 0 | I72: 0 | J72: 0
A73: Придбання землі та нематеріальних активів | B73: 3160 | C73: 510 | D73: 0 | E73: 0 | F73: 0 | G73: 0 | H73: 0 | I73: 0 | J73: 0
A74: Капітальні трансферти | B74: 3200 | C74: 520 | D74: =SUM(D75:D78) -> 0 | E74: 0 | F74: 0 | G74: 0 | H74: 0 | I74: 0 | J74: 0
A75: Капітальні трансферти підприємствам (установам, організаціям) | B75: 3210 | C75: 530 | D75: 0 | E75: 0 | F75: 0 | G75: 0 | H75: 0 | I75: 0 | J75: 0
A76: Капітальні трансферти органам державного управління інших рівнів | B76: 3220 | C76: 540 | D76: 0 | E76: 0 | F76: 0 | G76: 0 | H76: 0 | I76: 0 | J76: 0
A77: Капітальні трансферти урядам іноземних держав та міжнародним організаціям | B77: 3230 | C77: 550 | D77: 0 | E77: 0 | F77: 0 | G77: 0 | H77: 0 | I77: 0 | J77: 0
A78: Капітальні трансферти населенню | B78: 3240 | C78: 560 | D78: 0 | E78: 0 | F78: 0 | G78: 0 | H78: 0 | I78: 0 | J78: 0
A79: Внутрішнє кредитування | B79: 4100 | C79: 570 | D79: =SUM(D80) -> 0 | E79: 0 | F79: 0 | G79: 0 | H79: 0 | I79: 0 | J79: 0
A80: Надання внутрішніх кредитів | B80: 4110 | C80: 580 | D80: =SUM(D81:D83) -> 0 | E80: 0 | F80: 0 | G80: 0 | H80: 0 | I80: 0 | J80: 0
A81: Надання кредитів органам державного управління інших рівнів | B81: 4111 | C81: 590 | D81: 0 | E81: 0 | F81: 0 | G81: 0 | H81: 0 | I81: 0 | J81: 0
A82: Надання кредитів підприємствам, установам, організаціям | B82: 4112 | C82: 600 | D82: 0 | E82: 0 | F82: 0 | G82: 0 | H82: 0 | I82: 0 | J82: 0
A83: Надання інших внутрішніх кредитів | B83: 4113 | C83: 610 | D83: 0 | E83: 0 | F83: 0 | G83: 0 | H83: 0 | I83: 0 | J83: 0
A84: Зовнішнє кредитування | B84: 4200 | C84: 620 | D84: =D85 -> 0 | E84: 0 | F84: 0 | G84: 0 | H84: 0 | I84: 0 | J84: 0
A85: Надання зовнішніх кредитів | B85: 4210 | C85: 630 | D85: 0 | E85: 0 | F85: 0 | G85: 0 | H85: 0 | I85: 0 | J85: 0
A86: Інші видатки | B86: 5000 | C86: 640 | D86: X | E86: 0 | F86: X | G86: X | H86: X | I86: X | J86: X
A87: Нерозподілені видатки | B87: 9000 | C87: 650 | D87: 0 | E87: 0 | F87: 0 | G87: 0 | H87: 0 | I87: 0 | J87: 0
C88: 650
A100: 1 Заповнюється розпорядниками бюджетних коштів.
A101: =ЗАПОЛНИТЬ!F30 -> Керівник | G101: =ЗАПОЛНИТЬ!F26 -> Нєтков Р.В.
D102: (підпис) | G102: (ініціали, прізвище)
A103: =ЗАПОЛНИТЬ!F31 -> Головний бухгалтер | G103: =ЗАПОЛНИТЬ!F28 -> Саватєєва О.І.
A104: =ЗАПОЛНИТЬ!C19 -> "08" жовтня 2018 року | D104: (підпис) | G104: (ініціали, прізвище)

Sheet Ф.2.8 (hidden)
G1: Додаток 1 до Порядку складання бюджетної звітності розпорядниками та одержувачами бюджетних коштів, звітності фондами загальнообов’язкового державного соціального і пенсійного страхування (пункт 1 розділу ІІ)
A4: ЗВІТ
A5: =IF(ЗАПОЛНИТЬ!$F$7=1,CONCATENATE(шапки!A2),CONCATENATE(шапки!A2,шапки!C2)) -> про надходження та використання коштів загального фонду (форма №2д, | G5: =IF(ЗАПОЛНИТЬ!$F$7=1,шапки!C2,шапки!D2) -> №2м) | H5: =IF(ЗАПОЛНИТЬ!$F$7=1,шапки!D2,"") -> 
A6: =CONCATENATE("за ",ЗАПОЛНИТЬ!$B$17," ",ЗАПОЛНИТЬ!$C$17) -> за ІІІ квартал 2018 р.
J7: коди
A9: Установа | B9: =ЗАПОЛНИТЬ!B3 -> Комунальний заклад "Орлівська загальноосвітня школа І-ІІІ ступенів" Приморської районної ради Запорізької області | H9: за ЄДРПОУ | J9: =ЗАПОЛНИТЬ!B13 -> 26291242
A10: Територія | B10: =ЗАПОЛНИТЬ!B5 -> с.Орлівка Приморського району Запорізької області | H10: за КОАТУУ | J10: =ЗАПОЛНИТЬ!B14 -> 232484201
A11: Організаційно-правова форма господарювання | B11: =ЗАПОЛНИТЬ!D15 -> Комунальна організація (установа, заклад) | H11: за КОПФГ | J11: =ЗАПОЛНИТЬ!B15 -> 430
A12: Код та назва відомчої класифікації видатків та кредитування державного бюджету | D12: =ЗАПОЛНИТЬ!H9 -> 0 | E12: =IF(D12>0,VLOOKUP(D12,'ДовидникКВК(ГОС)'!A:B,2,FALSE),"") -> 
A13: Код та назва програмної класифікації видатків та кредитування державного бюджету | E13: =IF(D13>0,VLOOKUP(D13,ДовидникКПК!B:C,2,FALSE),"") -> 
A14: Код та назва типової відомчої класифікації видатків та кредитування місцевих бюджетів | D14: =ЗАПОЛНИТЬ!H10 -> 06 | E14: =ЗАПОЛНИТЬ!I10 -> Відділ освіти Приморського района Запорізької області
A15: Код та назва програмної класифікації видатків та кредитування місцевих бюджетів (код та назва Типової програмної класифікації видатків та кредитування місцевих бюджетів / Тимчасової класифікації видатків та кредитування для бюджетів місцевого самоврядування, які не застосовують програмно-цільового методу) | D15: - | E15: =VLOOKUP(RIGHT(D15,4),КПКВМБ!A:B,2,FALSE) -> -
A16: Періодичність: квартальна, річна
A17: Одиниця виміру: грн, коп.
A19: Показники | B19: КЕКВ та/або ККК | C19: Код рядка | D19: Затверджено на звітний рік | E19: Затверджено на звітний період (рік)1 | F19: Залишок на початок звітного року | G19: Надійшло коштів за звітний період (рік) | H19: Касові за звітний період (рік) | I19: Фактичні за звітний період (рік) | J19: Залишок на кінець звітного періоду (року)
A22: 1 | B22: 2 | C22: 3 | D22: 4 | E22: 5 | F22: 6 | G22: 7 | H22: 8 | I22: 9 | J22: 9
A23: Видатки та надання кредитів - усього | B23: Х | C23: 010 | D23: =D24+D59+D79+D84+D87 -> 0 | E23: =E26+E29+E32+E33+E37+E45+E46+E86+E54 -> 0 | F23: =F24+F59+F79+F84+F87 -> 0 | G23: =G24+G59+G79+G84+G87 -> 0 | H23: =H24+H59+H79+H84+H87 -> 0 | I23: =I24+I59+I79+I84+I87 -> 0 | J23: =F23+G23-H23 -> 0
A24: у тому числі: Поточні видатки | B24: 2000 | C24: 020 | D24: =D25+D30+D47+D50+D54+D58 -> 0 | E24: 0 | F24: 0 | G24: 0 | H24: 0 | I24: 0 | J24: =F24+G24-H24 -> 0
A25: Оплата праці і нарахування на заробітну плату | B25: 2100 | C25: 030 | D25: =D26+D29 -> 0 | E25: 0 | F25: =F26+F29 -> 0 | G25: =G26+G29 -> 0 | H25: =H26+H29 -> 0 | I25: =I26+I29 -> 0 | J25: 0
A26: Оплата праці | B26: 2110 | C26: 040 | D26: =SUM(D27:D28) -> 0 | E26: 0 | F26: 0 | G26: 0 | H26: 0 | I26: 0 | J26: 0
A27: Заробітна плата | B27: 2111 | C27: 050 | D27: 0 | E27: 0 | F27: 0 | G27: 0 | H27: 0 | I27: 0 | J27: 0
A28: Грошове забезпечення військовослужбовців | B28: 2112 | C28: 060 | D28: 0 | E28: 0 | F28: 0 | G28: 0 | H28: 0 | I28: 0 | J28: 0
A29: Нарахування на оплату праці | B29: 2120 | C29: 070 | D29: 0 | E29: 0 | F29: 0 | G29: 0 | H29: 0 | I29: 0 | J29: 0
A30: Використання товарів і послуг | B30: 2200 | C30: 080 | D30: =SUM(D31:D37)+D44 -> 0 | E30: 0 | F30: =SUM(F31:F37)+F44 -> 0 | G30: =SUM(G31:G37)+G44 -> 0 | H30: =SUM(H31:H37)+H44 -> 0 | I30: =SUM(I31:I37)+I44 -> 0 | J30: 0
A31: Предмети, матеріали, обладнання та інвентар | B31: 2210 | C31: 090 | D31: 0 | E31: 0 | F31: 0 | G31: 0 | H31: 0 | I31: 0 | J31: 0
A32: Медикаменти та перев’язувальні матеріали | B32: 2220 | C32: 100 | D32: 0 | E32: 0 | F32: 0 | G32: 0 | H32: 0 | I32: 0 | J32: 0
A33: Продукти харчування | B33: 2230 | C33: 110 | D33: 0 | E33: 0 | F33: 0 | G33: 0 | H33: 0 | I33: 0 | J33: 0
A34: Оплата послуг (крім комунальних) | B34: 2240 | C34: 120 | D34: 0 | E34: 0 | F34: 0 | G34: 0 | H34: 0 | I34: 0 | J34: 0
A35: Видатки на відрядження | B35: 2250 | C35: 130 | D35: 0 | E35: 0 | F35: 0 | G35: 0 | H35: 0 | I35: 0 | J35: 0
A36: Видатки та заходи спеціального призначення | B36: 2260 | C36: 140 | D36: 0 | E36: 0 | F36: 0 | G36: 0 | H36: 0 | I36: 0 | J36: 0
A37: Оплата комунальних послуг та енергоносіїв | B37: 2270 | C37: 150 | D37: =SUM(D38:D43) -> 0 | E37: 0 | F37: =SUM(F38:F43) -> 0 | G37: =SUM(G38:G43) -> 0 | H37: =SUM(H38:H43) -> 0 | I37: =SUM(I38:I43) -> 0 | J37: =F37+G37-H37 -> 0
A38: Оплата теплопостачання | B38: 2271 | C38: 160 | D38: 0 | E38: 0 | F38: 0 | G38: 0 | H38: 0 | I38: 0 | J38: 0
A39: Оплата водопостачання та водовідведення | B39: 2272 | C39: 170 | D39: 0 | E39: 0 | F39: 0 | G39: 0 | H39: 0 | I39: 0 | J39: 0
A40: Оплата електроенергії | B40: 2273 | C40: 180 | D40: 0 | E40: 0 | F40: 0 | G40: 0 | H40: 0 | I40: 0 | J40: 0
A41: Оплата природного газу | B41: 2274 | C41: 190 | D41: 0 | E41: 0 | F41: 0 | G41: 0 | H41: 0 | I41: 0 | J41: 0
A42: Оплата інших енергоносіїв | B42: 2275 | C42: 200 | D42: 0 | E42: 0 | F42: 0 | G42: 0 | H42: 0 | I42: 0 | J42: 0
A43: Оплата енергосервісу | B43: 2276 | C43: 210 | D43: 0 | E43: 0 | F43: 0 | G43: 0 | H43: 0 | I43: 0 | J43: =F43+G43-H43 -> 0
A44: Дослідження і розробки, окремі заходи по реалізації державних (регіональних) програм | B44: 2280 | C44: 220 | D44: =SUM(D45:D46) -> 0 | E44: 0 | F44: =SUM(F45:F46) -> 0 | G44: =SUM(G45:G46) -> 0 | H44: =SUM(H45:H46) -> 0 | I44: =SUM(I45:I46) -> 0 | J44: 0
A45: Дослідження і розробки, окремі заходи розвитку по реалізації державних (регіональних) програм | B45: 2281 | C45: 230 | D45: 0 | E45: 0 | F45: 0 | G45: 0 | H45: 0 | I45: 0 | J45: 0
A46: Окремі заходи по реалізації державних (регіональних) програм, не віднесені до заходів розвитку | B46: 2282 | C46: 240 | D46: 0 | E46: 0 | F46: 0 | G46: 0 | H46: 0 | I46: 0 | J46: 0
A47: Обслуговування боргових зобов’язань | B47: 2400 | C47: 250 | D47: =SUM(D48:D49) -> 0 | E47: 0 | F47: 0 | G47: 0 | H47: 0 | I47: 0 | J47: 0
A48: Обслуговування внутрішніх боргових зобов’язань | B48: 2410 | C48: 260 | D48: 0 | E48: 0 | F48: 0 | G48: 0 | H48: 0 | I48: 0 | J48: 0
A49: Обслуговування зовнішніх боргових зобов’язань | B49: 2420 | C49: 270 | D49: 0 | E49: 0 | F49: 0 | G49: 0 | H49: 0 | I49: 0 | J49: 0
A50: Поточні трансферти | B50: 2600 | C50: 280 | D50: =SUM(D51:D53) -> 0 | E50: 0 | F50: 0 | G50: 0 | H50: 0 | I50: 0 | J50: 0
A51: Субсидії та поточні трансферти підприємствам (установам, організаціям) | B51: 2610 | C51: 290 | D51: 0 | E51: 0 | F51: 0 | G51: 0 | H51: 0 | I51: 0 | J51: 0
A52: Поточні трансферти органам державного управління інших рівнів | B52: 2620 | C52: 300 | D52: 0 | E52: 0 | F52: 0 | G52: 0 | H52: 0 | I52: 0 | J52: 0
A53: Поточні трансферти урядам іноземних держав та міжнародним організаціям | B53: 2630 | C53: 310 | D53: 0 | E53: 0 | F53: 0 | G53: 0 | H53: 0 | I53: 0 | J53: 0
A54: Соціальне забезпечення | B54: 2700 | C54: 320 | D54: =SUM(D55:D57) -> 0 | E54: 0 | F54: 0 | G54: 0 | H54: 0 | I54: 0 | J54: 0
A55: Виплата пенсій і допомоги | B55: 2710 | C55: 330 | D55: 0 | E55: 0 | F55: 0 | G55: 0 | H55: 0 | I55: 0 | J55: 0
A56: Стипендії | B56: 2720 | C56: 340 | D56: 0 | E56: 0 | F56: 0 | G56: 0 | H56: 0 | I56: 0 | J56: 0
A57: Інші виплати населенню | B57: 2730 | C57: 350 | D57: 0 | E57: 0 | F57: 0 | G57: 0 | H57: 0 | I57: 0 | J57: 0
A58: Інші поточні видатки | B58: 2800 | C58: 360 | D58: 0 | E58: 0 | F58: 0 | G58: 0 | H58: 0 | I58: 0 | J58: 0
A59: Капітальні видатки | B59: 3000 | C59: 370 | D59: =D60+D74 -> 0 | E59: 0 | F59: 0 | G59: 0 | H59: 0 | I59: 0 | J59: 0
A60: Придбання основного капіталу | B60: 3100 | C60: 380 | D60: =D61+D62+D65+D68+D72+D73 -> 0 | E60: 0 | F60: 0 | G60: 0 | H60: 0 | I60: 0 | J60: 0
A61: Придбання обладнання і предметів довгострокового користування | B61: 3110 | C61: 390 | D61: 0 | E61: 0 | F61: 0 | G61: 0 | H61: 0 | I61: 0 | J61: 0
A62: Капітальне будівництво (придбання) | B62: 3120 | C62: 400 | D62: =SUM(D63:D64) -> 0 | E62: 0 | F62: 0 | G62: 0 | H62: 0 | I62: 0 | J62: 0
A63: Капітальне будівництво (придбання) житла | B63: 3121 | C63: 410 | D63: 0 | E63: 0 | F63: 0 | G63: 0 | H63: 0 | I63: 0 | J63: 0
A64: Капітальне будівництво (придбання) інших об’єктів | B64: 3122 | C64: 420 | D64: 0 | E64: 0 | F64: 0 | G64: 0 | H64: 0 | I64: 0 | J64: 0
A65: Капітальний ремонт | B65: 3130 | C65: 430 | D65: =SUM(D66:D67) -> 0 | E65: 0 | F65: 0 | G65: 0 | H65: 0 | I65: 0 | J65: 0
A66: Капітальний ремонт житлового фонду (приміщень) | B66: 3131 | C66: 440 | D66: 0 | E66: 0 | F66: 0 | G66: 0 | H66: 0 | I66: 0 | J66: 0
A67: Капітальний ремонт інших об’єктів | B67: 3132 | C67: 450 | D67: 0 | E67: 0 | F67: 0 | G67: 0 | H67: 0 | I67: 0 | J67: 0
A68: Реконструкція та реставрація | B68: 3140 | C68: 460 | D68: =SUM(D69:D71) -> 0 | E68: 0 | F68: 0 | G68: 0 | H68: 0 | I68: 0 | J68: 0
A69: Реконструкція житлового фонду (приміщень) | B69: 3141 | C69: 470 | D69: 0 | E69: 0 | F69: 0 | G69: 0 | H69: 0 | I69: 0 | J69: 0
A70: Реконструкція та реставрація інших об’єктів | B70: 3142 | C70: 480 | D70: 0 | E70: 0 | F70: 0 | G70: 0 | H70: 0 | I70: 0 | J70: 0
A71: Реставрація пам’яток культури, історії та архітектури | B71: 3143 | C71: 490 | D71: 0 | E71: 0 | F71: 0 | G71: 0 | H71: 0 | I71: 0 | J71: 0
A72: Створення державних запасів і резервів | B72: 3150 | C72: 500 | D72: 0 | E72: 0 | F72: 0 | G72: 0 | H72: 0 | I72: 0 | J72: 0
A73: Придбання землі та нематеріальних активів | B73: 3160 | C73: 510 | D73: 0 | E73: 0 | F73: 0 | G73: 0 | H73: 0 | I73: 0 | J73: 0
A74: Капітальні трансферти | B74: 3200 | C74: 520 | D74: =SUM(D75:D78) -> 0 | E74: 0 | F74: 0 | G74: 0 | H74: 0 | I74: 0 | J74: 0
A75: Капітальні трансферти підприємствам (установам, організаціям) | B75: 3210 | C75: 530 | D75: 0 | E75: 0 | F75: 0 | G75: 0 | H75: 0 | I75: 0 | J75: 0
A76: Капітальні трансферти органам державного управління інших рівнів | B76: 3220 | C76: 540 | D76: 0 | E76: 0 | F76: 0 | G76: 0 | H76: 0 | I76: 0 | J76: 0
A77: Капітальні трансферти урядам іноземних держав та міжнародним організаціям | B77: 3230 | C77: 550 | D77: 0 | E77: 0 | F77: 0 | G77: 0 | H77: 0 | I77: 0 | J77: 0
A78: Капітальні трансферти населенню | B78: 3240 | C78: 560 | D78: 0 | E78: 0 | F78: 0 | G78: 0 | H78: 0 | I78: 0 | J78: 0
A79: Внутрішнє кредитування | B79: 4100 | C79: 570 | D79: =SUM(D80) -> 0 | E79: 0 | F79: 0 | G79: 0 | H79: 0 | I79: 0 | J79: 0
A80: Надання внутрішніх кредитів | B80: 4110 | C80: 580 | D80: =SUM(D81:D83) -> 0 | E80: 0 | F80: 0 | G80: 0 | H80: 0 | I80: 0 | J80: 0
A81: Надання кредитів органам державного управління інших рівнів | B81: 4111 | C81: 590 | D81: 0 | E81: 0 | F81: 0 | G81: 0 | H81: 0 | I81: 0 | J81: 0
A82: Надання кредитів підприємствам, установам, організаціям | B82: 4112 | C82: 600 | D82: 0 | E82: 0 | F82: 0 | G82: 0 | H82: 0 | I82: 0 | J82: 0
A83: Надання інших внутрішніх кредитів | B83: 4113 | C83: 610 | D83: 0 | E83: 0 | F83: 0 | G83: 0 | H83: 0 | I83: 0 | J83: 0
A84: Зовнішнє кредитування | B84: 4200 | C84: 620 | D84: =D85 -> 0 | E84: 0 | F84: 0 | G84: 0 | H84: 0 | I84: 0 | J84: 0
A85: Надання зовнішніх кредитів | B85: 4210 | C85: 630 | D85: 0 | E85: 0 | F85: 0 | G85: 0 | H85: 0 | I85: 0 | J85: 0
A86: Інші видатки | B86: 5000 | C86: 640 | D86: X | E86: 0 | F86: X | G86: X | H86: X | I86: X | J86: X
A87: Нерозподілені видатки | B87: 9000 | C87: 650 | D87: 0 | E87: 0 | F87: 0 | G87: 0 | H87: 0 | I87: 0 | J87: 0
C88: 650
A100: 1 Заповнюється розпорядниками бюджетних коштів.
A101: =ЗАПОЛНИТЬ!F30 -> Керівник | G101: =ЗАПОЛНИТЬ!F26 -> Нєтков Р.В.
D102: (підпис) | G102: (ініціали, прізвище)
A103: =ЗАПОЛНИТЬ!F31 -> Головний бухгалтер | G103: =ЗАПОЛНИТЬ!F28 -> Саватєєва О.І.
A104: =ЗАПОЛНИТЬ!C19 -> "08" жовтня 2018 року | D104: (підпис) | G104: (ініціали, прізвище)

Sheet Ф.2.9 (hidden)
G1: Додаток 1 до Порядку складання бюджетної звітності розпорядниками та одержувачами бюджетних коштів, звітності фондами загальнообов’язкового державного соціального і пенсійного страхування (пункт 1 розділу ІІ)
A4: ЗВІТ
A5: =IF(ЗАПОЛНИТЬ!$F$7=1,CONCATENATE(шапки!A2),CONCATENATE(шапки!A2,шапки!C2)) -> про надходження та використання коштів загального фонду (форма №2д, | G5: =IF(ЗАПОЛНИТЬ!$F$7=1,шапки!C2,шапки!D2) -> №2м) | H5: =IF(ЗАПОЛНИТЬ!$F$7=1,шапки!D2,"") -> 
A6: =CONCATENATE("за ",ЗАПОЛНИТЬ!$B$17," ",ЗАПОЛНИТЬ!$C$17) -> за ІІІ квартал 2018 р.
J7: коди
A9: Установа | B9: =ЗАПОЛНИТЬ!B3 -> Комунальний заклад "Орлівська загальноосвітня школа І-ІІІ ступенів" Приморської районної ради Запорізької області | H9: за ЄДРПОУ | J9: =ЗАПОЛНИТЬ!B13 -> 26291242
A10: Територія | B10: =ЗАПОЛНИТЬ!B5 -> с.Орлівка Приморського району Запорізької області | H10: за КОАТУУ | J10: =ЗАПОЛНИТЬ!B14 -> 232484201
A11: Організаційно-правова форма господарювання | B11: =ЗАПОЛНИТЬ!D15 -> Комунальна організація (установа, заклад) | H11: за КОПФГ | J11: =ЗАПОЛНИТЬ!B15 -> 430
A12: Код та назва відомчої класифікації видатків та кредитування державного бюджету | D12: =ЗАПОЛНИТЬ!H9 -> 0 | E12: =IF(D12>0,VLOOKUP(D12,'ДовидникКВК(ГОС)'!A:B,2,FALSE),"") -> 
A13: Код та назва програмної класифікації видатків та кредитування державного бюджету | E13: =IF(D13>0,VLOOKUP(D13,ДовидникКПК!B:C,2,FALSE),"") -> 
A14: Код та назва типової відомчої класифікації видатків та кредитування місцевих бюджетів | D14: =ЗАПОЛНИТЬ!H10 -> 06 | E14: =ЗАПОЛНИТЬ!I10 -> Відділ освіти Приморського района Запорізької області
A15: Код та назва програмної класифікації видатків та кредитування місцевих бюджетів (код та назва Типової програмної класифікації видатків та кредитування місцевих бюджетів / Тимчасової класифікації видатків та кредитування для бюджетів місцевого самоврядування, які не застосовують програмно-цільового методу) | D15: - | E15: =VLOOKUP(RIGHT(D15,4),КПКВМБ!A:B,2,FALSE) -> -
A16: Періодичність: квартальна, річна
A17: Одиниця виміру: грн, коп.
A19: Показники | B19: КЕКВ та/або ККК | C19: Код рядка | D19: Затверджено на звітний рік | E19: Затверджено на звітний період (рік)1 | F19: Залишок на початок звітного року | G19: Надійшло коштів за звітний період (рік) | H19: Касові за звітний період (рік) | I19: Фактичні за звітний період (рік) | J19: Залишок на кінець звітного періоду (року)
A22: 1 | B22: 2 | C22: 3 | D22: 4 | E22: 5 | F22: 6 | G22: 7 | H22: 8 | I22: 9 | J22: 9
A23: Видатки та надання кредитів - усього | B23: Х | C23: 010 | D23: =D24+D59+D79+D84+D87 -> 0 | E23: =E26+E29+E32+E33+E37+E45+E46+E86+E54 -> 0 | F23: =F24+F59+F79+F84+F87 -> 0 | G23: =G24+G59+G79+G84+G87 -> 0 | H23: =H24+H59+H79+H84+H87 -> 0 | I23: =I24+I59+I79+I84+I87 -> 0 | J23: =F23+G23-H23 -> 0
A24: у тому числі: Поточні видатки | B24: 2000 | C24: 020 | D24: =D25+D30+D47+D50+D54+D58 -> 0 | E24: 0 | F24: 0 | G24: 0 | H24: 0 | I24: 0 | J24: =F24+G24-H24 -> 0
A25: Оплата праці і нарахування на заробітну плату | B25: 2100 | C25: 030 | D25: =D26+D29 -> 0 | E25: 0 | F25: =F26+F29 -> 0 | G25: =G26+G29 -> 0 | H25: =H26+H29 -> 0 | I25: =I26+I29 -> 0 | J25: 0
A26: Оплата праці | B26: 2110 | C26: 040 | D26: =SUM(D27:D28) -> 0 | E26: 0 | F26: 0 | G26: 0 | H26: 0 | I26: 0 | J26: 0
A27: Заробітна плата | B27: 2111 | C27: 050 | D27: 0 | E27: 0 | F27: 0 | G27: 0 | H27: 0 | I27: 0 | J27: 0
A28: Грошове забезпечення військовослужбовців | B28: 2112 | C28: 060 | D28: 0 | E28: 0 | F28: 0 | G28: 0 | H28: 0 | I28: 0 | J28: 0
A29: Нарахування на оплату праці | B29: 2120 | C29: 070 | D29: 0 | E29: 0 | F29: 0 | G29: 0 | H29: 0 | I29: 0 | J29: 0
A30: Використання товарів і послуг | B30: 2200 | C30: 080 | D30: =SUM(D31:D37)+D44 -> 0 | E30: 0 | F30: =SUM(F31:F37)+F44 -> 0 | G30: =SUM(G31:G37)+G44 -> 0 | H30: =SUM(H31:H37)+H44 -> 0 | I30: =SUM(I31:I37)+I44 -> 0 | J30: 0
A31: Предмети, матеріали, обладнання та інвентар | B31: 2210 | C31: 090 | D31: 0 | E31: 0 | F31: 0 | G31: 0 | H31: 0 | I31: 0 | J31: 0
A32: Медикаменти та перев’язувальні матеріали | B32: 2220 | C32: 100 | D32: 0 | E32: 0 | F32: 0 | G32: 0 | H32: 0 | I32: 0 | J32: 0
A33: Продукти харчування | B33: 2230 | C33: 110 | D33: 0 | E33: 0 | F33: 0 | G33: 0 | H33: 0 | I33: 0 | J33: 0
A34: Оплата послуг (крім комунальних) | B34: 2240 | C34: 120 | D34: 0 | E34: 0 | F34: 0 | G34: 0 | H34: 0 | I34: 0 | J34: 0
A35: Видатки на відрядження | B35: 2250 | C35: 130 | D35: 0 | E35: 0 | F35: 0 | G35: 0 | H35: 0 | I35: 0 | J35: 0
A36: Видатки та заходи спеціального призначення | B36: 2260 | C36: 140 | D36: 0 | E36: 0 | F36: 0 | G36: 0 | H36: 0 | I36: 0 | J36: 0
A37: Оплата комунальних послуг та енергоносіїв | B37: 2270 | C37: 150 | D37: =SUM(D38:D43) -> 0 | E37: 0 | F37: =SUM(F38:F43) -> 0 | G37: =SUM(G38:G43) -> 0 | H37: =SUM(H38:H43) -> 0 | I37: =SUM(I38:I43) -> 0 | J37: =F37+G37-H37 -> 0
A38: Оплата теплопостачання | B38: 2271 | C38: 160 | D38: 0 | E38: 0 | F38: 0 | G38: 0 | H38: 0 | I38: 0 | J38: 0
A39: Оплата водопостачання та водовідведення | B39: 2272 | C39: 170 | D39: 0 | E39: 0 | F39: 0 | G39: 0 | H39: 0 | I39: 0 | J39: 0
A40: Оплата електроенергії | B40: 2273 | C40: 180 | D40: 0 | E40: 0 | F40: 0 | G40: 0 | H40: 0 | I40: 0 | J40: 0
A41: Оплата природного газу | B41: 2274 | C41: 190 | D41: 0 | E41: 0 | F41: 0 | G41: 0 | H41: 0 | I41: 0 | J41: 0
A42: Оплата інших енергоносіїв | B42: 2275 | C42: 200 | D42: 0 | E42: 0 | F42: 0 | G42: 0 | H42: 0 | I42: 0 | J42: 0
A43: Оплата енергосервісу | B43: 2276 | C43: 210 | D43: 0 | E43: 0 | F43: 0 | G43: 0 | H43: 0 | I43: 0 | J43: =F43+G43-H43 -> 0
A44: Дослідження і розробки, окремі заходи по реалізації державних (регіональних) програм | B44: 2280 | C44: 220 | D44: =SUM(D45:D46) -> 0 | E44: 0 | F44: =SUM(F45:F46) -> 0 | G44: =SUM(G45:G46) -> 0 | H44: =SUM(H45:H46) -> 0 | I44: =SUM(I45:I46) -> 0 | J44: 0
A45: Дослідження і розробки, окремі заходи розвитку по реалізації державних (регіональних) програм | B45: 2281 | C45: 230 | D45: 0 | E45: 0 | F45: 0 | G45: 0 | H45: 0 | I45: 0 | J45: 0
A46: Окремі заходи по реалізації державних (регіональних) програм, не віднесені до заходів розвитку | B46: 2282 | C46: 240 | D46: 0 | E46: 0 | F46: 0 | G46: 0 | H46: 0 | I46: 0 | J46: 0
A47: Обслуговування боргових зобов’язань | B47: 2400 | C47: 250 | D47: =SUM(D48:D49) -> 0 | E47: 0 | F47: 0 | G47: 0 | H47: 0 | I47: 0 | J47: 0
A48: Обслуговування внутрішніх боргових зобов’язань | B48: 2410 | C48: 260 | D48: 0 | E48: 0 | F48: 0 | G48: 0 | H48: 0 | I48: 0 | J48: 0
A49: Обслуговування зовнішніх боргових зобов’язань | B49: 2420 | C49: 270 | D49: 0 | E49: 0 | F49: 0 | G49: 0 | H49: 0 | I49: 0 | J49: 0
A50: Поточні трансферти | B50: 2600 | C50: 280 | D50: =SUM(D51:D53) -> 0 | E50: 0 | F50: 0 | G50: 0 | H50: 0 | I50: 0 | J50: 0
A51: Субсидії та поточні трансферти підприємствам (установам, організаціям) | B51: 2610 | C51: 290 | D51: 0 | E51: 0 | F51: 0 | G51: 0 | H51: 0 | I51: 0 | J51: 0
A52: Поточні трансферти органам державного управління інших рівнів | B52: 2620 | C52: 300 | D52: 0 | E52: 0 | F52: 0 | G52: 0 | H52: 0 | I52: 0 | J52: 0
A53: Поточні трансферти урядам іноземних держав та міжнародним організаціям | B53: 2630 | C53: 310 | D53: 0 | E53: 0 | F53: 0 | G53: 0 | H53: 0 | I53: 0 | J53: 0
A54: Соціальне забезпечення | B54: 2700 | C54: 320 | D54: =SUM(D55:D57) -> 0 | E54: 0 | F54: 0 | G54: 0 | H54: 0 | I54: 0 | J54: 0
A55: Виплата пенсій і допомоги | B55: 2710 | C55: 330 | D55: 0 | E55: 0 | F55: 0 | G55: 0 | H55: 0 | I55: 0 | J55: 0
A56: Стипендії | B56: 2720 | C56: 340 | D56: 0 | E56: 0 | F56: 0 | G56: 0 | H56: 0 | I56: 0 | J56: 0
A57: Інші виплати населенню | B57: 2730 | C57: 350 | D57: 0 | E57: 0 | F57: 0 | G57: 0 | H57: 0 | I57: 0 | J57: 0
A58: Інші поточні видатки | B58: 2800 | C58: 360 | D58: 0 | E58: 0 | F58: 0 | G58: 0 | H58: 0 | I58: 0 | J58: 0
A59: Капітальні видатки | B59: 3000 | C59: 370 | D59: =D60+D74 -> 0 | E59: 0 | F59: 0 | G59: 0 | H59: 0 | I59: 0 | J59: 0
A60: Придбання основного капіталу | B60: 3100 | C60: 380 | D60: =D61+D62+D65+D68+D72+D73 -> 0 | E60: 0 | F60: 0 | G60: 0 | H60: 0 | I60: 0 | J60: 0
A61: Придбання обладнання і предметів довгострокового користування | B61: 3110 | C61: 390 | D61: 0 | E61: 0 | F61: 0 | G61: 0 | H61: 0 | I61: 0 | J61: 0
A62: Капітальне будівництво (придбання) | B62: 3120 | C62: 400 | D62: =SUM(D63:D64) -> 0 | E62: 0 | F62: 0 | G62: 0 | H62: 0 | I62: 0 | J62: 0
A63: Капітальне будівництво (придбання) житла | B63: 3121 | C63: 410 | D63: 0 | E63: 0 | F63: 0 | G63: 0 | H63: 0 | I63: 0 | J63: 0
A64: Капітальне будівництво (придбання) інших об’єктів | B64: 3122 | C64: 420 | D64: 0 | E64: 0 | F64: 0 | G64: 0 | H64: 0 | I64: 0 | J64: 0
A65: Капітальний ремонт | B65: 3130 | C65: 430 | D65: =SUM(D66:D67) -> 0 | E65: 0 | F65: 0 | G65: 0 | H65: 0 | I65: 0 | J65: 0
A66: Капітальний ремонт житлового фонду (приміщень) | B66: 3131 | C66: 440 | D66: 0 | E66: 0 | F66: 0 | G66: 0 | H66: 0 | I66: 0 | J66: 0
A67: Капітальний ремонт інших об’єктів | B67: 3132 | C67: 450 | D67: 0 | E67: 0 | F67: 0 | G67: 0 | H67: 0 | I67: 0 | J67: 0
A68: Реконструкція та реставрація | B68: 3140 | C68: 460 | D68: =SUM(D69:D71) -> 0 | E68: 0 | F68: 0 | G68: 0 | H68: 0 | I68: 0 | J68: 0
A69: Реконструкція житлового фонду (приміщень) | B69: 3141 | C69: 470 | D69: 0 | E69: 0 | F69: 0 | G69: 0 | H69: 0 | I69: 0 | J69: 0
A70: Реконструкція та реставрація інших об’єктів | B70: 3142 | C70: 480 | D70: 0 | E70: 0 | F70: 0 | G70: 0 | H70: 0 | I70: 0 | J70: 0
A71: Реставрація пам’яток культури, історії та архітектури | B71: 3143 | C71: 490 | D71: 0 | E71: 0 | F71: 0 | G71: 0 | H71: 0 | I71: 0 | J71: 0
A72: Створення державних запасів і резервів | B72: 3150 | C72: 500 | D72: 0 | E72: 0 | F72: 0 | G72: 0 | H72: 0 | I72: 0 | J72: 0
A73: Придбання землі та нематеріальних активів | B73: 3160 | C73: 510 | D73: 0 | E73: 0 | F73: 0 | G73: 0 | H73: 0 | I73: 0 | J73: 0
A74: Капітальні трансферти | B74: 3200 | C74: 520 | D74: =SUM(D75:D78) -> 0 | E74: 0 | F74: 0 | G74: 0 | H74: 0 | I74: 0 | J74: 0
A75: Капітальні трансферти підприємствам (установам, організаціям) | B75: 3210 | C75: 530 | D75: 0 | E75: 0 | F75: 0 | G75: 0 | H75: 0 | I75: 0 | J75: 0
A76: Капітальні трансферти органам державного управління інших рівнів | B76: 3220 | C76: 540 | D76: 0 | E76: 0 | F76: 0 | G76: 0 | H76: 0 | I76: 0 | J76: 0
A77: Капітальні трансферти урядам іноземних держав та міжнародним організаціям | B77: 3230 | C77: 550 | D77: 0 | E77: 0 | F77: 0 | G77: 0 | H77: 0 | I77: 0 | J77: 0
A78: Капітальні трансферти населенню | B78: 3240 | C78: 560 | D78: 0 | E78: 0 | F78: 0 | G78: 0 | H78: 0 | I78: 0 | J78: 0
A79: Внутрішнє кредитування | B79: 4100 | C79: 570 | D79: =SUM(D80) -> 0 | E79: 0 | F79: 0 | G79: 0 | H79: 0 | I79: 0 | J79: 0
A80: Надання внутрішніх кредитів | B80: 4110 | C80: 580 | D80: =SUM(D81:D83) -> 0 | E80: 0 | F80: 0 | G80: 0 | H80: 0 | I80: 0 | J80: 0
A81: Надання кредитів органам державного управління інших рівнів | B81: 4111 | C81: 590 | D81: 0 | E81: 0 | F81: 0 | G81: 0 | H81: 0 | I81: 0 | J81: 0
A82: Надання кредитів підприємствам, установам, організаціям | B82: 4112 | C82: 600 | D82: 0 | E82: 0 | F82: 0 | G82: 0 | H82: 0 | I82: 0 | J82: 0
A83: Надання інших внутрішніх кредитів | B83: 4113 | C83: 610 | D83: 0 | E83: 0 | F83: 0 | G83: 0 | H83: 0 | I83: 0 | J83: 0
A84: Зовнішнє кредитування | B84: 4200 | C84: 620 | D84: =D85 -> 0 | E84: 0 | F84: 0 | G84: 0 | H84: 0 | I84: 0 | J84: 0
A85: Надання зовнішніх кредитів | B85: 4210 | C85: 630 | D85: 0 | E85: 0 | F85: 0 | G85: 0 | H85: 0 | I85: 0 | J85: 0
A86: Інші видатки | B86: 5000 | C86: 640 | D86: X | E86: 0 | F86: X | G86: X | H86: X | I86: X | J86: X
A87: Нерозподілені видатки | B87: 9000 | C87: 650 | D87: 0 | E87: 0 | F87: 0 | G87: 0 | H87: 0 | I87: 0 | J87: 0
C88: 650
A100: 1 Заповнюється розпорядниками бюджетних коштів.
A101: =ЗАПОЛНИТЬ!F30 -> Керівник | G101: =ЗАПОЛНИТЬ!F26 -> Нєтков Р.В.
D102: (підпис) | G102: (ініціали, прізвище)
A103: =ЗАПОЛНИТЬ!F31 -> Головний бухгалтер | G103: =ЗАПОЛНИТЬ!F28 -> Саватєєва О.І.
A104: =ЗАПОЛНИТЬ!C19 -> "08" жовтня 2018 року | D104: (підпис) | G104: (ініціали, прізвище)

Sheet Ф.2.10 (hidden)
G1: Додаток 1 до Порядку складання бюджетної звітності розпорядниками та одержувачами бюджетних коштів, звітності фондами загальнообов’язкового державного соціального і пенсійного страхування (пункт 1 розділу ІІ)
A4: ЗВІТ
A5: =IF(ЗАПОЛНИТЬ!$F$7=1,CONCATENATE(шапки!A2),CONCATENATE(шапки!A2,шапки!C2)) -> про надходження та використання коштів загального фонду (форма №2д, | G5: =IF(ЗАПОЛНИТЬ!$F$7=1,шапки!C2,шапки!D2) -> №2м) | H5: =IF(ЗАПОЛНИТЬ!$F$7=1,шапки!D2,"") -> 
A6: =CONCATENATE("за ",ЗАПОЛНИТЬ!$B$17," ",ЗАПОЛНИТЬ!$C$17) -> за ІІІ квартал 2018 р.
J7: коди
A9: Установа | B9: =ЗАПОЛНИТЬ!B3 -> Комунальний заклад "Орлівська загальноосвітня школа І-ІІІ ступенів" Приморської районної ради Запорізької області | H9: за ЄДРПОУ | J9: =ЗАПОЛНИТЬ!B13 -> 26291242
A10: Територія | B10: =ЗАПОЛНИТЬ!B5 -> с.Орлівка Приморського району Запорізької області | H10: за КОАТУУ | J10: =ЗАПОЛНИТЬ!B14 -> 232484201
A11: Організаційно-правова форма господарювання | B11: =ЗАПОЛНИТЬ!D15 -> Комунальна організація (установа, заклад) | H11: за КОПФГ | J11: =ЗАПОЛНИТЬ!B15 -> 430
A12: Код та назва відомчої класифікації видатків та кредитування державного бюджету | D12: =ЗАПОЛНИТЬ!H9 -> 0 | E12: =IF(D12>0,VLOOKUP(D12,'ДовидникКВК(ГОС)'!A:B,2,FALSE),"") -> 
A13: Код та назва програмної класифікації видатків та кредитування державного бюджету | E13: =IF(D13>0,VLOOKUP(D13,ДовидникКПК!B:C,2,FALSE),"") -> 
A14: Код та назва типової відомчої класифікації видатків та кредитування місцевих бюджетів | D14: =ЗАПОЛНИТЬ!H10 -> 06 | E14: =ЗАПОЛНИТЬ!I10 -> Відділ освіти Приморського района Запорізької області
A15: Код та назва програмної класифікації видатків та кредитування місцевих бюджетів (код та назва Типової програмної класифікації видатків та кредитування місцевих бюджетів / Тимчасової класифікації видатків та кредитування для бюджетів місцевого самоврядування, які не застосовують програмно-цільового методу) | D15: - | E15: =VLOOKUP(RIGHT(D15,4),КПКВМБ!A:B,2,FALSE) -> -
A16: Періодичність: квартальна, річна
A17: Одиниця виміру: грн, коп.
A19: Показники | B19: КЕКВ та/або ККК | C19: Код рядка | D19: Затверджено на звітний рік | E19: Затверджено на звітний період (рік)1 | F19: Залишок на початок звітного року | G19: Надійшло коштів за звітний період (рік) | H19: Касові за звітний період (рік) | I19: Фактичні за звітний період (рік) | J19: Залишок на кінець звітного періоду (року)
A22: 1 | B22: 2 | C22: 3 | D22: 4 | E22: 5 | F22: 6 | G22: 7 | H22: 8 | I22: 9 | J22: 9
A23: Видатки та надання кредитів - усього | B23: Х | C23: 010 | D23: =D24+D59+D79+D84+D87 -> 0 | E23: =E26+E29+E32+E33+E37+E45+E46+E86+E54 -> 0 | F23: =F24+F59+F79+F84+F87 -> 0 | G23: =G24+G59+G79+G84+G87 -> 0 | H23: =H24+H59+H79+H84+H87 -> 0 | I23: =I24+I59+I79+I84+I87 -> 0 | J23: =F23+G23-H23 -> 0
A24: у тому числі: Поточні видатки | B24: 2000 | C24: 020 | D24: =D25+D30+D47+D50+D54+D58 -> 0 | E24: 0 | F24: 0 | G24: 0 | H24: 0 | I24: 0 | J24: =F24+G24-H24 -> 0
A25: Оплата праці і нарахування на заробітну плату | B25: 2100 | C25: 030 | D25: =D26+D29 -> 0 | E25: 0 | F25: =F26+F29 -> 0 | G25: =G26+G29 -> 0 | H25: =H26+H29 -> 0 | I25: =I26+I29 -> 0 | J25: 0
A26: Оплата праці | B26: 2110 | C26: 040 | D26: =SUM(D27:D28) -> 0 | E26: 0 | F26: 0 | G26: 0 | H26: 0 | I26: 0 | J26: 0
A27: Заробітна плата | B27: 2111 | C27: 050 | D27: 0 | E27: 0 | F27: 0 | G27: 0 | H27: 0 | I27: 0 | J27: 0
A28: Грошове забезпечення військовослужбовців | B28: 2112 | C28: 060 | D28: 0 | E28: 0 | F28: 0 | G28: 0 | H28: 0 | I28: 0 | J28: 0
A29: Нарахування на оплату праці | B29: 2120 | C29: 070 | D29: 0 | E29: 0 | F29: 0 | G29: 0 | H29: 0 | I29: 0 | J29: 0
A30: Використання товарів і послуг | B30: 2200 | C30: 080 | D30: =SUM(D31:D37)+D44 -> 0 | E30: 0 | F30: =SUM(F31:F37)+F44 -> 0 | G30: =SUM(G31:G37)+G44 -> 0 | H30: =SUM(H31:H37)+H44 -> 0 | I30: =SUM(I31:I37)+I44 -> 0 | J30: 0
A31: Предмети, матеріали, обладнання та інвентар | B31: 2210 | C31: 090 | D31: 0 | E31: 0 | F31: 0 | G31: 0 | H31: 0 | I31: 0 | J31: 0
A32: Медикаменти та перев’язувальні матеріали | B32: 2220 | C32: 100 | D32: 0 | E32: 0 | F32: 0 | G32: 0 | H32: 0 | I32: 0 | J32: 0
A33: Продукти харчування | B33: 2230 | C33: 110 | D33: 0 | E33: 0 | F33: 0 | G33: 0 | H33: 0 | I33: 0 | J33: 0
A34: Оплата послуг (крім комунальних) | B34: 2240 | C34: 120 | D34: 0 | E34: 0 | F34: 0 | G34: 0 | H34: 0 | I34: 0 | J34: 0
A35: Видатки на відрядження | B35: 2250 | C35: 130 | D35: 0 | E35: 0 | F35: 0 | G35: 0 | H35: 0 | I35: 0 | J35: 0
A36: Видатки та заходи спеціального призначення | B36: 2260 | C36: 140 | D36: 0 | E36: 0 | F36: 0 | G36: 0 | H36: 0 | I36: 0 | J36: 0
A37: Оплата комунальних послуг та енергоносіїв | B37: 2270 | C37: 150 | D37: =SUM(D38:D43) -> 0 | E37: 0 | F37: =SUM(F38:F43) -> 0 | G37: =SUM(G38:G43) -> 0 | H37: =SUM(H38:H43) -> 0 | I37: =SUM(I38:I43) -> 0 | J37: =F37+G37-H37 -> 0
A38: Оплата теплопостачання | B38: 2271 | C38: 160 | D38: 0 | E38: 0 | F38: 0 | G38: 0 | H38: 0 | I38: 0 | J38: 0
A39: Оплата водопостачання та водовідведення | B39: 2272 | C39: 170 | D39: 0 | E39: 0 | F39: 0 | G39: 0 | H39: 0 | I39: 0 | J39: 0
A40: Оплата електроенергії | B40: 2273 | C40: 180 | D40: 0 | E40: 0 | F40: 0 | G40: 0 | H40: 0 | I40: 0 | J40: 0
A41: Оплата природного газу | B41: 2274 | C41: 190 | D41: 0 | E41: 0 | F41: 0 | G41: 0 | H41: 0 | I41: 0 | J41: 0
A42: Оплата інших енергоносіїв | B42: 2275 | C42: 200 | D42: 0 | E42: 0 | F42: 0 | G42: 0 | H42: 0 | I42: 0 | J42: 0
A43: Оплата енергосервісу | B43: 2276 | C43: 210 | D43: 0 | E43: 0 | F43: 0 | G43: 0 | H43: 0 | I43: 0 | J43: =F43+G43-H43 -> 0
A44: Дослідження і розробки, окремі заходи по реалізації державних (регіональних) програм | B44: 2280 | C44: 220 | D44: =SUM(D45:D46) -> 0 | E44: 0 | F44: =SUM(F45:F46) -> 0 | G44: =SUM(G45:G46) -> 0 | H44: =SUM(H45:H46) -> 0 | I44: =SUM(I45:I46) -> 0 | J44: 0
A45: Дослідження і розробки, окремі заходи розвитку по реалізації державних (регіональних) програм | B45: 2281 | C45: 230 | D45: 0 | E45: 0 | F45: 0 | G45: 0 | H45: 0 | I45: 0 | J45: 0
A46: Окремі заходи по реалізації державних (регіональних) програм, не віднесені до заходів розвитку | B46: 2282 | C46: 240 | D46: 0 | E46: 0 | F46: 0 | G46: 0 | H46: 0 | I46: 0 | J46: 0
A47: Обслуговування боргових зобов’язань | B47: 2400 | C47: 250 | D47: =SUM(D48:D49) -> 0 | E47: 0 | F47: 0 | G47: 0 | H47: 0 | I47: 0 | J47: 0
A48: Обслуговування внутрішніх боргових зобов’язань | B48: 2410 | C48: 260 | D48: 0 | E48: 0 | F48: 0 | G48: 0 | H48: 0 | I48: 0 | J48: 0
A49: Обслуговування зовнішніх боргових зобов’язань | B49: 2420 | C49: 270 | D49: 0 | E49: 0 | F49: 0 | G49: 0 | H49: 0 | I49: 0 | J49: 0
A50: Поточні трансферти | B50: 2600 | C50: 280 | D50: =SUM(D51:D53) -> 0 | E50: 0 | F50: 0 | G50: 0 | H50: 0 | I50: 0 | J50: 0
A51: Субсидії та поточні трансферти підприємствам (установам, організаціям) | B51: 2610 | C51: 290 | D51: 0 | E51: 0 | F51: 0 | G51: 0 | H51: 0 | I51: 0 | J51: 0
A52: Поточні трансферти органам державного управління інших рівнів | B52: 2620 | C52: 300 | D52: 0 | E52: 0 | F52: 0 | G52: 0 | H52: 0 | I52: 0 | J52: 0
A53: Поточні трансферти урядам іноземних держав та міжнародним організаціям | B53: 2630 | C53: 310 | D53: 0 | E53: 0 | F53: 0 | G53: 0 | H53: 0 | I53: 0 | J53: 0
A54: Соціальне забезпечення | B54: 2700 | C54: 320 | D54: =SUM(D55:D57) -> 0 | E54: 0 | F54: 0 | G54: 0 | H54: 0 | I54: 0 | J54: 0
A55: Виплата пенсій і допомоги | B55: 2710 | C55: 330 | D55: 0 | E55: 0 | F55: 0 | G55: 0 | H55: 0 | I55: 0 | J55: 0
A56: Стипендії | B56: 2720 | C56: 340 | D56: 0 | E56: 0 | F56: 0 | G56: 0 | H56: 0 | I56: 0 | J56: 0
A57: Інші виплати населенню | B57: 2730 | C57: 350 | D57: 0 | E57: 0 | F57: 0 | G57: 0 | H57: 0 | I57: 0 | J57: 0
A58: Інші поточні видатки | B58: 2800 | C58: 360 | D58: 0 | E58: 0 | F58: 0 | G58: 0 | H58: 0 | I58: 0 | J58: 0
A59: Капітальні видатки | B59: 3000 | C59: 370 | D59: =D60+D74 -> 0 | E59: 0 | F59: 0 | G59: 0 | H59: 0 | I59: 0 | J59: 0
A60: Придбання основного капіталу | B60: 3100 | C60: 380 | D60: =D61+D62+D65+D68+D72+D73 -> 0 | E60: 0 | F60: 0 | G60: 0 | H60: 0 | I60: 0 | J60: 0
A61: Придбання обладнання і предметів довгострокового користування | B61: 3110 | C61: 390 | D61: 0 | E61: 0 | F61: 0 | G61: 0 | H61: 0 | I61: 0 | J61: 0
A62: Капітальне будівництво (придбання) | B62: 3120 | C62: 400 | D62: =SUM(D63:D64) -> 0 | E62: 0 | F62: 0 | G62: 0 | H62: 0 | I62: 0 | J62: 0
A63: Капітальне будівництво (придбання) житла | B63: 3121 | C63: 410 | D63: 0 | E63: 0 | F63: 0 | G63: 0 | H63: 0 | I63: 0 | J63: 0
A64: Капітальне будівництво (придбання) інших об’єктів | B64: 3122 | C64: 420 | D64: 0 | E64: 0 | F64: 0 | G64: 0 | H64: 0 | I64: 0 | J64: 0
A65: Капітальний ремонт | B65: 3130 | C65: 430 | D65: =SUM(D66:D67) -> 0 | E65: 0 | F65: 0 | G65: 0 | H65: 0 | I65: 0 | J65: 0
A66: Капітальний ремонт житлового фонду (приміщень) | B66: 3131 | C66: 440 | D66: 0 | E66: 0 | F66: 0 | G66: 0 | H66: 0 | I66: 0 | J66: 0
A67: Капітальний ремонт інших об’єктів | B67: 3132 | C67: 450 | D67: 0 | E67: 0 | F67: 0 | G67: 0 | H67: 0 | I67: 0 | J67: 0
A68: Реконструкція та реставрація | B68: 3140 | C68: 460 | D68: =SUM(D69:D71) -> 0 | E68: 0 | F68: 0 | G68: 0 | H68: 0 | I68: 0 | J68: 0
A69: Реконструкція житлового фонду (приміщень) | B69: 3141 | C69: 470 | D69: 0 | E69: 0 | F69: 0 | G69: 0 | H69: 0 | I69: 0 | J69: 0
A70: Реконструкція та реставрація інших об’єктів | B70: 3142 | C70: 480 | D70: 0 | E70: 0 | F70: 0 | G70: 0 | H70: 0 | I70: 0 | J70: 0
A71: Реставрація пам’яток культури, історії та архітектури | B71: 3143 | C71: 490 | D71: 0 | E71: 0 | F71: 0 | G71: 0 | H71: 0 | I71: 0 | J71: 0
A72: Створення державних запасів і резервів | B72: 3150 | C72: 500 | D72: 0 | E72: 0 | F72: 0 | G72: 0 | H72: 0 | I72: 0 | J72: 0
A73: Придбання землі та нематеріальних активів | B73: 3160 | C73: 510 | D73: 0 | E73: 0 | F73: 0 | G73: 0 | H73: 0 | I73: 0 | J73: 0
A74: Капітальні трансферти | B74: 3200 | C74: 520 | D74: =SUM(D75:D78) -> 0 | E74: 0 | F74: 0 | G74: 0 | H74: 0 | I74: 0 | J74: 0
A75: Капітальні трансферти підприємствам (установам, організаціям) | B75: 3210 | C75: 530 | D75: 0 | E75: 0 | F75: 0 | G75: 0 | H75: 0 | I75: 0 | J75: 0
A76: Капітальні трансферти органам державного управління інших рівнів | B76: 3220 | C76: 540 | D76: 0 | E76: 0 | F76: 0 | G76: 0 | H76: 0 | I76: 0 | J76: 0
A77: Капітальні трансферти урядам іноземних держав та міжнародним організаціям | B77: 3230 | C77: 550 | D77: 0 | E77: 0 | F77: 0 | G77: 0 | H77: 0 | I77: 0 | J77: 0
A78: Капітальні трансферти населенню | B78: 3240 | C78: 560 | D78: 0 | E78: 0 | F78: 0 | G78: 0 | H78: 0 | I78: 0 | J78: 0
A79: Внутрішнє кредитування | B79: 4100 | C79: 570 | D79: =SUM(D80) -> 0 | E79: 0 | F79: 0 | G79: 0 | H79: 0 | I79: 0 | J79: 0
A80: Надання внутрішніх кредитів | B80: 4110 | C80: 580 | D80: =SUM(D81:D83) -> 0 | E80: 0 | F80: 0 | G80: 0 | H80: 0 | I80: 0 | J80: 0
A81: Надання кредитів органам державного управління інших рівнів | B81: 4111 | C81: 590 | D81: 0 | E81: 0 | F81: 0 | G81: 0 | H81: 0 | I81: 0 | J81: 0
A82: Надання кредитів підприємствам, установам, організаціям | B82: 4112 | C82: 600 | D82: 0 | E82: 0 | F82: 0 | G82: 0 | H82: 0 | I82: 0 | J82: 0
A83: Надання інших внутрішніх кредитів | B83: 4113 | C83: 610 | D83: 0 | E83: 0 | F83: 0 | G83: 0 | H83: 0 | I83: 0 | J83: 0
A84: Зовнішнє кредитування | B84: 4200 | C84: 620 | D84: =D85 -> 0 | E84: 0 | F84: 0 | G84: 0 | H84: 0 | I84: 0 | J84: 0
A85: Надання зовнішніх кредитів | B85: 4210 | C85: 630 | D85: 0 | E85: 0 | F85: 0 | G85: 0 | H85: 0 | I85: 0 | J85: 0
A86: Інші видатки | B86: 5000 | C86: 640 | D86: X | E86: 0 | F86: X | G86: X | H86: X | I86: X | J86: X
A87: Нерозподілені видатки | B87: 9000 | C87: 650 | D87: 0 | E87: 0 | F87: 0 | G87: 0 | H87: 0 | I87: 0 | J87: 0
C88: 650
A100: 1 Заповнюється розпорядниками бюджетних коштів.
A101: =ЗАПОЛНИТЬ!F30 -> Керівник | G101: =ЗАПОЛНИТЬ!F26 -> Нєтков Р.В.
D102: (підпис) | G102: (ініціали, прізвище)
A103: =ЗАПОЛНИТЬ!F31 -> Головний бухгалтер | G103: =ЗАПОЛНИТЬ!F28 -> Саватєєва О.І.
A104: =ЗАПОЛНИТЬ!C19 -> "08" жовтня 2018 року | D104: (підпис) | G104: (ініціали, прізвище)

Sheet Ф.2.11 (hidden)
G1: Додаток 1 до Порядку складання бюджетної звітності розпорядниками та одержувачами бюджетних коштів, звітності фондами загальнообов’язкового державного соціального і пенсійного страхування (пункт 1 розділу ІІ)
A4: ЗВІТ
A5: =IF(ЗАПОЛНИТЬ!$F$7=1,CONCATENATE(шапки!A2),CONCATENATE(шапки!A2,шапки!C2)) -> про надходження та використання коштів загального фонду (форма №2д, | G5: =IF(ЗАПОЛНИТЬ!$F$7=1,шапки!C2,шапки!D2) -> №2м) | H5: =IF(ЗАПОЛНИТЬ!$F$7=1,шапки!D2,"") -> 
A6: =CONCATENATE("за ",ЗАПОЛНИТЬ!$B$17," ",ЗАПОЛНИТЬ!$C$17) -> за ІІІ квартал 2018 р.
J7: коди
A9: Установа | B9: =ЗАПОЛНИТЬ!B3 -> Комунальний заклад "Орлівська загальноосвітня школа І-ІІІ ступенів" Приморської районної ради Запорізької області | H9: за ЄДРПОУ | J9: =ЗАПОЛНИТЬ!B13 -> 26291242
A10: Територія | B10: =ЗАПОЛНИТЬ!B5 -> с.Орлівка Приморського району Запорізької області | H10: за КОАТУУ | J10: =ЗАПОЛНИТЬ!B14 -> 232484201
A11: Організаційно-правова форма господарювання | B11: =ЗАПОЛНИТЬ!D15 -> Комунальна організація (установа, заклад) | H11: за КОПФГ | J11: =ЗАПОЛНИТЬ!B15 -> 430
A12: Код та назва відомчої класифікації видатків та кредитування державного бюджету | D12: =ЗАПОЛНИТЬ!H9 -> 0 | E12: =IF(D12>0,VLOOKUP(D12,'ДовидникКВК(ГОС)'!A:B,2,FALSE),"") -> 
A13: Код та назва програмної класифікації видатків та кредитування державного бюджету | E13: =IF(D13>0,VLOOKUP(D13,ДовидникКПК!B:C,2,FALSE),"") -> 
A14: Код та назва типової відомчої класифікації видатків та кредитування місцевих бюджетів | D14: =ЗАПОЛНИТЬ!H10 -> 06 | E14: =ЗАПОЛНИТЬ!I10 -> Відділ освіти Приморського района Запорізької області
A15: Код та назва програмної класифікації видатків та кредитування місцевих бюджетів (код та назва Типової програмної класифікації видатків та кредитування місцевих бюджетів / Тимчасової класифікації видатків та кредитування для бюджетів місцевого самоврядування, які не застосовують програмно-цільового методу) | D15: - | E15: =VLOOKUP(RIGHT(D15,4),КПКВМБ!A:B,2,FALSE) -> -
A16: Періодичність: квартальна, річна
A17: Одиниця виміру: грн, коп.
A19: Показники | B19: КЕКВ та/або ККК | C19: Код рядка | D19: Затверджено на звітний рік | E19: Затверджено на звітний період (рік)1 | F19: Залишок на початок звітного року | G19: Надійшло коштів за звітний період (рік) | H19: Касові за звітний період (рік) | I19: Фактичні за звітний період (рік) | J19: Залишок на кінець звітного періоду (року)
A22: 1 | B22: 2 | C22: 3 | D22: 4 | E22: 5 | F22: 6 | G22: 7 | H22: 8 | I22: 9 | J22: 9
A23: Видатки та надання кредитів - усього | B23: Х | C23: 010 | D23: =D24+D59+D79+D84+D87 -> 0 | E23: =E26+E29+E32+E33+E37+E45+E46+E86+E54 -> 0 | F23: =F24+F59+F79+F84+F87 -> 0 | G23: =G24+G59+G79+G84+G87 -> 0 | H23: =H24+H59+H79+H84+H87 -> 0 | I23: =I24+I59+I79+I84+I87 -> 0 | J23: =F23+G23-H23 -> 0
A24: у тому числі: Поточні видатки | B24: 2000 | C24: 020 | D24: =D25+D30+D47+D50+D54+D58 -> 0 | E24: 0 | F24: 0 | G24: 0 | H24: 0 | I24: 0 | J24: =F24+G24-H24 -> 0
A25: Оплата праці і нарахування на заробітну плату | B25: 2100 | C25: 030 | D25: =D26+D29 -> 0 | E25: 0 | F25: =F26+F29 -> 0 | G25: =G26+G29 -> 0 | H25: =H26+H29 -> 0 | I25: =I26+I29 -> 0 | J25: 0
A26: Оплата праці | B26: 2110 | C26: 040 | D26: =SUM(D27:D28) -> 0 | E26: 0 | F26: 0 | G26: 0 | H26: 0 | I26: 0 | J26: 0
A27: Заробітна плата | B27: 2111 | C27: 050 | D27: 0 | E27: 0 | F27: 0 | G27: 0 | H27: 0 | I27: 0 | J27: 0
A28: Грошове забезпечення військовослужбовців | B28: 2112 | C28: 060 | D28: 0 | E28: 0 | F28: 0 | G28: 0 | H28: 0 | I28: 0 | J28: 0
A29: Нарахування на оплату праці | B29: 2120 | C29: 070 | D29: 0 | E29: 0 | F29: 0 | G29: 0 | H29: 0 | I29: 0 | J29: 0
A30: Використання товарів і послуг | B30: 2200 | C30: 080 | D30: =SUM(D31:D37)+D44 -> 0 | E30: 0 | F30: =SUM(F31:F37)+F44 -> 0 | G30: =SUM(G31:G37)+G44 -> 0 | H30: =SUM(H31:H37)+H44 -> 0 | I30: =SUM(I31:I37)+I44 -> 0 | J30: 0
A31: Предмети, матеріали, обладнання та інвентар | B31: 2210 | C31: 090 | D31: 0 | E31: 0 | F31: 0 | G31: 0 | H31: 0 | I31: 0 | J31: 0
A32: Медикаменти та перев’язувальні матеріали | B32: 2220 | C32: 100 | D32: 0 | E32: 0 | F32: 0 | G32: 0 | H32: 0 | I32: 0 | J32: 0
A33: Продукти харчування | B33: 2230 | C33: 110 | D33: 0 | E33: 0 | F33: 0 | G33: 0 | H33: 0 | I33: 0 | J33: 0
A34: Оплата послуг (крім комунальних) | B34: 2240 | C34: 120 | D34: 0 | E34: 0 | F34: 0 | G34: 0 | H34: 0 | I34: 0 | J34: 0
A35: Видатки на відрядження | B35: 2250 | C35: 130 | D35: 0 | E35: 0 | F35: 0 | G35: 0 | H35: 0 | I35: 0 | J35: 0
A36: Видатки та заходи спеціального призначення | B36: 2260 | C36: 140 | D36: 0 | E36: 0 | F36: 0 | G36: 0 | H36: 0 | I36: 0 | J36: 0
A37: Оплата комунальних послуг та енергоносіїв | B37: 2270 | C37: 150 | D37: =SUM(D38:D43) -> 0 | E37: 0 | F37: =SUM(F38:F43) -> 0 | G37: =SUM(G38:G43) -> 0 | H37: =SUM(H38:H43) -> 0 | I37: =SUM(I38:I43) -> 0 | J37: =F37+G37-H37 -> 0
A38: Оплата теплопостачання | B38: 2271 | C38: 160 | D38: 0 | E38: 0 | F38: 0 | G38: 0 | H38: 0 | I38: 0 | J38: 0
A39: Оплата водопостачання та водовідведення | B39: 2272 | C39: 170 | D39: 0 | E39: 0 | F39: 0 | G39: 0 | H39: 0 | I39: 0 | J39: 0
A40: Оплата електроенергії | B40: 2273 | C40: 180 | D40: 0 | E40: 0 | F40: 0 | G40: 0 | H40: 0 | I40: 0 | J40: 0
A41: Оплата природного газу | B41: 2274 | C41: 190 | D41: 0 | E41: 0 | F41: 0 | G41: 0 | H41: 0 | I41: 0 | J41: 0
A42: Оплата інших енергоносіїв | B42: 2275 | C42: 200 | D42: 0 | E42: 0 | F42: 0 | G42: 0 | H42: 0 | I42: 0 | J42: 0
A43: Оплата енергосервісу | B43: 2276 | C43: 210 | D43: 0 | E43: 0 | F43: 0 | G43: 0 | H43: 0 | I43: 0 | J43: =F43+G43-H43 -> 0
A44: Дослідження і розробки, окремі заходи по реалізації державних (регіональних) програм | B44: 2280 | C44: 220 | D44: =SUM(D45:D46) -> 0 | E44: 0 | F44: =SUM(F45:F46) -> 0 | G44: =SUM(G45:G46) -> 0 | H44: =SUM(H45:H46) -> 0 | I44: =SUM(I45:I46) -> 0 | J44: 0
A45: Дослідження і розробки, окремі заходи розвитку по реалізації державних (регіональних) програм | B45: 2281 | C45: 230 | D45: 0 | E45: 0 | F45: 0 | G45: 0 | H45: 0 | I45: 0 | J45: 0
A46: Окремі заходи по реалізації державних (регіональних) програм, не віднесені до заходів розвитку | B46: 2282 | C46: 240 | D46: 0 | E46: 0 | F46: 0 | G46: 0 | H46: 0 | I46: 0 | J46: 0
A47: Обслуговування боргових зобов’язань | B47: 2400 | C47: 250 | D47: =SUM(D48:D49) -> 0 | E47: 0 | F47: 0 | G47: 0 | H47: 0 | I47: 0 | J47: 0
A48: Обслуговування внутрішніх боргових зобов’язань | B48: 2410 | C48: 260 | D48: 0 | E48: 0 | F48: 0 | G48: 0 | H48: 0 | I48: 0 | J48: 0
A49: Обслуговування зовнішніх боргових зобов’язань | B49: 2420 | C49: 270 | D49: 0 | E49: 0 | F49: 0 | G49: 0 | H49: 0 | I49: 0 | J49: 0
A50: Поточні трансферти | B50: 2600 | C50: 280 | D50: =SUM(D51:D53) -> 0 | E50: 0 | F50: 0 | G50: 0 | H50: 0 | I50: 0 | J50: 0
A51: Субсидії та поточні трансферти підприємствам (установам, організаціям) | B51: 2610 | C51: 290 | D51: 0 | E51: 0 | F51: 0 | G51: 0 | H51: 0 | I51: 0 | J51: 0
A52: Поточні трансферти органам державного управління інших рівнів | B52: 2620 | C52: 300 | D52: 0 | E52: 0 | F52: 0 | G52: 0 | H52: 0 | I52: 0 | J52: 0
A53: Поточні трансферти урядам іноземних держав та міжнародним організаціям | B53: 2630 | C53: 310 | D53: 0 | E53: 0 | F53: 0 | G53: 0 | H53: 0 | I53: 0 | J53: 0
A54: Соціальне забезпечення | B54: 2700 | C54: 320 | D54: =SUM(D55:D57) -> 0 | E54: 0 | F54: 0 | G54: 0 | H54: 0 | I54: 0 | J54: 0
A55: Виплата пенсій і допомоги | B55: 2710 | C55: 330 | D55: 0 | E55: 0 | F55: 0 | G55: 0 | H55: 0 | I55: 0 | J55: 0
A56: Стипендії | B56: 2720 | C56: 340 | D56: 0 | E56: 0 | F56: 0 | G56: 0 | H56: 0 | I56: 0 | J56: 0
A57: Інші виплати населенню | B57: 2730 | C57: 350 | D57: 0 | E57: 0 | F57: 0 | G57: 0 | H57: 0 | I57: 0 | J57: 0
A58: Інші поточні видатки | B58: 2800 | C58: 360 | D58: 0 | E58: 0 | F58: 0 | G58: 0 | H58: 0 | I58: 0 | J58: 0
A59: Капітальні видатки | B59: 3000 | C59: 370 | D59: =D60+D74 -> 0 | E59: 0 | F59: 0 | G59: 0 | H59: 0 | I59: 0 | J59: 0
A60: Придбання основного капіталу | B60: 3100 | C60: 380 | D60: =D61+D62+D65+D68+D72+D73 -> 0 | E60: 0 | F60: 0 | G60: 0 | H60: 0 | I60: 0 | J60: 0
A61: Придбання обладнання і предметів довгострокового користування | B61: 3110 | C61: 390 | D61: 0 | E61: 0 | F61: 0 | G61: 0 | H61: 0 | I61: 0 | J61: 0
A62: Капітальне будівництво (придбання) | B62: 3120 | C62: 400 | D62: =SUM(D63:D64) -> 0 | E62: 0 | F62: 0 | G62: 0 | H62: 0 | I62: 0 | J62: 0
A63: Капітальне будівництво (придбання) житла | B63: 3121 | C63: 410 | D63: 0 | E63: 0 | F63: 0 | G63: 0 | H63: 0 | I63: 0 | J63: 0
A64: Капітальне будівництво (придбання) інших об’єктів | B64: 3122 | C64: 420 | D64: 0 | E64: 0 | F64: 0 | G64: 0 | H64: 0 | I64: 0 | J64: 0
A65: Капітальний ремонт | B65: 3130 | C65: 430 | D65: =SUM(D66:D67) -> 0 | E65: 0 | F65: 0 | G65: 0 | H65: 0 | I65: 0 | J65: 0
A66: Капітальний ремонт житлового фонду (приміщень) | B66: 3131 | C66: 440 | D66: 0 | E66: 0 | F66: 0 | G66: 0 | H66: 0 | I66: 0 | J66: 0
A67: Капітальний ремонт інших об’єктів | B67: 3132 | C67: 450 | D67: 0 | E67: 0 | F67: 0 | G67: 0 | H67: 0 | I67: 0 | J67: 0
A68: Реконструкція та реставрація | B68: 3140 | C68: 460 | D68: =SUM(D69:D71) -> 0 | E68: 0 | F68: 0 | G68: 0 | H68: 0 | I68: 0 | J68: 0
A69: Реконструкція житлового фонду (приміщень) | B69: 3141 | C69: 470 | D69: 0 | E69: 0 | F69: 0 | G69: 0 | H69: 0 | I69: 0 | J69: 0
A70: Реконструкція та реставрація інших об’єктів | B70: 3142 | C70: 480 | D70: 0 | E70: 0 | F70: 0 | G70: 0 | H70: 0 | I70: 0 | J70: 0
A71: Реставрація пам’яток культури, історії та архітектури | B71: 3143 | C71: 490 | D71: 0 | E71: 0 | F71: 0 | G71: 0 | H71: 0 | I71: 0 | J71: 0
A72: Створення державних запасів і резервів | B72: 3150 | C72: 500 | D72: 0 | E72: 0 | F72: 0 | G72: 0 | H72: 0 | I72: 0 | J72: 0
A73: Придбання землі та нематеріальних активів | B73: 3160 | C73: 510 | D73: 0 | E73: 0 | F73: 0 | G73: 0 | H73: 0 | I73: 0 | J73: 0
A74: Капітальні трансферти | B74: 3200 | C74: 520 | D74: =SUM(D75:D78) -> 0 | E74: 0 | F74: 0 | G74: 0 | H74: 0 | I74: 0 | J74: 0
A75: Капітальні трансферти підприємствам (установам, організаціям) | B75: 3210 | C75: 530 | D75: 0 | E75: 0 | F75: 0 | G75: 0 | H75: 0 | I75: 0 | J75: 0
A76: Капітальні трансферти органам державного управління інших рівнів | B76: 3220 | C76: 540 | D76: 0 | E76: 0 | F76: 0 | G76: 0 | H76: 0 | I76: 0 | J76: 0
A77: Капітальні трансферти урядам іноземних держав та міжнародним організаціям | B77: 3230 | C77: 550 | D77: 0 | E77: 0 | F77: 0 | G77: 0 | H77: 0 | I77: 0 | J77: 0
A78: Капітальні трансферти населенню | B78: 3240 | C78: 560 | D78: 0 | E78: 0 | F78: 0 | G78: 0 | H78: 0 | I78: 0 | J78: 0
A79: Внутрішнє кредитування | B79: 4100 | C79: 570 | D79: =SUM(D80) -> 0 | E79: 0 | F79: 0 | G79: 0 | H79: 0 | I79: 0 | J79: 0
A80: Надання внутрішніх кредитів | B80: 4110 | C80: 580 | D80: =SUM(D81:D83) -> 0 | E80: 0 | F80: 0 | G80: 0 | H80: 0 | I80: 0 | J80: 0
A81: Надання кредитів органам державного управління інших рівнів | B81: 4111 | C81: 590 | D81: 0 | E81: 0 | F81: 0 | G81: 0 | H81: 0 | I81: 0 | J81: 0
A82: Надання кредитів підприємствам, установам, організаціям | B82: 4112 | C82: 600 | D82: 0 | E82: 0 | F82: 0 | G82: 0 | H82: 0 | I82: 0 | J82: 0
A83: Надання інших внутрішніх кредитів | B83: 4113 | C83: 610 | D83: 0 | E83: 0 | F83: 0 | G83: 0 | H83: 0 | I83: 0 | J83: 0
A84: Зовнішнє кредитування | B84: 4200 | C84: 620 | D84: =D85 -> 0 | E84: 0 | F84: 0 | G84: 0 | H84: 0 | I84: 0 | J84: 0
A85: Надання зовнішніх кредитів | B85: 4210 | C85: 630 | D85: 0 | E85: 0 | F85: 0 | G85: 0 | H85: 0 | I85: 0 | J85: 0
A86: Інші видатки | B86: 5000 | C86: 640 | D86: X | E86: 0 | F86: X | G86: X | H86: X | I86: X | J86: X
A87: Нерозподілені видатки | B87: 9000 | C87: 650 | D87: 0 | E87: 0 | F87: 0 | G87: 0 | H87: 0 | I87: 0 | J87: 0
C88: 650
A100: 1 Заповнюється розпорядниками бюджетних коштів.
A101: =ЗАПОЛНИТЬ!F30 -> Керівник | G101: =ЗАПОЛНИТЬ!F26 -> Нєтков Р.В.
D102: (підпис) | G102: (ініціали, прізвище)
A103: =ЗАПОЛНИТЬ!F31 -> Головний бухгалтер | G103: =ЗАПОЛНИТЬ!F28 -> Саватєєва О.І.
A104: =ЗАПОЛНИТЬ!C19 -> "08" жовтня 2018 року | D104: (підпис) | G104: (ініціали, прізвище)

Sheet Ф.2.12 (hidden)
G1: Додаток 1 до Порядку складання бюджетної звітності розпорядниками та одержувачами бюджетних коштів, звітності фондами загальнообов’язкового державного соціального і пенсійного страхування (пункт 1 розділу ІІ)
A4: ЗВІТ
A5: =IF(ЗАПОЛНИТЬ!$F$7=1,CONCATENATE(шапки!A2),CONCATENATE(шапки!A2,шапки!C2)) -> про надходження та використання коштів загального фонду (форма №2д, | G5: =IF(ЗАПОЛНИТЬ!$F$7=1,шапки!C2,шапки!D2) -> №2м) | H5: =IF(ЗАПОЛНИТЬ!$F$7=1,шапки!D2,"") -> 
A6: =CONCATENATE("за ",ЗАПОЛНИТЬ!$B$17," ",ЗАПОЛНИТЬ!$C$17) -> за ІІІ квартал 2018 р.
J7: коди
A9: Установа | B9: =ЗАПОЛНИТЬ!B3 -> Комунальний заклад "Орлівська загальноосвітня школа І-ІІІ ступенів" Приморської районної ради Запорізької області | H9: за ЄДРПОУ | J9: =ЗАПОЛНИТЬ!B13 -> 26291242
A10: Територія | B10: =ЗАПОЛНИТЬ!B5 -> с.Орлівка Приморського району Запорізької області | H10: за КОАТУУ | J10: =ЗАПОЛНИТЬ!B14 -> 232484201
A11: Організаційно-правова форма господарювання | B11: =ЗАПОЛНИТЬ!D15 -> Комунальна організація (установа, заклад) | H11: за КОПФГ | J11: =ЗАПОЛНИТЬ!B15 -> 430
A12: Код та назва відомчої класифікації видатків та кредитування державного бюджету | D12: =ЗАПОЛНИТЬ!H9 -> 0 | E12: =IF(D12>0,VLOOKUP(D12,'ДовидникКВК(ГОС)'!A:B,2,FALSE),"") -> 
A13: Код та назва програмної класифікації видатків та кредитування державного бюджету | E13: =IF(D13>0,VLOOKUP(D13,ДовидникКПК!B:C,2,FALSE),"") -> 
A14: Код та назва типової відомчої класифікації видатків та кредитування місцевих бюджетів | D14: =ЗАПОЛНИТЬ!H10 -> 06 | E14: =ЗАПОЛНИТЬ!I10 -> Відділ освіти Приморського района Запорізької області
A15: Код та назва програмної класифікації видатків та кредитування місцевих бюджетів (код та назва Типової програмної класифікації видатків та кредитування місцевих бюджетів / Тимчасової класифікації видатків та кредитування для бюджетів місцевого самоврядування, які не застосовують програмно-цільового методу) | D15: - | E15: =VLOOKUP(RIGHT(D15,4),КПКВМБ!A:B,2,FALSE) -> -
A16: Періодичність: квартальна, річна
A17: Одиниця виміру: грн, коп.
A19: Показники | B19: КЕКВ та/або ККК | C19: Код рядка | D19: Затверджено на звітний рік | E19: Затверджено на звітний період (рік)1 | F19: Залишок на початок звітного року | G19: Надійшло коштів за звітний період (рік) | H19: Касові за звітний період (рік) | I19: Фактичні за звітний період (рік) | J19: Залишок на кінець звітного періоду (року)
A22: 1 | B22: 2 | C22: 3 | D22: 4 | E22: 5 | F22: 6 | G22: 7 | H22: 8 | I22: 9 | J22: 9
A23: Видатки та надання кредитів - усього | B23: Х | C23: 010 | D23: =D24+D59+D79+D84+D87 -> 0 | E23: =E26+E29+E32+E33+E37+E45+E46+E86+E54 -> 0 | F23: =F24+F59+F79+F84+F87 -> 0 | G23: =G24+G59+G79+G84+G87 -> 0 | H23: =H24+H59+H79+H84+H87 -> 0 | I23: =I24+I59+I79+I84+I87 -> 0 | J23: =F23+G23-H23 -> 0
A24: у тому числі: Поточні видатки | B24: 2000 | C24: 020 | D24: =D25+D30+D47+D50+D54+D58 -> 0 | E24: 0 | F24: 0 | G24: 0 | H24: 0 | I24: 0 | J24: =F24+G24-H24 -> 0
A25: Оплата праці і нарахування на заробітну плату | B25: 2100 | C25: 030 | D25: =D26+D29 -> 0 | E25: 0 | F25: =F26+F29 -> 0 | G25: =G26+G29 -> 0 | H25: =H26+H29 -> 0 | I25: =I26+I29 -> 0 | J25: 0
A26: Оплата праці | B26: 2110 | C26: 040 | D26: =SUM(D27:D28) -> 0 | E26: 0 | F26: 0 | G26: 0 | H26: 0 | I26: 0 | J26: 0
A27: Заробітна плата | B27: 2111 | C27: 050 | D27: 0 | E27: 0 | F27: 0 | G27: 0 | H27: 0 | I27: 0 | J27: 0
A28: Грошове забезпечення військовослужбовців | B28: 2112 | C28: 060 | D28: 0 | E28: 0 | F28: 0 | G28: 0 | H28: 0 | I28: 0 | J28: 0
A29: Нарахування на оплату праці | B29: 2120 | C29: 070 | D29: 0 | E29: 0 | F29: 0 | G29: 0 | H29: 0 | I29: 0 | J29: 0
A30: Використання товарів і послуг | B30: 2200 | C30: 080 | D30: =SUM(D31:D37)+D44 -> 0 | E30: 0 | F30: =SUM(F31:F37)+F44 -> 0 | G30: =SUM(G31:G37)+G44 -> 0 | H30: =SUM(H31:H37)+H44 -> 0 | I30: =SUM(I31:I37)+I44 -> 0 | J30: 0
A31: Предмети, матеріали, обладнання та інвентар | B31: 2210 | C31: 090 | D31: 0 | E31: 0 | F31: 0 | G31: 0 | H31: 0 | I31: 0 | J31: 0
A32: Медикаменти та перев’язувальні матеріали | B32: 2220 | C32: 100 | D32: 0 | E32: 0 | F32: 0 | G32: 0 | H32: 0 | I32: 0 | J32: 0
A33: Продукти харчування | B33: 2230 | C33: 110 | D33: 0 | E33: 0 | F33: 0 | G33: 0 | H33: 0 | I33: 0 | J33: 0
A34: Оплата послуг (крім комунальних) | B34: 2240 | C34: 120 | D34: 0 | E34: 0 | F34: 0 | G34: 0 | H34: 0 | I34: 0 | J34: 0
A35: Видатки на відрядження | B35: 2250 | C35: 130 | D35: 0 | E35: 0 | F35: 0 | G35: 0 | H35: 0 | I35: 0 | J35: 0
A36: Видатки та заходи спеціального призначення | B36: 2260 | C36: 140 | D36: 0 | E36: 0 | F36: 0 | G36: 0 | H36: 0 | I36: 0 | J36: 0
A37: Оплата комунальних послуг та енергоносіїв | B37: 2270 | C37: 150 | D37: =SUM(D38:D43) -> 0 | E37: 0 | F37: =SUM(F38:F43) -> 0 | G37: =SUM(G38:G43) -> 0 | H37: =SUM(H38:H43) -> 0 | I37: =SUM(I38:I43) -> 0 | J37: =F37+G37-H37 -> 0
A38: Оплата теплопостачання | B38: 2271 | C38: 160 | D38: 0 | E38: 0 | F38: 0 | G38: 0 | H38: 0 | I38: 0 | J38: 0
A39: Оплата водопостачання та водовідведення | B39: 2272 | C39: 170 | D39: 0 | E39: 0 | F39: 0 | G39: 0 | H39: 0 | I39: 0 | J39: 0
A40: Оплата електроенергії | B40: 2273 | C40: 180 | D40: 0 | E40: 0 | F40: 0 | G40: 0 | H40: 0 | I40: 0 | J40: 0
A41: Оплата природного газу | B41: 2274 | C41: 190 | D41: 0 | E41: 0 | F41: 0 | G41: 0 | H41: 0 | I41: 0 | J41: 0
A42: Оплата інших енергоносіїв | B42: 2275 | C42: 200 | D42: 0 | E42: 0 | F42: 0 | G42: 0 | H42: 0 | I42: 0 | J42: 0
A43: Оплата енергосервісу | B43: 2276 | C43: 210 | D43: 0 | E43: 0 | F43: 0 | G43: 0 | H43: 0 | I43: 0 | J43: =F43+G43-H43 -> 0
A44: Дослідження і розробки, окремі заходи по реалізації державних (регіональних) програм | B44: 2280 | C44: 220 | D44: =SUM(D45:D46) -> 0 | E44: 0 | F44: =SUM(F45:F46) -> 0 | G44: =SUM(G45:G46) -> 0 | H44: =SUM(H45:H46) -> 0 | I44: =SUM(I45:I46) -> 0 | J44: 0
A45: Дослідження і розробки, окремі заходи розвитку по реалізації державних (регіональних) програм | B45: 2281 | C45: 230 | D45: 0 | E45: 0 | F45: 0 | G45: 0 | H45: 0 | I45: 0 | J45: 0
A46: Окремі заходи по реалізації державних (регіональних) програм, не віднесені до заходів розвитку | B46: 2282 | C46: 240 | D46: 0 | E46: 0 | F46: 0 | G46: 0 | H46: 0 | I46: 0 | J46: 0
A47: Обслуговування боргових зобов’язань | B47: 2400 | C47: 250 | D47: =SUM(D48:D49) -> 0 | E47: 0 | F47: 0 | G47: 0 | H47: 0 | I47: 0 | J47: 0
A48: Обслуговування внутрішніх боргових зобов’язань | B48: 2410 | C48: 260 | D48: 0 | E48: 0 | F48: 0 | G48: 0 | H48: 0 | I48: 0 | J48: 0
A49: Обслуговування зовнішніх боргових зобов’язань | B49: 2420 | C49: 270 | D49: 0 | E49: 0 | F49: 0 | G49: 0 | H49: 0 | I49: 0 | J49: 0
A50: Поточні трансферти | B50: 2600 | C50: 280 | D50: =SUM(D51:D53) -> 0 | E50: 0 | F50: 0 | G50: 0 | H50: 0 | I50: 0 | J50: 0
A51: Субсидії та поточні трансферти підприємствам (установам, організаціям) | B51: 2610 | C51: 290 | D51: 0 | E51: 0 | F51: 0 | G51: 0 | H51: 0 | I51: 0 | J51: 0
A52: Поточні трансферти органам державного управління інших рівнів | B52: 2620 | C52: 300 | D52: 0 | E52: 0 | F52: 0 | G52: 0 | H52: 0 | I52: 0 | J52: 0
A53: Поточні трансферти урядам іноземних держав та міжнародним організаціям | B53: 2630 | C53: 310 | D53: 0 | E53: 0 | F53: 0 | G53: 0 | H53: 0 | I53: 0 | J53: 0
A54: Соціальне забезпечення | B54: 2700 | C54: 320 | D54: =SUM(D55:D57) -> 0 | E54: 0 | F54: 0 | G54: 0 | H54: 0 | I54: 0 | J54: 0
A55: Виплата пенсій і допомоги | B55: 2710 | C55: 330 | D55: 0 | E55: 0 | F55: 0 | G55: 0 | H55: 0 | I55: 0 | J55: 0
A56: Стипендії | B56: 2720 | C56: 340 | D56: 0 | E56: 0 | F56: 0 | G56: 0 | H56: 0 | I56: 0 | J56: 0
A57: Інші виплати населенню | B57: 2730 | C57: 350 | D57: 0 | E57: 0 | F57: 0 | G57: 0 | H57: 0 | I57: 0 | J57: 0
A58: Інші поточні видатки | B58: 2800 | C58: 360 | D58: 0 | E58: 0 | F58: 0 | G58: 0 | H58: 0 | I58: 0 | J58: 0
A59: Капітальні видатки | B59: 3000 | C59: 370 | D59: =D60+D74 -> 0 | E59: 0 | F59: 0 | G59: 0 | H59: 0 | I59: 0 | J59: 0
A60: Придбання основного капіталу | B60: 3100 | C60: 380 | D60: =D61+D62+D65+D68+D72+D73 -> 0 | E60: 0 | F60: 0 | G60: 0 | H60: 0 | I60: 0 | J60: 0
A61: Придбання обладнання і предметів довгострокового користування | B61: 3110 | C61: 390 | D61: 0 | E61: 0 | F61: 0 | G61: 0 | H61: 0 | I61: 0 | J61: 0
A62: Капітальне будівництво (придбання) | B62: 3120 | C62: 400 | D62: =SUM(D63:D64) -> 0 | E62: 0 | F62: 0 | G62: 0 | H62: 0 | I62: 0 | J62: 0
A63: Капітальне будівництво (придбання) житла | B63: 3121 | C63: 410 | D63: 0 | E63: 0 | F63: 0 | G63: 0 | H63: 0 | I63: 0 | J63: 0
A64: Капітальне будівництво (придбання) інших об’єктів | B64: 3122 | C64: 420 | D64: 0 | E64: 0 | F64: 0 | G64: 0 | H64: 0 | I64: 0 | J64: 0
A65: Капітальний ремонт | B65: 3130 | C65: 430 | D65: =SUM(D66:D67) -> 0 | E65: 0 | F65: 0 | G65: 0 | H65: 0 | I65: 0 | J65: 0
A66: Капітальний ремонт житлового фонду (приміщень) | B66: 3131 | C66: 440 | D66: 0 | E66: 0 | F66: 0 | G66: 0 | H66: 0 | I66: 0 | J66: 0
A67: Капітальний ремонт інших об’єктів | B67: 3132 | C67: 450 | D67: 0 | E67: 0 | F67: 0 | G67: 0 | H67: 0 | I67: 0 | J67: 0
A68: Реконструкція та реставрація | B68: 3140 | C68: 460 | D68: =SUM(D69:D71) -> 0 | E68: 0 | F68: 0 | G68: 0 | H68: 0 | I68: 0 | J68: 0
A69: Реконструкція житлового фонду (приміщень) | B69: 3141 | C69: 470 | D69: 0 | E69: 0 | F69: 0 | G69: 0 | H69: 0 | I69: 0 | J69: 0
A70: Реконструкція та реставрація інших об’єктів | B70: 3142 | C70: 480 | D70: 0 | E70: 0 | F70: 0 | G70: 0 | H70: 0 | I70: 0 | J70: 0
A71: Реставрація пам’яток культури, історії та архітектури | B71: 3143 | C71: 490 | D71: 0 | E71: 0 | F71: 0 | G71: 0 | H71: 0 | I71: 0 | J71: 0
A72: Створення державних запасів і резервів | B72: 3150 | C72: 500 | D72: 0 | E72: 0 | F72: 0 | G72: 0 | H72: 0 | I72: 0 | J72: 0
A73: Придбання землі та нематеріальних активів | B73: 3160 | C73: 510 | D73: 0 | E73: 0 | F73: 0 | G73: 0 | H73: 0 | I73: 0 | J73: 0
A74: Капітальні трансферти | B74: 3200 | C74: 520 | D74: =SUM(D75:D78) -> 0 | E74: 0 | F74: 0 | G74: 0 | H74: 0 | I74: 0 | J74: 0
A75: Капітальні трансферти підприємствам (установам, організаціям) | B75: 3210 | C75: 530 | D75: 0 | E75: 0 | F75: 0 | G75: 0 | H75: 0 | I75: 0 | J75: 0
A76: Капітальні трансферти органам державного управління інших рівнів | B76: 3220 | C76: 540 | D76: 0 | E76: 0 | F76: 0 | G76: 0 | H76: 0 | I76: 0 | J76: 0
A77: Капітальні трансферти урядам іноземних держав та міжнародним організаціям | B77: 3230 | C77: 550 | D77: 0 | E77: 0 | F77: 0 | G77: 0 | H77: 0 | I77: 0 | J77: 0
A78: Капітальні трансферти населенню | B78: 3240 | C78: 560 | D78: 0 | E78: 0 | F78: 0 | G78: 0 | H78: 0 | I78: 0 | J78: 0
A79: Внутрішнє кредитування | B79: 4100 | C79: 570 | D79: =SUM(D80) -> 0 | E79: 0 | F79: 0 | G79: 0 | H79: 0 | I79: 0 | J79: 0
A80: Надання внутрішніх кредитів | B80: 4110 | C80: 580 | D80: =SUM(D81:D83) -> 0 | E80: 0 | F80: 0 | G80: 0 | H80: 0 | I80: 0 | J80: 0
A81: Надання кредитів органам державного управління інших рівнів | B81: 4111 | C81: 590 | D81: 0 | E81: 0 | F81: 0 | G81: 0 | H81: 0 | I81: 0 | J81: 0
A82: Надання кредитів підприємствам, установам, організаціям | B82: 4112 | C82: 600 | D82: 0 | E82: 0 | F82: 0 | G82: 0 | H82: 0 | I82: 0 | J82: 0
A83: Надання інших внутрішніх кредитів | B83: 4113 | C83: 610 | D83: 0 | E83: 0 | F83: 0 | G83: 0 | H83: 0 | I83: 0 | J83: 0
A84: Зовнішнє кредитування | B84: 4200 | C84: 620 | D84: =D85 -> 0 | E84: 0 | F84: 0 | G84: 0 | H84: 0 | I84: 0 | J84: 0
A85: Надання зовнішніх кредитів | B85: 4210 | C85: 630 | D85: 0 | E85: 0 | F85: 0 | G85: 0 | H85: 0 | I85: 0 | J85: 0
A86: Інші видатки | B86: 5000 | C86: 640 | D86: X | E86: 0 | F86: X | G86: X | H86: X | I86: X | J86: X
A87: Нерозподілені видатки | B87: 9000 | C87: 650 | D87: 0 | E87: 0 | F87: 0 | G87: 0 | H87: 0 | I87: 0 | J87: 0
C88: 650
A100: 1 Заповнюється розпорядниками бюджетних коштів.
A101: =ЗАПОЛНИТЬ!F30 -> Керівник | G101: =ЗАПОЛНИТЬ!F26 -> Нєтков Р.В.
D102: (підпис) | G102: (ініціали, прізвище)
A103: =ЗАПОЛНИТЬ!F31 -> Головний бухгалтер | G103: =ЗАПОЛНИТЬ!F28 -> Саватєєва О.І.
A104: =ЗАПОЛНИТЬ!C19 -> "08" жовтня 2018 року | D104: (підпис) | G104: (ініціали, прізвище)

Sheet Ф.2.13 (hidden)
G1: Додаток 1 до Порядку складання бюджетної звітності розпорядниками та одержувачами бюджетних коштів, звітності фондами загальнообов’язкового державного соціального і пенсійного страхування (пункт 1 розділу ІІ)
A4: ЗВІТ
A5: =IF(ЗАПОЛНИТЬ!$F$7=1,CONCATENATE(шапки!A2),CONCATENATE(шапки!A2,шапки!C2)) -> про надходження та використання коштів загального фонду (форма №2д, | G5: =IF(ЗАПОЛНИТЬ!$F$7=1,шапки!C2,шапки!D2) -> №2м) | H5: =IF(ЗАПОЛНИТЬ!$F$7=1,шапки!D2,"") -> 
A6: =CONCATENATE("за ",ЗАПОЛНИТЬ!$B$17," ",ЗАПОЛНИТЬ!$C$17) -> за ІІІ квартал 2018 р.
J7: коди
A9: Установа | B9: =ЗАПОЛНИТЬ!B3 -> Комунальний заклад "Орлівська загальноосвітня школа І-ІІІ ступенів" Приморської районної ради Запорізької області | H9: за ЄДРПОУ | J9: =ЗАПОЛНИТЬ!B13 -> 26291242
A10: Територія | B10: =ЗАПОЛНИТЬ!B5 -> с.Орлівка Приморського району Запорізької області | H10: за КОАТУУ | J10: =ЗАПОЛНИТЬ!B14 -> 232484201
A11: Організаційно-правова форма господарювання | B11: =ЗАПОЛНИТЬ!D15 -> Комунальна організація (установа, заклад) | H11: за КОПФГ | J11: =ЗАПОЛНИТЬ!B15 -> 430
A12: Код та назва відомчої класифікації видатків та кредитування державного бюджету | D12: =ЗАПОЛНИТЬ!H9 -> 0 | E12: =IF(D12>0,VLOOKUP(D12,'ДовидникКВК(ГОС)'!A:B,2,FALSE),"") -> 
A13: Код та назва програмної класифікації видатків та кредитування державного бюджету | E13: =IF(D13>0,VLOOKUP(D13,ДовидникКПК!B:C,2,FALSE),"") -> 
A14: Код та назва типової відомчої класифікації видатків та кредитування місцевих бюджетів | D14: =ЗАПОЛНИТЬ!H10 -> 06 | E14: =ЗАПОЛНИТЬ!I10 -> Відділ освіти Приморського района Запорізької області
A15: Код та назва програмної класифікації видатків та кредитування місцевих бюджетів (код та назва Типової програмної класифікації видатків та кредитування місцевих бюджетів / Тимчасової класифікації видатків та кредитування для бюджетів місцевого самоврядування, які не застосовують програмно-цільового методу) | D15: - | E15: =VLOOKUP(RIGHT(D15,4),КПКВМБ!A:B,2,FALSE) -> -
A16: Періодичність: квартальна, річна
A17: Одиниця виміру: грн, коп.
A19: Показники | B19: КЕКВ та/або ККК | C19: Код рядка | D19: Затверджено на звітний рік | E19: Затверджено на звітний період (рік)1 | F19: Залишок на початок звітного року | G19: Надійшло коштів за звітний період (рік) | H19: Касові за звітний період (рік) | I19: Фактичні за звітний період (рік) | J19: Залишок на кінець звітного періоду (року)
A22: 1 | B22: 2 | C22: 3 | D22: 4 | E22: 5 | F22: 6 | G22: 7 | H22: 8 | I22: 9 | J22: 9
A23: Видатки та надання кредитів - усього | B23: Х | C23: 010 | D23: =D24+D59+D79+D84+D87 -> 0 | E23: =E26+E29+E32+E33+E37+E45+E46+E86+E54 -> 0 | F23: =F24+F59+F79+F84+F87 -> 0 | G23: =G24+G59+G79+G84+G87 -> 0 | H23: =H24+H59+H79+H84+H87 -> 0 | I23: =I24+I59+I79+I84+I87 -> 0 | J23: =F23+G23-H23 -> 0
A24: у тому числі: Поточні видатки | B24: 2000 | C24: 020 | D24: =D25+D30+D47+D50+D54+D58 -> 0 | E24: 0 | F24: 0 | G24: 0 | H24: 0 | I24: 0 | J24: =F24+G24-H24 -> 0
A25: Оплата праці і нарахування на заробітну плату | B25: 2100 | C25: 030 | D25: =D26+D29 -> 0 | E25: 0 | F25: =F26+F29 -> 0 | G25: =G26+G29 -> 0 | H25: =H26+H29 -> 0 | I25: =I26+I29 -> 0 | J25: 0
A26: Оплата праці | B26: 2110 | C26: 040 | D26: =SUM(D27:D28) -> 0 | E26: 0 | F26: 0 | G26: 0 | H26: 0 | I26: 0 | J26: 0
A27: Заробітна плата | B27: 2111 | C27: 050 | D27: 0 | E27: 0 | F27: 0 | G27: 0 | H27: 0 | I27: 0 | J27: 0
A28: Грошове забезпечення військовослужбовців | B28: 2112 | C28: 060 | D28: 0 | E28: 0 | F28: 0 | G28: 0 | H28: 0 | I28: 0 | J28: 0
A29: Нарахування на оплату праці | B29: 2120 | C29: 070 | D29: 0 | E29: 0 | F29: 0 | G29: 0 | H29: 0 | I29: 0 | J29: 0
A30: Використання товарів і послуг | B30: 2200 | C30: 080 | D30: =SUM(D31:D37)+D44 -> 0 | E30: 0 | F30: =SUM(F31:F37)+F44 -> 0 | G30: =SUM(G31:G37)+G44 -> 0 | H30: =SUM(H31:H37)+H44 -> 0 | I30: =SUM(I31:I37)+I44 -> 0 | J30: 0
A31: Предмети, матеріали, обладнання та інвентар | B31: 2210 | C31: 090 | D31: 0 | E31: 0 | F31: 0 | G31: 0 | H31: 0 | I31: 0 | J31: 0
A32: Медикаменти та перев’язувальні матеріали | B32: 2220 | C32: 100 | D32: 0 | E32: 0 | F32: 0 | G32: 0 | H32: 0 | I32: 0 | J32: 0
A33: Продукти харчування | B33: 2230 | C33: 110 | D33: 0 | E33: 0 | F33: 0 | G33: 0 | H33: 0 | I33: 0 | J33: 0
A34: Оплата послуг (крім комунальних) | B34: 2240 | C34: 120 | D34: 0 | E34: 0 | F34: 0 | G34: 0 | H34: 0 | I34: 0 | J34: 0
A35: Видатки на відрядження | B35: 2250 | C35: 130 | D35: 0 | E35: 0 | F35: 0 | G35: 0 | H35: 0 | I35: 0 | J35: 0
A36: Видатки та заходи спеціального призначення | B36: 2260 | C36: 140 | D36: 0 | E36: 0 | F36: 0 | G36: 0 | H36: 0 | I36: 0 | J36: 0
A37: Оплата комунальних послуг та енергоносіїв | B37: 2270 | C37: 150 | D37: =SUM(D38:D43) -> 0 | E37: 0 | F37: =SUM(F38:F43) -> 0 | G37: =SUM(G38:G43) -> 0 | H37: =SUM(H38:H43) -> 0 | I37: =SUM(I38:I43) -> 0 | J37: =F37+G37-H37 -> 0
A38: Оплата теплопостачання | B38: 2271 | C38: 160 | D38: 0 | E38: 0 | F38: 0 | G38: 0 | H38: 0 | I38: 0 | J38: 0
A39: Оплата водопостачання та водовідведення | B39: 2272 | C39: 170 | D39: 0 | E39: 0 | F39: 0 | G39: 0 | H39: 0 | I39: 0 | J39: 0
A40: Оплата електроенергії | B40: 2273 | C40: 180 | D40: 0 | E40: 0 | F40: 0 | G40: 0 | H40: 0 | I40: 0 | J40: 0
A41: Оплата природного газу | B41: 2274 | C41: 190 | D41: 0 | E41: 0 | F41: 0 | G41: 0 | H41: 0 | I41: 0 | J41: 0
A42: Оплата інших енергоносіїв | B42: 2275 | C42: 200 | D42: 0 | E42: 0 | F42: 0 | G42: 0 | H42: 0 | I42: 0 | J42: 0
A43: Оплата енергосервісу | B43: 2276 | C43: 210 | D43: 0 | E43: 0 | F43: 0 | G43: 0 | H43: 0 | I43: 0 | J43: =F43+G43-H43 -> 0
A44: Дослідження і розробки, окремі заходи по реалізації державних (регіональних) програм | B44: 2280 | C44: 220 | D44: =SUM(D45:D46) -> 0 | E44: 0 | F44: =SUM(F45:F46) -> 0 | G44: =SUM(G45:G46) -> 0 | H44: =SUM(H45:H46) -> 0 | I44: =SUM(I45:I46) -> 0 | J44: 0
A45: Дослідження і розробки, окремі заходи розвитку по реалізації державних (регіональних) програм | B45: 2281 | C45: 230 | D45: 0 | E45: 0 | F45: 0 | G45: 0 | H45: 0 | I45: 0 | J45: 0
A46: Окремі заходи по реалізації державних (регіональних) програм, не віднесені до заходів розвитку | B46: 2282 | C46: 240 | D46: 0 | E46: 0 | F46: 0 | G46: 0 | H46: 0 | I46: 0 | J46: 0
A47: Обслуговування боргових зобов’язань | B47: 2400 | C47: 250 | D47: =SUM(D48:D49) -> 0 | E47: 0 | F47: 0 | G47: 0 | H47: 0 | I47: 0 | J47: 0
A48: Обслуговування внутрішніх боргових зобов’язань | B48: 2410 | C48: 260 | D48: 0 | E48: 0 | F48: 0 | G48: 0 | H48: 0 | I48: 0 | J48: 0
A49: Обслуговування зовнішніх боргових зобов’язань | B49: 2420 | C49: 270 | D49: 0 | E49: 0 | F49: 0 | G49: 0 | H49: 0 | I49: 0 | J49: 0
A50: Поточні трансферти | B50: 2600 | C50: 280 | D50: =SUM(D51:D53) -> 0 | E50: 0 | F50: 0 | G50: 0 | H50: 0 | I50: 0 | J50: 0
A51: Субсидії та поточні трансферти підприємствам (установам, організаціям) | B51: 2610 | C51: 290 | D51: 0 | E51: 0 | F51: 0 | G51: 0 | H51: 0 | I51: 0 | J51: 0
A52: Поточні трансферти органам державного управління інших рівнів | B52: 2620 | C52: 300 | D52: 0 | E52: 0 | F52: 0 | G52: 0 | H52: 0 | I52: 0 | J52: 0
A53: Поточні трансферти урядам іноземних держав та міжнародним організаціям | B53: 2630 | C53: 310 | D53: 0 | E53: 0 | F53: 0 | G53: 0 | H53: 0 | I53: 0 | J53: 0
A54: Соціальне забезпечення | B54: 2700 | C54: 320 | D54: =SUM(D55:D57) -> 0 | E54: 0 | F54: 0 | G54: 0 | H54: 0 | I54: 0 | J54: 0
A55: Виплата пенсій і допомоги | B55: 2710 | C55: 330 | D55: 0 | E55: 0 | F55: 0 | G55: 0 | H55: 0 | I55: 0 | J55: 0
A56: Стипендії | B56: 2720 | C56: 340 | D56: 0 | E56: 0 | F56: 0 | G56: 0 | H56: 0 | I56: 0 | J56: 0
A57: Інші виплати населенню | B57: 2730 | C57: 350 | D57: 0 | E57: 0 | F57: 0 | G57: 0 | H57: 0 | I57: 0 | J57: 0
A58: Інші поточні видатки | B58: 2800 | C58: 360 | D58: 0 | E58: 0 | F58: 0 | G58: 0 | H58: 0 | I58: 0 | J58: 0
A59: Капітальні видатки | B59: 3000 | C59: 370 | D59: =D60+D74 -> 0 | E59: 0 | F59: 0 | G59: 0 | H59: 0 | I59: 0 | J59: 0
A60: Придбання основного капіталу | B60: 3100 | C60: 380 | D60: =D61+D62+D65+D68+D72+D73 -> 0 | E60: 0 | F60: 0 | G60: 0 | H60: 0 | I60: 0 | J60: 0
A61: Придбання обладнання і предметів довгострокового користування | B61: 3110 | C61: 390 | D61: 0 | E61: 0 | F61: 0 | G61: 0 | H61: 0 | I61: 0 | J61: 0
A62: Капітальне будівництво (придбання) | B62: 3120 | C62: 400 | D62: =SUM(D63:D64) -> 0 | E62: 0 | F62: 0 | G62: 0 | H62: 0 | I62: 0 | J62: 0
A63: Капітальне будівництво (придбання) житла | B63: 3121 | C63: 410 | D63: 0 | E63: 0 | F63: 0 | G63: 0 | H63: 0 | I63: 0 | J63: 0
A64: Капітальне будівництво (придбання) інших об’єктів | B64: 3122 | C64: 420 | D64: 0 | E64: 0 | F64: 0 | G64: 0 | H64: 0 | I64: 0 | J64: 0
A65: Капітальний ремонт | B65: 3130 | C65: 430 | D65: =SUM(D66:D67) -> 0 | E65: 0 | F65: 0 | G65: 0 | H65: 0 | I65: 0 | J65: 0
A66: Капітальний ремонт житлового фонду (приміщень) | B66: 3131 | C66: 440 | D66: 0 | E66: 0 | F66: 0 | G66: 0 | H66: 0 | I66: 0 | J66: 0
A67: Капітальний ремонт інших об’єктів | B67: 3132 | C67: 450 | D67: 0 | E67: 0 | F67: 0 | G67: 0 | H67: 0 | I67: 0 | J67: 0
A68: Реконструкція та реставрація | B68: 3140 | C68: 460 | D68: =SUM(D69:D71) -> 0 | E68: 0 | F68: 0 | G68: 0 | H68: 0 | I68: 0 | J68: 0
A69: Реконструкція житлового фонду (приміщень) | B69: 3141 | C69: 470 | D69: 0 | E69: 0 | F69: 0 | G69: 0 | H69: 0 | I69: 0 | J69: 0
A70: Реконструкція та реставрація інших об’єктів | B70: 3142 | C70: 480 | D70: 0 | E70: 0 | F70: 0 | G70: 0 | H70: 0 | I70: 0 | J70: 0
A71: Реставрація пам’яток культури, історії та архітектури | B71: 3143 | C71: 490 | D71: 0 | E71: 0 | F71: 0 | G71: 0 | H71: 0 | I71: 0 | J71: 0
A72: Створення державних запасів і резервів | B72: 3150 | C72: 500 | D72: 0 | E72: 0 | F72: 0 | G72: 0 | H72: 0 | I72: 0 | J72: 0
A73: Придбання землі та нематеріальних активів | B73: 3160 | C73: 510 | D73: 0 | E73: 0 | F73: 0 | G73: 0 | H73: 0 | I73: 0 | J73: 0
A74: Капітальні трансферти | B74: 3200 | C74: 520 | D74: =SUM(D75:D78) -> 0 | E74: 0 | F74: 0 | G74: 0 | H74: 0 | I74: 0 | J74: 0
A75: Капітальні трансферти підприємствам (установам, організаціям) | B75: 3210 | C75: 530 | D75: 0 | E75: 0 | F75: 0 | G75: 0 | H75: 0 | I75: 0 | J75: 0
A76: Капітальні трансферти органам державного управління інших рівнів | B76: 3220 | C76: 540 | D76: 0 | E76: 0 | F76: 0 | G76: 0 | H76: 0 | I76: 0 | J76: 0
A77: Капітальні трансферти урядам іноземних держав та міжнародним організаціям | B77: 3230 | C77: 550 | D77: 0 | E77: 0 | F77: 0 | G77: 0 | H77: 0 | I77: 0 | J77: 0
A78: Капітальні трансферти населенню | B78: 3240 | C78: 560 | D78: 0 | E78: 0 | F78: 0 | G78: 0 | H78: 0 | I78: 0 | J78: 0
A79: Внутрішнє кредитування | B79: 4100 | C79: 570 | D79: =SUM(D80) -> 0 | E79: 0 | F79: 0 | G79: 0 | H79: 0 | I79: 0 | J79: 0
A80: Надання внутрішніх кредитів | B80: 4110 | C80: 580 | D80: =SUM(D81:D83) -> 0 | E80: 0 | F80: 0 | G80: 0 | H80: 0 | I80: 0 | J80: 0
A81: Надання кредитів органам державного управління інших рівнів | B81: 4111 | C81: 590 | D81: 0 | E81: 0 | F81: 0 | G81: 0 | H81: 0 | I81: 0 | J81: 0
A82: Надання кредитів підприємствам, установам, організаціям | B82: 4112 | C82: 600 | D82: 0 | E82: 0 | F82: 0 | G82: 0 | H82: 0 | I82: 0 | J82: 0
A83: Надання інших внутрішніх кредитів | B83: 4113 | C83: 610 | D83: 0 | E83: 0 | F83: 0 | G83: 0 | H83: 0 | I83: 0 | J83: 0
A84: Зовнішнє кредитування | B84: 4200 | C84: 620 | D84: =D85 -> 0 | E84: 0 | F84: 0 | G84: 0 | H84: 0 | I84: 0 | J84: 0
A85: Надання зовнішніх кредитів | B85: 4210 | C85: 630 | D85: 0 | E85: 0 | F85: 0 | G85: 0 | H85: 0 | I85: 0 | J85: 0
A86: Інші видатки | B86: 5000 | C86: 640 | D86: X | E86: 0 | F86: X | G86: X | H86: X | I86: X | J86: X
A87: Нерозподілені видатки | B87: 9000 | C87: 650 | D87: 0 | E87: 0 | F87: 0 | G87: 0 | H87: 0 | I87: 0 | J87: 0
C88: 650
A100: 1 Заповнюється розпорядниками бюджетних коштів.
A101: =ЗАПОЛНИТЬ!F30 -> Керівник | G101: =ЗАПОЛНИТЬ!F26 -> Нєтков Р.В.
D102: (підпис) | G102: (ініціали, прізвище)
A103: =ЗАПОЛНИТЬ!F31 -> Головний бухгалтер | G103: =ЗАПОЛНИТЬ!F28 -> Саватєєва О.І.
A104: =ЗАПОЛНИТЬ!C19 -> "08" жовтня 2018 року | D104: (підпис) | G104: (ініціали, прізвище)

Sheet Ф.2.14 (hidden)
G1: Додаток 1 до Порядку складання бюджетної звітності розпорядниками та одержувачами бюджетних коштів, звітності фондами загальнообов’язкового державного соціального і пенсійного страхування (пункт 1 розділу ІІ)
A4: ЗВІТ
A5: =IF(ЗАПОЛНИТЬ!$F$7=1,CONCATENATE(шапки!A2),CONCATENATE(шапки!A2,шапки!C2)) -> про надходження та використання коштів загального фонду (форма №2д, | G5: =IF(ЗАПОЛНИТЬ!$F$7=1,шапки!C2,шапки!D2) -> №2м) | H5: =IF(ЗАПОЛНИТЬ!$F$7=1,шапки!D2,"") -> 
A6: =CONCATENATE("за ",ЗАПОЛНИТЬ!$B$17," ",ЗАПОЛНИТЬ!$C$17) -> за ІІІ квартал 2018 р.
J7: коди
A9: Установа | B9: =ЗАПОЛНИТЬ!B3 -> Комунальний заклад "Орлівська загальноосвітня школа І-ІІІ ступенів" Приморської районної ради Запорізької області | H9: за ЄДРПОУ | J9: =ЗАПОЛНИТЬ!B13 -> 26291242
A10: Територія | B10: =ЗАПОЛНИТЬ!B5 -> с.Орлівка Приморського району Запорізької області | H10: за КОАТУУ | J10: =ЗАПОЛНИТЬ!B14 -> 232484201
A11: Організаційно-правова форма господарювання | B11: =ЗАПОЛНИТЬ!D15 -> Комунальна організація (установа, заклад) | H11: за КОПФГ | J11: =ЗАПОЛНИТЬ!B15 -> 430
A12: Код та назва відомчої класифікації видатків та кредитування державного бюджету | D12: =ЗАПОЛНИТЬ!H9 -> 0 | E12: =IF(D12>0,VLOOKUP(D12,'ДовидникКВК(ГОС)'!A:B,2,FALSE),"") -> 
A13: Код та назва програмної класифікації видатків та кредитування державного бюджету | E13: =IF(D13>0,VLOOKUP(D13,ДовидникКПК!B:C,2,FALSE),"") -> 
A14: Код та назва типової відомчої класифікації видатків та кредитування місцевих бюджетів | D14: =ЗАПОЛНИТЬ!H10 -> 06 | E14: =ЗАПОЛНИТЬ!I10 -> Відділ освіти Приморського района Запорізької області
A15: Код та назва програмної класифікації видатків та кредитування місцевих бюджетів (код та назва Типової програмної класифікації видатків та кредитування місцевих бюджетів / Тимчасової класифікації видатків та кредитування для бюджетів місцевого самоврядування, які не застосовують програмно-цільового методу) | D15: - | E15: =VLOOKUP(RIGHT(D15,4),КПКВМБ!A:B,2,FALSE) -> -
A16: Періодичність: квартальна, річна
A17: Одиниця виміру: грн, коп.
A19: Показники | B19: КЕКВ та/або ККК | C19: Код рядка | D19: Затверджено на звітний рік | E19: Затверджено на звітний період (рік)1 | F19: Залишок на початок звітного року | G19: Надійшло коштів за звітний період (рік) | H19: Касові за звітний період (рік) | I19: Фактичні за звітний період (рік) | J19: Залишок на кінець звітного періоду (року)
A22: 1 | B22: 2 | C22: 3 | D22: 4 | E22: 5 | F22: 6 | G22: 7 | H22: 8 | I22: 9 | J22: 9
A23: Видатки та надання кредитів - усього | B23: Х | C23: 010 | D23: =D24+D59+D79+D84+D87 -> 0 | E23: =E26+E29+E32+E33+E37+E45+E46+E86+E54 -> 0 | F23: =F24+F59+F79+F84+F87 -> 0 | G23: =G24+G59+G79+G84+G87 -> 0 | H23: =H24+H59+H79+H84+H87 -> 0 | I23: =I24+I59+I79+I84+I87 -> 0 | J23: =F23+G23-H23 -> 0
A24: у тому числі: Поточні видатки | B24: 2000 | C24: 020 | D24: =D25+D30+D47+D50+D54+D58 -> 0 | E24: 0 | F24: 0 | G24: 0 | H24: 0 | I24: 0 | J24: =F24+G24-H24 -> 0
A25: Оплата праці і нарахування на заробітну плату | B25: 2100 | C25: 030 | D25: =D26+D29 -> 0 | E25: 0 | F25: =F26+F29 -> 0 | G25: =G26+G29 -> 0 | H25: =H26+H29 -> 0 | I25: =I26+I29 -> 0 | J25: 0
A26: Оплата праці | B26: 2110 | C26: 040 | D26: =SUM(D27:D28) -> 0 | E26: 0 | F26: 0 | G26: 0 | H26: 0 | I26: 0 | J26: 0
A27: Заробітна плата | B27: 2111 | C27: 050 | D27: 0 | E27: 0 | F27: 0 | G27: 0 | H27: 0 | I27: 0 | J27: 0
A28: Грошове забезпечення військовослужбовців | B28: 2112 | C28: 060 | D28: 0 | E28: 0 | F28: 0 | G28: 0 | H28: 0 | I28: 0 | J28: 0
A29: Нарахування на оплату праці | B29: 2120 | C29: 070 | D29: 0 | E29: 0 | F29: 0 | G29: 0 | H29: 0 | I29: 0 | J29: 0
A30: Використання товарів і послуг | B30: 2200 | C30: 080 | D30: =SUM(D31:D37)+D44 -> 0 | E30: 0 | F30: =SUM(F31:F37)+F44 -> 0 | G30: =SUM(G31:G37)+G44 -> 0 | H30: =SUM(H31:H37)+H44 -> 0 | I30: =SUM(I31:I37)+I44 -> 0 | J30: 0
A31: Предмети, матеріали, обладнання та інвентар | B31: 2210 | C31: 090 | D31: 0 | E31: 0 | F31: 0 | G31: 0 | H31: 0 | I31: 0 | J31: 0
A32: Медикаменти та перев’язувальні матеріали | B32: 2220 | C32: 100 | D32: 0 | E32: 0 | F32: 0 | G32: 0 | H32: 0 | I32: 0 | J32: 0
A33: Продукти харчування | B33: 2230 | C33: 110 | D33: 0 | E33: 0 | F33: 0 | G33: 0 | H33: 0 | I33: 0 | J33: 0
A34: Оплата послуг (крім комунальних) | B34: 2240 | C34: 120 | D34: 0 | E34: 0 | F34: 0 | G34: 0 | H34: 0 | I34: 0 | J34: 0
A35: Видатки на відрядження | B35: 2250 | C35: 130 | D35: 0 | E35: 0 | F35: 0 | G35: 0 | H35: 0 | I35: 0 | J35: 0
A36: Видатки та заходи спеціального призначення | B36: 2260 | C36: 140 | D36: 0 | E36: 0 | F36: 0 | G36: 0 | H36: 0 | I36: 0 | J36: 0
A37: Оплата комунальних послуг та енергоносіїв | B37: 2270 | C37: 150 | D37: =SUM(D38:D43) -> 0 | E37: 0 | F37: =SUM(F38:F43) -> 0 | G37: =SUM(G38:G43) -> 0 | H37: =SUM(H38:H43) -> 0 | I37: =SUM(I38:I43) -> 0 | J37: =F37+G37-H37 -> 0
A38: Оплата теплопостачання | B38: 2271 | C38: 160 | D38: 0 | E38: 0 | F38: 0 | G38: 0 | H38: 0 | I38: 0 | J38: 0
A39: Оплата водопостачання та водовідведення | B39: 2272 | C39: 170 | D39: 0 | E39: 0 | F39: 0 | G39: 0 | H39: 0 | I39: 0 | J39: 0
A40: Оплата електроенергії | B40: 2273 | C40: 180 | D40: 0 | E40: 0 | F40: 0 | G40: 0 | H40: 0 | I40: 0 | J40: 0
A41: Оплата природного газу | B41: 2274 | C41: 190 | D41: 0 | E41: 0 | F41: 0 | G41: 0 | H41: 0 | I41: 0 | J41: 0
A42: Оплата інших енергоносіїв | B42: 2275 | C42: 200 | D42: 0 | E42: 0 | F42: 0 | G42: 0 | H42: 0 | I42: 0 | J42: 0
A43: Оплата енергосервісу | B43: 2276 | C43: 210 | D43: 0 | E43: 0 | F43: 0 | G43: 0 | H43: 0 | I43: 0 | J43: =F43+G43-H43 -> 0
A44: Дослідження і розробки, окремі заходи по реалізації державних (регіональних) програм | B44: 2280 | C44: 220 | D44: =SUM(D45:D46) -> 0 | E44: 0 | F44: =SUM(F45:F46) -> 0 | G44: =SUM(G45:G46) -> 0 | H44: =SUM(H45:H46) -> 0 | I44: =SUM(I45:I46) -> 0 | J44: 0
A45: Дослідження і розробки, окремі заходи розвитку по реалізації державних (регіональних) програм | B45: 2281 | C45: 230 | D45: 0 | E45: 0 | F45: 0 | G45: 0 | H45: 0 | I45: 0 | J45: 0
A46: Окремі заходи по реалізації державних (регіональних) програм, не віднесені до заходів розвитку | B46: 2282 | C46: 240 | D46: 0 | E46: 0 | F46: 0 | G46: 0 | H46: 0 | I46: 0 | J46: 0
A47: Обслуговування боргових зобов’язань | B47: 2400 | C47: 250 | D47: =SUM(D48:D49) -> 0 | E47: 0 | F47: 0 | G47: 0 | H47: 0 | I47: 0 | J47: 0
A48: Обслуговування внутрішніх боргових зобов’язань | B48: 2410 | C48: 260 | D48: 0 | E48: 0 | F48: 0 | G48: 0 | H48: 0 | I48: 0 | J48: 0
A49: Обслуговування зовнішніх боргових зобов’язань | B49: 2420 | C49: 270 | D49: 0 | E49: 0 | F49: 0 | G49: 0 | H49: 0 | I49: 0 | J49: 0
A50: Поточні трансферти | B50: 2600 | C50: 280 | D50: =SUM(D51:D53) -> 0 | E50: 0 | F50: 0 | G50: 0 | H50: 0 | I50: 0 | J50: 0
A51: Субсидії та поточні трансферти підприємствам (установам, організаціям) | B51: 2610 | C51: 290 | D51: 0 | E51: 0 | F51: 0 | G51: 0 | H51: 0 | I51: 0 | J51: 0
A52: Поточні трансферти органам державного управління інших рівнів | B52: 2620 | C52: 300 | D52: 0 | E52: 0 | F52: 0 | G52: 0 | H52: 0 | I52: 0 | J52: 0
A53: Поточні трансферти урядам іноземних держав та міжнародним організаціям | B53: 2630 | C53: 310 | D53: 0 | E53: 0 | F53: 0 | G53: 0 | H53: 0 | I53: 0 | J53: 0
A54: Соціальне забезпечення | B54: 2700 | C54: 320 | D54: =SUM(D55:D57) -> 0 | E54: 0 | F54: 0 | G54: 0 | H54: 0 | I54: 0 | J54: 0
A55: Виплата пенсій і допомоги | B55: 2710 | C55: 330 | D55: 0 | E55: 0 | F55: 0 | G55: 0 | H55: 0 | I55: 0 | J55: 0
A56: Стипендії | B56: 2720 | C56: 340 | D56: 0 | E56: 0 | F56: 0 | G56: 0 | H56: 0 | I56: 0 | J56: 0
A57: Інші виплати населенню | B57: 2730 | C57: 350 | D57: 0 | E57: 0 | F57: 0 | G57: 0 | H57: 0 | I57: 0 | J57: 0
A58: Інші поточні видатки | B58: 2800 | C58: 360 | D58: 0 | E58: 0 | F58: 0 | G58: 0 | H58: 0 | I58: 0 | J58: 0
A59: Капітальні видатки | B59: 3000 | C59: 370 | D59: =D60+D74 -> 0 | E59: 0 | F59: 0 | G59: 0 | H59: 0 | I59: 0 | J59: 0
A60: Придбання основного капіталу | B60: 3100 | C60: 380 | D60: =D61+D62+D65+D68+D72+D73 -> 0 | E60: 0 | F60: 0 | G60: 0 | H60: 0 | I60: 0 | J60: 0
A61: Придбання обладнання і предметів довгострокового користування | B61: 3110 | C61: 390 | D61: 0 | E61: 0 | F61: 0 | G61: 0 | H61: 0 | I61: 0 | J61: 0
A62: Капітальне будівництво (придбання) | B62: 3120 | C62: 400 | D62: =SUM(D63:D64) -> 0 | E62: 0 | F62: 0 | G62: 0 | H62: 0 | I62: 0 | J62: 0
A63: Капітальне будівництво (придбання) житла | B63: 3121 | C63: 410 | D63: 0 | E63: 0 | F63: 0 | G63: 0 | H63: 0 | I63: 0 | J63: 0
A64: Капітальне будівництво (придбання) інших об’єктів | B64: 3122 | C64: 420 | D64: 0 | E64: 0 | F64: 0 | G64: 0 | H64: 0 | I64: 0 | J64: 0
A65: Капітальний ремонт | B65: 3130 | C65: 430 | D65: =SUM(D66:D67) -> 0 | E65: 0 | F65: 0 | G65: 0 | H65: 0 | I65: 0 | J65: 0
A66: Капітальний ремонт житлового фонду (приміщень) | B66: 3131 | C66: 440 | D66: 0 | E66: 0 | F66: 0 | G66: 0 | H66: 0 | I66: 0 | J66: 0
A67: Капітальний ремонт інших об’єктів | B67: 3132 | C67: 450 | D67: 0 | E67: 0 | F67: 0 | G67: 0 | H67: 0 | I67: 0 | J67: 0
A68: Реконструкція та реставрація | B68: 3140 | C68: 460 | D68: =SUM(D69:D71) -> 0 | E68: 0 | F68: 0 | G68: 0 | H68: 0 | I68: 0 | J68: 0
A69: Реконструкція житлового фонду (приміщень) | B69: 3141 | C69: 470 | D69: 0 | E69: 0 | F69: 0 | G69: 0 | H69: 0 | I69: 0 | J69: 0
A70: Реконструкція та реставрація інших об’єктів | B70: 3142 | C70: 480 | D70: 0 | E70: 0 | F70: 0 | G70: 0 | H70: 0 | I70: 0 | J70: 0
A71: Реставрація пам’яток культури, історії та архітектури | B71: 3143 | C71: 490 | D71: 0 | E71: 0 | F71: 0 | G71: 0 | H71: 0 | I71: 0 | J71: 0
A72: Створення державних запасів і резервів | B72: 3150 | C72: 500 | D72: 0 | E72: 0 | F72: 0 | G72: 0 | H72: 0 | I72: 0 | J72: 0
A73: Придбання землі та нематеріальних активів | B73: 3160 | C73: 510 | D73: 0 | E73: 0 | F73: 0 | G73: 0 | H73: 0 | I73: 0 | J73: 0
A74: Капітальні трансферти | B74: 3200 | C74: 520 | D74: =SUM(D75:D78) -> 0 | E74: 0 | F74: 0 | G74: 0 | H74: 0 | I74: 0 | J74: 0
A75: Капітальні трансферти підприємствам (установам, організаціям) | B75: 3210 | C75: 530 | D75: 0 | E75: 0 | F75: 0 | G75: 0 | H75: 0 | I75: 0 | J75: 0
A76: Капітальні трансферти органам державного управління інших рівнів | B76: 3220 | C76: 540 | D76: 0 | E76: 0 | F76: 0 | G76: 0 | H76: 0 | I76: 0 | J76: 0
A77: Капітальні трансферти урядам іноземних держав та міжнародним організаціям | B77: 3230 | C77: 550 | D77: 0 | E77: 0 | F77: 0 | G77: 0 | H77: 0 | I77: 0 | J77: 0
A78: Капітальні трансферти населенню | B78: 3240 | C78: 560 | D78: 0 | E78: 0 | F78: 0 | G78: 0 | H78: 0 | I78: 0 | J78: 0
A79: Внутрішнє кредитування | B79: 4100 | C79: 570 | D79: =SUM(D80) -> 0 | E79: 0 | F79: 0 | G79: 0 | H79: 0 | I79: 0 | J79: 0
A80: Надання внутрішніх кредитів | B80: 4110 | C80: 580 | D80: =SUM(D81:D83) -> 0 | E80: 0 | F80: 0 | G80: 0 | H80: 0 | I80: 0 | J80: 0
A81: Надання кредитів органам державного управління інших рівнів | B81: 4111 | C81: 590 | D81: 0 | E81: 0 | F81: 0 | G81: 0 | H81: 0 | I81: 0 | J81: 0
A82: Надання кредитів підприємствам, установам, організаціям | B82: 4112 | C82: 600 | D82: 0 | E82: 0 | F82: 0 | G82: 0 | H82: 0 | I82: 0 | J82: 0
A83: Надання інших внутрішніх кредитів | B83: 4113 | C83: 610 | D83: 0 | E83: 0 | F83: 0 | G83: 0 | H83: 0 | I83: 0 | J83: 0
A84: Зовнішнє кредитування | B84: 4200 | C84: 620 | D84: =D85 -> 0 | E84: 0 | F84: 0 | G84: 0 | H84: 0 | I84: 0 | J84: 0
A85: Надання зовнішніх кредитів | B85: 4210 | C85: 630 | D85: 0 | E85: 0 | F85: 0 | G85: 0 | H85: 0 | I85: 0 | J85: 0
A86: Інші видатки | B86: 5000 | C86: 640 | D86: X | E86: 0 | F86: X | G86: X | H86: X | I86: X | J86: X
A87: Нерозподілені видатки | B87: 9000 | C87: 650 | D87: 0 | E87: 0 | F87: 0 | G87: 0 | H87: 0 | I87: 0 | J87: 0
C88: 650
A100: 1 Заповнюється розпорядниками бюджетних коштів.
A101: =ЗАПОЛНИТЬ!F30 -> Керівник | G101: =ЗАПОЛНИТЬ!F26 -> Нєтков Р.В.
D102: (підпис) | G102: (ініціали, прізвище)
A103: =ЗАПОЛНИТЬ!F31 -> Головний бухгалтер | G103: =ЗАПОЛНИТЬ!F28 -> Саватєєва О.І.
A104: =ЗАПОЛНИТЬ!C19 -> "08" жовтня 2018 року | D104: (підпис) | G104: (ініціали, прізвище)

Sheet Ф.2.15 (hidden)
G1: Додаток 1 до Порядку складання бюджетної звітності розпорядниками та одержувачами бюджетних коштів, звітності фондами загальнообов’язкового державного соціального і пенсійного страхування (пункт 1 розділу ІІ)
A4: ЗВІТ
A5: =IF(ЗАПОЛНИТЬ!$F$7=1,CONCATENATE(шапки!A2),CONCATENATE(шапки!A2,шапки!C2)) -> про надходження та використання коштів загального фонду (форма №2д, | G5: =IF(ЗАПОЛНИТЬ!$F$7=1,шапки!C2,шапки!D2) -> №2м) | H5: =IF(ЗАПОЛНИТЬ!$F$7=1,шапки!D2,"") -> 
A6: =CONCATENATE("за ",ЗАПОЛНИТЬ!$B$17," ",ЗАПОЛНИТЬ!$C$17) -> за ІІІ квартал 2018 р.
J7: коди
A9: Установа | B9: =ЗАПОЛНИТЬ!B3 -> Комунальний заклад "Орлівська загальноосвітня школа І-ІІІ ступенів" Приморської районної ради Запорізької області | H9: за ЄДРПОУ | J9: =ЗАПОЛНИТЬ!B13 -> 26291242
A10: Територія | B10: =ЗАПОЛНИТЬ!B5 -> с.Орлівка Приморського району Запорізької області | H10: за КОАТУУ | J10: =ЗАПОЛНИТЬ!B14 -> 232484201
A11: Організаційно-правова форма господарювання | B11: =ЗАПОЛНИТЬ!D15 -> Комунальна організація (установа, заклад) | H11: за КОПФГ | J11: =ЗАПОЛНИТЬ!B15 -> 430
A12: Код та назва відомчої класифікації видатків та кредитування державного бюджету | D12: =ЗАПОЛНИТЬ!H9 -> 0 | E12: =IF(D12>0,VLOOKUP(D12,'ДовидникКВК(ГОС)'!A:B,2,FALSE),"") -> 
A13: Код та назва програмної класифікації видатків та кредитування державного бюджету | E13: =IF(D13>0,VLOOKUP(D13,ДовидникКПК!B:C,2,FALSE),"") -> 
A14: Код та назва типової відомчої класифікації видатків та кредитування місцевих бюджетів | D14: =ЗАПОЛНИТЬ!H10 -> 06 | E14: =ЗАПОЛНИТЬ!I10 -> Відділ освіти Приморського района Запорізької області
A15: Код та назва програмної класифікації видатків та кредитування місцевих бюджетів (код та назва Типової програмної класифікації видатків та кредитування місцевих бюджетів / Тимчасової класифікації видатків та кредитування для бюджетів місцевого самоврядування, які не застосовують програмно-цільового методу) | D15: - | E15: =VLOOKUP(RIGHT(D15,4),КПКВМБ!A:B,2,FALSE) -> -
A16: Періодичність: квартальна, річна
A17: Одиниця виміру: грн, коп.
A19: Показники | B19: КЕКВ та/або ККК | C19: Код рядка | D19: Затверджено на звітний рік | E19: Затверджено на звітний період (рік)1 | F19: Залишок на початок звітного року | G19: Надійшло коштів за звітний період (рік) | H19: Касові за звітний період (рік) | I19: Фактичні за звітний період (рік) | J19: Залишок на кінець звітного періоду (року)
A22: 1 | B22: 2 | C22: 3 | D22: 4 | E22: 5 | F22: 6 | G22: 7 | H22: 8 | I22: 9 | J22: 9
A23: Видатки та надання кредитів - усього | B23: Х | C23: 010 | D23: =D24+D59+D79+D84+D87 -> 0 | E23: =E26+E29+E32+E33+E37+E45+E46+E86+E54 -> 0 | F23: =F24+F59+F79+F84+F87 -> 0 | G23: =G24+G59+G79+G84+G87 -> 0 | H23: =H24+H59+H79+H84+H87 -> 0 | I23: =I24+I59+I79+I84+I87 -> 0 | J23: =F23+G23-H23 -> 0
A24: у тому числі: Поточні видатки | B24: 2000 | C24: 020 | D24: =D25+D30+D47+D50+D54+D58 -> 0 | E24: 0 | F24: 0 | G24: 0 | H24: 0 | I24: 0 | J24: =F24+G24-H24 -> 0
A25: Оплата праці і нарахування на заробітну плату | B25: 2100 | C25: 030 | D25: =D26+D29 -> 0 | E25: 0 | F25: =F26+F29 -> 0 | G25: =G26+G29 -> 0 | H25: =H26+H29 -> 0 | I25: =I26+I29 -> 0 | J25: 0
A26: Оплата праці | B26: 2110 | C26: 040 | D26: =SUM(D27:D28) -> 0 | E26: 0 | F26: 0 | G26: 0 | H26: 0 | I26: 0 | J26: 0
A27: Заробітна плата | B27: 2111 | C27: 050 | D27: 0 | E27: 0 | F27: 0 | G27: 0 | H27: 0 | I27: 0 | J27: 0
A28: Грошове забезпечення військовослужбовців | B28: 2112 | C28: 060 | D28: 0 | E28: 0 | F28: 0 | G28: 0 | H28: 0 | I28: 0 | J28: 0
A29: Нарахування на оплату праці | B29: 2120 | C29: 070 | D29: 0 | E29: 0 | F29: 0 | G29: 0 | H29: 0 | I29: 0 | J29: 0
A30: Використання товарів і послуг | B30: 2200 | C30: 080 | D30: =SUM(D31:D37)+D44 -> 0 | E30: 0 | F30: =SUM(F31:F37)+F44 -> 0 | G30: =SUM(G31:G37)+G44 -> 0 | H30: =SUM(H31:H37)+H44 -> 0 | I30: =SUM(I31:I37)+I44 -> 0 | J30: 0
A31: Предмети, матеріали, обладнання та інвентар | B31: 2210 | C31: 090 | D31: 0 | E31: 0 | F31: 0 | G31: 0 | H31: 0 | I31: 0 | J31: 0
A32: Медикаменти та перев’язувальні матеріали | B32: 2220 | C32: 100 | D32: 0 | E32: 0 | F32: 0 | G32: 0 | H32: 0 | I32: 0 | J32: 0
A33: Продукти харчування | B33: 2230 | C33: 110 | D33: 0 | E33: 0 | F33: 0 | G33: 0 | H33: 0 | I33: 0 | J33: 0
A34: Оплата послуг (крім комунальних) | B34: 2240 | C34: 120 | D34: 0 | E34: 0 | F34: 0 | G34: 0 | H34: 0 | I34: 0 | J34: 0
A35: Видатки на відрядження | B35: 2250 | C35: 130 | D35: 0 | E35: 0 | F35: 0 | G35: 0 | H35: 0 | I35: 0 | J35: 0
A36: Видатки та заходи спеціального призначення | B36: 2260 | C36: 140 | D36: 0 | E36: 0 | F36: 0 | G36: 0 | H36: 0 | I36: 0 | J36: 0
A37: Оплата комунальних послуг та енергоносіїв | B37: 2270 | C37: 150 | D37: =SUM(D38:D43) -> 0 | E37: 0 | F37: =SUM(F38:F43) -> 0 | G37: =SUM(G38:G43) -> 0 | H37: =SUM(H38:H43) -> 0 | I37: =SUM(I38:I43) -> 0 | J37: =F37+G37-H37 -> 0
A38: Оплата теплопостачання | B38: 2271 | C38: 160 | D38: 0 | E38: 0 | F38: 0 | G38: 0 | H38: 0 | I38: 0 | J38: 0
A39: Оплата водопостачання та водовідведення | B39: 2272 | C39: 170 | D39: 0 | E39: 0 | F39: 0 | G39: 0 | H39: 0 | I39: 0 | J39: 0
A40: Оплата електроенергії | B40: 2273 | C40: 180 | D40: 0 | E40: 0 | F40: 0 | G40: 0 | H40: 0 | I40: 0 | J40: 0
A41: Оплата природного газу | B41: 2274 | C41: 190 | D41: 0 | E41: 0 | F41: 0 | G41: 0 | H41: 0 | I41: 0 | J41: 0
A42: Оплата інших енергоносіїв | B42: 2275 | C42: 200 | D42: 0 | E42: 0 | F42: 0 | G42: 0 | H42: 0 | I42: 0 | J42: 0
A43: Оплата енергосервісу | B43: 2276 | C43: 210 | D43: 0 | E43: 0 | F43: 0 | G43: 0 | H43: 0 | I43: 0 | J43: =F43+G43-H43 -> 0
A44: Дослідження і розробки, окремі заходи по реалізації державних (регіональних) програм | B44: 2280 | C44: 220 | D44: =SUM(D45:D46) -> 0 | E44: 0 | F44: =SUM(F45:F46) -> 0 | G44: =SUM(G45:G46) -> 0 | H44: =SUM(H45:H46) -> 0 | I44: =SUM(I45:I46) -> 0 | J44: 0
A45: Дослідження і розробки, окремі заходи розвитку по реалізації державних (регіональних) програм | B45: 2281 | C45: 230 | D45: 0 | E45: 0 | F45: 0 | G45: 0 | H45: 0 | I45: 0 | J45: 0
A46: Окремі заходи по реалізації державних (регіональних) програм, не віднесені до заходів розвитку | B46: 2282 | C46: 240 | D46: 0 | E46: 0 | F46: 0 | G46: 0 | H46: 0 | I46: 0 | J46: 0
A47: Обслуговування боргових зобов’язань | B47: 2400 | C47: 250 | D47: =SUM(D48:D49) -> 0 | E47: 0 | F47: 0 | G47: 0 | H47: 0 | I47: 0 | J47: 0
A48: Обслуговування внутрішніх боргових зобов’язань | B48: 2410 | C48: 260 | D48: 0 | E48: 0 | F48: 0 | G48: 0 | H48: 0 | I48: 0 | J48: 0
A49: Обслуговування зовнішніх боргових зобов’язань | B49: 2420 | C49: 270 | D49: 0 | E49: 0 | F49: 0 | G49: 0 | H49: 0 | I49: 0 | J49: 0
A50: Поточні трансферти | B50: 2600 | C50: 280 | D50: =SUM(D51:D53) -> 0 | E50: 0 | F50: 0 | G50: 0 | H50: 0 | I50: 0 | J50: 0
A51: Субсидії та поточні трансферти підприємствам (установам, організаціям) | B51: 2610 | C51: 290 | D51: 0 | E51: 0 | F51: 0 | G51: 0 | H51: 0 | I51: 0 | J51: 0
A52: Поточні трансферти органам державного управління інших рівнів | B52: 2620 | C52: 300 | D52: 0 | E52: 0 | F52: 0 | G52: 0 | H52: 0 | I52: 0 | J52: 0
A53: Поточні трансферти урядам іноземних держав та міжнародним організаціям | B53: 2630 | C53: 310 | D53: 0 | E53: 0 | F53: 0 | G53: 0 | H53: 0 | I53: 0 | J53: 0
A54: Соціальне забезпечення | B54: 2700 | C54: 320 | D54: =SUM(D55:D57) -> 0 | E54: 0 | F54: 0 | G54: 0 | H54: 0 | I54: 0 | J54: 0
A55: Виплата пенсій і допомоги | B55: 2710 | C55: 330 | D55: 0 | E55: 0 | F55: 0 | G55: 0 | H55: 0 | I55: 0 | J55: 0
A56: Стипендії | B56: 2720 | C56: 340 | D56: 0 | E56: 0 | F56: 0 | G56: 0 | H56: 0 | I56: 0 | J56: 0
A57: Інші виплати населенню | B57: 2730 | C57: 350 | D57: 0 | E57: 0 | F57: 0 | G57: 0 | H57: 0 | I57: 0 | J57: 0
A58: Інші поточні видатки | B58: 2800 | C58: 360 | D58: 0 | E58: 0 | F58: 0 | G58: 0 | H58: 0 | I58: 0 | J58: 0
A59: Капітальні видатки | B59: 3000 | C59: 370 | D59: =D60+D74 -> 0 | E59: 0 | F59: 0 | G59: 0 | H59: 0 | I59: 0 | J59: 0
A60: Придбання основного капіталу | B60: 3100 | C60: 380 | D60: =D61+D62+D65+D68+D72+D73 -> 0 | E60: 0 | F60: 0 | G60: 0 | H60: 0 | I60: 0 | J60: 0
A61: Придбання обладнання і предметів довгострокового користування | B61: 3110 | C61: 390 | D61: 0 | E61: 0 | F61: 0 | G61: 0 | H61: 0 | I61: 0 | J61: 0
A62: Капітальне будівництво (придбання) | B62: 3120 | C62: 400 | D62: =SUM(D63:D64) -> 0 | E62: 0 | F62: 0 | G62: 0 | H62: 0 | I62: 0 | J62: 0
A63: Капітальне будівництво (придбання) житла | B63: 3121 | C63: 410 | D63: 0 | E63: 0 | F63: 0 | G63: 0 | H63: 0 | I63: 0 | J63: 0
A64: Капітальне будівництво (придбання) інших об’єктів | B64: 3122 | C64: 420 | D64: 0 | E64: 0 | F64: 0 | G64: 0 | H64: 0 | I64: 0 | J64: 0
A65: Капітальний ремонт | B65: 3130 | C65: 430 | D65: =SUM(D66:D67) -> 0 | E65: 0 | F65: 0 | G65: 0 | H65: 0 | I65: 0 | J65: 0
A66: Капітальний ремонт житлового фонду (приміщень) | B66: 3131 | C66: 440 | D66: 0 | E66: 0 | F66: 0 | G66: 0 | H66: 0 | I66: 0 | J66: 0
A67: Капітальний ремонт інших об’єктів | B67: 3132 | C67: 450 | D67: 0 | E67: 0 | F67: 0 | G67: 0 | H67: 0 | I67: 0 | J67: 0
A68: Реконструкція та реставрація | B68: 3140 | C68: 460 | D68: =SUM(D69:D71) -> 0 | E68: 0 | F68: 0 | G68: 0 | H68: 0 | I68: 0 | J68: 0
A69: Реконструкція житлового фонду (приміщень) | B69: 3141 | C69: 470 | D69: 0 | E69: 0 | F69: 0 | G69: 0 | H69: 0 | I69: 0 | J69: 0
A70: Реконструкція та реставрація інших об’єктів | B70: 3142 | C70: 480 | D70: 0 | E70: 0 | F70: 0 | G70: 0 | H70: 0 | I70: 0 | J70: 0
A71: Реставрація пам’яток культури, історії та архітектури | B71: 3143 | C71: 490 | D71: 0 | E71: 0 | F71: 0 | G71: 0 | H71: 0 | I71: 0 | J71: 0
A72: Створення державних запасів і резервів | B72: 3150 | C72: 500 | D72: 0 | E72: 0 | F72: 0 | G72: 0 | H72: 0 | I72: 0 | J72: 0
A73: Придбання землі та нематеріальних активів | B73: 3160 | C73: 510 | D73: 0 | E73: 0 | F73: 0 | G73: 0 | H73: 0 | I73: 0 | J73: 0
A74: Капітальні трансферти | B74: 3200 | C74: 520 | D74: =SUM(D75:D78) -> 0 | E74: 0 | F74: 0 | G74: 0 | H74: 0 | I74: 0 | J74: 0
A75: Капітальні трансферти підприємствам (установам, організаціям) | B75: 3210 | C75: 530 | D75: 0 | E75: 0 | F75: 0 | G75: 0 | H75: 0 | I75: 0 | J75: 0
A76: Капітальні трансферти органам державного управління інших рівнів | B76: 3220 | C76: 540 | D76: 0 | E76: 0 | F76: 0 | G76: 0 | H76: 0 | I76: 0 | J76: 0
A77: Капітальні трансферти урядам іноземних держав та міжнародним організаціям | B77: 3230 | C77: 550 | D77: 0 | E77: 0 | F77: 0 | G77: 0 | H77: 0 | I77: 0 | J77: 0
A78: Капітальні трансферти населенню | B78: 3240 | C78: 560 | D78: 0 | E78: 0 | F78: 0 | G78: 0 | H78: 0 | I78: 0 | J78: 0
A79: Внутрішнє кредитування | B79: 4100 | C79: 570 | D79: =SUM(D80) -> 0 | E79: 0 | F79: 0 | G79: 0 | H79: 0 | I79: 0 | J79: 0
A80: Надання внутрішніх кредитів | B80: 4110 | C80: 580 | D80: =SUM(D81:D83) -> 0 | E80: 0 | F80: 0 | G80: 0 | H80: 0 | I80: 0 | J80: 0
A81: Надання кредитів органам державного управління інших рівнів | B81: 4111 | C81: 590 | D81: 0 | E81: 0 | F81: 0 | G81: 0 | H81: 0 | I81: 0 | J81: 0
A82: Надання кредитів підприємствам, установам, організаціям | B82: 4112 | C82: 600 | D82: 0 | E82: 0 | F82: 0 | G82: 0 | H82: 0 | I82: 0 | J82: 0
A83: Надання інших внутрішніх кредитів | B83: 4113 | C83: 610 | D83: 0 | E83: 0 | F83: 0 | G83: 0 | H83: 0 | I83: 0 | J83: 0
A84: Зовнішнє кредитування | B84: 4200 | C84: 620 | D84: =D85 -> 0 | E84: 0 | F84: 0 | G84: 0 | H84: 0 | I84: 0 | J84: 0
A85: Надання зовнішніх кредитів | B85: 4210 | C85: 630 | D85: 0 | E85: 0 | F85: 0 | G85: 0 | H85: 0 | I85: 0 | J85: 0
A86: Інші видатки | B86: 5000 | C86: 640 | D86: X | E86: 0 | F86: X | G86: X | H86: X | I86: X | J86: X
A87: Нерозподілені видатки | B87: 9000 | C87: 650 | D87: 0 | E87: 0 | F87: 0 | G87: 0 | H87: 0 | I87: 0 | J87: 0
C88: 650
A100: 1 Заповнюється розпорядниками бюджетних коштів.
A101: =ЗАПОЛНИТЬ!F30 -> Керівник | G101: =ЗАПОЛНИТЬ!F26 -> Нєтков Р.В.
D102: (підпис) | G102: (ініціали, прізвище)
A103: =ЗАПОЛНИТЬ!F31 -> Головний бухгалтер | G103: =ЗАПОЛНИТЬ!F28 -> Саватєєва О.І.
A104: =ЗАПОЛНИТЬ!C19 -> "08" жовтня 2018 року | D104: (підпис) | G104: (ініціали, прізвище)

Sheet Ф.2.16 (hidden)
G1: Додаток 1 до Порядку складання бюджетної звітності розпорядниками та одержувачами бюджетних коштів, звітності фондами загальнообов’язкового державного соціального і пенсійного страхування (пункт 1 розділу ІІ)
A4: ЗВІТ
A5: =IF(ЗАПОЛНИТЬ!$F$7=1,CONCATENATE(шапки!A2),CONCATENATE(шапки!A2,шапки!C2)) -> про надходження та використання коштів загального фонду (форма №2д, | G5: =IF(ЗАПОЛНИТЬ!$F$7=1,шапки!C2,шапки!D2) -> №2м) | H5: =IF(ЗАПОЛНИТЬ!$F$7=1,шапки!D2,"") -> 
A6: =CONCATENATE("за ",ЗАПОЛНИТЬ!$B$17," ",ЗАПОЛНИТЬ!$C$17) -> за ІІІ квартал 2018 р.
J7: коди
A9: Установа | B9: =ЗАПОЛНИТЬ!B3 -> Комунальний заклад "Орлівська загальноосвітня школа І-ІІІ ступенів" Приморської районної ради Запорізької області | H9: за ЄДРПОУ | J9: =ЗАПОЛНИТЬ!B13 -> 26291242
A10: Територія | B10: =ЗАПОЛНИТЬ!B5 -> с.Орлівка Приморського району Запорізької області | H10: за КОАТУУ | J10: =ЗАПОЛНИТЬ!B14 -> 232484201
A11: Організаційно-правова форма господарювання | B11: =ЗАПОЛНИТЬ!D15 -> Комунальна організація (установа, заклад) | H11: за КОПФГ | J11: =ЗАПОЛНИТЬ!B15 -> 430
A12: Код та назва відомчої класифікації видатків та кредитування державного бюджету | D12: =ЗАПОЛНИТЬ!H9 -> 0 | E12: =IF(D12>0,VLOOKUP(D12,'ДовидникКВК(ГОС)'!A:B,2,FALSE),"") -> 
A13: Код та назва програмної класифікації видатків та кредитування державного бюджету | E13: =IF(D13>0,VLOOKUP(D13,ДовидникКПК!B:C,2,FALSE),"") -> 
A14: Код та назва типової відомчої класифікації видатків та кредитування місцевих бюджетів | D14: =ЗАПОЛНИТЬ!H10 -> 06 | E14: =ЗАПОЛНИТЬ!I10 -> Відділ освіти Приморського района Запорізької області
A15: Код та назва програмної класифікації видатків та кредитування місцевих бюджетів (код та назва Типової програмної класифікації видатків та кредитування місцевих бюджетів / Тимчасової класифікації видатків та кредитування для бюджетів місцевого самоврядування, які не застосовують програмно-цільового методу) | D15: - | E15: =VLOOKUP(RIGHT(D15,4),КПКВМБ!A:B,2,FALSE) -> -
A16: Періодичність: квартальна, річна
A17: Одиниця виміру: грн, коп.
A19: Показники | B19: КЕКВ та/або ККК | C19: Код рядка | D19: Затверджено на звітний рік | E19: Затверджено на звітний період (рік)1 | F19: Залишок на початок звітного року | G19: Надійшло коштів за звітний період (рік) | H19: Касові за звітний період (рік) | I19: Фактичні за звітний період (рік) | J19: Залишок на кінець звітного періоду (року)
A22: 1 | B22: 2 | C22: 3 | D22: 4 | E22: 5 | F22: 6 | G22: 7 | H22: 8 | I22: 9 | J22: 9
A23: Видатки та надання кредитів - усього | B23: Х | C23: 010 | D23: =D24+D59+D79+D84+D87 -> 0 | E23: =E26+E29+E32+E33+E37+E45+E46+E86+E54 -> 0 | F23: =F24+F59+F79+F84+F87 -> 0 | G23: =G24+G59+G79+G84+G87 -> 0 | H23: =H24+H59+H79+H84+H87 -> 0 | I23: =I24+I59+I79+I84+I87 -> 0 | J23: =F23+G23-H23 -> 0
A24: у тому числі: Поточні видатки | B24: 2000 | C24: 020 | D24: =D25+D30+D47+D50+D54+D58 -> 0 | E24: 0 | F24: 0 | G24: 0 | H24: 0 | I24: 0 | J24: =F24+G24-H24 -> 0
A25: Оплата праці і нарахування на заробітну плату | B25: 2100 | C25: 030 | D25: =D26+D29 -> 0 | E25: 0 | F25: =F26+F29 -> 0 | G25: =G26+G29 -> 0 | H25: =H26+H29 -> 0 | I25: =I26+I29 -> 0 | J25: 0
A26: Оплата праці | B26: 2110 | C26: 040 | D26: =SUM(D27:D28) -> 0 | E26: 0 | F26: 0 | G26: 0 | H26: 0 | I26: 0 | J26: 0
A27: Заробітна плата | B27: 2111 | C27: 050 | D27: 0 | E27: 0 | F27: 0 | G27: 0 | H27: 0 | I27: 0 | J27: 0
A28: Грошове забезпечення військовослужбовців | B28: 2112 | C28: 060 | D28: 0 | E28: 0 | F28: 0 | G28: 0 | H28: 0 | I28: 0 | J28: 0
A29: Нарахування на оплату праці | B29: 2120 | C29: 070 | D29: 0 | E29: 0 | F29: 0 | G29: 0 | H29: 0 | I29: 0 | J29: 0
A30: Використання товарів і послуг | B30: 2200 | C30: 080 | D30: =SUM(D31:D37)+D44 -> 0 | E30: 0 | F30: =SUM(F31:F37)+F44 -> 0 | G30: =SUM(G31:G37)+G44 -> 0 | H30: =SUM(H31:H37)+H44 -> 0 | I30: =SUM(I31:I37)+I44 -> 0 | J30: 0
A31: Предмети, матеріали, обладнання та інвентар | B31: 2210 | C31: 090 | D31: 0 | E31: 0 | F31: 0 | G31: 0 | H31: 0 | I31: 0 | J31: 0
A32: Медикаменти та перев’язувальні матеріали | B32: 2220 | C32: 100 | D32: 0 | E32: 0 | F32: 0 | G32: 0 | H32: 0 | I32: 0 | J32: 0
A33: Продукти харчування | B33: 2230 | C33: 110 | D33: 0 | E33: 0 | F33: 0 | G33: 0 | H33: 0 | I33: 0 | J33: 0
A34: Оплата послуг (крім комунальних) | B34: 2240 | C34: 120 | D34: 0 | E34: 0 | F34: 0 | G34: 0 | H34: 0 | I34: 0 | J34: 0
A35: Видатки на відрядження | B35: 2250 | C35: 130 | D35: 0 | E35: 0 | F35: 0 | G35: 0 | H35: 0 | I35: 0 | J35: 0
A36: Видатки та заходи спеціального призначення | B36: 2260 | C36: 140 | D36: 0 | E36: 0 | F36: 0 | G36: 0 | H36: 0 | I36: 0 | J36: 0
A37: Оплата комунальних послуг та енергоносіїв | B37: 2270 | C37: 150 | D37: =SUM(D38:D43) -> 0 | E37: 0 | F37: =SUM(F38:F43) -> 0 | G37: =SUM(G38:G43) -> 0 | H37: =SUM(H38:H43) -> 0 | I37: =SUM(I38:I43) -> 0 | J37: =F37+G37-H37 -> 0
A38: Оплата теплопостачання | B38: 2271 | C38: 160 | D38: 0 | E38: 0 | F38: 0 | G38: 0 | H38: 0 | I38: 0 | J38: 0
A39: Оплата водопостачання та водовідведення | B39: 2272 | C39: 170 | D39: 0 | E39: 0 | F39: 0 | G39: 0 | H39: 0 | I39: 0 | J39: 0
A40: Оплата електроенергії | B40: 2273 | C40: 180 | D40: 0 | E40: 0 | F40: 0 | G40: 0 | H40: 0 | I40: 0 | J40: 0
A41: Оплата природного газу | B41: 2274 | C41: 190 | D41: 0 | E41: 0 | F41: 0 | G41: 0 | H41: 0 | I41: 0 | J41: 0
A42: Оплата інших енергоносіїв | B42: 2275 | C42: 200 | D42: 0 | E42: 0 | F42: 0 | G42: 0 | H42: 0 | I42: 0 | J42: 0
A43: Оплата енергосервісу | B43: 2276 | C43: 210 | D43: 0 | E43: 0 | F43: 0 | G43: 0 | H43: 0 | I43: 0 | J43: =F43+G43-H43 -> 0
A44: Дослідження і розробки, окремі заходи по реалізації державних (регіональних) програм | B44: 2280 | C44: 220 | D44: =SUM(D45:D46) -> 0 | E44: 0 | F44: =SUM(F45:F46) -> 0 | G44: =SUM(G45:G46) -> 0 | H44: =SUM(H45:H46) -> 0 | I44: =SUM(I45:I46) -> 0 | J44: 0
A45: Дослідження і розробки, окремі заходи розвитку по реалізації державних (регіональних) програм | B45: 2281 | C45: 230 | D45: 0 | E45: 0 | F45: 0 | G45: 0 | H45: 0 | I45: 0 | J45: 0
A46: Окремі заходи по реалізації державних (регіональних) програм, не віднесені до заходів розвитку | B46: 2282 | C46: 240 | D46: 0 | E46: 0 | F46: 0 | G46: 0 | H46: 0 | I46: 0 | J46: 0
A47: Обслуговування боргових зобов’язань | B47: 2400 | C47: 250 | D47: =SUM(D48:D49) -> 0 | E47: 0 | F47: 0 | G47: 0 | H47: 0 | I47: 0 | J47: 0
A48: Обслуговування внутрішніх боргових зобов’язань | B48: 2410 | C48: 260 | D48: 0 | E48: 0 | F48: 0 | G48: 0 | H48: 0 | I48: 0 | J48: 0
A49: Обслуговування зовнішніх боргових зобов’язань | B49: 2420 | C49: 270 | D49: 0 | E49: 0 | F49: 0 | G49: 0 | H49: 0 | I49: 0 | J49: 0
A50: Поточні трансферти | B50: 2600 | C50: 280 | D50: =SUM(D51:D53) -> 0 | E50: 0 | F50: 0 | G50: 0 | H50: 0 | I50: 0 | J50: 0
A51: Субсидії та поточні трансферти підприємствам (установам, організаціям) | B51: 2610 | C51: 290 | D51: 0 | E51: 0 | F51: 0 | G51: 0 | H51: 0 | I51: 0 | J51: 0
A52: Поточні трансферти органам державного управління інших рівнів | B52: 2620 | C52: 300 | D52: 0 | E52: 0 | F52: 0 | G52: 0 | H52: 0 | I52: 0 | J52: 0
A53: Поточні трансферти урядам іноземних держав та міжнародним організаціям | B53: 2630 | C53: 310 | D53: 0 | E53: 0 | F53: 0 | G53: 0 | H53: 0 | I53: 0 | J53: 0
A54: Соціальне забезпечення | B54: 2700 | C54: 320 | D54: =SUM(D55:D57) -> 0 | E54: 0 | F54: 0 | G54: 0 | H54: 0 | I54: 0 | J54: 0
A55: Виплата пенсій і допомоги | B55: 2710 | C55: 330 | D55: 0 | E55: 0 | F55: 0 | G55: 0 | H55: 0 | I55: 0 | J55: 0
A56: Стипендії | B56: 2720 | C56: 340 | D56: 0 | E56: 0 | F56: 0 | G56: 0 | H56: 0 | I56: 0 | J56: 0
A57: Інші виплати населенню | B57: 2730 | C57: 350 | D57: 0 | E57: 0 | F57: 0 | G57: 0 | H57: 0 | I57: 0 | J57: 0
A58: Інші поточні видатки | B58: 2800 | C58: 360 | D58: 0 | E58: 0 | F58: 0 | G58: 0 | H58: 0 | I58: 0 | J58: 0
A59: Капітальні видатки | B59: 3000 | C59: 370 | D59: =D60+D74 -> 0 | E59: 0 | F59: 0 | G59: 0 | H59: 0 | I59: 0 | J59: 0
A60: Придбання основного капіталу | B60: 3100 | C60: 380 | D60: =D61+D62+D65+D68+D72+D73 -> 0 | E60: 0 | F60: 0 | G60: 0 | H60: 0 | I60: 0 | J60: 0
A61: Придбання обладнання і предметів довгострокового користування | B61: 3110 | C61: 390 | D61: 0 | E61: 0 | F61: 0 | G61: 0 | H61: 0 | I61: 0 | J61: 0
A62: Капітальне будівництво (придбання) | B62: 3120 | C62: 400 | D62: =SUM(D63:D64) -> 0 | E62: 0 | F62: 0 | G62: 0 | H62: 0 | I62: 0 | J62: 0
A63: Капітальне будівництво (придбання) житла | B63: 3121 | C63: 410 | D63: 0 | E63: 0 | F63: 0 | G63: 0 | H63: 0 | I63: 0 | J63: 0
A64: Капітальне будівництво (придбання) інших об’єктів | B64: 3122 | C64: 420 | D64: 0 | E64: 0 | F64: 0 | G64: 0 | H64: 0 | I64: 0 | J64: 0
A65: Капітальний ремонт | B65: 3130 | C65: 430 | D65: =SUM(D66:D67) -> 0 | E65: 0 | F65: 0 | G65: 0 | H65: 0 | I65: 0 | J65: 0
A66: Капітальний ремонт житлового фонду (приміщень) | B66: 3131 | C66: 440 | D66: 0 | E66: 0 | F66: 0 | G66: 0 | H66: 0 | I66: 0 | J66: 0
A67: Капітальний ремонт інших об’єктів | B67: 3132 | C67: 450 | D67: 0 | E67: 0 | F67: 0 | G67: 0 | H67: 0 | I67: 0 | J67: 0
A68: Реконструкція та реставрація | B68: 3140 | C68: 460 | D68: =SUM(D69:D71) -> 0 | E68: 0 | F68: 0 | G68: 0 | H68: 0 | I68: 0 | J68: 0
A69: Реконструкція житлового фонду (приміщень) | B69: 3141 | C69: 470 | D69: 0 | E69: 0 | F69: 0 | G69: 0 | H69: 0 | I69: 0 | J69: 0
A70: Реконструкція та реставрація інших об’єктів | B70: 3142 | C70: 480 | D70: 0 | E70: 0 | F70: 0 | G70: 0 | H70: 0 | I70: 0 | J70: 0
A71: Реставрація пам’яток культури, історії та архітектури | B71: 3143 | C71: 490 | D71: 0 | E71: 0 | F71: 0 | G71: 0 | H71: 0 | I71: 0 | J71: 0
A72: Створення державних запасів і резервів | B72: 3150 | C72: 500 | D72: 0 | E72: 0 | F72: 0 | G72: 0 | H72: 0 | I72: 0 | J72: 0
A73: Придбання землі та нематеріальних активів | B73: 3160 | C73: 510 | D73: 0 | E73: 0 | F73: 0 | G73: 0 | H73: 0 | I73: 0 | J73: 0
A74: Капітальні трансферти | B74: 3200 | C74: 520 | D74: =SUM(D75:D78) -> 0 | E74: 0 | F74: 0 | G74: 0 | H74: 0 | I74: 0 | J74: 0
A75: Капітальні трансферти підприємствам (установам, організаціям) | B75: 3210 | C75: 530 | D75: 0 | E75: 0 | F75: 0 | G75: 0 | H75: 0 | I75: 0 | J75: 0
A76: Капітальні трансферти органам державного управління інших рівнів | B76: 3220 | C76: 540 | D76: 0 | E76: 0 | F76: 0 | G76: 0 | H76: 0 | I76: 0 | J76: 0
A77: Капітальні трансферти урядам іноземних держав та міжнародним організаціям | B77: 3230 | C77: 550 | D77: 0 | E77: 0 | F77: 0 | G77: 0 | H77: 0 | I77: 0 | J77: 0
A78: Капітальні трансферти населенню | B78: 3240 | C78: 560 | D78: 0 | E78: 0 | F78: 0 | G78: 0 | H78: 0 | I78: 0 | J78: 0
A79: Внутрішнє кредитування | B79: 4100 | C79: 570 | D79: =SUM(D80) -> 0 | E79: 0 | F79: 0 | G79: 0 | H79: 0 | I79: 0 | J79: 0
A80: Надання внутрішніх кредитів | B80: 4110 | C80: 580 | D80: =SUM(D81:D83) -> 0 | E80: 0 | F80: 0 | G80: 0 | H80: 0 | I80: 0 | J80: 0
A81: Надання кредитів органам державного управління інших рівнів | B81: 4111 | C81: 590 | D81: 0 | E81: 0 | F81: 0 | G81: 0 | H81: 0 | I81: 0 | J81: 0
A82: Надання кредитів підприємствам, установам, організаціям | B82: 4112 | C82: 600 | D82: 0 | E82: 0 | F82: 0 | G82: 0 | H82: 0 | I82: 0 | J82: 0
A83: Надання інших внутрішніх кредитів | B83: 4113 | C83: 610 | D83: 0 | E83: 0 | F83: 0 | G83: 0 | H83: 0 | I83: 0 | J83: 0
A84: Зовнішнє кредитування | B84: 4200 | C84: 620 | D84: =D85 -> 0 | E84: 0 | F84: 0 | G84: 0 | H84: 0 | I84: 0 | J84: 0
A85: Надання зовнішніх кредитів | B85: 4210 | C85: 630 | D85: 0 | E85: 0 | F85: 0 | G85: 0 | H85: 0 | I85: 0 | J85: 0
A86: Інші видатки | B86: 5000 | C86: 640 | D86: X | E86: 0 | F86: X | G86: X | H86: X | I86: X | J86: X
A87: Нерозподілені видатки | B87: 9000 | C87: 650 | D87: 0 | E87: 0 | F87: 0 | G87: 0 | H87: 0 | I87: 0 | J87: 0
C88: 650
A100: 1 Заповнюється розпорядниками бюджетних коштів.
A101: =ЗАПОЛНИТЬ!F30 -> Керівник | G101: =ЗАПОЛНИТЬ!F26 -> Нєтков Р.В.
D102: (підпис) | G102: (ініціали, прізвище)
A103: =ЗАПОЛНИТЬ!F31 -> Головний бухгалтер | G103: =ЗАПОЛНИТЬ!F28 -> Саватєєва О.І.
A104: =ЗАПОЛНИТЬ!C19 -> "08" жовтня 2018 року | D104: (підпис) | G104: (ініціали, прізвище)

Sheet Ф.2.17 (hidden)
G1: Додаток 1 до Порядку складання бюджетної звітності розпорядниками та одержувачами бюджетних коштів, звітності фондами загальнообов’язкового державного соціального і пенсійного страхування (пункт 1 розділу ІІ)
A4: ЗВІТ
A5: =IF(ЗАПОЛНИТЬ!$F$7=1,CONCATENATE(шапки!A2),CONCATENATE(шапки!A2,шапки!C2)) -> про надходження та використання коштів загального фонду (форма №2д, | G5: =IF(ЗАПОЛНИТЬ!$F$7=1,шапки!C2,шапки!D2) -> №2м) | H5: =IF(ЗАПОЛНИТЬ!$F$7=1,шапки!D2,"") -> 
A6: =CONCATENATE("за ",ЗАПОЛНИТЬ!$B$17," ",ЗАПОЛНИТЬ!$C$17) -> за ІІІ квартал 2018 р.
J7: коди
A9: Установа | B9: =ЗАПОЛНИТЬ!B3 -> Комунальний заклад "Орлівська загальноосвітня школа І-ІІІ ступенів" Приморської районної ради Запорізької області | H9: за ЄДРПОУ | J9: =ЗАПОЛНИТЬ!B13 -> 26291242
A10: Територія | B10: =ЗАПОЛНИТЬ!B5 -> с.Орлівка Приморського району Запорізької області | H10: за КОАТУУ | J10: =ЗАПОЛНИТЬ!B14 -> 232484201
A11: Організаційно-правова форма господарювання | B11: =ЗАПОЛНИТЬ!D15 -> Комунальна організація (установа, заклад) | H11: за КОПФГ | J11: =ЗАПОЛНИТЬ!B15 -> 430
A12: Код та назва відомчої класифікації видатків та кредитування державного бюджету | D12: =ЗАПОЛНИТЬ!H9 -> 0 | E12: =IF(D12>0,VLOOKUP(D12,'ДовидникКВК(ГОС)'!A:B,2,FALSE),"") -> 
A13: Код та назва програмної класифікації видатків та кредитування державного бюджету | E13: =IF(D13>0,VLOOKUP(D13,ДовидникКПК!B:C,2,FALSE),"") -> 
A14: Код та назва типової відомчої класифікації видатків та кредитування місцевих бюджетів | D14: =ЗАПОЛНИТЬ!H10 -> 06 | E14: =ЗАПОЛНИТЬ!I10 -> Відділ освіти Приморського района Запорізької області
A15: Код та назва програмної класифікації видатків та кредитування місцевих бюджетів (код та назва Типової програмної класифікації видатків та кредитування місцевих бюджетів / Тимчасової класифікації видатків та кредитування для бюджетів місцевого самоврядування, які не застосовують програмно-цільового методу) | D15: - | E15: =VLOOKUP(RIGHT(D15,4),КПКВМБ!A:B,2,FALSE) -> -
A16: Періодичність: квартальна, річна
A17: Одиниця виміру: грн, коп.
A19: Показники | B19: КЕКВ та/або ККК | C19: Код рядка | D19: Затверджено на звітний рік | E19: Затверджено на звітний період (рік)1 | F19: Залишок на початок звітного року | G19: Надійшло коштів за звітний період (рік) | H19: Касові за звітний період (рік) | I19: Фактичні за звітний період (рік) | J19: Залишок на кінець звітного періоду (року)
A22: 1 | B22: 2 | C22: 3 | D22: 4 | E22: 5 | F22: 6 | G22: 7 | H22: 8 | I22: 9 | J22: 9
A23: Видатки та надання кредитів - усього | B23: Х | C23: 010 | D23: =D24+D59+D79+D84+D87 -> 0 | E23: =E26+E29+E32+E33+E37+E45+E46+E86+E54 -> 0 | F23: =F24+F59+F79+F84+F87 -> 0 | G23: =G24+G59+G79+G84+G87 -> 0 | H23: =H24+H59+H79+H84+H87 -> 0 | I23: =I24+I59+I79+I84+I87 -> 0 | J23: =F23+G23-H23 -> 0
A24: у тому числі: Поточні видатки | B24: 2000 | C24: 020 | D24: =D25+D30+D47+D50+D54+D58 -> 0 | E24: 0 | F24: 0 | G24: 0 | H24: 0 | I24: 0 | J24: =F24+G24-H24 -> 0
A25: Оплата праці і нарахування на заробітну плату | B25: 2100 | C25: 030 | D25: =D26+D29 -> 0 | E25: 0 | F25: =F26+F29 -> 0 | G25: =G26+G29 -> 0 | H25: =H26+H29 -> 0 | I25: =I26+I29 -> 0 | J25: 0
A26: Оплата праці | B26: 2110 | C26: 040 | D26: =SUM(D27:D28) -> 0 | E26: 0 | F26: 0 | G26: 0 | H26: 0 | I26: 0 | J26: 0
A27: Заробітна плата | B27: 2111 | C27: 050 | D27: 0 | E27: 0 | F27: 0 | G27: 0 | H27: 0 | I27: 0 | J27: 0
A28: Грошове забезпечення військовослужбовців | B28: 2112 | C28: 060 | D28: 0 | E28: 0 | F28: 0 | G28: 0 | H28: 0 | I28: 0 | J28: 0
A29: Нарахування на оплату праці | B29: 2120 | C29: 070 | D29: 0 | E29: 0 | F29: 0 | G29: 0 | H29: 0 | I29: 0 | J29: 0
A30: Використання товарів і послуг | B30: 2200 | C30: 080 | D30: =SUM(D31:D37)+D44 -> 0 | E30: 0 | F30: =SUM(F31:F37)+F44 -> 0 | G30: =SUM(G31:G37)+G44 -> 0 | H30: =SUM(H31:H37)+H44 -> 0 | I30: =SUM(I31:I37)+I44 -> 0 | J30: 0
A31: Предмети, матеріали, обладнання та інвентар | B31: 2210 | C31: 090 | D31: 0 | E31: 0 | F31: 0 | G31: 0 | H31: 0 | I31: 0 | J31: 0
A32: Медикаменти та перев’язувальні матеріали | B32: 2220 | C32: 100 | D32: 0 | E32: 0 | F32: 0 | G32: 0 | H32: 0 | I32: 0 | J32: 0
A33: Продукти харчування | B33: 2230 | C33: 110 | D33: 0 | E33: 0 | F33: 0 | G33: 0 | H33: 0 | I33: 0 | J33: 0
A34: Оплата послуг (крім комунальних) | B34: 2240 | C34: 120 | D34: 0 | E34: 0 | F34: 0 | G34: 0 | H34: 0 | I34: 0 | J34: 0
A35: Видатки на відрядження | B35: 2250 | C35: 130 | D35: 0 | E35: 0 | F35: 0 | G35: 0 | H35: 0 | I35: 0 | J35: 0
A36: Видатки та заходи спеціального призначення | B36: 2260 | C36: 140 | D36: 0 | E36: 0 | F36: 0 | G36: 0 | H36: 0 | I36: 0 | J36: 0
A37: Оплата комунальних послуг та енергоносіїв | B37: 2270 | C37: 150 | D37: =SUM(D38:D43) -> 0 | E37: 0 | F37: =SUM(F38:F43) -> 0 | G37: =SUM(G38:G43) -> 0 | H37: =SUM(H38:H43) -> 0 | I37: =SUM(I38:I43) -> 0 | J37: =F37+G37-H37 -> 0
A38: Оплата теплопостачання | B38: 2271 | C38: 160 | D38: 0 | E38: 0 | F38: 0 | G38: 0 | H38: 0 | I38: 0 | J38: 0
A39: Оплата водопостачання та водовідведення | B39: 2272 | C39: 170 | D39: 0 | E39: 0 | F39: 0 | G39: 0 | H39: 0 | I39: 0 | J39: 0
A40: Оплата електроенергії | B40: 2273 | C40: 180 | D40: 0 | E40: 0 | F40: 0 | G40: 0 | H40: 0 | I40: 0 | J40: 0
A41: Оплата природного газу | B41: 2274 | C41: 190 | D41: 0 | E41: 0 | F41: 0 | G41: 0 | H41: 0 | I41: 0 | J41: 0
A42: Оплата інших енергоносіїв | B42: 2275 | C42: 200 | D42: 0 | E42: 0 | F42: 0 | G42: 0 | H42: 0 | I42: 0 | J42: 0
A43: Оплата енергосервісу | B43: 2276 | C43: 210 | D43: 0 | E43: 0 | F43: 0 | G43: 0 | H43: 0 | I43: 0 | J43: =F43+G43-H43 -> 0
A44: Дослідження і розробки, окремі заходи по реалізації державних (регіональних) програм | B44: 2280 | C44: 220 | D44: =SUM(D45:D46) -> 0 | E44: 0 | F44: =SUM(F45:F46) -> 0 | G44: =SUM(G45:G46) -> 0 | H44: =SUM(H45:H46) -> 0 | I44: =SUM(I45:I46) -> 0 | J44: 0
A45: Дослідження і розробки, окремі заходи розвитку по реалізації державних (регіональних) програм | B45: 2281 | C45: 230 | D45: 0 | E45: 0 | F45: 0 | G45: 0 | H45: 0 | I45: 0 | J45: 0
A46: Окремі заходи по реалізації державних (регіональних) програм, не віднесені до заходів розвитку | B46: 2282 | C46: 240 | D46: 0 | E46: 0 | F46: 0 | G46: 0 | H46: 0 | I46: 0 | J46: 0
A47: Обслуговування боргових зобов’язань | B47: 2400 | C47: 250 | D47: =SUM(D48:D49) -> 0 | E47: 0 | F47: 0 | G47: 0 | H47: 0 | I47: 0 | J47: 0
A48: Обслуговування внутрішніх боргових зобов’язань | B48: 2410 | C48: 260 | D48: 0 | E48: 0 | F48: 0 | G48: 0 | H48: 0 | I48: 0 | J48: 0
A49: Обслуговування зовнішніх боргових зобов’язань | B49: 2420 | C49: 270 | D49: 0 | E49: 0 | F49: 0 | G49: 0 | H49: 0 | I49: 0 | J49: 0
A50: Поточні трансферти | B50: 2600 | C50: 280 | D50: =SUM(D51:D53) -> 0 | E50: 0 | F50: 0 | G50: 0 | H50: 0 | I50: 0 | J50: 0
A51: Субсидії та поточні трансферти підприємствам (установам, організаціям) | B51: 2610 | C51: 290 | D51: 0 | E51: 0 | F51: 0 | G51: 0 | H51: 0 | I51: 0 | J51: 0
A52: Поточні трансферти органам державного управління інших рівнів | B52: 2620 | C52: 300 | D52: 0 | E52: 0 | F52: 0 | G52: 0 | H52: 0 | I52: 0 | J52: 0
A53: Поточні трансферти урядам іноземних держав та міжнародним організаціям | B53: 2630 | C53: 310 | D53: 0 | E53: 0 | F53: 0 | G53: 0 | H53: 0 | I53: 0 | J53: 0
A54: Соціальне забезпечення | B54: 2700 | C54: 320 | D54: =SUM(D55:D57) -> 0 | E54: 0 | F54: 0 | G54: 0 | H54: 0 | I54: 0 | J54: 0
A55: Виплата пенсій і допомоги | B55: 2710 | C55: 330 | D55: 0 | E55: 0 | F55: 0 | G55: 0 | H55: 0 | I55: 0 | J55: 0
A56: Стипендії | B56: 2720 | C56: 340 | D56: 0 | E56: 0 | F56: 0 | G56: 0 | H56: 0 | I56: 0 | J56: 0
A57: Інші виплати населенню | B57: 2730 | C57: 350 | D57: 0 | E57: 0 | F57: 0 | G57: 0 | H57: 0 | I57: 0 | J57: 0
A58: Інші поточні видатки | B58: 2800 | C58: 360 | D58: 0 | E58: 0 | F58: 0 | G58: 0 | H58: 0 | I58: 0 | J58: 0
A59: Капітальні видатки | B59: 3000 | C59: 370 | D59: =D60+D74 -> 0 | E59: 0 | F59: 0 | G59: 0 | H59: 0 | I59: 0 | J59: 0
A60: Придбання основного капіталу | B60: 3100 | C60: 380 | D60: =D61+D62+D65+D68+D72+D73 -> 0 | E60: 0 | F60: 0 | G60: 0 | H60: 0 | I60: 0 | J60: 0
A61: Придбання обладнання і предметів довгострокового користування | B61: 3110 | C61: 390 | D61: 0 | E61: 0 | F61: 0 | G61: 0 | H61: 0 | I61: 0 | J61: 0
A62: Капітальне будівництво (придбання) | B62: 3120 | C62: 400 | D62: =SUM(D63:D64) -> 0 | E62: 0 | F62: 0 | G62: 0 | H62: 0 | I62: 0 | J62: 0
A63: Капітальне будівництво (придбання) житла | B63: 3121 | C63: 410 | D63: 0 | E63: 0 | F63: 0 | G63: 0 | H63: 0 | I63: 0 | J63: 0
A64: Капітальне будівництво (придбання) інших об’єктів | B64: 3122 | C64: 420 | D64: 0 | E64: 0 | F64: 0 | G64: 0 | H64: 0 | I64: 0 | J64: 0
A65: Капітальний ремонт | B65: 3130 | C65: 430 | D65: =SUM(D66:D67) -> 0 | E65: 0 | F65: 0 | G65: 0 | H65: 0 | I65: 0 | J65: 0
A66: Капітальний ремонт житлового фонду (приміщень) | B66: 3131 | C66: 440 | D66: 0 | E66: 0 | F66: 0 | G66: 0 | H66: 0 | I66: 0 | J66: 0
A67: Капітальний ремонт інших об’єктів | B67: 3132 | C67: 450 | D67: 0 | E67: 0 | F67: 0 | G67: 0 | H67: 0 | I67: 0 | J67: 0
A68: Реконструкція та реставрація | B68: 3140 | C68: 460 | D68: =SUM(D69:D71) -> 0 | E68: 0 | F68: 0 | G68: 0 | H68: 0 | I68: 0 | J68: 0
A69: Реконструкція житлового фонду (приміщень) | B69: 3141 | C69: 470 | D69: 0 | E69: 0 | F69: 0 | G69: 0 | H69: 0 | I69: 0 | J69: 0
A70: Реконструкція та реставрація інших об’єктів | B70: 3142 | C70: 480 | D70: 0 | E70: 0 | F70: 0 | G70: 0 | H70: 0 | I70: 0 | J70: 0
A71: Реставрація пам’яток культури, історії та архітектури | B71: 3143 | C71: 490 | D71: 0 | E71: 0 | F71: 0 | G71: 0 | H71: 0 | I71: 0 | J71: 0
A72: Створення державних запасів і резервів | B72: 3150 | C72: 500 | D72: 0 | E72: 0 | F72: 0 | G72: 0 | H72: 0 | I72: 0 | J72: 0
A73: Придбання землі та нематеріальних активів | B73: 3160 | C73: 510 | D73: 0 | E73: 0 | F73: 0 | G73: 0 | H73: 0 | I73: 0 | J73: 0
A74: Капітальні трансферти | B74: 3200 | C74: 520 | D74: =SUM(D75:D78) -> 0 | E74: 0 | F74: 0 | G74: 0 | H74: 0 | I74: 0 | J74: 0
A75: Капітальні трансферти підприємствам (установам, організаціям) | B75: 3210 | C75: 530 | D75: 0 | E75: 0 | F75: 0 | G75: 0 | H75: 0 | I75: 0 | J75: 0
A76: Капітальні трансферти органам державного управління інших рівнів | B76: 3220 | C76: 540 | D76: 0 | E76: 0 | F76: 0 | G76: 0 | H76: 0 | I76: 0 | J76: 0
A77: Капітальні трансферти урядам іноземних держав та міжнародним організаціям | B77: 3230 | C77: 550 | D77: 0 | E77: 0 | F77: 0 | G77: 0 | H77: 0 | I77: 0 | J77: 0
A78: Капітальні трансферти населенню | B78: 3240 | C78: 560 | D78: 0 | E78: 0 | F78: 0 | G78: 0 | H78: 0 | I78: 0 | J78: 0
A79: Внутрішнє кредитування | B79: 4100 | C79: 570 | D79: =SUM(D80) -> 0 | E79: 0 | F79: 0 | G79: 0 | H79: 0 | I79: 0 | J79: 0
A80: Надання внутрішніх кредитів | B80: 4110 | C80: 580 | D80: =SUM(D81:D83) -> 0 | E80: 0 | F80: 0 | G80: 0 | H80: 0 | I80: 0 | J80: 0
A81: Надання кредитів органам державного управління інших рівнів | B81: 4111 | C81: 590 | D81: 0 | E81: 0 | F81: 0 | G81: 0 | H81: 0 | I81: 0 | J81: 0
A82: Надання кредитів підприємствам, установам, організаціям | B82: 4112 | C82: 600 | D82: 0 | E82: 0 | F82: 0 | G82: 0 | H82: 0 | I82: 0 | J82: 0
A83: Надання інших внутрішніх кредитів | B83: 4113 | C83: 610 | D83: 0 | E83: 0 | F83: 0 | G83: 0 | H83: 0 | I83: 0 | J83: 0
A84: Зовнішнє кредитування | B84: 4200 | C84: 620 | D84: =D85 -> 0 | E84: 0 | F84: 0 | G84: 0 | H84: 0 | I84: 0 | J84: 0
A85: Надання зовнішніх кредитів | B85: 4210 | C85: 630 | D85: 0 | E85: 0 | F85: 0 | G85: 0 | H85: 0 | I85: 0 | J85: 0
A86: Інші видатки | B86: 5000 | C86: 640 | D86: X | E86: 0 | F86: X | G86: X | H86: X | I86: X | J86: X
A87: Нерозподілені видатки | B87: 9000 | C87: 650 | D87: 0 | E87: 0 | F87: 0 | G87: 0 | H87: 0 | I87: 0 | J87: 0
C88: 650
A100: 1 Заповнюється розпорядниками бюджетних коштів.
A101: =ЗАПОЛНИТЬ!F30 -> Керівник | G101: =ЗАПОЛНИТЬ!F26 -> Нєтков Р.В.
D102: (підпис) | G102: (ініціали, прізвище)
A103: =ЗАПОЛНИТЬ!F31 -> Головний бухгалтер | G103: =ЗАПОЛНИТЬ!F28 -> Саватєєва О.І.
A104: =ЗАПОЛНИТЬ!C19 -> "08" жовтня 2018 року | D104: (підпис) | G104: (ініціали, прізвище)

Sheet Ф.2.18 (hidden)
G1: Додаток 1 до Порядку складання бюджетної звітності розпорядниками та одержувачами бюджетних коштів, звітності фондами загальнообов’язкового державного соціального і пенсійного страхування (пункт 1 розділу ІІ)
A4: ЗВІТ
A5: =IF(ЗАПОЛНИТЬ!$F$7=1,CONCATENATE(шапки!A2),CONCATENATE(шапки!A2,шапки!C2)) -> про надходження та використання коштів загального фонду (форма №2д, | G5: =IF(ЗАПОЛНИТЬ!$F$7=1,шапки!C2,шапки!D2) -> №2м) | H5: =IF(ЗАПОЛНИТЬ!$F$7=1,шапки!D2,"") -> 
A6: =CONCATENATE("за ",ЗАПОЛНИТЬ!$B$17," ",ЗАПОЛНИТЬ!$C$17) -> за ІІІ квартал 2018 р.
J7: коди
A9: Установа | B9: =ЗАПОЛНИТЬ!B3 -> Комунальний заклад "Орлівська загальноосвітня школа І-ІІІ ступенів" Приморської районної ради Запорізької області | H9: за ЄДРПОУ | J9: =ЗАПОЛНИТЬ!B13 -> 26291242
A10: Територія | B10: =ЗАПОЛНИТЬ!B5 -> с.Орлівка Приморського району Запорізької області | H10: за КОАТУУ | J10: =ЗАПОЛНИТЬ!B14 -> 232484201
A11: Організаційно-правова форма господарювання | B11: =ЗАПОЛНИТЬ!D15 -> Комунальна організація (установа, заклад) | H11: за КОПФГ | J11: =ЗАПОЛНИТЬ!B15 -> 430
A12: Код та назва відомчої класифікації видатків та кредитування державного бюджету | D12: =ЗАПОЛНИТЬ!H9 -> 0 | E12: =IF(D12>0,VLOOKUP(D12,'ДовидникКВК(ГОС)'!A:B,2,FALSE),"") -> 
A13: Код та назва програмної класифікації видатків та кредитування державного бюджету | E13: =IF(D13>0,VLOOKUP(D13,ДовидникКПК!B:C,2,FALSE),"") -> 
A14: Код та назва типової відомчої класифікації видатків та кредитування місцевих бюджетів | D14: =ЗАПОЛНИТЬ!H10 -> 06 | E14: =ЗАПОЛНИТЬ!I10 -> Відділ освіти Приморського района Запорізької області
A15: Код та назва програмної класифікації видатків та кредитування місцевих бюджетів (код та назва Типової програмної класифікації видатків та кредитування місцевих бюджетів / Тимчасової класифікації видатків та кредитування для бюджетів місцевого самоврядування, які не застосовують програмно-цільового методу) | D15: - | E15: =VLOOKUP(RIGHT(D15,4),КПКВМБ!A:B,2,FALSE) -> -
A16: Періодичність: квартальна, річна
A17: Одиниця виміру: грн, коп.
A19: Показники | B19: КЕКВ та/або ККК | C19: Код рядка | D19: Затверджено на звітний рік | E19: Затверджено на звітний період (рік)1 | F19: Залишок на початок звітного року | G19: Надійшло коштів за звітний період (рік) | H19: Касові за звітний період (рік) | I19: Фактичні за звітний період (рік) | J19: Залишок на кінець звітного періоду (року)
A22: 1 | B22: 2 | C22: 3 | D22: 4 | E22: 5 | F22: 6 | G22: 7 | H22: 8 | I22: 9 | J22: 9
A23: Видатки та надання кредитів - усього | B23: Х | C23: 010 | D23: =D24+D59+D79+D84+D87 -> 0 | E23: =E26+E29+E32+E33+E37+E45+E46+E86+E54 -> 0 | F23: =F24+F59+F79+F84+F87 -> 0 | G23: =G24+G59+G79+G84+G87 -> 0 | H23: =H24+H59+H79+H84+H87 -> 0 | I23: =I24+I59+I79+I84+I87 -> 0 | J23: =F23+G23-H23 -> 0
A24: у тому числі: Поточні видатки | B24: 2000 | C24: 020 | D24: =D25+D30+D47+D50+D54+D58 -> 0 | E24: 0 | F24: 0 | G24: 0 | H24: 0 | I24: 0 | J24: =F24+G24-H24 -> 0
A25: Оплата праці і нарахування на заробітну плату | B25: 2100 | C25: 030 | D25: =D26+D29 -> 0 | E25: 0 | F25: =F26+F29 -> 0 | G25: =G26+G29 -> 0 | H25: =H26+H29 -> 0 | I25: =I26+I29 -> 0 | J25: 0
A26: Оплата праці | B26: 2110 | C26: 040 | D26: =SUM(D27:D28) -> 0 | E26: 0 | F26: 0 | G26: 0 | H26: 0 | I26: 0 | J26: 0
A27: Заробітна плата | B27: 2111 | C27: 050 | D27: 0 | E27: 0 | F27: 0 | G27: 0 | H27: 0 | I27: 0 | J27: 0
A28: Грошове забезпечення військовослужбовців | B28: 2112 | C28: 060 | D28: 0 | E28: 0 | F28: 0 | G28: 0 | H28: 0 | I28: 0 | J28: 0
A29: Нарахування на оплату праці | B29: 2120 | C29: 070 | D29: 0 | E29: 0 | F29: 0 | G29: 0 | H29: 0 | I29: 0 | J29: 0
A30: Використання товарів і послуг | B30: 2200 | C30: 080 | D30: =SUM(D31:D37)+D44 -> 0 | E30: 0 | F30: =SUM(F31:F37)+F44 -> 0 | G30: =SUM(G31:G37)+G44 -> 0 | H30: =SUM(H31:H37)+H44 -> 0 | I30: =SUM(I31:I37)+I44 -> 0 | J30: 0
A31: Предмети, матеріали, обладнання та інвентар | B31: 2210 | C31: 090 | D31: 0 | E31: 0 | F31: 0 | G31: 0 | H31: 0 | I31: 0 | J31: 0
A32: Медикаменти та перев’язувальні матеріали | B32: 2220 | C32: 100 | D32: 0 | E32: 0 | F32: 0 | G32: 0 | H32: 0 | I32: 0 | J32: 0
A33: Продукти харчування | B33: 2230 | C33: 110 | D33: 0 | E33: 0 | F33: 0 | G33: 0 | H33: 0 | I33: 0 | J33: 0
A34: Оплата послуг (крім комунальних) | B34: 2240 | C34: 120 | D34: 0 | E34: 0 | F34: 0 | G34: 0 | H34: 0 | I34: 0 | J34: 0
A35: Видатки на відрядження | B35: 2250 | C35: 130 | D35: 0 | E35: 0 | F35: 0 | G35: 0 | H35: 0 | I35: 0 | J35: 0
A36: Видатки та заходи спеціального призначення | B36: 2260 | C36: 140 | D36: 0 | E36: 0 | F36: 0 | G36: 0 | H36: 0 | I36: 0 | J36: 0
A37: Оплата комунальних послуг та енергоносіїв | B37: 2270 | C37: 150 | D37: =SUM(D38:D43) -> 0 | E37: 0 | F37: =SUM(F38:F43) -> 0 | G37: =SUM(G38:G43) -> 0 | H37: =SUM(H38:H43) -> 0 | I37: =SUM(I38:I43) -> 0 | J37: =F37+G37-H37 -> 0
A38: Оплата теплопостачання | B38: 2271 | C38: 160 | D38: 0 | E38: 0 | F38: 0 | G38: 0 | H38: 0 | I38: 0 | J38: 0
A39: Оплата водопостачання та водовідведення | B39: 2272 | C39: 170 | D39: 0 | E39: 0 | F39: 0 | G39: 0 | H39: 0 | I39: 0 | J39: 0
A40: Оплата електроенергії | B40: 2273 | C40: 180 | D40: 0 | E40: 0 | F40: 0 | G40: 0 | H40: 0 | I40: 0 | J40: 0
A41: Оплата природного газу | B41: 2274 | C41: 190 | D41: 0 | E41: 0 | F41: 0 | G41: 0 | H41: 0 | I41: 0 | J41: 0
A42: Оплата інших енергоносіїв | B42: 2275 | C42: 200 | D42: 0 | E42: 0 | F42: 0 | G42: 0 | H42: 0 | I42: 0 | J42: 0
A43: Оплата енергосервісу | B43: 2276 | C43: 210 | D43: 0 | E43: 0 | F43: 0 | G43: 0 | H43: 0 | I43: 0 | J43: =F43+G43-H43 -> 0
A44: Дослідження і розробки, окремі заходи по реалізації державних (регіональних) програм | B44: 2280 | C44: 220 | D44: =SUM(D45:D46) -> 0 | E44: 0 | F44: =SUM(F45:F46) -> 0 | G44: =SUM(G45:G46) -> 0 | H44: =SUM(H45:H46) -> 0 | I44: =SUM(I45:I46) -> 0 | J44: 0
A45: Дослідження і розробки, окремі заходи розвитку по реалізації державних (регіональних) програм | B45: 2281 | C45: 230 | D45: 0 | E45: 0 | F45: 0 | G45: 0 | H45: 0 | I45: 0 | J45: 0
A46: Окремі заходи по реалізації державних (регіональних) програм, не віднесені до заходів розвитку | B46: 2282 | C46: 240 | D46: 0 | E46: 0 | F46: 0 | G46: 0 | H46: 0 | I46: 0 | J46: 0
A47: Обслуговування боргових зобов’язань | B47: 2400 | C47: 250 | D47: =SUM(D48:D49) -> 0 | E47: 0 | F47: 0 | G47: 0 | H47: 0 | I47: 0 | J47: 0
A48: Обслуговування внутрішніх боргових зобов’язань | B48: 2410 | C48: 260 | D48: 0 | E48: 0 | F48: 0 | G48: 0 | H48: 0 | I48: 0 | J48: 0
A49: Обслуговування зовнішніх боргових зобов’язань | B49: 2420 | C49: 270 | D49: 0 | E49: 0 | F49: 0 | G49: 0 | H49: 0 | I49: 0 | J49: 0
A50: Поточні трансферти | B50: 2600 | C50: 280 | D50: =SUM(D51:D53) -> 0 | E50: 0 | F50: 0 | G50: 0 | H50: 0 | I50: 0 | J50: 0
A51: Субсидії та поточні трансферти підприємствам (установам, організаціям) | B51: 2610 | C51: 290 | D51: 0 | E51: 0 | F51: 0 | G51: 0 | H51: 0 | I51: 0 | J51: 0
A52: Поточні трансферти органам державного управління інших рівнів | B52: 2620 | C52: 300 | D52: 0 | E52: 0 | F52: 0 | G52: 0 | H52: 0 | I52: 0 | J52: 0
A53: Поточні трансферти урядам іноземних держав та міжнародним організаціям | B53: 2630 | C53: 310 | D53: 0 | E53: 0 | F53: 0 | G53: 0 | H53: 0 | I53: 0 | J53: 0
A54: Соціальне забезпечення | B54: 2700 | C54: 320 | D54: =SUM(D55:D57) -> 0 | E54: 0 | F54: 0 | G54: 0 | H54: 0 | I54: 0 | J54: 0
A55: Виплата пенсій і допомоги | B55: 2710 | C55: 330 | D55: 0 | E55: 0 | F55: 0 | G55: 0 | H55: 0 | I55: 0 | J55: 0
A56: Стипендії | B56: 2720 | C56: 340 | D56: 0 | E56: 0 | F56: 0 | G56: 0 | H56: 0 | I56: 0 | J56: 0
A57: Інші виплати населенню | B57: 2730 | C57: 350 | D57: 0 | E57: 0 | F57: 0 | G57: 0 | H57: 0 | I57: 0 | J57: 0
A58: Інші поточні видатки | B58: 2800 | C58: 360 | D58: 0 | E58: 0 | F58: 0 | G58: 0 | H58: 0 | I58: 0 | J58: 0
A59: Капітальні видатки | B59: 3000 | C59: 370 | D59: =D60+D74 -> 0 | E59: 0 | F59: 0 | G59: 0 | H59: 0 | I59: 0 | J59: 0
A60: Придбання основного капіталу | B60: 3100 | C60: 380 | D60: =D61+D62+D65+D68+D72+D73 -> 0 | E60: 0 | F60: 0 | G60: 0 | H60: 0 | I60: 0 | J60: 0
A61: Придбання обладнання і предметів довгострокового користування | B61: 3110 | C61: 390 | D61: 0 | E61: 0 | F61: 0 | G61: 0 | H61: 0 | I61: 0 | J61: 0
A62: Капітальне будівництво (придбання) | B62: 3120 | C62: 400 | D62: =SUM(D63:D64) -> 0 | E62: 0 | F62: 0 | G62: 0 | H62: 0 | I62: 0 | J62: 0
A63: Капітальне будівництво (придбання) житла | B63: 3121 | C63: 410 | D63: 0 | E63: 0 | F63: 0 | G63: 0 | H63: 0 | I63: 0 | J63: 0
A64: Капітальне будівництво (придбання) інших об’єктів | B64: 3122 | C64: 420 | D64: 0 | E64: 0 | F64: 0 | G64: 0 | H64: 0 | I64: 0 | J64: 0
A65: Капітальний ремонт | B65: 3130 | C65: 430 | D65: =SUM(D66:D67) -> 0 | E65: 0 | F65: 0 | G65: 0 | H65: 0 | I65: 0 | J65: 0
A66: Капітальний ремонт житлового фонду (приміщень) | B66: 3131 | C66: 440 | D66: 0 | E66: 0 | F66: 0 | G66: 0 | H66: 0 | I66: 0 | J66: 0
A67: Капітальний ремонт інших об’єктів | B67: 3132 | C67: 450 | D67: 0 | E67: 0 | F67: 0 | G67: 0 | H67: 0 | I67: 0 | J67: 0
A68: Реконструкція та реставрація | B68: 3140 | C68: 460 | D68: =SUM(D69:D71) -> 0 | E68: 0 | F68: 0 | G68: 0 | H68: 0 | I68: 0 | J68: 0
A69: Реконструкція житлового фонду (приміщень) | B69: 3141 | C69: 470 | D69: 0 | E69: 0 | F69: 0 | G69: 0 | H69: 0 | I69: 0 | J69: 0
A70: Реконструкція та реставрація інших об’єктів | B70: 3142 | C70: 480 | D70: 0 | E70: 0 | F70: 0 | G70: 0 | H70: 0 | I70: 0 | J70: 0
A71: Реставрація пам’яток культури, історії та архітектури | B71: 3143 | C71: 490 | D71: 0 | E71: 0 | F71: 0 | G71: 0 | H71: 0 | I71: 0 | J71: 0
A72: Створення державних запасів і резервів | B72: 3150 | C72: 500 | D72: 0 | E72: 0 | F72: 0 | G72: 0 | H72: 0 | I72: 0 | J72: 0
A73: Придбання землі та нематеріальних активів | B73: 3160 | C73: 510 | D73: 0 | E73: 0 | F73: 0 | G73: 0 | H73: 0 | I73: 0 | J73: 0
A74: Капітальні трансферти | B74: 3200 | C74: 520 | D74: =SUM(D75:D78) -> 0 | E74: 0 | F74: 0 | G74: 0 | H74: 0 | I74: 0 | J74: 0
A75: Капітальні трансферти підприємствам (установам, організаціям) | B75: 3210 | C75: 530 | D75: 0 | E75: 0 | F75: 0 | G75: 0 | H75: 0 | I75: 0 | J75: 0
A76: Капітальні трансферти органам державного управління інших рівнів | B76: 3220 | C76: 540 | D76: 0 | E76: 0 | F76: 0 | G76: 0 | H76: 0 | I76: 0 | J76: 0
A77: Капітальні трансферти урядам іноземних держав та міжнародним організаціям | B77: 3230 | C77: 550 | D77: 0 | E77: 0 | F77: 0 | G77: 0 | H77: 0 | I77: 0 | J77: 0
A78: Капітальні трансферти населенню | B78: 3240 | C78: 560 | D78: 0 | E78: 0 | F78: 0 | G78: 0 | H78: 0 | I78: 0 | J78: 0
A79: Внутрішнє кредитування | B79: 4100 | C79: 570 | D79: =SUM(D80) -> 0 | E79: 0 | F79: 0 | G79: 0 | H79: 0 | I79: 0 | J79: 0
A80: Надання внутрішніх кредитів | B80: 4110 | C80: 580 | D80: =SUM(D81:D83) -> 0 | E80: 0 | F80: 0 | G80: 0 | H80: 0 | I80: 0 | J80: 0
A81: Надання кредитів органам державного управління інших рівнів | B81: 4111 | C81: 590 | D81: 0 | E81: 0 | F81: 0 | G81: 0 | H81: 0 | I81: 0 | J81: 0
A82: Надання кредитів підприємствам, установам, організаціям | B82: 4112 | C82: 600 | D82: 0 | E82: 0 | F82: 0 | G82: 0 | H82: 0 | I82: 0 | J82: 0
A83: Надання інших внутрішніх кредитів | B83: 4113 | C83: 610 | D83: 0 | E83: 0 | F83: 0 | G83: 0 | H83: 0 | I83: 0 | J83: 0
A84: Зовнішнє кредитування | B84: 4200 | C84: 620 | D84: =D85 -> 0 | E84: 0 | F84: 0 | G84: 0 | H84: 0 | I84: 0 | J84: 0
A85: Надання зовнішніх кредитів | B85: 4210 | C85: 630 | D85: 0 | E85: 0 | F85: 0 | G85: 0 | H85: 0 | I85: 0 | J85: 0
A86: Інші видатки | B86: 5000 | C86: 640 | D86: X | E86: 0 | F86: X | G86: X | H86: X | I86: X | J86: X
A87: Нерозподілені видатки | B87: 9000 | C87: 650 | D87: 0 | E87: 0 | F87: 0 | G87: 0 | H87: 0 | I87: 0 | J87: 0
C88: 650
A100: 1 Заповнюється розпорядниками бюджетних коштів.
A101: =ЗАПОЛНИТЬ!F30 -> Керівник | G101: =ЗАПОЛНИТЬ!F26 -> Нєтков Р.В.
D102: (підпис) | G102: (ініціали, прізвище)
A103: =ЗАПОЛНИТЬ!F31 -> Головний бухгалтер | G103: =ЗАПОЛНИТЬ!F28 -> Саватєєва О.І.
A104: =ЗАПОЛНИТЬ!C19 -> "08" жовтня 2018 року | D104: (підпис) | G104: (ініціали, прізвище)

Sheet Ф.2.19 (hidden)
G1: Додаток 1 до Порядку складання бюджетної звітності розпорядниками та одержувачами бюджетних коштів, звітності фондами загальнообов’язкового державного соціального і пенсійного страхування (пункт 1 розділу ІІ)
A4: ЗВІТ
A5: =IF(ЗАПОЛНИТЬ!$F$7=1,CONCATENATE(шапки!A2),CONCATENATE(шапки!A2,шапки!C2)) -> про надходження та використання коштів загального фонду (форма №2д, | G5: =IF(ЗАПОЛНИТЬ!$F$7=1,шапки!C2,шапки!D2) -> №2м) | H5: =IF(ЗАПОЛНИТЬ!$F$7=1,шапки!D2,"") -> 
A6: =CONCATENATE("за ",ЗАПОЛНИТЬ!$B$17," ",ЗАПОЛНИТЬ!$C$17) -> за ІІІ квартал 2018 р.
J7: коди
A9: Установа | B9: =ЗАПОЛНИТЬ!B3 -> Комунальний заклад "Орлівська загальноосвітня школа І-ІІІ ступенів" Приморської районної ради Запорізької області | H9: за ЄДРПОУ | J9: =ЗАПОЛНИТЬ!B13 -> 26291242
A10: Територія | B10: =ЗАПОЛНИТЬ!B5 -> с.Орлівка Приморського району Запорізької області | H10: за КОАТУУ | J10: =ЗАПОЛНИТЬ!B14 -> 232484201
A11: Організаційно-правова форма господарювання | B11: =ЗАПОЛНИТЬ!D15 -> Комунальна організація (установа, заклад) | H11: за КОПФГ | J11: =ЗАПОЛНИТЬ!B15 -> 430
A12: Код та назва відомчої класифікації видатків та кредитування державного бюджету | D12: =ЗАПОЛНИТЬ!H9 -> 0 | E12: =IF(D12>0,VLOOKUP(D12,'ДовидникКВК(ГОС)'!A:B,2,FALSE),"") -> 
A13: Код та назва програмної класифікації видатків та кредитування державного бюджету | E13: =IF(D13>0,VLOOKUP(D13,ДовидникКПК!B:C,2,FALSE),"") -> 
A14: Код та назва типової відомчої класифікації видатків та кредитування місцевих бюджетів | D14: =ЗАПОЛНИТЬ!H10 -> 06 | E14: =ЗАПОЛНИТЬ!I10 -> Відділ освіти Приморського района Запорізької області
A15: Код та назва програмної класифікації видатків та кредитування місцевих бюджетів (код та назва Типової програмної класифікації видатків та кредитування місцевих бюджетів / Тимчасової класифікації видатків та кредитування для бюджетів місцевого самоврядування, які не застосовують програмно-цільового методу) | D15: - | E15: =VLOOKUP(RIGHT(D15,4),КПКВМБ!A:B,2,FALSE) -> -
A16: Періодичність: квартальна, річна
A17: Одиниця виміру: грн, коп.
A19: Показники | B19: КЕКВ та/або ККК | C19: Код рядка | D19: Затверджено на звітний рік | E19: Затверджено на звітний період (рік)1 | F19: Залишок на початок звітного року | G19: Надійшло коштів за звітний період (рік) | H19: Касові за звітний період (рік) | I19: Фактичні за звітний період (рік) | J19: Залишок на кінець звітного періоду (року)
A22: 1 | B22: 2 | C22: 3 | D22: 4 | E22: 5 | F22: 6 | G22: 7 | H22: 8 | I22: 9 | J22: 9
A23: Видатки та надання кредитів - усього | B23: Х | C23: 010 | D23: =D24+D59+D79+D84+D87 -> 0 | E23: =E26+E29+E32+E33+E37+E45+E46+E86+E54 -> 0 | F23: =F24+F59+F79+F84+F87 -> 0 | G23: =G24+G59+G79+G84+G87 -> 0 | H23: =H24+H59+H79+H84+H87 -> 0 | I23: =I24+I59+I79+I84+I87 -> 0 | J23: =F23+G23-H23 -> 0
A24: у тому числі: Поточні видатки | B24: 2000 | C24: 020 | D24: =D25+D30+D47+D50+D54+D58 -> 0 | E24: 0 | F24: 0 | G24: 0 | H24: 0 | I24: 0 | J24: =F24+G24-H24 -> 0
A25: Оплата праці і нарахування на заробітну плату | B25: 2100 | C25: 030 | D25: =D26+D29 -> 0 | E25: 0 | F25: =F26+F29 -> 0 | G25: =G26+G29 -> 0 | H25: =H26+H29 -> 0 | I25: =I26+I29 -> 0 | J25: 0
A26: Оплата праці | B26: 2110 | C26: 040 | D26: =SUM(D27:D28) -> 0 | E26: 0 | F26: 0 | G26: 0 | H26: 0 | I26: 0 | J26: 0
A27: Заробітна плата | B27: 2111 | C27: 050 | D27: 0 | E27: 0 | F27: 0 | G27: 0 | H27: 0 | I27: 0 | J27: 0
A28: Грошове забезпечення військовослужбовців | B28: 2112 | C28: 060 | D28: 0 | E28: 0 | F28: 0 | G28: 0 | H28: 0 | I28: 0 | J28: 0
A29: Нарахування на оплату праці | B29: 2120 | C29: 070 | D29: 0 | E29: 0 | F29: 0 | G29: 0 | H29: 0 | I29: 0 | J29: 0
A30: Використання товарів і послуг | B30: 2200 | C30: 080 | D30: =SUM(D31:D37)+D44 -> 0 | E30: 0 | F30: =SUM(F31:F37)+F44 -> 0 | G30: =SUM(G31:G37)+G44 -> 0 | H30: =SUM(H31:H37)+H44 -> 0 | I30: =SUM(I31:I37)+I44 -> 0 | J30: 0
A31: Предмети, матеріали, обладнання та інвентар | B31: 2210 | C31: 090 | D31: 0 | E31: 0 | F31: 0 | G31: 0 | H31: 0 | I31: 0 | J31: 0
A32: Медикаменти та перев’язувальні матеріали | B32: 2220 | C32: 100 | D32: 0 | E32: 0 | F32: 0 | G32: 0 | H32: 0 | I32: 0 | J32: 0
A33: Продукти харчування | B33: 2230 | C33: 110 | D33: 0 | E33: 0 | F33: 0 | G33: 0 | H33: 0 | I33: 0 | J33: 0
A34: Оплата послуг (крім комунальних) | B34: 2240 | C34: 120 | D34: 0 | E34: 0 | F34: 0 | G34: 0 | H34: 0 | I34: 0 | J34: 0
A35: Видатки на відрядження | B35: 2250 | C35: 130 | D35: 0 | E35: 0 | F35: 0 | G35: 0 | H35: 0 | I35: 0 | J35: 0
A36: Видатки та заходи спеціального призначення | B36: 2260 | C36: 140 | D36: 0 | E36: 0 | F36: 0 | G36: 0 | H36: 0 | I36: 0 | J36: 0
A37: Оплата комунальних послуг та енергоносіїв | B37: 2270 | C37: 150 | D37: =SUM(D38:D43) -> 0 | E37: 0 | F37: =SUM(F38:F43) -> 0 | G37: =SUM(G38:G43) -> 0 | H37: =SUM(H38:H43) -> 0 | I37: =SUM(I38:I43) -> 0 | J37: =F37+G37-H37 -> 0
A38: Оплата теплопостачання | B38: 2271 | C38: 160 | D38: 0 | E38: 0 | F38: 0 | G38: 0 | H38: 0 | I38: 0 | J38: 0
A39: Оплата водопостачання та водовідведення | B39: 2272 | C39: 170 | D39: 0 | E39: 0 | F39: 0 | G39: 0 | H39: 0 | I39: 0 | J39: 0
A40: Оплата електроенергії | B40: 2273 | C40: 180 | D40: 0 | E40: 0 | F40: 0 | G40: 0 | H40: 0 | I40: 0 | J40: 0
A41: Оплата природного газу | B41: 2274 | C41: 190 | D41: 0 | E41: 0 | F41: 0 | G41: 0 | H41: 0 | I41: 0 | J41: 0
A42: Оплата інших енергоносіїв | B42: 2275 | C42: 200 | D42: 0 | E42: 0 | F42: 0 | G42: 0 | H42: 0 | I42: 0 | J42: 0
A43: Оплата енергосервісу | B43: 2276 | C43: 210 | D43: 0 | E43: 0 | F43: 0 | G43: 0 | H43: 0 | I43: 0 | J43: =F43+G43-H43 -> 0
A44: Дослідження і розробки, окремі заходи по реалізації державних (регіональних) програм | B44: 2280 | C44: 220 | D44: =SUM(D45:D46) -> 0 | E44: 0 | F44: =SUM(F45:F46) -> 0 | G44: =SUM(G45:G46) -> 0 | H44: =SUM(H45:H46) -> 0 | I44: =SUM(I45:I46) -> 0 | J44: 0
A45: Дослідження і розробки, окремі заходи розвитку по реалізації державних (регіональних) програм | B45: 2281 | C45: 230 | D45: 0 | E45: 0 | F45: 0 | G45: 0 | H45: 0 | I45: 0 | J45: 0
A46: Окремі заходи по реалізації державних (регіональних) програм, не віднесені до заходів розвитку | B46: 2282 | C46: 240 | D46: 0 | E46: 0 | F46: 0 | G46: 0 | H46: 0 | I46: 0 | J46: 0
A47: Обслуговування боргових зобов’язань | B47: 2400 | C47: 250 | D47: =SUM(D48:D49) -> 0 | E47: 0 | F47: 0 | G47: 0 | H47: 0 | I47: 0 | J47: 0
A48: Обслуговування внутрішніх боргових зобов’язань | B48: 2410 | C48: 260 | D48: 0 | E48: 0 | F48: 0 | G48: 0 | H48: 0 | I48: 0 | J48: 0
A49: Обслуговування зовнішніх боргових зобов’язань | B49: 2420 | C49: 270 | D49: 0 | E49: 0 | F49: 0 | G49: 0 | H49: 0 | I49: 0 | J49: 0
A50: Поточні трансферти | B50: 2600 | C50: 280 | D50: =SUM(D51:D53) -> 0 | E50: 0 | F50: 0 | G50: 0 | H50: 0 | I50: 0 | J50: 0
A51: Субсидії та поточні трансферти підприємствам (установам, організаціям) | B51: 2610 | C51: 290 | D51: 0 | E51: 0 | F51: 0 | G51: 0 | H51: 0 | I51: 0 | J51: 0
A52: Поточні трансферти органам державного управління інших рівнів | B52: 2620 | C52: 300 | D52: 0 | E52: 0 | F52: 0 | G52: 0 | H52: 0 | I52: 0 | J52: 0
A53: Поточні трансферти урядам іноземних держав та міжнародним організаціям | B53: 2630 | C53: 310 | D53: 0 | E53: 0 | F53: 0 | G53: 0 | H53: 0 | I53: 0 | J53: 0
A54: Соціальне забезпечення | B54: 2700 | C54: 320 | D54: =SUM(D55:D57) -> 0 | E54: 0 | F54: 0 | G54: 0 | H54: 0 | I54: 0 | J54: 0
A55: Виплата пенсій і допомоги | B55: 2710 | C55: 330 | D55: 0 | E55: 0 | F55: 0 | G55: 0 | H55: 0 | I55: 0 | J55: 0
A56: Стипендії | B56: 2720 | C56: 340 | D56: 0 | E56: 0 | F56: 0 | G56: 0 | H56: 0 | I56: 0 | J56: 0
A57: Інші виплати населенню | B57: 2730 | C57: 350 | D57: 0 | E57: 0 | F57: 0 | G57: 0 | H57: 0 | I57: 0 | J57: 0
A58: Інші поточні видатки | B58: 2800 | C58: 360 | D58: 0 | E58: 0 | F58: 0 | G58: 0 | H58: 0 | I58: 0 | J58: 0
A59: Капітальні видатки | B59: 3000 | C59: 370 | D59: =D60+D74 -> 0 | E59: 0 | F59: 0 | G59: 0 | H59: 0 | I59: 0 | J59: 0
A60: Придбання основного капіталу | B60: 3100 | C60: 380 | D60: =D61+D62+D65+D68+D72+D73 -> 0 | E60: 0 | F60: 0 | G60: 0 | H60: 0 | I60: 0 | J60: 0
A61: Придбання обладнання і предметів довгострокового користування | B61: 3110 | C61: 390 | D61: 0 | E61: 0 | F61: 0 | G61: 0 | H61: 0 | I61: 0 | J61: 0
A62: Капітальне будівництво (придбання) | B62: 3120 | C62: 400 | D62: =SUM(D63:D64) -> 0 | E62: 0 | F62: 0 | G62: 0 | H62: 0 | I62: 0 | J62: 0
A63: Капітальне будівництво (придбання) житла | B63: 3121 | C63: 410 | D63: 0 | E63: 0 | F63: 0 | G63: 0 | H63: 0 | I63: 0 | J63: 0
A64: Капітальне будівництво (придбання) інших об’єктів | B64: 3122 | C64: 420 | D64: 0 | E64: 0 | F64: 0 | G64: 0 | H64: 0 | I64: 0 | J64: 0
A65: Капітальний ремонт | B65: 3130 | C65: 430 | D65: =SUM(D66:D67) -> 0 | E65: 0 | F65: 0 | G65: 0 | H65: 0 | I65: 0 | J65: 0
A66: Капітальний ремонт житлового фонду (приміщень) | B66: 3131 | C66: 440 | D66: 0 | E66: 0 | F66: 0 | G66: 0 | H66: 0 | I66: 0 | J66: 0
A67: Капітальний ремонт інших об’єктів | B67: 3132 | C67: 450 | D67: 0 | E67: 0 | F67: 0 | G67: 0 | H67: 0 | I67: 0 | J67: 0
A68: Реконструкція та реставрація | B68: 3140 | C68: 460 | D68: =SUM(D69:D71) -> 0 | E68: 0 | F68: 0 | G68: 0 | H68: 0 | I68: 0 | J68: 0
A69: Реконструкція житлового фонду (приміщень) | B69: 3141 | C69: 470 | D69: 0 | E69: 0 | F69: 0 | G69: 0 | H69: 0 | I69: 0 | J69: 0
A70: Реконструкція та реставрація інших об’єктів | B70: 3142 | C70: 480 | D70: 0 | E70: 0 | F70: 0 | G70: 0 | H70: 0 | I70: 0 | J70: 0
A71: Реставрація пам’яток культури, історії та архітектури | B71: 3143 | C71: 490 | D71: 0 | E71: 0 | F71: 0 | G71: 0 | H71: 0 | I71: 0 | J71: 0
A72: Створення державних запасів і резервів | B72: 3150 | C72: 500 | D72: 0 | E72: 0 | F72: 0 | G72: 0 | H72: 0 | I72: 0 | J72: 0
A73: Придбання землі та нематеріальних активів | B73: 3160 | C73: 510 | D73: 0 | E73: 0 | F73: 0 | G73: 0 | H73: 0 | I73: 0 | J73: 0
A74: Капітальні трансферти | B74: 3200 | C74: 520 | D74: =SUM(D75:D78) -> 0 | E74: 0 | F74: 0 | G74: 0 | H74: 0 | I74: 0 | J74: 0
A75: Капітальні трансферти підприємствам (установам, організаціям) | B75: 3210 | C75: 530 | D75: 0 | E75: 0 | F75: 0 | G75: 0 | H75: 0 | I75: 0 | J75: 0
A76: Капітальні трансферти органам державного управління інших рівнів | B76: 3220 | C76: 540 | D76: 0 | E76: 0 | F76: 0 | G76: 0 | H76: 0 | I76: 0 | J76: 0
A77: Капітальні трансферти урядам іноземних держав та міжнародним організаціям | B77: 3230 | C77: 550 | D77: 0 | E77: 0 | F77: 0 | G77: 0 | H77: 0 | I77: 0 | J77: 0
A78: Капітальні трансферти населенню | B78: 3240 | C78: 560 | D78: 0 | E78: 0 | F78: 0 | G78: 0 | H78: 0 | I78: 0 | J78: 0
A79: Внутрішнє кредитування | B79: 4100 | C79: 570 | D79: =SUM(D80) -> 0 | E79: 0 | F79: 0 | G79: 0 | H79: 0 | I79: 0 | J79: 0
A80: Надання внутрішніх кредитів | B80: 4110 | C80: 580 | D80: =SUM(D81:D83) -> 0 | E80: 0 | F80: 0 | G80: 0 | H80: 0 | I80: 0 | J80: 0
A81: Надання кредитів органам державного управління інших рівнів | B81: 4111 | C81: 590 | D81: 0 | E81: 0 | F81: 0 | G81: 0 | H81: 0 | I81: 0 | J81: 0
A82: Надання кредитів підприємствам, установам, організаціям | B82: 4112 | C82: 600 | D82: 0 | E82: 0 | F82: 0 | G82: 0 | H82: 0 | I82: 0 | J82: 0
A83: Надання інших внутрішніх кредитів | B83: 4113 | C83: 610 | D83: 0 | E83: 0 | F83: 0 | G83: 0 | H83: 0 | I83: 0 | J83: 0
A84: Зовнішнє кредитування | B84: 4200 | C84: 620 | D84: =D85 -> 0 | E84: 0 | F84: 0 | G84: 0 | H84: 0 | I84: 0 | J84: 0
A85: Надання зовнішніх кредитів | B85: 4210 | C85: 630 | D85: 0 | E85: 0 | F85: 0 | G85: 0 | H85: 0 | I85: 0 | J85: 0
A86: Інші видатки | B86: 5000 | C86: 640 | D86: X | E86: 0 | F86: X | G86: X | H86: X | I86: X | J86: X
A87: Нерозподілені видатки | B87: 9000 | C87: 650 | D87: 0 | E87: 0 | F87: 0 | G87: 0 | H87: 0 | I87: 0 | J87: 0
C88: 650
A100: 1 Заповнюється розпорядниками бюджетних коштів.
A101: =ЗАПОЛНИТЬ!F30 -> Керівник | G101: =ЗАПОЛНИТЬ!F26 -> Нєтков Р.В.
D102: (підпис) | G102: (ініціали, прізвище)
A103: =ЗАПОЛНИТЬ!F31 -> Головний бухгалтер | G103: =ЗАПОЛНИТЬ!F28 -> Саватєєва О.І.
A104: =ЗАПОЛНИТЬ!C19 -> "08" жовтня 2018 року | D104: (підпис) | G104: (ініціали, прізвище)

Sheet Ф.2.20 (hidden)
G1: Додаток 1 до Порядку складання бюджетної звітності розпорядниками та одержувачами бюджетних коштів, звітності фондами загальнообов’язкового державного соціального і пенсійного страхування (пункт 1 розділу ІІ)
A4: ЗВІТ
A5: =IF(ЗАПОЛНИТЬ!$F$7=1,CONCATENATE(шапки!A2),CONCATENATE(шапки!A2,шапки!C2)) -> про надходження та використання коштів загального фонду (форма №2д, | G5: =IF(ЗАПОЛНИТЬ!$F$7=1,шапки!C2,шапки!D2) -> №2м) | H5: =IF(ЗАПОЛНИТЬ!$F$7=1,шапки!D2,"") -> 
A6: =CONCATENATE("за ",ЗАПОЛНИТЬ!$B$17," ",ЗАПОЛНИТЬ!$C$17) -> за ІІІ квартал 2018 р.
J7: коди
A9: Установа | B9: =ЗАПОЛНИТЬ!B3 -> Комунальний заклад "Орлівська загальноосвітня школа І-ІІІ ступенів" Приморської районної ради Запорізької області | H9: за ЄДРПОУ | J9: =ЗАПОЛНИТЬ!B13 -> 26291242
A10: Територія | B10: =ЗАПОЛНИТЬ!B5 -> с.Орлівка Приморського району Запорізької області | H10: за КОАТУУ | J10: =ЗАПОЛНИТЬ!B14 -> 232484201
A11: Організаційно-правова форма господарювання | B11: =ЗАПОЛНИТЬ!D15 -> Комунальна організація (установа, заклад) | H11: за КОПФГ | J11: =ЗАПОЛНИТЬ!B15 -> 430
A12: Код та назва відомчої класифікації видатків та кредитування державного бюджету | D12: =ЗАПОЛНИТЬ!H9 -> 0 | E12: =IF(D12>0,VLOOKUP(D12,'ДовидникКВК(ГОС)'!A:B,2,FALSE),"") -> 
A13: Код та назва програмної класифікації видатків та кредитування державного бюджету | E13: =IF(D13>0,VLOOKUP(D13,ДовидникКПК!B:C,2,FALSE),"") -> 
A14: Код та назва типової відомчої класифікації видатків та кредитування місцевих бюджетів | D14: =ЗАПОЛНИТЬ!H10 -> 06 | E14: =ЗАПОЛНИТЬ!I10 -> Відділ освіти Приморського района Запорізької області
A15: Код та назва програмної класифікації видатків та кредитування місцевих бюджетів (код та назва Типової програмної класифікації видатків та кредитування місцевих бюджетів / Тимчасової класифікації видатків та кредитування для бюджетів місцевого самоврядування, які не застосовують програмно-цільового методу) | D15: - | E15: =VLOOKUP(RIGHT(D15,4),КПКВМБ!A:B,2,FALSE) -> -
A16: Періодичність: квартальна, річна
A17: Одиниця виміру: грн, коп.
A19: Показники | B19: КЕКВ та/або ККК | C19: Код рядка | D19: Затверджено на звітний рік | E19: Затверджено на звітний період (рік)1 | F19: Залишок на початок звітного року | G19: Надійшло коштів за звітний період (рік) | H19: Касові за звітний період (рік) | I19: Фактичні за звітний період (рік) | J19: Залишок на кінець звітного періоду (року)
A22: 1 | B22: 2 | C22: 3 | D22: 4 | E22: 5 | F22: 6 | G22: 7 | H22: 8 | I22: 9 | J22: 9
A23: Видатки та надання кредитів - усього | B23: Х | C23: 010 | D23: =D24+D59+D79+D84+D87 -> 0 | E23: =E26+E29+E32+E33+E37+E45+E46+E86+E54 -> 0 | F23: =F24+F59+F79+F84+F87 -> 0 | G23: =G24+G59+G79+G84+G87 -> 0 | H23: =H24+H59+H79+H84+H87 -> 0 | I23: =I24+I59+I79+I84+I87 -> 0 | J23: =F23+G23-H23 -> 0
A24: у тому числі: Поточні видатки | B24: 2000 | C24: 020 | D24: =D25+D30+D47+D50+D54+D58 -> 0 | E24: 0 | F24: 0 | G24: 0 | H24: 0 | I24: 0 | J24: =F24+G24-H24 -> 0
A25: Оплата праці і нарахування на заробітну плату | B25: 2100 | C25: 030 | D25: =D26+D29 -> 0 | E25: 0 | F25: =F26+F29 -> 0 | G25: =G26+G29 -> 0 | H25: =H26+H29 -> 0 | I25: =I26+I29 -> 0 | J25: 0
A26: Оплата праці | B26: 2110 | C26: 040 | D26: =SUM(D27:D28) -> 0 | E26: 0 | F26: 0 | G26: 0 | H26: 0 | I26: 0 | J26: 0
A27: Заробітна плата | B27: 2111 | C27: 050 | D27: 0 | E27: 0 | F27: 0 | G27: 0 | H27: 0 | I27: 0 | J27: 0
A28: Грошове забезпечення військовослужбовців | B28: 2112 | C28: 060 | D28: 0 | E28: 0 | F28: 0 | G28: 0 | H28: 0 | I28: 0 | J28: 0
A29: Нарахування на оплату праці | B29: 2120 | C29: 070 | D29: 0 | E29: 0 | F29: 0 | G29: 0 | H29: 0 | I29: 0 | J29: 0
A30: Використання товарів і послуг | B30: 2200 | C30: 080 | D30: =SUM(D31:D37)+D44 -> 0 | E30: 0 | F30: =SUM(F31:F37)+F44 -> 0 | G30: =SUM(G31:G37)+G44 -> 0 | H30: =SUM(H31:H37)+H44 -> 0 | I30: =SUM(I31:I37)+I44 -> 0 | J30: 0
A31: Предмети, матеріали, обладнання та інвентар | B31: 2210 | C31: 090 | D31: 0 | E31: 0 | F31: 0 | G31: 0 | H31: 0 | I31: 0 | J31: 0
A32: Медикаменти та перев’язувальні матеріали | B32: 2220 | C32: 100 | D32: 0 | E32: 0 | F32: 0 | G32: 0 | H32: 0 | I32: 0 | J32: 0
A33: Продукти харчування | B33: 2230 | C33: 110 | D33: 0 | E33: 0 | F33: 0 | G33: 0 | H33: 0 | I33: 0 | J33: 0
A34: Оплата послуг (крім комунальних) | B34: 2240 | C34: 120 | D34: 0 | E34: 0 | F34: 0 | G34: 0 | H34: 0 | I34: 0 | J34: 0
A35: Видатки на відрядження | B35: 2250 | C35: 130 | D35: 0 | E35: 0 | F35: 0 | G35: 0 | H35: 0 | I35: 0 | J35: 0
A36: Видатки та заходи спеціального призначення | B36: 2260 | C36: 140 | D36: 0 | E36: 0 | F36: 0 | G36: 0 | H36: 0 | I36: 0 | J36: 0
A37: Оплата комунальних послуг та енергоносіїв | B37: 2270 | C37: 150 | D37: =SUM(D38:D43) -> 0 | E37: 0 | F37: =SUM(F38:F43) -> 0 | G37: =SUM(G38:G43) -> 0 | H37: =SUM(H38:H43) -> 0 | I37: =SUM(I38:I43) -> 0 | J37: =F37+G37-H37 -> 0
A38: Оплата теплопостачання | B38: 2271 | C38: 160 | D38: 0 | E38: 0 | F38: 0 | G38: 0 | H38: 0 | I38: 0 | J38: 0
A39: Оплата водопостачання та водовідведення | B39: 2272 | C39: 170 | D39: 0 | E39: 0 | F39: 0 | G39: 0 | H39: 0 | I39: 0 | J39: 0
A40: Оплата електроенергії | B40: 2273 | C40: 180 | D40: 0 | E40: 0 | F40: 0 | G40: 0 | H40: 0 | I40: 0 | J40: 0
A41: Оплата природного газу | B41: 2274 | C41: 190 | D41: 0 | E41: 0 | F41: 0 | G41: 0 | H41: 0 | I41: 0 | J41: 0
A42: Оплата інших енергоносіїв | B42: 2275 | C42: 200 | D42: 0 | E42: 0 | F42: 0 | G42: 0 | H42: 0 | I42: 0 | J42: 0
A43: Оплата енергосервісу | B43: 2276 | C43: 210 | D43: 0 | E43: 0 | F43: 0 | G43: 0 | H43: 0 | I43: 0 | J43: =F43+G43-H43 -> 0
A44: Дослідження і розробки, окремі заходи по реалізації державних (регіональних) програм | B44: 2280 | C44: 220 | D44: =SUM(D45:D46) -> 0 | E44: 0 | F44: =SUM(F45:F46) -> 0 | G44: =SUM(G45:G46) -> 0 | H44: =SUM(H45:H46) -> 0 | I44: =SUM(I45:I46) -> 0 | J44: 0
A45: Дослідження і розробки, окремі заходи розвитку по реалізації державних (регіональних) програм | B45: 2281 | C45: 230 | D45: 0 | E45: 0 | F45: 0 | G45: 0 | H45: 0 | I45: 0 | J45: 0
A46: Окремі заходи по реалізації державних (регіональних) програм, не віднесені до заходів розвитку | B46: 2282 | C46: 240 | D46: 0 | E46: 0 | F46: 0 | G46: 0 | H46: 0 | I46: 0 | J46: 0
A47: Обслуговування боргових зобов’язань | B47: 2400 | C47: 250 | D47: =SUM(D48:D49) -> 0 | E47: 0 | F47: 0 | G47: 0 | H47: 0 | I47: 0 | J47: 0
A48: Обслуговування внутрішніх боргових зобов’язань | B48: 2410 | C48: 260 | D48: 0 | E48: 0 | F48: 0 | G48: 0 | H48: 0 | I48: 0 | J48: 0
A49: Обслуговування зовнішніх боргових зобов’язань | B49: 2420 | C49: 270 | D49: 0 | E49: 0 | F49: 0 | G49: 0 | H49: 0 | I49: 0 | J49: 0
A50: Поточні трансферти | B50: 2600 | C50: 280 | D50: =SUM(D51:D53) -> 0 | E50: 0 | F50: 0 | G50: 0 | H50: 0 | I50: 0 | J50: 0
A51: Субсидії та поточні трансферти підприємствам (установам, організаціям) | B51: 2610 | C51: 290 | D51: 0 | E51: 0 | F51: 0 | G51: 0 | H51: 0 | I51: 0 | J51: 0
A52: Поточні трансферти органам державного управління інших рівнів | B52: 2620 | C52: 300 | D52: 0 | E52: 0 | F52: 0 | G52: 0 | H52: 0 | I52: 0 | J52: 0
A53: Поточні трансферти урядам іноземних держав та міжнародним організаціям | B53: 2630 | C53: 310 | D53: 0 | E53: 0 | F53: 0 | G53: 0 | H53: 0 | I53: 0 | J53: 0
A54: Соціальне забезпечення | B54: 2700 | C54: 320 | D54: =SUM(D55:D57) -> 0 | E54: 0 | F54: 0 | G54: 0 | H54: 0 | I54: 0 | J54: 0
A55: Виплата пенсій і допомоги | B55: 2710 | C55: 330 | D55: 0 | E55: 0 | F55: 0 | G55: 0 | H55: 0 | I55: 0 | J55: 0
A56: Стипендії | B56: 2720 | C56: 340 | D56: 0 | E56: 0 | F56: 0 | G56: 0 | H56: 0 | I56: 0 | J56: 0
A57: Інші виплати населенню | B57: 2730 | C57: 350 | D57: 0 | E57: 0 | F57: 0 | G57: 0 | H57: 0 | I57: 0 | J57: 0
A58: Інші поточні видатки | B58: 2800 | C58: 360 | D58: 0 | E58: 0 | F58: 0 | G58: 0 | H58: 0 | I58: 0 | J58: 0
A59: Капітальні видатки | B59: 3000 | C59: 370 | D59: =D60+D74 -> 0 | E59: 0 | F59: 0 | G59: 0 | H59: 0 | I59: 0 | J59: 0
A60: Придбання основного капіталу | B60: 3100 | C60: 380 | D60: =D61+D62+D65+D68+D72+D73 -> 0 | E60: 0 | F60: 0 | G60: 0 | H60: 0 | I60: 0 | J60: 0
A61: Придбання обладнання і предметів довгострокового користування | B61: 3110 | C61: 390 | D61: 0 | E61: 0 | F61: 0 | G61: 0 | H61: 0 | I61: 0 | J61: 0
A62: Капітальне будівництво (придбання) | B62: 3120 | C62: 400 | D62: =SUM(D63:D64) -> 0 | E62: 0 | F62: 0 | G62: 0 | H62: 0 | I62: 0 | J62: 0
A63: Капітальне будівництво (придбання) житла | B63: 3121 | C63: 410 | D63: 0 | E63: 0 | F63: 0 | G63: 0 | H63: 0 | I63: 0 | J63: 0
A64: Капітальне будівництво (придбання) інших об’єктів | B64: 3122 | C64: 420 | D64: 0 | E64: 0 | F64: 0 | G64: 0 | H64: 0 | I64: 0 | J64: 0
A65: Капітальний ремонт | B65: 3130 | C65: 430 | D65: =SUM(D66:D67) -> 0 | E65: 0 | F65: 0 | G65: 0 | H65: 0 | I65: 0 | J65: 0
A66: Капітальний ремонт житлового фонду (приміщень) | B66: 3131 | C66: 440 | D66: 0 | E66: 0 | F66: 0 | G66: 0 | H66: 0 | I66: 0 | J66: 0
A67: Капітальний ремонт інших об’єктів | B67: 3132 | C67: 450 | D67: 0 | E67: 0 | F67: 0 | G67: 0 | H67: 0 | I67: 0 | J67: 0
A68: Реконструкція та реставрація | B68: 3140 | C68: 460 | D68: =SUM(D69:D71) -> 0 | E68: 0 | F68: 0 | G68: 0 | H68: 0 | I68: 0 | J68: 0
A69: Реконструкція житлового фонду (приміщень) | B69: 3141 | C69: 470 | D69: 0 | E69: 0 | F69: 0 | G69: 0 | H69: 0 | I69: 0 | J69: 0
A70: Реконструкція та реставрація інших об’єктів | B70: 3142 | C70: 480 | D70: 0 | E70: 0 | F70: 0 | G70: 0 | H70: 0 | I70: 0 | J70: 0
A71: Реставрація пам’яток культури, історії та архітектури | B71: 3143 | C71: 490 | D71: 0 | E71: 0 | F71: 0 | G71: 0 | H71: 0 | I71: 0 | J71: 0
A72: Створення державних запасів і резервів | B72: 3150 | C72: 500 | D72: 0 | E72: 0 | F72: 0 | G72: 0 | H72: 0 | I72: 0 | J72: 0
A73: Придбання землі та нематеріальних активів | B73: 3160 | C73: 510 | D73: 0 | E73: 0 | F73: 0 | G73: 0 | H73: 0 | I73: 0 | J73: 0
A74: Капітальні трансферти | B74: 3200 | C74: 520 | D74: =SUM(D75:D78) -> 0 | E74: 0 | F74: 0 | G74: 0 | H74: 0 | I74: 0 | J74: 0
A75: Капітальні трансферти підприємствам (установам, організаціям) | B75: 3210 | C75: 530 | D75: 0 | E75: 0 | F75: 0 | G75: 0 | H75: 0 | I75: 0 | J75: 0
A76: Капітальні трансферти органам державного управління інших рівнів | B76: 3220 | C76: 540 | D76: 0 | E76: 0 | F76: 0 | G76: 0 | H76: 0 | I76: 0 | J76: 0
A77: Капітальні трансферти урядам іноземних держав та міжнародним організаціям | B77: 3230 | C77: 550 | D77: 0 | E77: 0 | F77: 0 | G77: 0 | H77: 0 | I77: 0 | J77: 0
A78: Капітальні трансферти населенню | B78: 3240 | C78: 560 | D78: 0 | E78: 0 | F78: 0 | G78: 0 | H78: 0 | I78: 0 | J78: 0
A79: Внутрішнє кредитування | B79: 4100 | C79: 570 | D79: =SUM(D80) -> 0 | E79: 0 | F79: 0 | G79: 0 | H79: 0 | I79: 0 | J79: 0
A80: Надання внутрішніх кредитів | B80: 4110 | C80: 580 | D80: =SUM(D81:D83) -> 0 | E80: 0 | F80: 0 | G80: 0 | H80: 0 | I80: 0 | J80: 0
A81: Надання кредитів органам державного управління інших рівнів | B81: 4111 | C81: 590 | D81: 0 | E81: 0 | F81: 0 | G81: 0 | H81: 0 | I81: 0 | J81: 0
A82: Надання кредитів підприємствам, установам, організаціям | B82: 4112 | C82: 600 | D82: 0 | E82: 0 | F82: 0 | G82: 0 | H82: 0 | I82: 0 | J82: 0
A83: Надання інших внутрішніх кредитів | B83: 4113 | C83: 610 | D83: 0 | E83: 0 | F83: 0 | G83: 0 | H83: 0 | I83: 0 | J83: 0
A84: Зовнішнє кредитування | B84: 4200 | C84: 620 | D84: =D85 -> 0 | E84: 0 | F84: 0 | G84: 0 | H84: 0 | I84: 0 | J84: 0
A85: Надання зовнішніх кредитів | B85: 4210 | C85: 630 | D85: 0 | E85: 0 | F85: 0 | G85: 0 | H85: 0 | I85: 0 | J85: 0
A86: Інші видатки | B86: 5000 | C86: 640 | D86: X | E86: 0 | F86: X | G86: X | H86: X | I86: X | J86: X
A87: Нерозподілені видатки | B87: 9000 | C87: 650 | D87: 0 | E87: 0 | F87: 0 | G87: 0 | H87: 0 | I87: 0 | J87: 0
C88: 650
A100: 1 Заповнюється розпорядниками бюджетних коштів.
A101: =ЗАПОЛНИТЬ!F30 -> Керівник | G101: =ЗАПОЛНИТЬ!F26 -> Нєтков Р.В.
D102: (підпис) | G102: (ініціали, прізвище)
A103: =ЗАПОЛНИТЬ!F31 -> Головний бухгалтер | G103: =ЗАПОЛНИТЬ!F28 -> Саватєєва О.І.
A104: =ЗАПОЛНИТЬ!C19 -> "08" жовтня 2018 року | D104: (підпис) | G104: (ініціали, прізвище)

Sheet Ф.2.21 (hidden)
G1: Додаток 1 до Порядку складання бюджетної звітності розпорядниками та одержувачами бюджетних коштів, звітності фондами загальнообов’язкового державного соціального і пенсійного страхування (пункт 1 розділу ІІ)
A4: ЗВІТ
A5: =IF(ЗАПОЛНИТЬ!$F$7=1,CONCATENATE(шапки!A2),CONCATENATE(шапки!A2,шапки!C2)) -> про надходження та використання коштів загального фонду (форма №2д, | G5: =IF(ЗАПОЛНИТЬ!$F$7=1,шапки!C2,шапки!D2) -> №2м) | H5: =IF(ЗАПОЛНИТЬ!$F$7=1,шапки!D2,"") -> 
A6: =CONCATENATE("за ",ЗАПОЛНИТЬ!$B$17," ",ЗАПОЛНИТЬ!$C$17) -> за ІІІ квартал 2018 р.
J7: коди
A9: Установа | B9: =ЗАПОЛНИТЬ!B3 -> Комунальний заклад "Орлівська загальноосвітня школа І-ІІІ ступенів" Приморської районної ради Запорізької області | H9: за ЄДРПОУ | J9: =ЗАПОЛНИТЬ!B13 -> 26291242
A10: Територія | B10: =ЗАПОЛНИТЬ!B5 -> с.Орлівка Приморського району Запорізької області | H10: за КОАТУУ | J10: =ЗАПОЛНИТЬ!B14 -> 232484201
A11: Організаційно-правова форма господарювання | B11: =ЗАПОЛНИТЬ!D15 -> Комунальна організація (установа, заклад) | H11: за КОПФГ | J11: =ЗАПОЛНИТЬ!B15 -> 430
A12: Код та назва відомчої класифікації видатків та кредитування державного бюджету | D12: =ЗАПОЛНИТЬ!H9 -> 0 | E12: =IF(D12>0,VLOOKUP(D12,'ДовидникКВК(ГОС)'!A:B,2,FALSE),"") -> 
A13: Код та назва програмної класифікації видатків та кредитування державного бюджету | E13: =IF(D13>0,VLOOKUP(D13,ДовидникКПК!B:C,2,FALSE),"") -> 
A14: Код та назва типової відомчої класифікації видатків та кредитування місцевих бюджетів | D14: =ЗАПОЛНИТЬ!H10 -> 06 | E14: =ЗАПОЛНИТЬ!I10 -> Відділ освіти Приморського района Запорізької області
A15: Код та назва програмної класифікації видатків та кредитування місцевих бюджетів (код та назва Типової програмної класифікації видатків та кредитування місцевих бюджетів / Тимчасової класифікації видатків та кредитування для бюджетів місцевого самоврядування, які не застосовують програмно-цільового методу) | D15: - | E15: =VLOOKUP(RIGHT(D15,4),КПКВМБ!A:B,2,FALSE) -> -
A16: Періодичність: квартальна, річна
A17: Одиниця виміру: грн, коп.
A19: Показники | B19: КЕКВ та/або ККК | C19: Код рядка | D19: Затверджено на звітний рік | E19: Затверджено на звітний період (рік)1 | F19: Залишок на початок звітного року | G19: Надійшло коштів за звітний період (рік) | H19: Касові за звітний період (рік) | I19: Фактичні за звітний період (рік) | J19: Залишок на кінець звітного періоду (року)
A22: 1 | B22: 2 | C22: 3 | D22: 4 | E22: 5 | F22: 6 | G22: 7 | H22: 8 | I22: 9 | J22: 9
A23: Видатки та надання кредитів - усього | B23: Х | C23: 010 | D23: =D24+D59+D79+D84+D87 -> 0 | E23: =E26+E29+E32+E33+E37+E45+E46+E86+E54 -> 0 | F23: =F24+F59+F79+F84+F87 -> 0 | G23: =G24+G59+G79+G84+G87 -> 0 | H23: =H24+H59+H79+H84+H87 -> 0 | I23: =I24+I59+I79+I84+I87 -> 0 | J23: =F23+G23-H23 -> 0
A24: у тому числі: Поточні видатки | B24: 2000 | C24: 020 | D24: =D25+D30+D47+D50+D54+D58 -> 0 | E24: 0 | F24: 0 | G24: 0 | H24: 0 | I24: 0 | J24: =F24+G24-H24 -> 0
A25: Оплата праці і нарахування на заробітну плату | B25: 2100 | C25: 030 | D25: =D26+D29 -> 0 | E25: 0 | F25: =F26+F29 -> 0 | G25: =G26+G29 -> 0 | H25: =H26+H29 -> 0 | I25: =I26+I29 -> 0 | J25: 0
A26: Оплата праці | B26: 2110 | C26: 040 | D26: =SUM(D27:D28) -> 0 | E26: 0 | F26: 0 | G26: 0 | H26: 0 | I26: 0 | J26: 0
A27: Заробітна плата | B27: 2111 | C27: 050 | D27: 0 | E27: 0 | F27: 0 | G27: 0 | H27: 0 | I27: 0 | J27: 0
A28: Грошове забезпечення військовослужбовців | B28: 2112 | C28: 060 | D28: 0 | E28: 0 | F28: 0 | G28: 0 | H28: 0 | I28: 0 | J28: 0
A29: Нарахування на оплату праці | B29: 2120 | C29: 070 | D29: 0 | E29: 0 | F29: 0 | G29: 0 | H29: 0 | I29: 0 | J29: 0
A30: Використання товарів і послуг | B30: 2200 | C30: 080 | D30: =SUM(D31:D37)+D44 -> 0 | E30: 0 | F30: =SUM(F31:F37)+F44 -> 0 | G30: =SUM(G31:G37)+G44 -> 0 | H30: =SUM(H31:H37)+H44 -> 0 | I30: =SUM(I31:I37)+I44 -> 0 | J30: 0
A31: Предмети, матеріали, обладнання та інвентар | B31: 2210 | C31: 090 | D31: 0 | E31: 0 | F31: 0 | G31: 0 | H31: 0 | I31: 0 | J31: 0
A32: Медикаменти та перев’язувальні матеріали | B32: 2220 | C32: 100 | D32: 0 | E32: 0 | F32: 0 | G32: 0 | H32: 0 | I32: 0 | J32: 0
A33: Продукти харчування | B33: 2230 | C33: 110 | D33: 0 | E33: 0 | F33: 0 | G33: 0 | H33: 0 | I33: 0 | J33: 0
A34: Оплата послуг (крім комунальних) | B34: 2240 | C34: 120 | D34: 0 | E34: 0 | F34: 0 | G34: 0 | H34: 0 | I34: 0 | J34: 0
A35: Видатки на відрядження | B35: 2250 | C35: 130 | D35: 0 | E35: 0 | F35: 0 | G35: 0 | H35: 0 | I35: 0 | J35: 0
A36: Видатки та заходи спеціального призначення | B36: 2260 | C36: 140 | D36: 0 | E36: 0 | F36: 0 | G36: 0 | H36: 0 | I36: 0 | J36: 0
A37: Оплата комунальних послуг та енергоносіїв | B37: 2270 | C37: 150 | D37: =SUM(D38:D43) -> 0 | E37: 0 | F37: =SUM(F38:F43) -> 0 | G37: =SUM(G38:G43) -> 0 | H37: =SUM(H38:H43) -> 0 | I37: =SUM(I38:I43) -> 0 | J37: =F37+G37-H37 -> 0
A38: Оплата теплопостачання | B38: 2271 | C38: 160 | D38: 0 | E38: 0 | F38: 0 | G38: 0 | H38: 0 | I38: 0 | J38: 0
A39: Оплата водопостачання та водовідведення | B39: 2272 | C39: 170 | D39: 0 | E39: 0 | F39: 0 | G39: 0 | H39: 0 | I39: 0 | J39: 0
A40: Оплата електроенергії | B40: 2273 | C40: 180 | D40: 0 | E40: 0 | F40: 0 | G40: 0 | H40: 0 | I40: 0 | J40: 0
A41: Оплата природного газу | B41: 2274 | C41: 190 | D41: 0 | E41: 0 | F41: 0 | G41: 0 | H41: 0 | I41: 0 | J41: 0
A42: Оплата інших енергоносіїв | B42: 2275 | C42: 200 | D42: 0 | E42: 0 | F42: 0 | G42: 0 | H42: 0 | I42: 0 | J42: 0
A43: Оплата енергосервісу | B43: 2276 | C43: 210 | D43: 0 | E43: 0 | F43: 0 | G43: 0 | H43: 0 | I43: 0 | J43: =F43+G43-H43 -> 0
A44: Дослідження і розробки, окремі заходи по реалізації державних (регіональних) програм | B44: 2280 | C44: 220 | D44: =SUM(D45:D46) -> 0 | E44: 0 | F44: =SUM(F45:F46) -> 0 | G44: =SUM(G45:G46) -> 0 | H44: =SUM(H45:H46) -> 0 | I44: =SUM(I45:I46) -> 0 | J44: 0
A45: Дослідження і розробки, окремі заходи розвитку по реалізації державних (регіональних) програм | B45: 2281 | C45: 230 | D45: 0 | E45: 0 | F45: 0 | G45: 0 | H45: 0 | I45: 0 | J45: 0
A46: Окремі заходи по реалізації державних (регіональних) програм, не віднесені до заходів розвитку | B46: 2282 | C46: 240 | D46: 0 | E46: 0 | F46: 0 | G46: 0 | H46: 0 | I46: 0 | J46: 0
A47: Обслуговування боргових зобов’язань | B47: 2400 | C47: 250 | D47: =SUM(D48:D49) -> 0 | E47: 0 | F47: 0 | G47: 0 | H47: 0 | I47: 0 | J47: 0
A48: Обслуговування внутрішніх боргових зобов’язань | B48: 2410 | C48: 260 | D48: 0 | E48: 0 | F48: 0 | G48: 0 | H48: 0 | I48: 0 | J48: 0
A49: Обслуговування зовнішніх боргових зобов’язань | B49: 2420 | C49: 270 | D49: 0 | E49: 0 | F49: 0 | G49: 0 | H49: 0 | I49: 0 | J49: 0
A50: Поточні трансферти | B50: 2600 | C50: 280 | D50: =SUM(D51:D53) -> 0 | E50: 0 | F50: 0 | G50: 0 | H50: 0 | I50: 0 | J50: 0
A51: Субсидії та поточні трансферти підприємствам (установам, організаціям) | B51: 2610 | C51: 290 | D51: 0 | E51: 0 | F51: 0 | G51: 0 | H51: 0 | I51: 0 | J51: 0
A52: Поточні трансферти органам державного управління інших рівнів | B52: 2620 | C52: 300 | D52: 0 | E52: 0 | F52: 0 | G52: 0 | H52: 0 | I52: 0 | J52: 0
A53: Поточні трансферти урядам іноземних держав та міжнародним організаціям | B53: 2630 | C53: 310 | D53: 0 | E53: 0 | F53: 0 | G53: 0 | H53: 0 | I53: 0 | J53: 0
A54: Соціальне забезпечення | B54: 2700 | C54: 320 | D54: =SUM(D55:D57) -> 0 | E54: 0 | F54: 0 | G54: 0 | H54: 0 | I54: 0 | J54: 0
A55: Виплата пенсій і допомоги | B55: 2710 | C55: 330 | D55: 0 | E55: 0 | F55: 0 | G55: 0 | H55: 0 | I55: 0 | J55: 0
A56: Стипендії | B56: 2720 | C56: 340 | D56: 0 | E56: 0 | F56: 0 | G56: 0 | H56: 0 | I56: 0 | J56: 0
A57: Інші виплати населенню | B57: 2730 | C57: 350 | D57: 0 | E57: 0 | F57: 0 | G57: 0 | H57: 0 | I57: 0 | J57: 0
A58: Інші поточні видатки | B58: 2800 | C58: 360 | D58: 0 | E58: 0 | F58: 0 | G58: 0 | H58: 0 | I58: 0 | J58: 0
A59: Капітальні видатки | B59: 3000 | C59: 370 | D59: =D60+D74 -> 0 | E59: 0 | F59: 0 | G59: 0 | H59: 0 | I59: 0 | J59: 0
A60: Придбання основного капіталу | B60: 3100 | C60: 380 | D60: =D61+D62+D65+D68+D72+D73 -> 0 | E60: 0 | F60: 0 | G60: 0 | H60: 0 | I60: 0 | J60: 0
A61: Придбання обладнання і предметів довгострокового користування | B61: 3110 | C61: 390 | D61: 0 | E61: 0 | F61: 0 | G61: 0 | H61: 0 | I61: 0 | J61: 0
A62: Капітальне будівництво (придбання) | B62: 3120 | C62: 400 | D62: =SUM(D63:D64) -> 0 | E62: 0 | F62: 0 | G62: 0 | H62: 0 | I62: 0 | J62: 0
A63: Капітальне будівництво (придбання) житла | B63: 3121 | C63: 410 | D63: 0 | E63: 0 | F63: 0 | G63: 0 | H63: 0 | I63: 0 | J63: 0
A64: Капітальне будівництво (придбання) інших об’єктів | B64: 3122 | C64: 420 | D64: 0 | E64: 0 | F64: 0 | G64: 0 | H64: 0 | I64: 0 | J64: 0
A65: Капітальний ремонт | B65: 3130 | C65: 430 | D65: =SUM(D66:D67) -> 0 | E65: 0 | F65: 0 | G65: 0 | H65: 0 | I65: 0 | J65: 0
A66: Капітальний ремонт житлового фонду (приміщень) | B66: 3131 | C66: 440 | D66: 0 | E66: 0 | F66: 0 | G66: 0 | H66: 0 | I66: 0 | J66: 0
A67: Капітальний ремонт інших об’єктів | B67: 3132 | C67: 450 | D67: 0 | E67: 0 | F67: 0 | G67: 0 | H67: 0 | I67: 0 | J67: 0
A68: Реконструкція та реставрація | B68: 3140 | C68: 460 | D68: =SUM(D69:D71) -> 0 | E68: 0 | F68: 0 | G68: 0 | H68: 0 | I68: 0 | J68: 0
A69: Реконструкція житлового фонду (приміщень) | B69: 3141 | C69: 470 | D69: 0 | E69: 0 | F69: 0 | G69: 0 | H69: 0 | I69: 0 | J69: 0
A70: Реконструкція та реставрація інших об’єктів | B70: 3142 | C70: 480 | D70: 0 | E70: 0 | F70: 0 | G70: 0 | H70: 0 | I70: 0 | J70: 0
A71: Реставрація пам’яток культури, історії та архітектури | B71: 3143 | C71: 490 | D71: 0 | E71: 0 | F71: 0 | G71: 0 | H71: 0 | I71: 0 | J71: 0
A72: Створення державних запасів і резервів | B72: 3150 | C72: 500 | D72: 0 | E72: 0 | F72: 0 | G72: 0 | H72: 0 | I72: 0 | J72: 0
A73: Придбання землі та нематеріальних активів | B73: 3160 | C73: 510 | D73: 0 | E73: 0 | F73: 0 | G73: 0 | H73: 0 | I73: 0 | J73: 0
A74: Капітальні трансферти | B74: 3200 | C74: 520 | D74: =SUM(D75:D78) -> 0 | E74: 0 | F74: 0 | G74: 0 | H74: 0 | I74: 0 | J74: 0
A75: Капітальні трансферти підприємствам (установам, організаціям) | B75: 3210 | C75: 530 | D75: 0 | E75: 0 | F75: 0 | G75: 0 | H75: 0 | I75: 0 | J75: 0
A76: Капітальні трансферти органам державного управління інших рівнів | B76: 3220 | C76: 540 | D76: 0 | E76: 0 | F76: 0 | G76: 0 | H76: 0 | I76: 0 | J76: 0
A77: Капітальні трансферти урядам іноземних держав та міжнародним організаціям | B77: 3230 | C77: 550 | D77: 0 | E77: 0 | F77: 0 | G77: 0 | H77: 0 | I77: 0 | J77: 0
A78: Капітальні трансферти населенню | B78: 3240 | C78: 560 | D78: 0 | E78: 0 | F78: 0 | G78: 0 | H78: 0 | I78: 0 | J78: 0
A79: Внутрішнє кредитування | B79: 4100 | C79: 570 | D79: =SUM(D80) -> 0 | E79: 0 | F79: 0 | G79: 0 | H79: 0 | I79: 0 | J79: 0
A80: Надання внутрішніх кредитів | B80: 4110 | C80: 580 | D80: =SUM(D81:D83) -> 0 | E80: 0 | F80: 0 | G80: 0 | H80: 0 | I80: 0 | J80: 0
A81: Надання кредитів органам державного управління інших рівнів | B81: 4111 | C81: 590 | D81: 0 | E81: 0 | F81: 0 | G81: 0 | H81: 0 | I81: 0 | J81: 0
A82: Надання кредитів підприємствам, установам, організаціям | B82: 4112 | C82: 600 | D82: 0 | E82: 0 | F82: 0 | G82: 0 | H82: 0 | I82: 0 | J82: 0
A83: Надання інших внутрішніх кредитів | B83: 4113 | C83: 610 | D83: 0 | E83: 0 | F83: 0 | G83: 0 | H83: 0 | I83: 0 | J83: 0
A84: Зовнішнє кредитування | B84: 4200 | C84: 620 | D84: =D85 -> 0 | E84: 0 | F84: 0 | G84: 0 | H84: 0 | I84: 0 | J84: 0
A85: Надання зовнішніх кредитів | B85: 4210 | C85: 630 | D85: 0 | E85: 0 | F85: 0 | G85: 0 | H85: 0 | I85: 0 | J85: 0
A86: Інші видатки | B86: 5000 | C86: 640 | D86: X | E86: 0 | F86: X | G86: X | H86: X | I86: X | J86: X
A87: Нерозподілені видатки | B87: 9000 | C87: 650 | D87: 0 | E87: 0 | F87: 0 | G87: 0 | H87: 0 | I87: 0 | J87: 0
C88: 650
A100: 1 Заповнюється розпорядниками бюджетних коштів.
A101: =ЗАПОЛНИТЬ!F30 -> Керівник | G101: =ЗАПОЛНИТЬ!F26 -> Нєтков Р.В.
D102: (підпис) | G102: (ініціали, прізвище)
A103: =ЗАПОЛНИТЬ!F31 -> Головний бухгалтер | G103: =ЗАПОЛНИТЬ!F28 -> Саватєєва О.І.
A104: =ЗАПОЛНИТЬ!C19 -> "08" жовтня 2018 року | D104: (підпис) | G104: (ініціали, прізвище)

Sheet Ф.2.22 (hidden)
G1: Додаток 1 до Порядку складання бюджетної звітності розпорядниками та одержувачами бюджетних коштів, звітності фондами загальнообов’язкового державного соціального і пенсійного страхування (пункт 1 розділу ІІ)
A4: ЗВІТ
A5: =IF(ЗАПОЛНИТЬ!$F$7=1,CONCATENATE(шапки!A2),CONCATENATE(шапки!A2,шапки!C2)) -> про надходження та використання коштів загального фонду (форма №2д, | G5: =IF(ЗАПОЛНИТЬ!$F$7=1,шапки!C2,шапки!D2) -> №2м) | H5: =IF(ЗАПОЛНИТЬ!$F$7=1,шапки!D2,"") -> 
A6: =CONCATENATE("за ",ЗАПОЛНИТЬ!$B$17," ",ЗАПОЛНИТЬ!$C$17) -> за ІІІ квартал 2018 р.
J7: коди
A9: Установа | B9: =ЗАПОЛНИТЬ!B3 -> Комунальний заклад "Орлівська загальноосвітня школа І-ІІІ ступенів" Приморської районної ради Запорізької області | H9: за ЄДРПОУ | J9: =ЗАПОЛНИТЬ!B13 -> 26291242
A10: Територія | B10: =ЗАПОЛНИТЬ!B5 -> с.Орлівка Приморського району Запорізької області | H10: за КОАТУУ | J10: =ЗАПОЛНИТЬ!B14 -> 232484201
A11: Організаційно-правова форма господарювання | B11: =ЗАПОЛНИТЬ!D15 -> Комунальна організація (установа, заклад) | H11: за КОПФГ | J11: =ЗАПОЛНИТЬ!B15 -> 430
A12: Код та назва відомчої класифікації видатків та кредитування державного бюджету | D12: =ЗАПОЛНИТЬ!H9 -> 0 | E12: =IF(D12>0,VLOOKUP(D12,'ДовидникКВК(ГОС)'!A:B,2,FALSE),"") -> 
A13: Код та назва програмної класифікації видатків та кредитування державного бюджету | E13: =IF(D13>0,VLOOKUP(D13,ДовидникКПК!B:C,2,FALSE),"") -> 
A14: Код та назва типової відомчої класифікації видатків та кредитування місцевих бюджетів | D14: =ЗАПОЛНИТЬ!H10 -> 06 | E14: =ЗАПОЛНИТЬ!I10 -> Відділ освіти Приморського района Запорізької області
A15: Код та назва програмної класифікації видатків та кредитування місцевих бюджетів (код та назва Типової програмної класифікації видатків та кредитування місцевих бюджетів / Тимчасової класифікації видатків та кредитування для бюджетів місцевого самоврядування, які не застосовують програмно-цільового методу) | D15: - | E15: =VLOOKUP(RIGHT(D15,4),КПКВМБ!A:B,2,FALSE) -> -
A16: Періодичність: квартальна, річна
A17: Одиниця виміру: грн, коп.
A19: Показники | B19: КЕКВ та/або ККК | C19: Код рядка | D19: Затверджено на звітний рік | E19: Затверджено на звітний період (рік)1 | F19: Залишок на початок звітного року | G19: Надійшло коштів за звітний період (рік) | H19: Касові за звітний період (рік) | I19: Фактичні за звітний період (рік) | J19: Залишок на кінець звітного періоду (року)
A22: 1 | B22: 2 | C22: 3 | D22: 4 | E22: 5 | F22: 6 | G22: 7 | H22: 8 | I22: 9 | J22: 9
A23: Видатки та надання кредитів - усього | B23: Х | C23: 010 | D23: =D24+D59+D79+D84+D87 -> 0 | E23: =E26+E29+E32+E33+E37+E45+E46+E86+E54 -> 0 | F23: =F24+F59+F79+F84+F87 -> 0 | G23: =G24+G59+G79+G84+G87 -> 0 | H23: =H24+H59+H79+H84+H87 -> 0 | I23: =I24+I59+I79+I84+I87 -> 0 | J23: =F23+G23-H23 -> 0
A24: у тому числі: Поточні видатки | B24: 2000 | C24: 020 | D24: =D25+D30+D47+D50+D54+D58 -> 0 | E24: 0 | F24: 0 | G24: 0 | H24: 0 | I24: 0 | J24: =F24+G24-H24 -> 0
A25: Оплата праці і нарахування на заробітну плату | B25: 2100 | C25: 030 | D25: =D26+D29 -> 0 | E25: 0 | F25: =F26+F29 -> 0 | G25: =G26+G29 -> 0 | H25: =H26+H29 -> 0 | I25: =I26+I29 -> 0 | J25: 0
A26: Оплата праці | B26: 2110 | C26: 040 | D26: =SUM(D27:D28) -> 0 | E26: 0 | F26: 0 | G26: 0 | H26: 0 | I26: 0 | J26: 0
A27: Заробітна плата | B27: 2111 | C27: 050 | D27: 0 | E27: 0 | F27: 0 | G27: 0 | H27: 0 | I27: 0 | J27: 0
A28: Грошове забезпечення військовослужбовців | B28: 2112 | C28: 060 | D28: 0 | E28: 0 | F28: 0 | G28: 0 | H28: 0 | I28: 0 | J28: 0
A29: Нарахування на оплату праці | B29: 2120 | C29: 070 | D29: 0 | E29: 0 | F29: 0 | G29: 0 | H29: 0 | I29: 0 | J29: 0
A30: Використання товарів і послуг | B30: 2200 | C30: 080 | D30: =SUM(D31:D37)+D44 -> 0 | E30: 0 | F30: =SUM(F31:F37)+F44 -> 0 | G30: =SUM(G31:G37)+G44 -> 0 | H30: =SUM(H31:H37)+H44 -> 0 | I30: =SUM(I31:I37)+I44 -> 0 | J30: 0
A31: Предмети, матеріали, обладнання та інвентар | B31: 2210 | C31: 090 | D31: 0 | E31: 0 | F31: 0 | G31: 0 | H31: 0 | I31: 0 | J31: 0
A32: Медикаменти та перев’язувальні матеріали | B32: 2220 | C32: 100 | D32: 0 | E32: 0 | F32: 0 | G32: 0 | H32: 0 | I32: 0 | J32: 0
A33: Продукти харчування | B33: 2230 | C33: 110 | D33: 0 | E33: 0 | F33: 0 | G33: 0 | H33: 0 | I33: 0 | J33: 0
A34: Оплата послуг (крім комунальних) | B34: 2240 | C34: 120 | D34: 0 | E34: 0 | F34: 0 | G34: 0 | H34: 0 | I34: 0 | J34: 0
A35: Видатки на відрядження | B35: 2250 | C35: 130 | D35: 0 | E35: 0 | F35: 0 | G35: 0 | H35: 0 | I35: 0 | J35: 0
A36: Видатки та заходи спеціального призначення | B36: 2260 | C36: 140 | D36: 0 | E36: 0 | F36: 0 | G36: 0 | H36: 0 | I36: 0 | J36: 0
A37: Оплата комунальних послуг та енергоносіїв | B37: 2270 | C37: 150 | D37: =SUM(D38:D43) -> 0 | E37: 0 | F37: =SUM(F38:F43) -> 0 | G37: =SUM(G38:G43) -> 0 | H37: =SUM(H38:H43) -> 0 | I37: =SUM(I38:I43) -> 0 | J37: =F37+G37-H37 -> 0
A38: Оплата теплопостачання | B38: 2271 | C38: 160 | D38: 0 | E38: 0 | F38: 0 | G38: 0 | H38: 0 | I38: 0 | J38: 0
A39: Оплата водопостачання та водовідведення | B39: 2272 | C39: 170 | D39: 0 | E39: 0 | F39: 0 | G39: 0 | H39: 0 | I39: 0 | J39: 0
A40: Оплата електроенергії | B40: 2273 | C40: 180 | D40: 0 | E40: 0 | F40: 0 | G40: 0 | H40: 0 | I40: 0 | J40: 0
A41: Оплата природного газу | B41: 2274 | C41: 190 | D41: 0 | E41: 0 | F41: 0 | G41: 0 | H41: 0 | I41: 0 | J41: 0
A42: Оплата інших енергоносіїв | B42: 2275 | C42: 200 | D42: 0 | E42: 0 | F42: 0 | G42: 0 | H42: 0 | I42: 0 | J42: 0
A43: Оплата енергосервісу | B43: 2276 | C43: 210 | D43: 0 | E43: 0 | F43: 0 | G43: 0 | H43: 0 | I43: 0 | J43: =F43+G43-H43 -> 0
A44: Дослідження і розробки, окремі заходи по реалізації державних (регіональних) програм | B44: 2280 | C44: 220 | D44: =SUM(D45:D46) -> 0 | E44: 0 | F44: =SUM(F45:F46) -> 0 | G44: =SUM(G45:G46) -> 0 | H44: =SUM(H45:H46) -> 0 | I44: =SUM(I45:I46) -> 0 | J44: 0
A45: Дослідження і розробки, окремі заходи розвитку по реалізації державних (регіональних) програм | B45: 2281 | C45: 230 | D45: 0 | E45: 0 | F45: 0 | G45: 0 | H45: 0 | I45: 0 | J45: 0
A46: Окремі заходи по реалізації державних (регіональних) програм, не віднесені до заходів розвитку | B46: 2282 | C46: 240 | D46: 0 | E46: 0 | F46: 0 | G46: 0 | H46: 0 | I46: 0 | J46: 0
A47: Обслуговування боргових зобов’язань | B47: 2400 | C47: 250 | D47: =SUM(D48:D49) -> 0 | E47: 0 | F47: 0 | G47: 0 | H47: 0 | I47: 0 | J47: 0
A48: Обслуговування внутрішніх боргових зобов’язань | B48: 2410 | C48: 260 | D48: 0 | E48: 0 | F48: 0 | G48: 0 | H48: 0 | I48: 0 | J48: 0
A49: Обслуговування зовнішніх боргових зобов’язань | B49: 2420 | C49: 270 | D49: 0 | E49: 0 | F49: 0 | G49: 0 | H49: 0 | I49: 0 | J49: 0
A50: Поточні трансферти | B50: 2600 | C50: 280 | D50: =SUM(D51:D53) -> 0 | E50: 0 | F50: 0 | G50: 0 | H50: 0 | I50: 0 | J50: 0
A51: Субсидії та поточні трансферти підприємствам (установам, організаціям) | B51: 2610 | C51: 290 | D51: 0 | E51: 0 | F51: 0 | G51: 0 | H51: 0 | I51: 0 | J51: 0
A52: Поточні трансферти органам державного управління інших рівнів | B52: 2620 | C52: 300 | D52: 0 | E52: 0 | F52: 0 | G52: 0 | H52: 0 | I52: 0 | J52: 0
A53: Поточні трансферти урядам іноземних держав та міжнародним організаціям | B53: 2630 | C53: 310 | D53: 0 | E53: 0 | F53: 0 | G53: 0 | H53: 0 | I53: 0 | J53: 0
A54: Соціальне забезпечення | B54: 2700 | C54: 320 | D54: =SUM(D55:D57) -> 0 | E54: 0 | F54: 0 | G54: 0 | H54: 0 | I54: 0 | J54: 0
A55: Виплата пенсій і допомоги | B55: 2710 | C55: 330 | D55: 0 | E55: 0 | F55: 0 | G55: 0 | H55: 0 | I55: 0 | J55: 0
A56: Стипендії | B56: 2720 | C56: 340 | D56: 0 | E56: 0 | F56: 0 | G56: 0 | H56: 0 | I56: 0 | J56: 0
A57: Інші виплати населенню | B57: 2730 | C57: 350 | D57: 0 | E57: 0 | F57: 0 | G57: 0 | H57: 0 | I57: 0 | J57: 0
A58: Інші поточні видатки | B58: 2800 | C58: 360 | D58: 0 | E58: 0 | F58: 0 | G58: 0 | H58: 0 | I58: 0 | J58: 0
A59: Капітальні видатки | B59: 3000 | C59: 370 | D59: =D60+D74 -> 0 | E59: 0 | F59: 0 | G59: 0 | H59: 0 | I59: 0 | J59: 0
A60: Придбання основного капіталу | B60: 3100 | C60: 380 | D60: =D61+D62+D65+D68+D72+D73 -> 0 | E60: 0 | F60: 0 | G60: 0 | H60: 0 | I60: 0 | J60: 0
A61: Придбання обладнання і предметів довгострокового користування | B61: 3110 | C61: 390 | D61: 0 | E61: 0 | F61: 0 | G61: 0 | H61: 0 | I61: 0 | J61: 0
A62: Капітальне будівництво (придбання) | B62: 3120 | C62: 400 | D62: =SUM(D63:D64) -> 0 | E62: 0 | F62: 0 | G62: 0 | H62: 0 | I62: 0 | J62: 0
A63: Капітальне будівництво (придбання) житла | B63: 3121 | C63: 410 | D63: 0 | E63: 0 | F63: 0 | G63: 0 | H63: 0 | I63: 0 | J63: 0
A64: Капітальне будівництво (придбання) інших об’єктів | B64: 3122 | C64: 420 | D64: 0 | E64: 0 | F64: 0 | G64: 0 | H64: 0 | I64: 0 | J64: 0
A65: Капітальний ремонт | B65: 3130 | C65: 430 | D65: =SUM(D66:D67) -> 0 | E65: 0 | F65: 0 | G65: 0 | H65: 0 | I65: 0 | J65: 0
A66: Капітальний ремонт житлового фонду (приміщень) | B66: 3131 | C66: 440 | D66: 0 | E66: 0 | F66: 0 | G66: 0 | H66: 0 | I66: 0 | J66: 0
A67: Капітальний ремонт інших об’єктів | B67: 3132 | C67: 450 | D67: 0 | E67: 0 | F67: 0 | G67: 0 | H67: 0 | I67: 0 | J67: 0
A68: Реконструкція та реставрація | B68: 3140 | C68: 460 | D68: =SUM(D69:D71) -> 0 | E68: 0 | F68: 0 | G68: 0 | H68: 0 | I68: 0 | J68: 0
A69: Реконструкція житлового фонду (приміщень) | B69: 3141 | C69: 470 | D69: 0 | E69: 0 | F69: 0 | G69: 0 | H69: 0 | I69: 0 | J69: 0
A70: Реконструкція та реставрація інших об’єктів | B70: 3142 | C70: 480 | D70: 0 | E70: 0 | F70: 0 | G70: 0 | H70: 0 | I70: 0 | J70: 0
A71: Реставрація пам’яток культури, історії та архітектури | B71: 3143 | C71: 490 | D71: 0 | E71: 0 | F71: 0 | G71: 0 | H71: 0 | I71: 0 | J71: 0
A72: Створення державних запасів і резервів | B72: 3150 | C72: 500 | D72: 0 | E72: 0 | F72: 0 | G72: 0 | H72: 0 | I72: 0 | J72: 0
A73: Придбання землі та нематеріальних активів | B73: 3160 | C73: 510 | D73: 0 | E73: 0 | F73: 0 | G73: 0 | H73: 0 | I73: 0 | J73: 0
A74: Капітальні трансферти | B74: 3200 | C74: 520 | D74: =SUM(D75:D78) -> 0 | E74: 0 | F74: 0 | G74: 0 | H74: 0 | I74: 0 | J74: 0
A75: Капітальні трансферти підприємствам (установам, організаціям) | B75: 3210 | C75: 530 | D75: 0 | E75: 0 | F75: 0 | G75: 0 | H75: 0 | I75: 0 | J75: 0
A76: Капітальні трансферти органам державного управління інших рівнів | B76: 3220 | C76: 540 | D76: 0 | E76: 0 | F76: 0 | G76: 0 | H76: 0 | I76: 0 | J76: 0
A77: Капітальні трансферти урядам іноземних держав та міжнародним організаціям | B77: 3230 | C77: 550 | D77: 0 | E77: 0 | F77: 0 | G77: 0 | H77: 0 | I77: 0 | J77: 0
A78: Капітальні трансферти населенню | B78: 3240 | C78: 560 | D78: 0 | E78: 0 | F78: 0 | G78: 0 | H78: 0 | I78: 0 | J78: 0
A79: Внутрішнє кредитування | B79: 4100 | C79: 570 | D79: =SUM(D80) -> 0 | E79: 0 | F79: 0 | G79: 0 | H79: 0 | I79: 0 | J79: 0
A80: Надання внутрішніх кредитів | B80: 4110 | C80: 580 | D80: =SUM(D81:D83) -> 0 | E80: 0 | F80: 0 | G80: 0 | H80: 0 | I80: 0 | J80: 0
A81: Надання кредитів органам державного управління інших рівнів | B81: 4111 | C81: 590 | D81: 0 | E81: 0 | F81: 0 | G81: 0 | H81: 0 | I81: 0 | J81: 0
A82: Надання кредитів підприємствам, установам, організаціям | B82: 4112 | C82: 600 | D82: 0 | E82: 0 | F82: 0 | G82: 0 | H82: 0 | I82: 0 | J82: 0
A83: Надання інших внутрішніх кредитів | B83: 4113 | C83: 610 | D83: 0 | E83: 0 | F83: 0 | G83: 0 | H83: 0 | I83: 0 | J83: 0
A84: Зовнішнє кредитування | B84: 4200 | C84: 620 | D84: =D85 -> 0 | E84: 0 | F84: 0 | G84: 0 | H84: 0 | I84: 0 | J84: 0
A85: Надання зовнішніх кредитів | B85: 4210 | C85: 630 | D85: 0 | E85: 0 | F85: 0 | G85: 0 | H85: 0 | I85: 0 | J85: 0
A86: Інші видатки | B86: 5000 | C86: 640 | D86: X | E86: 0 | F86: X | G86: X | H86: X | I86: X | J86: X
A87: Нерозподілені видатки | B87: 9000 | C87: 650 | D87: 0 | E87: 0 | F87: 0 | G87: 0 | H87: 0 | I87: 0 | J87: 0
C88: 650
A100: 1 Заповнюється розпорядниками бюджетних коштів.
A101: =ЗАПОЛНИТЬ!F30 -> Керівник | G101: =ЗАПОЛНИТЬ!F26 -> Нєтков Р.В.
D102: (підпис) | G102: (ініціали, прізвище)
A103: =ЗАПОЛНИТЬ!F31 -> Головний бухгалтер | G103: =ЗАПОЛНИТЬ!F28 -> Саватєєва О.І.
A104: =ЗАПОЛНИТЬ!C19 -> "08" жовтня 2018 року | D104: (підпис) | G104: (ініціали, прізвище)

Sheet Ф.2.23 (hidden)
G1: Додаток 1 до Порядку складання бюджетної звітності розпорядниками та одержувачами бюджетних коштів, звітності фондами загальнообов’язкового державного соціального і пенсійного страхування (пункт 1 розділу ІІ)
A4: ЗВІТ
A5: =IF(ЗАПОЛНИТЬ!$F$7=1,CONCATENATE(шапки!A2),CONCATENATE(шапки!A2,шапки!C2)) -> про надходження та використання коштів загального фонду (форма №2д, | G5: =IF(ЗАПОЛНИТЬ!$F$7=1,шапки!C2,шапки!D2) -> №2м) | H5: =IF(ЗАПОЛНИТЬ!$F$7=1,шапки!D2,"") -> 
A6: =CONCATENATE("за ",ЗАПОЛНИТЬ!$B$17," ",ЗАПОЛНИТЬ!$C$17) -> за ІІІ квартал 2018 р.
J7: коди
A9: Установа | B9: =ЗАПОЛНИТЬ!B3 -> Комунальний заклад "Орлівська загальноосвітня школа І-ІІІ ступенів" Приморської районної ради Запорізької області | H9: за ЄДРПОУ | J9: =ЗАПОЛНИТЬ!B13 -> 26291242
A10: Територія | B10: =ЗАПОЛНИТЬ!B5 -> с.Орлівка Приморського району Запорізької області | H10: за КОАТУУ | J10: =ЗАПОЛНИТЬ!B14 -> 232484201
A11: Організаційно-правова форма господарювання | B11: =ЗАПОЛНИТЬ!D15 -> Комунальна організація (установа, заклад) | H11: за КОПФГ | J11: =ЗАПОЛНИТЬ!B15 -> 430
A12: Код та назва відомчої класифікації видатків та кредитування державного бюджету | D12: =ЗАПОЛНИТЬ!H9 -> 0 | E12: =IF(D12>0,VLOOKUP(D12,'ДовидникКВК(ГОС)'!A:B,2,FALSE),"") -> 
A13: Код та назва програмної класифікації видатків та кредитування державного бюджету | E13: =IF(D13>0,VLOOKUP(D13,ДовидникКПК!B:C,2,FALSE),"") -> 
A14: Код та назва типової відомчої класифікації видатків та кредитування місцевих бюджетів | D14: =ЗАПОЛНИТЬ!H10 -> 06 | E14: =ЗАПОЛНИТЬ!I10 -> Відділ освіти Приморського района Запорізької області
A15: Код та назва програмної класифікації видатків та кредитування місцевих бюджетів (код та назва Типової програмної класифікації видатків та кредитування місцевих бюджетів / Тимчасової класифікації видатків та кредитування для бюджетів місцевого самоврядування, які не застосовують програмно-цільового методу) | D15: - | E15: =VLOOKUP(RIGHT(D15,4),КПКВМБ!A:B,2,FALSE) -> -
A16: Періодичність: квартальна, річна
A17: Одиниця виміру: грн, коп.
A19: Показники | B19: КЕКВ та/або ККК | C19: Код рядка | D19: Затверджено на звітний рік | E19: Затверджено на звітний період (рік)1 | F19: Залишок на початок звітного року | G19: Надійшло коштів за звітний період (рік) | H19: Касові за звітний період (рік) | I19: Фактичні за звітний період (рік) | J19: Залишок на кінець звітного періоду (року)
A22: 1 | B22: 2 | C22: 3 | D22: 4 | E22: 5 | F22: 6 | G22: 7 | H22: 8 | I22: 9 | J22: 9
A23: Видатки та надання кредитів - усього | B23: Х | C23: 010 | D23: =D24+D59+D79+D84+D87 -> 0 | E23: =E26+E29+E32+E33+E37+E45+E46+E86+E54 -> 0 | F23: =F24+F59+F79+F84+F87 -> 0 | G23: =G24+G59+G79+G84+G87 -> 0 | H23: =H24+H59+H79+H84+H87 -> 0 | I23: =I24+I59+I79+I84+I87 -> 0 | J23: =F23+G23-H23 -> 0
A24: у тому числі: Поточні видатки | B24: 2000 | C24: 020 | D24: =D25+D30+D47+D50+D54+D58 -> 0 | E24: 0 | F24: 0 | G24: 0 | H24: 0 | I24: 0 | J24: =F24+G24-H24 -> 0
A25: Оплата праці і нарахування на заробітну плату | B25: 2100 | C25: 030 | D25: =D26+D29 -> 0 | E25: 0 | F25: =F26+F29 -> 0 | G25: =G26+G29 -> 0 | H25: =H26+H29 -> 0 | I25: =I26+I29 -> 0 | J25: 0
A26: Оплата праці | B26: 2110 | C26: 040 | D26: =SUM(D27:D28) -> 0 | E26: 0 | F26: 0 | G26: 0 | H26: 0 | I26: 0 | J26: 0
A27: Заробітна плата | B27: 2111 | C27: 050 | D27: 0 | E27: 0 | F27: 0 | G27: 0 | H27: 0 | I27: 0 | J27: 0
A28: Грошове забезпечення військовослужбовців | B28: 2112 | C28: 060 | D28: 0 | E28: 0 | F28: 0 | G28: 0 | H28: 0 | I28: 0 | J28: 0
A29: Нарахування на оплату праці | B29: 2120 | C29: 070 | D29: 0 | E29: 0 | F29: 0 | G29: 0 | H29: 0 | I29: 0 | J29: 0
A30: Використання товарів і послуг | B30: 2200 | C30: 080 | D30: =SUM(D31:D37)+D44 -> 0 | E30: 0 | F30: =SUM(F31:F37)+F44 -> 0 | G30: =SUM(G31:G37)+G44 -> 0 | H30: =SUM(H31:H37)+H44 -> 0 | I30: =SUM(I31:I37)+I44 -> 0 | J30: 0
A31: Предмети, матеріали, обладнання та інвентар | B31: 2210 | C31: 090 | D31: 0 | E31: 0 | F31: 0 | G31: 0 | H31: 0 | I31: 0 | J31: 0
A32: Медикаменти та перев’язувальні матеріали | B32: 2220 | C32: 100 | D32: 0 | E32: 0 | F32: 0 | G32: 0 | H32: 0 | I32: 0 | J32: 0
A33: Продукти харчування | B33: 2230 | C33: 110 | D33: 0 | E33: 0 | F33: 0 | G33: 0 | H33: 0 | I33: 0 | J33: 0
A34: Оплата послуг (крім комунальних) | B34: 2240 | C34: 120 | D34: 0 | E34: 0 | F34: 0 | G34: 0 | H34: 0 | I34: 0 | J34: 0
A35: Видатки на відрядження | B35: 2250 | C35: 130 | D35: 0 | E35: 0 | F35: 0 | G35: 0 | H35: 0 | I35: 0 | J35: 0
A36: Видатки та заходи спеціального призначення | B36: 2260 | C36: 140 | D36: 0 | E36: 0 | F36: 0 | G36: 0 | H36: 0 | I36: 0 | J36: 0
A37: Оплата комунальних послуг та енергоносіїв | B37: 2270 | C37: 150 | D37: =SUM(D38:D43) -> 0 | E37: 0 | F37: =SUM(F38:F43) -> 0 | G37: =SUM(G38:G43) -> 0 | H37: =SUM(H38:H43) -> 0 | I37: =SUM(I38:I43) -> 0 | J37: =F37+G37-H37 -> 0
A38: Оплата теплопостачання | B38: 2271 | C38: 160 | D38: 0 | E38: 0 | F38: 0 | G38: 0 | H38: 0 | I38: 0 | J38: 0
A39: Оплата водопостачання та водовідведення | B39: 2272 | C39: 170 | D39: 0 | E39: 0 | F39: 0 | G39: 0 | H39: 0 | I39: 0 | J39: 0
A40: Оплата електроенергії | B40: 2273 | C40: 180 | D40: 0 | E40: 0 | F40: 0 | G40: 0 | H40: 0 | I40: 0 | J40: 0
A41: Оплата природного газу | B41: 2274 | C41: 190 | D41: 0 | E41: 0 | F41: 0 | G41: 0 | H41: 0 | I41: 0 | J41: 0
A42: Оплата інших енергоносіїв | B42: 2275 | C42: 200 | D42: 0 | E42: 0 | F42: 0 | G42: 0 | H42: 0 | I42: 0 | J42: 0
A43: Оплата енергосервісу | B43: 2276 | C43: 210 | D43: 0 | E43: 0 | F43: 0 | G43: 0 | H43: 0 | I43: 0 | J43: =F43+G43-H43 -> 0
A44: Дослідження і розробки, окремі заходи по реалізації державних (регіональних) програм | B44: 2280 | C44: 220 | D44: =SUM(D45:D46) -> 0 | E44: 0 | F44: =SUM(F45:F46) -> 0 | G44: =SUM(G45:G46) -> 0 | H44: =SUM(H45:H46) -> 0 | I44: =SUM(I45:I46) -> 0 | J44: 0
A45: Дослідження і розробки, окремі заходи розвитку по реалізації державних (регіональних) програм | B45: 2281 | C45: 230 | D45: 0 | E45: 0 | F45: 0 | G45: 0 | H45: 0 | I45: 0 | J45: 0
A46: Окремі заходи по реалізації державних (регіональних) програм, не віднесені до заходів розвитку | B46: 2282 | C46: 240 | D46: 0 | E46: 0 | F46: 0 | G46: 0 | H46: 0 | I46: 0 | J46: 0
A47: Обслуговування боргових зобов’язань | B47: 2400 | C47: 250 | D47: =SUM(D48:D49) -> 0 | E47: 0 | F47: 0 | G47: 0 | H47: 0 | I47: 0 | J47: 0
A48: Обслуговування внутрішніх боргових зобов’язань | B48: 2410 | C48: 260 | D48: 0 | E48: 0 | F48: 0 | G48: 0 | H48: 0 | I48: 0 | J48: 0
A49: Обслуговування зовнішніх боргових зобов’язань | B49: 2420 | C49: 270 | D49: 0 | E49: 0 | F49: 0 | G49: 0 | H49: 0 | I49: 0 | J49: 0
A50: Поточні трансферти | B50: 2600 | C50: 280 | D50: =SUM(D51:D53) -> 0 | E50: 0 | F50: 0 | G50: 0 | H50: 0 | I50: 0 | J50: 0
A51: Субсидії та поточні трансферти підприємствам (установам, організаціям) | B51: 2610 | C51: 290 | D51: 0 | E51: 0 | F51: 0 | G51: 0 | H51: 0 | I51: 0 | J51: 0
A52: Поточні трансферти органам державного управління інших рівнів | B52: 2620 | C52: 300 | D52: 0 | E52: 0 | F52: 0 | G52: 0 | H52: 0 | I52: 0 | J52: 0
A53: Поточні трансферти урядам іноземних держав та міжнародним організаціям | B53: 2630 | C53: 310 | D53: 0 | E53: 0 | F53: 0 | G53: 0 | H53: 0 | I53: 0 | J53: 0
A54: Соціальне забезпечення | B54: 2700 | C54: 320 | D54: =SUM(D55:D57) -> 0 | E54: 0 | F54: 0 | G54: 0 | H54: 0 | I54: 0 | J54: 0
A55: Виплата пенсій і допомоги | B55: 2710 | C55: 330 | D55: 0 | E55: 0 | F55: 0 | G55: 0 | H55: 0 | I55: 0 | J55: 0
A56: Стипендії | B56: 2720 | C56: 340 | D56: 0 | E56: 0 | F56: 0 | G56: 0 | H56: 0 | I56: 0 | J56: 0
A57: Інші виплати населенню | B57: 2730 | C57: 350 | D57: 0 | E57: 0 | F57: 0 | G57: 0 | H57: 0 | I57: 0 | J57: 0
A58: Інші поточні видатки | B58: 2800 | C58: 360 | D58: 0 | E58: 0 | F58: 0 | G58: 0 | H58: 0 | I58: 0 | J58: 0
A59: Капітальні видатки | B59: 3000 | C59: 370 | D59: =D60+D74 -> 0 | E59: 0 | F59: 0 | G59: 0 | H59: 0 | I59: 0 | J59: 0
A60: Придбання основного капіталу | B60: 3100 | C60: 380 | D60: =D61+D62+D65+D68+D72+D73 -> 0 | E60: 0 | F60: 0 | G60: 0 | H60: 0 | I60: 0 | J60: 0
A61: Придбання обладнання і предметів довгострокового користування | B61: 3110 | C61: 390 | D61: 0 | E61: 0 | F61: 0 | G61: 0 | H61: 0 | I61: 0 | J61: 0
A62: Капітальне будівництво (придбання) | B62: 3120 | C62: 400 | D62: =SUM(D63:D64) -> 0 | E62: 0 | F62: 0 | G62: 0 | H62: 0 | I62: 0 | J62: 0
A63: Капітальне будівництво (придбання) житла | B63: 3121 | C63: 410 | D63: 0 | E63: 0 | F63: 0 | G63: 0 | H63: 0 | I63: 0 | J63: 0
A64: Капітальне будівництво (придбання) інших об’єктів | B64: 3122 | C64: 420 | D64: 0 | E64: 0 | F64: 0 | G64: 0 | H64: 0 | I64: 0 | J64: 0
A65: Капітальний ремонт | B65: 3130 | C65: 430 | D65: =SUM(D66:D67) -> 0 | E65: 0 | F65: 0 | G65: 0 | H65: 0 | I65: 0 | J65: 0
A66: Капітальний ремонт житлового фонду (приміщень) | B66: 3131 | C66: 440 | D66: 0 | E66: 0 | F66: 0 | G66: 0 | H66: 0 | I66: 0 | J66: 0
A67: Капітальний ремонт інших об’єктів | B67: 3132 | C67: 450 | D67: 0 | E67: 0 | F67: 0 | G67: 0 | H67: 0 | I67: 0 | J67: 0
A68: Реконструкція та реставрація | B68: 3140 | C68: 460 | D68: =SUM(D69:D71) -> 0 | E68: 0 | F68: 0 | G68: 0 | H68: 0 | I68: 0 | J68: 0
A69: Реконструкція житлового фонду (приміщень) | B69: 3141 | C69: 470 | D69: 0 | E69: 0 | F69: 0 | G69: 0 | H69: 0 | I69: 0 | J69: 0
A70: Реконструкція та реставрація інших об’єктів | B70: 3142 | C70: 480 | D70: 0 | E70: 0 | F70: 0 | G70: 0 | H70: 0 | I70: 0 | J70: 0
A71: Реставрація пам’яток культури, історії та архітектури | B71: 3143 | C71: 490 | D71: 0 | E71: 0 | F71: 0 | G71: 0 | H71: 0 | I71: 0 | J71: 0
A72: Створення державних запасів і резервів | B72: 3150 | C72: 500 | D72: 0 | E72: 0 | F72: 0 | G72: 0 | H72: 0 | I72: 0 | J72: 0
A73: Придбання землі та нематеріальних активів | B73: 3160 | C73: 510 | D73: 0 | E73: 0 | F73: 0 | G73: 0 | H73: 0 | I73: 0 | J73: 0
A74: Капітальні трансферти | B74: 3200 | C74: 520 | D74: =SUM(D75:D78) -> 0 | E74: 0 | F74: 0 | G74: 0 | H74: 0 | I74: 0 | J74: 0
A75: Капітальні трансферти підприємствам (установам, організаціям) | B75: 3210 | C75: 530 | D75: 0 | E75: 0 | F75: 0 | G75: 0 | H75: 0 | I75: 0 | J75: 0
A76: Капітальні трансферти органам державного управління інших рівнів | B76: 3220 | C76: 540 | D76: 0 | E76: 0 | F76: 0 | G76: 0 | H76: 0 | I76: 0 | J76: 0
A77: Капітальні трансферти урядам іноземних держав та міжнародним організаціям | B77: 3230 | C77: 550 | D77: 0 | E77: 0 | F77: 0 | G77: 0 | H77: 0 | I77: 0 | J77: 0
A78: Капітальні трансферти населенню | B78: 3240 | C78: 560 | D78: 0 | E78: 0 | F78: 0 | G78: 0 | H78: 0 | I78: 0 | J78: 0
A79: Внутрішнє кредитування | B79: 4100 | C79: 570 | D79: =SUM(D80) -> 0 | E79: 0 | F79: 0 | G79: 0 | H79: 0 | I79: 0 | J79: 0
A80: Надання внутрішніх кредитів | B80: 4110 | C80: 580 | D80: =SUM(D81:D83) -> 0 | E80: 0 | F80: 0 | G80: 0 | H80: 0 | I80: 0 | J80: 0
A81: Надання кредитів органам державного управління інших рівнів | B81: 4111 | C81: 590 | D81: 0 | E81: 0 | F81: 0 | G81: 0 | H81: 0 | I81: 0 | J81: 0
A82: Надання кредитів підприємствам, установам, організаціям | B82: 4112 | C82: 600 | D82: 0 | E82: 0 | F82: 0 | G82: 0 | H82: 0 | I82: 0 | J82: 0
A83: Надання інших внутрішніх кредитів | B83: 4113 | C83: 610 | D83: 0 | E83: 0 | F83: 0 | G83: 0 | H83: 0 | I83: 0 | J83: 0
A84: Зовнішнє кредитування | B84: 4200 | C84: 620 | D84: =D85 -> 0 | E84: 0 | F84: 0 | G84: 0 | H84: 0 | I84: 0 | J84: 0
A85: Надання зовнішніх кредитів | B85: 4210 | C85: 630 | D85: 0 | E85: 0 | F85: 0 | G85: 0 | H85: 0 | I85: 0 | J85: 0
A86: Інші видатки | B86: 5000 | C86: 640 | D86: X | E86: 0 | F86: X | G86: X | H86: X | I86: X | J86: X
A87: Нерозподілені видатки | B87: 9000 | C87: 650 | D87: 0 | E87: 0 | F87: 0 | G87: 0 | H87: 0 | I87: 0 | J87: 0
C88: 650
A100: 1 Заповнюється розпорядниками бюджетних коштів.
A101: =ЗАПОЛНИТЬ!F30 -> Керівник | G101: =ЗАПОЛНИТЬ!F26 -> Нєтков Р.В.
D102: (підпис) | G102: (ініціали, прізвище)
A103: =ЗАПОЛНИТЬ!F31 -> Головний бухгалтер | G103: =ЗАПОЛНИТЬ!F28 -> Саватєєва О.І.
A104: =ЗАПОЛНИТЬ!C19 -> "08" жовтня 2018 року | D104: (підпис) | G104: (ініціали, прізвище)

Sheet Ф.2.24 (hidden)
G1: Додаток 1 до Порядку складання бюджетної звітності розпорядниками та одержувачами бюджетних коштів, звітності фондами загальнообов’язкового державного соціального і пенсійного страхування (пункт 1 розділу ІІ)
A4: ЗВІТ
A5: =IF(ЗАПОЛНИТЬ!$F$7=1,CONCATENATE(шапки!A2),CONCATENATE(шапки!A2,шапки!C2)) -> про надходження та використання коштів загального фонду (форма №2д, | G5: =IF(ЗАПОЛНИТЬ!$F$7=1,шапки!C2,шапки!D2) -> №2м) | H5: =IF(ЗАПОЛНИТЬ!$F$7=1,шапки!D2,"") -> 
A6: =CONCATENATE("за ",ЗАПОЛНИТЬ!$B$17," ",ЗАПОЛНИТЬ!$C$17) -> за ІІІ квартал 2018 р.
J7: коди
A9: Установа | B9: =ЗАПОЛНИТЬ!B3 -> Комунальний заклад "Орлівська загальноосвітня школа І-ІІІ ступенів" Приморської районної ради Запорізької області | H9: за ЄДРПОУ | J9: =ЗАПОЛНИТЬ!B13 -> 26291242
A10: Територія | B10: =ЗАПОЛНИТЬ!B5 -> с.Орлівка Приморського району Запорізької області | H10: за КОАТУУ | J10: =ЗАПОЛНИТЬ!B14 -> 232484201
A11: Організаційно-правова форма господарювання | B11: =ЗАПОЛНИТЬ!D15 -> Комунальна організація (установа, заклад) | H11: за КОПФГ | J11: =ЗАПОЛНИТЬ!B15 -> 430
A12: Код та назва відомчої класифікації видатків та кредитування державного бюджету | D12: =ЗАПОЛНИТЬ!H9 -> 0 | E12: =IF(D12>0,VLOOKUP(D12,'ДовидникКВК(ГОС)'!A:B,2,FALSE),"") -> 
A13: Код та назва програмної класифікації видатків та кредитування державного бюджету | E13: =IF(D13>0,VLOOKUP(D13,ДовидникКПК!B:C,2,FALSE),"") -> 
A14: Код та назва типової відомчої класифікації видатків та кредитування місцевих бюджетів | D14: =ЗАПОЛНИТЬ!H10 -> 06 | E14: =ЗАПОЛНИТЬ!I10 -> Відділ освіти Приморського района Запорізької області
A15: Код та назва програмної класифікації видатків та кредитування місцевих бюджетів (код та назва Типової програмної класифікації видатків та кредитування місцевих бюджетів / Тимчасової класифікації видатків та кредитування для бюджетів місцевого самоврядування, які не застосовують програмно-цільового методу) | D15: - | E15: =VLOOKUP(RIGHT(D15,4),КПКВМБ!A:B,2,FALSE) -> -
A16: Періодичність: квартальна, річна
A17: Одиниця виміру: грн, коп.
A19: Показники | B19: КЕКВ та/або ККК | C19: Код рядка | D19: Затверджено на звітний рік | E19: Затверджено на звітний період (рік)1 | F19: Залишок на початок звітного року | G19: Надійшло коштів за звітний період (рік) | H19: Касові за звітний період (рік) | I19: Фактичні за звітний період (рік) | J19: Залишок на кінець звітного періоду (року)
A22: 1 | B22: 2 | C22: 3 | D22: 4 | E22: 5 | F22: 6 | G22: 7 | H22: 8 | I22: 9 | J22: 9
A23: Видатки та надання кредитів - усього | B23: Х | C23: 010 | D23: =D24+D59+D79+D84+D87 -> 0 | E23: =E26+E29+E32+E33+E37+E45+E46+E86+E54 -> 0 | F23: =F24+F59+F79+F84+F87 -> 0 | G23: =G24+G59+G79+G84+G87 -> 0 | H23: =H24+H59+H79+H84+H87 -> 0 | I23: =I24+I59+I79+I84+I87 -> 0 | J23: =F23+G23-H23 -> 0
A24: у тому числі: Поточні видатки | B24: 2000 | C24: 020 | D24: =D25+D30+D47+D50+D54+D58 -> 0 | E24: 0 | F24: 0 | G24: 0 | H24: 0 | I24: 0 | J24: =F24+G24-H24 -> 0
A25: Оплата праці і нарахування на заробітну плату | B25: 2100 | C25: 030 | D25: =D26+D29 -> 0 | E25: 0 | F25: =F26+F29 -> 0 | G25: =G26+G29 -> 0 | H25: =H26+H29 -> 0 | I25: =I26+I29 -> 0 | J25: 0
A26: Оплата праці | B26: 2110 | C26: 040 | D26: =SUM(D27:D28) -> 0 | E26: 0 | F26: 0 | G26: 0 | H26: 0 | I26: 0 | J26: 0
A27: Заробітна плата | B27: 2111 | C27: 050 | D27: 0 | E27: 0 | F27: 0 | G27: 0 | H27: 0 | I27: 0 | J27: 0
A28: Грошове забезпечення військовослужбовців | B28: 2112 | C28: 060 | D28: 0 | E28: 0 | F28: 0 | G28: 0 | H28: 0 | I28: 0 | J28: 0
A29: Нарахування на оплату праці | B29: 2120 | C29: 070 | D29: 0 | E29: 0 | F29: 0 | G29: 0 | H29: 0 | I29: 0 | J29: 0
A30: Використання товарів і послуг | B30: 2200 | C30: 080 | D30: =SUM(D31:D37)+D44 -> 0 | E30: 0 | F30: =SUM(F31:F37)+F44 -> 0 | G30: =SUM(G31:G37)+G44 -> 0 | H30: =SUM(H31:H37)+H44 -> 0 | I30: =SUM(I31:I37)+I44 -> 0 | J30: 0
A31: Предмети, матеріали, обладнання та інвентар | B31: 2210 | C31: 090 | D31: 0 | E31: 0 | F31: 0 | G31: 0 | H31: 0 | I31: 0 | J31: 0
A32: Медикаменти та перев’язувальні матеріали | B32: 2220 | C32: 100 | D32: 0 | E32: 0 | F32: 0 | G32: 0 | H32: 0 | I32: 0 | J32: 0
A33: Продукти харчування | B33: 2230 | C33: 110 | D33: 0 | E33: 0 | F33: 0 | G33: 0 | H33: 0 | I33: 0 | J33: 0
A34: Оплата послуг (крім комунальних) | B34: 2240 | C34: 120 | D34: 0 | E34: 0 | F34: 0 | G34: 0 | H34: 0 | I34: 0 | J34: 0
A35: Видатки на відрядження | B35: 2250 | C35: 130 | D35: 0 | E35: 0 | F35: 0 | G35: 0 | H35: 0 | I35: 0 | J35: 0
A36: Видатки та заходи спеціального призначення | B36: 2260 | C36: 140 | D36: 0 | E36: 0 | F36: 0 | G36: 0 | H36: 0 | I36: 0 | J36: 0
A37: Оплата комунальних послуг та енергоносіїв | B37: 2270 | C37: 150 | D37: =SUM(D38:D43) -> 0 | E37: 0 | F37: =SUM(F38:F43) -> 0 | G37: =SUM(G38:G43) -> 0 | H37: =SUM(H38:H43) -> 0 | I37: =SUM(I38:I43) -> 0 | J37: =F37+G37-H37 -> 0
A38: Оплата теплопостачання | B38: 2271 | C38: 160 | D38: 0 | E38: 0 | F38: 0 | G38: 0 | H38: 0 | I38: 0 | J38: 0
A39: Оплата водопостачання та водовідведення | B39: 2272 | C39: 170 | D39: 0 | E39: 0 | F39: 0 | G39: 0 | H39: 0 | I39: 0 | J39: 0
A40: Оплата електроенергії | B40: 2273 | C40: 180 | D40: 0 | E40: 0 | F40: 0 | G40: 0 | H40: 0 | I40: 0 | J40: 0
A41: Оплата природного газу | B41: 2274 | C41: 190 | D41: 0 | E41: 0 | F41: 0 | G41: 0 | H41: 0 | I41: 0 | J41: 0
A42: Оплата інших енергоносіїв | B42: 2275 | C42: 200 | D42: 0 | E42: 0 | F42: 0 | G42: 0 | H42: 0 | I42: 0 | J42: 0
A43: Оплата енергосервісу | B43: 2276 | C43: 210 | D43: 0 | E43: 0 | F43: 0 | G43: 0 | H43: 0 | I43: 0 | J43: =F43+G43-H43 -> 0
A44: Дослідження і розробки, окремі заходи по реалізації державних (регіональних) програм | B44: 2280 | C44: 220 | D44: =SUM(D45:D46) -> 0 | E44: 0 | F44: =SUM(F45:F46) -> 0 | G44: =SUM(G45:G46) -> 0 | H44: =SUM(H45:H46) -> 0 | I44: =SUM(I45:I46) -> 0 | J44: 0
A45: Дослідження і розробки, окремі заходи розвитку по реалізації державних (регіональних) програм | B45: 2281 | C45: 230 | D45: 0 | E45: 0 | F45: 0 | G45: 0 | H45: 0 | I45: 0 | J45: 0
A46: Окремі заходи по реалізації державних (регіональних) програм, не віднесені до заходів розвитку | B46: 2282 | C46: 240 | D46: 0 | E46: 0 | F46: 0 | G46: 0 | H46: 0 | I46: 0 | J46: 0
A47: Обслуговування боргових зобов’язань | B47: 2400 | C47: 250 | D47: =SUM(D48:D49) -> 0 | E47: 0 | F47: 0 | G47: 0 | H47: 0 | I47: 0 | J47: 0
A48: Обслуговування внутрішніх боргових зобов’язань | B48: 2410 | C48: 260 | D48: 0 | E48: 0 | F48: 0 | G48: 0 | H48: 0 | I48: 0 | J48: 0
A49: Обслуговування зовнішніх боргових зобов’язань | B49: 2420 | C49: 270 | D49: 0 | E49: 0 | F49: 0 | G49: 0 | H49: 0 | I49: 0 | J49: 0
A50: Поточні трансферти | B50: 2600 | C50: 280 | D50: =SUM(D51:D53) -> 0 | E50: 0 | F50: 0 | G50: 0 | H50: 0 | I50: 0 | J50: 0
A51: Субсидії та поточні трансферти підприємствам (установам, організаціям) | B51: 2610 | C51: 290 | D51: 0 | E51: 0 | F51: 0 | G51: 0 | H51: 0 | I51: 0 | J51: 0
A52: Поточні трансферти органам державного управління інших рівнів | B52: 2620 | C52: 300 | D52: 0 | E52: 0 | F52: 0 | G52: 0 | H52: 0 | I52: 0 | J52: 0
A53: Поточні трансферти урядам іноземних держав та міжнародним організаціям | B53: 2630 | C53: 310 | D53: 0 | E53: 0 | F53: 0 | G53: 0 | H53: 0 | I53: 0 | J53: 0
A54: Соціальне забезпечення | B54: 2700 | C54: 320 | D54: =SUM(D55:D57) -> 0 | E54: 0 | F54: 0 | G54: 0 | H54: 0 | I54: 0 | J54: 0
A55: Виплата пенсій і допомоги | B55: 2710 | C55: 330 | D55: 0 | E55: 0 | F55: 0 | G55: 0 | H55: 0 | I55: 0 | J55: 0
A56: Стипендії | B56: 2720 | C56: 340 | D56: 0 | E56: 0 | F56: 0 | G56: 0 | H56: 0 | I56: 0 | J56: 0
A57: Інші виплати населенню | B57: 2730 | C57: 350 | D57: 0 | E57: 0 | F57: 0 | G57: 0 | H57: 0 | I57: 0 | J57: 0
A58: Інші поточні видатки | B58: 2800 | C58: 360 | D58: 0 | E58: 0 | F58: 0 | G58: 0 | H58: 0 | I58: 0 | J58: 0
A59: Капітальні видатки | B59: 3000 | C59: 370 | D59: =D60+D74 -> 0 | E59: 0 | F59: 0 | G59: 0 | H59: 0 | I59: 0 | J59: 0
A60: Придбання основного капіталу | B60: 3100 | C60: 380 | D60: =D61+D62+D65+D68+D72+D73 -> 0 | E60: 0 | F60: 0 | G60: 0 | H60: 0 | I60: 0 | J60: 0
A61: Придбання обладнання і предметів довгострокового користування | B61: 3110 | C61: 390 | D61: 0 | E61: 0 | F61: 0 | G61: 0 | H61: 0 | I61: 0 | J61: 0
A62: Капітальне будівництво (придбання) | B62: 3120 | C62: 400 | D62: =SUM(D63:D64) -> 0 | E62: 0 | F62: 0 | G62: 0 | H62: 0 | I62: 0 | J62: 0
A63: Капітальне будівництво (придбання) житла | B63: 3121 | C63: 410 | D63: 0 | E63: 0 | F63: 0 | G63: 0 | H63: 0 | I63: 0 | J63: 0
A64: Капітальне будівництво (придбання) інших об’єктів | B64: 3122 | C64: 420 | D64: 0 | E64: 0 | F64: 0 | G64: 0 | H64: 0 | I64: 0 | J64: 0
A65: Капітальний ремонт | B65: 3130 | C65: 430 | D65: =SUM(D66:D67) -> 0 | E65: 0 | F65: 0 | G65: 0 | H65: 0 | I65: 0 | J65: 0
A66: Капітальний ремонт житлового фонду (приміщень) | B66: 3131 | C66: 440 | D66: 0 | E66: 0 | F66: 0 | G66: 0 | H66: 0 | I66: 0 | J66: 0
A67: Капітальний ремонт інших об’єктів | B67: 3132 | C67: 450 | D67: 0 | E67: 0 | F67: 0 | G67: 0 | H67: 0 | I67: 0 | J67: 0
A68: Реконструкція та реставрація | B68: 3140 | C68: 460 | D68: =SUM(D69:D71) -> 0 | E68: 0 | F68: 0 | G68: 0 | H68: 0 | I68: 0 | J68: 0
A69: Реконструкція житлового фонду (приміщень) | B69: 3141 | C69: 470 | D69: 0 | E69: 0 | F69: 0 | G69: 0 | H69: 0 | I69: 0 | J69: 0
A70: Реконструкція та реставрація інших об’єктів | B70: 3142 | C70: 480 | D70: 0 | E70: 0 | F70: 0 | G70: 0 | H70: 0 | I70: 0 | J70: 0
A71: Реставрація пам’яток культури, історії та архітектури | B71: 3143 | C71: 490 | D71: 0 | E71: 0 | F71: 0 | G71: 0 | H71: 0 | I71: 0 | J71: 0
A72: Створення державних запасів і резервів | B72: 3150 | C72: 500 | D72: 0 | E72: 0 | F72: 0 | G72: 0 | H72: 0 | I72: 0 | J72: 0
A73: Придбання землі та нематеріальних активів | B73: 3160 | C73: 510 | D73: 0 | E73: 0 | F73: 0 | G73: 0 | H73: 0 | I73: 0 | J73: 0
A74: Капітальні трансферти | B74: 3200 | C74: 520 | D74: =SUM(D75:D78) -> 0 | E74: 0 | F74: 0 | G74: 0 | H74: 0 | I74: 0 | J74: 0
A75: Капітальні трансферти підприємствам (установам, організаціям) | B75: 3210 | C75: 530 | D75: 0 | E75: 0 | F75: 0 | G75: 0 | H75: 0 | I75: 0 | J75: 0
A76: Капітальні трансферти органам державного управління інших рівнів | B76: 3220 | C76: 540 | D76: 0 | E76: 0 | F76: 0 | G76: 0 | H76: 0 | I76: 0 | J76: 0
A77: Капітальні трансферти урядам іноземних держав та міжнародним організаціям | B77: 3230 | C77: 550 | D77: 0 | E77: 0 | F77: 0 | G77: 0 | H77: 0 | I77: 0 | J77: 0
A78: Капітальні трансферти населенню | B78: 3240 | C78: 560 | D78: 0 | E78: 0 | F78: 0 | G78: 0 | H78: 0 | I78: 0 | J78: 0
A79: Внутрішнє кредитування | B79: 4100 | C79: 570 | D79: =SUM(D80) -> 0 | E79: 0 | F79: 0 | G79: 0 | H79: 0 | I79: 0 | J79: 0
A80: Надання внутрішніх кредитів | B80: 4110 | C80: 580 | D80: =SUM(D81:D83) -> 0 | E80: 0 | F80: 0 | G80: 0 | H80: 0 | I80: 0 | J80: 0
A81: Надання кредитів органам державного управління інших рівнів | B81: 4111 | C81: 590 | D81: 0 | E81: 0 | F81: 0 | G81: 0 | H81: 0 | I81: 0 | J81: 0
A82: Надання кредитів підприємствам, установам, організаціям | B82: 4112 | C82: 600 | D82: 0 | E82: 0 | F82: 0 | G82: 0 | H82: 0 | I82: 0 | J82: 0
A83: Надання інших внутрішніх кредитів | B83: 4113 | C83: 610 | D83: 0 | E83: 0 | F83: 0 | G83: 0 | H83: 0 | I83: 0 | J83: 0
A84: Зовнішнє кредитування | B84: 4200 | C84: 620 | D84: =D85 -> 0 | E84: 0 | F84: 0 | G84: 0 | H84: 0 | I84: 0 | J84: 0
A85: Надання зовнішніх кредитів | B85: 4210 | C85: 630 | D85: 0 | E85: 0 | F85: 0 | G85: 0 | H85: 0 | I85: 0 | J85: 0
A86: Інші видатки | B86: 5000 | C86: 640 | D86: X | E86: 0 | F86: X | G86: X | H86: X | I86: X | J86: X
A87: Нерозподілені видатки | B87: 9000 | C87: 650 | D87: 0 | E87: 0 | F87: 0 | G87: 0 | H87: 0 | I87: 0 | J87: 0
C88: 650
A100: 1 Заповнюється розпорядниками бюджетних коштів.
A101: =ЗАПОЛНИТЬ!F30 -> Керівник | G101: =ЗАПОЛНИТЬ!F26 -> Нєтков Р.В.
D102: (підпис) | G102: (ініціали, прізвище)
A103: =ЗАПОЛНИТЬ!F31 -> Головний бухгалтер | G103: =ЗАПОЛНИТЬ!F28 -> Саватєєва О.І.
A104: =ЗАПОЛНИТЬ!C19 -> "08" жовтня 2018 року | D104: (підпис) | G104: (ініціали, прізвище)

Sheet Ф.2.25 (hidden)
G1: Додаток 1 до Порядку складання бюджетної звітності розпорядниками та одержувачами бюджетних коштів, звітності фондами загальнообов’язкового державного соціального і пенсійного страхування (пункт 1 розділу ІІ)
A4: ЗВІТ
A5: =IF(ЗАПОЛНИТЬ!$F$7=1,CONCATENATE(шапки!A2),CONCATENATE(шапки!A2,шапки!C2)) -> про надходження та використання коштів загального фонду (форма №2д, | G5: =IF(ЗАПОЛНИТЬ!$F$7=1,шапки!C2,шапки!D2) -> №2м) | H5: =IF(ЗАПОЛНИТЬ!$F$7=1,шапки!D2,"") -> 
A6: =CONCATENATE("за ",ЗАПОЛНИТЬ!$B$17," ",ЗАПОЛНИТЬ!$C$17) -> за ІІІ квартал 2018 р.
J7: коди
A9: Установа | B9: =ЗАПОЛНИТЬ!B3 -> Комунальний заклад "Орлівська загальноосвітня школа І-ІІІ ступенів" Приморської районної ради Запорізької області | H9: за ЄДРПОУ | J9: =ЗАПОЛНИТЬ!B13 -> 26291242
A10: Територія | B10: =ЗАПОЛНИТЬ!B5 -> с.Орлівка Приморського району Запорізької області | H10: за КОАТУУ | J10: =ЗАПОЛНИТЬ!B14 -> 232484201
A11: Організаційно-правова форма господарювання | B11: =ЗАПОЛНИТЬ!D15 -> Комунальна організація (установа, заклад) | H11: за КОПФГ | J11: =ЗАПОЛНИТЬ!B15 -> 430
A12: Код та назва відомчої класифікації видатків та кредитування державного бюджету | D12: =ЗАПОЛНИТЬ!H9 -> 0 | E12: =IF(D12>0,VLOOKUP(D12,'ДовидникКВК(ГОС)'!A:B,2,FALSE),"") -> 
A13: Код та назва програмної класифікації видатків та кредитування державного бюджету | E13: =IF(D13>0,VLOOKUP(D13,ДовидникКПК!B:C,2,FALSE),"") -> 
A14: Код та назва типової відомчої класифікації видатків та кредитування місцевих бюджетів | D14: =ЗАПОЛНИТЬ!H10 -> 06 | E14: =ЗАПОЛНИТЬ!I10 -> Відділ освіти Приморського района Запорізької області
A15: Код та назва програмної класифікації видатків та кредитування місцевих бюджетів (код та назва Типової програмної класифікації видатків та кредитування місцевих бюджетів / Тимчасової класифікації видатків та кредитування для бюджетів місцевого самоврядування, які не застосовують програмно-цільового методу) | D15: - | E15: =VLOOKUP(RIGHT(D15,4),КПКВМБ!A:B,2,FALSE) -> -
A16: Періодичність: квартальна, річна
A17: Одиниця виміру: грн, коп.
A19: Показники | B19: КЕКВ та/або ККК | C19: Код рядка | D19: Затверджено на звітний рік | E19: Затверджено на звітний період (рік)1 | F19: Залишок на початок звітного року | G19: Надійшло коштів за звітний період (рік) | H19: Касові за звітний період (рік) | I19: Фактичні за звітний період (рік) | J19: Залишок на кінець звітного періоду (року)
A22: 1 | B22: 2 | C22: 3 | D22: 4 | E22: 5 | F22: 6 | G22: 7 | H22: 8 | I22: 9 | J22: 9
A23: Видатки та надання кредитів - усього | B23: Х | C23: 010 | D23: =D24+D59+D79+D84+D87 -> 0 | E23: =E26+E29+E32+E33+E37+E45+E46+E86+E54 -> 0 | F23: =F24+F59+F79+F84+F87 -> 0 | G23: =G24+G59+G79+G84+G87 -> 0 | H23: =H24+H59+H79+H84+H87 -> 0 | I23: =I24+I59+I79+I84+I87 -> 0 | J23: =F23+G23-H23 -> 0
A24: у тому числі: Поточні видатки | B24: 2000 | C24: 020 | D24: =D25+D30+D47+D50+D54+D58 -> 0 | E24: 0 | F24: 0 | G24: 0 | H24: 0 | I24: 0 | J24: =F24+G24-H24 -> 0
A25: Оплата праці і нарахування на заробітну плату | B25: 2100 | C25: 030 | D25: =D26+D29 -> 0 | E25: 0 | F25: =F26+F29 -> 0 | G25: =G26+G29 -> 0 | H25: =H26+H29 -> 0 | I25: =I26+I29 -> 0 | J25: 0
A26: Оплата праці | B26: 2110 | C26: 040 | D26: =SUM(D27:D28) -> 0 | E26: 0 | F26: 0 | G26: 0 | H26: 0 | I26: 0 | J26: 0
A27: Заробітна плата | B27: 2111 | C27: 050 | D27: 0 | E27: 0 | F27: 0 | G27: 0 | H27: 0 | I27: 0 | J27: 0
A28: Грошове забезпечення військовослужбовців | B28: 2112 | C28: 060 | D28: 0 | E28: 0 | F28: 0 | G28: 0 | H28: 0 | I28: 0 | J28: 0
A29: Нарахування на оплату праці | B29: 2120 | C29: 070 | D29: 0 | E29: 0 | F29: 0 | G29: 0 | H29: 0 | I29: 0 | J29: 0
A30: Використання товарів і послуг | B30: 2200 | C30: 080 | D30: =SUM(D31:D37)+D44 -> 0 | E30: 0 | F30: =SUM(F31:F37)+F44 -> 0 | G30: =SUM(G31:G37)+G44 -> 0 | H30: =SUM(H31:H37)+H44 -> 0 | I30: =SUM(I31:I37)+I44 -> 0 | J30: 0
A31: Предмети, матеріали, обладнання та інвентар | B31: 2210 | C31: 090 | D31: 0 | E31: 0 | F31: 0 | G31: 0 | H31: 0 | I31: 0 | J31: 0
A32: Медикаменти та перев’язувальні матеріали | B32: 2220 | C32: 100 | D32: 0 | E32: 0 | F32: 0 | G32: 0 | H32: 0 | I32: 0 | J32: 0
A33: Продукти харчування | B33: 2230 | C33: 110 | D33: 0 | E33: 0 | F33: 0 | G33: 0 | H33: 0 | I33: 0 | J33: 0
A34: Оплата послуг (крім комунальних) | B34: 2240 | C34: 120 | D34: 0 | E34: 0 | F34: 0 | G34: 0 | H34: 0 | I34: 0 | J34: 0
A35: Видатки на відрядження | B35: 2250 | C35: 130 | D35: 0 | E35: 0 | F35: 0 | G35: 0 | H35: 0 | I35: 0 | J35: 0
A36: Видатки та заходи спеціального призначення | B36: 2260 | C36: 140 | D36: 0 | E36: 0 | F36: 0 | G36: 0 | H36: 0 | I36: 0 | J36: 0
A37: Оплата комунальних послуг та енергоносіїв | B37: 2270 | C37: 150 | D37: =SUM(D38:D43) -> 0 | E37: 0 | F37: =SUM(F38:F43) -> 0 | G37: =SUM(G38:G43) -> 0 | H37: =SUM(H38:H43) -> 0 | I37: =SUM(I38:I43) -> 0 | J37: =F37+G37-H37 -> 0
A38: Оплата теплопостачання | B38: 2271 | C38: 160 | D38: 0 | E38: 0 | F38: 0 | G38: 0 | H38: 0 | I38: 0 | J38: 0
A39: Оплата водопостачання та водовідведення | B39: 2272 | C39: 170 | D39: 0 | E39: 0 | F39: 0 | G39: 0 | H39: 0 | I39: 0 | J39: 0
A40: Оплата електроенергії | B40: 2273 | C40: 180 | D40: 0 | E40: 0 | F40: 0 | G40: 0 | H40: 0 | I40: 0 | J40: 0
A41: Оплата природного газу | B41: 2274 | C41: 190 | D41: 0 | E41: 0 | F41: 0 | G41: 0 | H41: 0 | I41: 0 | J41: 0
A42: Оплата інших енергоносіїв | B42: 2275 | C42: 200 | D42: 0 | E42: 0 | F42: 0 | G42: 0 | H42: 0 | I42: 0 | J42: 0
A43: Оплата енергосервісу | B43: 2276 | C43: 210 | D43: 0 | E43: 0 | F43: 0 | G43: 0 | H43: 0 | I43: 0 | J43: =F43+G43-H43 -> 0
A44: Дослідження і розробки, окремі заходи по реалізації державних (регіональних) програм | B44: 2280 | C44: 220 | D44: =SUM(D45:D46) -> 0 | E44: 0 | F44: =SUM(F45:F46) -> 0 | G44: =SUM(G45:G46) -> 0 | H44: =SUM(H45:H46) -> 0 | I44: =SUM(I45:I46) -> 0 | J44: 0
A45: Дослідження і розробки, окремі заходи розвитку по реалізації державних (регіональних) програм | B45: 2281 | C45: 230 | D45: 0 | E45: 0 | F45: 0 | G45: 0 | H45: 0 | I45: 0 | J45: 0
A46: Окремі заходи по реалізації державних (регіональних) програм, не віднесені до заходів розвитку | B46: 2282 | C46: 240 | D46: 0 | E46: 0 | F46: 0 | G46: 0 | H46: 0 | I46: 0 | J46: 0
A47: Обслуговування боргових зобов’язань | B47: 2400 | C47: 250 | D47: =SUM(D48:D49) -> 0 | E47: 0 | F47: 0 | G47: 0 | H47: 0 | I47: 0 | J47: 0
A48: Обслуговування внутрішніх боргових зобов’язань | B48: 2410 | C48: 260 | D48: 0 | E48: 0 | F48: 0 | G48: 0 | H48: 0 | I48: 0 | J48: 0
A49: Обслуговування зовнішніх боргових зобов’язань | B49: 2420 | C49: 270 | D49: 0 | E49: 0 | F49: 0 | G49: 0 | H49: 0 | I49: 0 | J49: 0
A50: Поточні трансферти | B50: 2600 | C50: 280 | D50: =SUM(D51:D53) -> 0 | E50: 0 | F50: 0 | G50: 0 | H50: 0 | I50: 0 | J50: 0
A51: Субсидії та поточні трансферти підприємствам (установам, організаціям) | B51: 2610 | C51: 290 | D51: 0 | E51: 0 | F51: 0 | G51: 0 | H51: 0 | I51: 0 | J51: 0
A52: Поточні трансферти органам державного управління інших рівнів | B52: 2620 | C52: 300 | D52: 0 | E52: 0 | F52: 0 | G52: 0 | H52: 0 | I52: 0 | J52: 0
A53: Поточні трансферти урядам іноземних держав та міжнародним організаціям | B53: 2630 | C53: 310 | D53: 0 | E53: 0 | F53: 0 | G53: 0 | H53: 0 | I53: 0 | J53: 0
A54: Соціальне забезпечення | B54: 2700 | C54: 320 | D54: =SUM(D55:D57) -> 0 | E54: 0 | F54: 0 | G54: 0 | H54: 0 | I54: 0 | J54: 0
A55: Виплата пенсій і допомоги | B55: 2710 | C55: 330 | D55: 0 | E55: 0 | F55: 0 | G55: 0 | H55: 0 | I55: 0 | J55: 0
A56: Стипендії | B56: 2720 | C56: 340 | D56: 0 | E56: 0 | F56: 0 | G56: 0 | H56: 0 | I56: 0 | J56: 0
A57: Інші виплати населенню | B57: 2730 | C57: 350 | D57: 0 | E57: 0 | F57: 0 | G57: 0 | H57: 0 | I57: 0 | J57: 0
A58: Інші поточні видатки | B58: 2800 | C58: 360 | D58: 0 | E58: 0 | F58: 0 | G58: 0 | H58: 0 | I58: 0 | J58: 0
A59: Капітальні видатки | B59: 3000 | C59: 370 | D59: =D60+D74 -> 0 | E59: 0 | F59: 0 | G59: 0 | H59: 0 | I59: 0 | J59: 0
A60: Придбання основного капіталу | B60: 3100 | C60: 380 | D60: =D61+D62+D65+D68+D72+D73 -> 0 | E60: 0 | F60: 0 | G60: 0 | H60: 0 | I60: 0 | J60: 0
A61: Придбання обладнання і предметів довгострокового користування | B61: 3110 | C61: 390 | D61: 0 | E61: 0 | F61: 0 | G61: 0 | H61: 0 | I61: 0 | J61: 0
A62: Капітальне будівництво (придбання) | B62: 3120 | C62: 400 | D62: =SUM(D63:D64) -> 0 | E62: 0 | F62: 0 | G62: 0 | H62: 0 | I62: 0 | J62: 0
A63: Капітальне будівництво (придбання) житла | B63: 3121 | C63: 410 | D63: 0 | E63: 0 | F63: 0 | G63: 0 | H63: 0 | I63: 0 | J63: 0
A64: Капітальне будівництво (придбання) інших об’єктів | B64: 3122 | C64: 420 | D64: 0 | E64: 0 | F64: 0 | G64: 0 | H64: 0 | I64: 0 | J64: 0
A65: Капітальний ремонт | B65: 3130 | C65: 430 | D65: =SUM(D66:D67) -> 0 | E65: 0 | F65: 0 | G65: 0 | H65: 0 | I65: 0 | J65: 0
A66: Капітальний ремонт житлового фонду (приміщень) | B66: 3131 | C66: 440 | D66: 0 | E66: 0 | F66: 0 | G66: 0 | H66: 0 | I66: 0 | J66: 0
A67: Капітальний ремонт інших об’єктів | B67: 3132 | C67: 450 | D67: 0 | E67: 0 | F67: 0 | G67: 0 | H67: 0 | I67: 0 | J67: 0
A68: Реконструкція та реставрація | B68: 3140 | C68: 460 | D68: =SUM(D69:D71) -> 0 | E68: 0 | F68: 0 | G68: 0 | H68: 0 | I68: 0 | J68: 0
A69: Реконструкція житлового фонду (приміщень) | B69: 3141 | C69: 470 | D69: 0 | E69: 0 | F69: 0 | G69: 0 | H69: 0 | I69: 0 | J69: 0
A70: Реконструкція та реставрація інших об’єктів | B70: 3142 | C70: 480 | D70: 0 | E70: 0 | F70: 0 | G70: 0 | H70: 0 | I70: 0 | J70: 0
A71: Реставрація пам’яток культури, історії та архітектури | B71: 3143 | C71: 490 | D71: 0 | E71: 0 | F71: 0 | G71: 0 | H71: 0 | I71: 0 | J71: 0
A72: Створення державних запасів і резервів | B72: 3150 | C72: 500 | D72: 0 | E72: 0 | F72: 0 | G72: 0 | H72: 0 | I72: 0 | J72: 0
A73: Придбання землі та нематеріальних активів | B73: 3160 | C73: 510 | D73: 0 | E73: 0 | F73: 0 | G73: 0 | H73: 0 | I73: 0 | J73: 0
A74: Капітальні трансферти | B74: 3200 | C74: 520 | D74: =SUM(D75:D78) -> 0 | E74: 0 | F74: 0 | G74: 0 | H74: 0 | I74: 0 | J74: 0
A75: Капітальні трансферти підприємствам (установам, організаціям) | B75: 3210 | C75: 530 | D75: 0 | E75: 0 | F75: 0 | G75: 0 | H75: 0 | I75: 0 | J75: 0
A76: Капітальні трансферти органам державного управління інших рівнів | B76: 3220 | C76: 540 | D76: 0 | E76: 0 | F76: 0 | G76: 0 | H76: 0 | I76: 0 | J76: 0
A77: Капітальні трансферти урядам іноземних держав та міжнародним організаціям | B77: 3230 | C77: 550 | D77: 0 | E77: 0 | F77: 0 | G77: 0 | H77: 0 | I77: 0 | J77: 0
A78: Капітальні трансферти населенню | B78: 3240 | C78: 560 | D78: 0 | E78: 0 | F78: 0 | G78: 0 | H78: 0 | I78: 0 | J78: 0
A79: Внутрішнє кредитування | B79: 4100 | C79: 570 | D79: =SUM(D80) -> 0 | E79: 0 | F79: 0 | G79: 0 | H79: 0 | I79: 0 | J79: 0
A80: Надання внутрішніх кредитів | B80: 4110 | C80: 580 | D80: =SUM(D81:D83) -> 0 | E80: 0 | F80: 0 | G80: 0 | H80: 0 | I80: 0 | J80: 0
A81: Надання кредитів органам державного управління інших рівнів | B81: 4111 | C81: 590 | D81: 0 | E81: 0 | F81: 0 | G81: 0 | H81: 0 | I81: 0 | J81: 0
A82: Надання кредитів підприємствам, установам, організаціям | B82: 4112 | C82: 600 | D82: 0 | E82: 0 | F82: 0 | G82: 0 | H82: 0 | I82: 0 | J82: 0
A83: Надання інших внутрішніх кредитів | B83: 4113 | C83: 610 | D83: 0 | E83: 0 | F83: 0 | G83: 0 | H83: 0 | I83: 0 | J83: 0
A84: Зовнішнє кредитування | B84: 4200 | C84: 620 | D84: =D85 -> 0 | E84: 0 | F84: 0 | G84: 0 | H84: 0 | I84: 0 | J84: 0
A85: Надання зовнішніх кредитів | B85: 4210 | C85: 630 | D85: 0 | E85: 0 | F85: 0 | G85: 0 | H85: 0 | I85: 0 | J85: 0
A86: Інші видатки | B86: 5000 | C86: 640 | D86: X | E86: 0 | F86: X | G86: X | H86: X | I86: X | J86: X
A87: Нерозподілені видатки | B87: 9000 | C87: 650 | D87: 0 | E87: 0 | F87: 0 | G87: 0 | H87: 0 | I87: 0 | J87: 0
C88: 650
A100: 1 Заповнюється розпорядниками бюджетних коштів.
A101: =ЗАПОЛНИТЬ!F30 -> Керівник | G101: =ЗАПОЛНИТЬ!F26 -> Нєтков Р.В.
D102: (підпис) | G102: (ініціали, прізвище)
A103: =ЗАПОЛНИТЬ!F31 -> Головний бухгалтер | G103: =ЗАПОЛНИТЬ!F28 -> Саватєєва О.І.
A104: =ЗАПОЛНИТЬ!C19 -> "08" жовтня 2018 року | D104: (підпис) | G104: (ініціали, прізвище)

Sheet Ф.2.26 (hidden)
G1: Додаток 1 до Порядку складання бюджетної звітності розпорядниками та одержувачами бюджетних коштів, звітності фондами загальнообов’язкового державного соціального і пенсійного страхування (пункт 1 розділу ІІ)
A4: ЗВІТ
A5: =IF(ЗАПОЛНИТЬ!$F$7=1,CONCATENATE(шапки!A2),CONCATENATE(шапки!A2,шапки!C2)) -> про надходження та використання коштів загального фонду (форма №2д, | G5: =IF(ЗАПОЛНИТЬ!$F$7=1,шапки!C2,шапки!D2) -> №2м) | H5: =IF(ЗАПОЛНИТЬ!$F$7=1,шапки!D2,"") -> 
A6: =CONCATENATE("за ",ЗАПОЛНИТЬ!$B$17," ",ЗАПОЛНИТЬ!$C$17) -> за ІІІ квартал 2018 р.
J7: коди
A9: Установа | B9: =ЗАПОЛНИТЬ!B3 -> Комунальний заклад "Орлівська загальноосвітня школа І-ІІІ ступенів" Приморської районної ради Запорізької області | H9: за ЄДРПОУ | J9: =ЗАПОЛНИТЬ!B13 -> 26291242
A10: Територія | B10: =ЗАПОЛНИТЬ!B5 -> с.Орлівка Приморського району Запорізької області | H10: за КОАТУУ | J10: =ЗАПОЛНИТЬ!B14 -> 232484201
A11: Організаційно-правова форма господарювання | B11: =ЗАПОЛНИТЬ!D15 -> Комунальна організація (установа, заклад) | H11: за КОПФГ | J11: =ЗАПОЛНИТЬ!B15 -> 430
A12: Код та назва відомчої класифікації видатків та кредитування державного бюджету | D12: =ЗАПОЛНИТЬ!H9 -> 0 | E12: =IF(D12>0,VLOOKUP(D12,'ДовидникКВК(ГОС)'!A:B,2,FALSE),"") -> 
A13: Код та назва програмної класифікації видатків та кредитування державного бюджету | E13: =IF(D13>0,VLOOKUP(D13,ДовидникКПК!B:C,2,FALSE),"") -> 
A14: Код та назва типової відомчої класифікації видатків та кредитування місцевих бюджетів | D14: =ЗАПОЛНИТЬ!H10 -> 06 | E14: =ЗАПОЛНИТЬ!I10 -> Відділ освіти Приморського района Запорізької області
A15: Код та назва програмної класифікації видатків та кредитування місцевих бюджетів (код та назва Типової програмної класифікації видатків та кредитування місцевих бюджетів / Тимчасової класифікації видатків та кредитування для бюджетів місцевого самоврядування, які не застосовують програмно-цільового методу) | D15: - | E15: =VLOOKUP(RIGHT(D15,4),КПКВМБ!A:B,2,FALSE) -> -
A16: Періодичність: квартальна, річна
A17: Одиниця виміру: грн, коп.
A19: Показники | B19: КЕКВ та/або ККК | C19: Код рядка | D19: Затверджено на звітний рік | E19: Затверджено на звітний період (рік)1 | F19: Залишок на початок звітного року | G19: Надійшло коштів за звітний період (рік) | H19: Касові за звітний період (рік) | I19: Фактичні за звітний період (рік) | J19: Залишок на кінець звітного періоду (року)
A22: 1 | B22: 2 | C22: 3 | D22: 4 | E22: 5 | F22: 6 | G22: 7 | H22: 8 | I22: 9 | J22: 9
A23: Видатки та надання кредитів - усього | B23: Х | C23: 010 | D23: =D24+D59+D79+D84+D87 -> 0 | E23: =E26+E29+E32+E33+E37+E45+E46+E86+E54 -> 0 | F23: =F24+F59+F79+F84+F87 -> 0 | G23: =G24+G59+G79+G84+G87 -> 0 | H23: =H24+H59+H79+H84+H87 -> 0 | I23: =I24+I59+I79+I84+I87 -> 0 | J23: =F23+G23-H23 -> 0
A24: у тому числі: Поточні видатки | B24: 2000 | C24: 020 | D24: =D25+D30+D47+D50+D54+D58 -> 0 | E24: 0 | F24: 0 | G24: 0 | H24: 0 | I24: 0 | J24: =F24+G24-H24 -> 0
A25: Оплата праці і нарахування на заробітну плату | B25: 2100 | C25: 030 | D25: =D26+D29 -> 0 | E25: 0 | F25: =F26+F29 -> 0 | G25: =G26+G29 -> 0 | H25: =H26+H29 -> 0 | I25: =I26+I29 -> 0 | J25: 0
A26: Оплата праці | B26: 2110 | C26: 040 | D26: =SUM(D27:D28) -> 0 | E26: 0 | F26: 0 | G26: 0 | H26: 0 | I26: 0 | J26: 0
A27: Заробітна плата | B27: 2111 | C27: 050 | D27: 0 | E27: 0 | F27: 0 | G27: 0 | H27: 0 | I27: 0 | J27: 0
A28: Грошове забезпечення військовослужбовців | B28: 2112 | C28: 060 | D28: 0 | E28: 0 | F28: 0 | G28: 0 | H28: 0 | I28: 0 | J28: 0
A29: Нарахування на оплату праці | B29: 2120 | C29: 070 | D29: 0 | E29: 0 | F29: 0 | G29: 0 | H29: 0 | I29: 0 | J29: 0
A30: Використання товарів і послуг | B30: 2200 | C30: 080 | D30: =SUM(D31:D37)+D44 -> 0 | E30: 0 | F30: =SUM(F31:F37)+F44 -> 0 | G30: =SUM(G31:G37)+G44 -> 0 | H30: =SUM(H31:H37)+H44 -> 0 | I30: =SUM(I31:I37)+I44 -> 0 | J30: 0
A31: Предмети, матеріали, обладнання та інвентар | B31: 2210 | C31: 090 | D31: 0 | E31: 0 | F31: 0 | G31: 0 | H31: 0 | I31: 0 | J31: 0
A32: Медикаменти та перев’язувальні матеріали | B32: 2220 | C32: 100 | D32: 0 | E32: 0 | F32: 0 | G32: 0 | H32: 0 | I32: 0 | J32: 0
A33: Продукти харчування | B33: 2230 | C33: 110 | D33: 0 | E33: 0 | F33: 0 | G33: 0 | H33: 0 | I33: 0 | J33: 0
A34: Оплата послуг (крім комунальних) | B34: 2240 | C34: 120 | D34: 0 | E34: 0 | F34: 0 | G34: 0 | H34: 0 | I34: 0 | J34: 0
A35: Видатки на відрядження | B35: 2250 | C35: 130 | D35: 0 | E35: 0 | F35: 0 | G35: 0 | H35: 0 | I35: 0 | J35: 0
A36: Видатки та заходи спеціального призначення | B36: 2260 | C36: 140 | D36: 0 | E36: 0 | F36: 0 | G36: 0 | H36: 0 | I36: 0 | J36: 0
A37: Оплата комунальних послуг та енергоносіїв | B37: 2270 | C37: 150 | D37: =SUM(D38:D43) -> 0 | E37: 0 | F37: =SUM(F38:F43) -> 0 | G37: =SUM(G38:G43) -> 0 | H37: =SUM(H38:H43) -> 0 | I37: =SUM(I38:I43) -> 0 | J37: =F37+G37-H37 -> 0
A38: Оплата теплопостачання | B38: 2271 | C38: 160 | D38: 0 | E38: 0 | F38: 0 | G38: 0 | H38: 0 | I38: 0 | J38: 0
A39: Оплата водопостачання та водовідведення | B39: 2272 | C39: 170 | D39: 0 | E39: 0 | F39: 0 | G39: 0 | H39: 0 | I39: 0 | J39: 0
A40: Оплата електроенергії | B40: 2273 | C40: 180 | D40: 0 | E40: 0 | F40: 0 | G40: 0 | H40: 0 | I40: 0 | J40: 0
A41: Оплата природного газу | B41: 2274 | C41: 190 | D41: 0 | E41: 0 | F41: 0 | G41: 0 | H41: 0 | I41: 0 | J41: 0
A42: Оплата інших енергоносіїв | B42: 2275 | C42: 200 | D42: 0 | E42: 0 | F42: 0 | G42: 0 | H42: 0 | I42: 0 | J42: 0
A43: Оплата енергосервісу | B43: 2276 | C43: 210 | D43: 0 | E43: 0 | F43: 0 | G43: 0 | H43: 0 | I43: 0 | J43: =F43+G43-H43 -> 0
A44: Дослідження і розробки, окремі заходи по реалізації державних (регіональних) програм | B44: 2280 | C44: 220 | D44: =SUM(D45:D46) -> 0 | E44: 0 | F44: =SUM(F45:F46) -> 0 | G44: =SUM(G45:G46) -> 0 | H44: =SUM(H45:H46) -> 0 | I44: =SUM(I45:I46) -> 0 | J44: 0
A45: Дослідження і розробки, окремі заходи розвитку по реалізації державних (регіональних) програм | B45: 2281 | C45: 230 | D45: 0 | E45: 0 | F45: 0 | G45: 0 | H45: 0 | I45: 0 | J45: 0
A46: Окремі заходи по реалізації державних (регіональних) програм, не віднесені до заходів розвитку | B46: 2282 | C46: 240 | D46: 0 | E46: 0 | F46: 0 | G46: 0 | H46: 0 | I46: 0 | J46: 0
A47: Обслуговування боргових зобов’язань | B47: 2400 | C47: 250 | D47: =SUM(D48:D49) -> 0 | E47: 0 | F47: 0 | G47: 0 | H47: 0 | I47: 0 | J47: 0
A48: Обслуговування внутрішніх боргових зобов’язань | B48: 2410 | C48: 260 | D48: 0 | E48: 0 | F48: 0 | G48: 0 | H48: 0 | I48: 0 | J48: 0
A49: Обслуговування зовнішніх боргових зобов’язань | B49: 2420 | C49: 270 | D49: 0 | E49: 0 | F49: 0 | G49: 0 | H49: 0 | I49: 0 | J49: 0
A50: Поточні трансферти | B50: 2600 | C50: 280 | D50: =SUM(D51:D53) -> 0 | E50: 0 | F50: 0 | G50: 0 | H50: 0 | I50: 0 | J50: 0
A51: Субсидії та поточні трансферти підприємствам (установам, організаціям) | B51: 2610 | C51: 290 | D51: 0 | E51: 0 | F51: 0 | G51: 0 | H51: 0 | I51: 0 | J51: 0
A52: Поточні трансферти органам державного управління інших рівнів | B52: 2620 | C52: 300 | D52: 0 | E52: 0 | F52: 0 | G52: 0 | H52: 0 | I52: 0 | J52: 0
A53: Поточні трансферти урядам іноземних держав та міжнародним організаціям | B53: 2630 | C53: 310 | D53: 0 | E53: 0 | F53: 0 | G53: 0 | H53: 0 | I53: 0 | J53: 0
A54: Соціальне забезпечення | B54: 2700 | C54: 320 | D54: =SUM(D55:D57) -> 0 | E54: 0 | F54: 0 | G54: 0 | H54: 0 | I54: 0 | J54: 0
A55: Виплата пенсій і допомоги | B55: 2710 | C55: 330 | D55: 0 | E55: 0 | F55: 0 | G55: 0 | H55: 0 | I55: 0 | J55: 0
A56: Стипендії | B56: 2720 | C56: 340 | D56: 0 | E56: 0 | F56: 0 | G56: 0 | H56: 0 | I56: 0 | J56: 0
A57: Інші виплати населенню | B57: 2730 | C57: 350 | D57: 0 | E57: 0 | F57: 0 | G57: 0 | H57: 0 | I57: 0 | J57: 0
A58: Інші поточні видатки | B58: 2800 | C58: 360 | D58: 0 | E58: 0 | F58: 0 | G58: 0 | H58: 0 | I58: 0 | J58: 0
A59: Капітальні видатки | B59: 3000 | C59: 370 | D59: =D60+D74 -> 0 | E59: 0 | F59: 0 | G59: 0 | H59: 0 | I59: 0 | J59: 0
A60: Придбання основного капіталу | B60: 3100 | C60: 380 | D60: =D61+D62+D65+D68+D72+D73 -> 0 | E60: 0 | F60: 0 | G60: 0 | H60: 0 | I60: 0 | J60: 0
A61: Придбання обладнання і предметів довгострокового користування | B61: 3110 | C61: 390 | D61: 0 | E61: 0 | F61: 0 | G61: 0 | H61: 0 | I61: 0 | J61: 0
A62: Капітальне будівництво (придбання) | B62: 3120 | C62: 400 | D62: =SUM(D63:D64) -> 0 | E62: 0 | F62: 0 | G62: 0 | H62: 0 | I62: 0 | J62: 0
A63: Капітальне будівництво (придбання) житла | B63: 3121 | C63: 410 | D63: 0 | E63: 0 | F63: 0 | G63: 0 | H63: 0 | I63: 0 | J63: 0
A64: Капітальне будівництво (придбання) інших об’єктів | B64: 3122 | C64: 420 | D64: 0 | E64: 0 | F64: 0 | G64: 0 | H64: 0 | I64: 0 | J64: 0
A65: Капітальний ремонт | B65: 3130 | C65: 430 | D65: =SUM(D66:D67) -> 0 | E65: 0 | F65: 0 | G65: 0 | H65: 0 | I65: 0 | J65: 0
A66: Капітальний ремонт житлового фонду (приміщень) | B66: 3131 | C66: 440 | D66: 0 | E66: 0 | F66: 0 | G66: 0 | H66: 0 | I66: 0 | J66: 0
A67: Капітальний ремонт інших об’єктів | B67: 3132 | C67: 450 | D67: 0 | E67: 0 | F67: 0 | G67: 0 | H67: 0 | I67: 0 | J67: 0
A68: Реконструкція та реставрація | B68: 3140 | C68: 460 | D68: =SUM(D69:D71) -> 0 | E68: 0 | F68: 0 | G68: 0 | H68: 0 | I68: 0 | J68: 0
A69: Реконструкція житлового фонду (приміщень) | B69: 3141 | C69: 470 | D69: 0 | E69: 0 | F69: 0 | G69: 0 | H69: 0 | I69: 0 | J69: 0
A70: Реконструкція та реставрація інших об’єктів | B70: 3142 | C70: 480 | D70: 0 | E70: 0 | F70: 0 | G70: 0 | H70: 0 | I70: 0 | J70: 0
A71: Реставрація пам’яток культури, історії та архітектури | B71: 3143 | C71: 490 | D71: 0 | E71: 0 | F71: 0 | G71: 0 | H71: 0 | I71: 0 | J71: 0
A72: Створення державних запасів і резервів | B72: 3150 | C72: 500 | D72: 0 | E72: 0 | F72: 0 | G72: 0 | H72: 0 | I72: 0 | J72: 0
A73: Придбання землі та нематеріальних активів | B73: 3160 | C73: 510 | D73: 0 | E73: 0 | F73: 0 | G73: 0 | H73: 0 | I73: 0 | J73: 0
A74: Капітальні трансферти | B74: 3200 | C74: 520 | D74: =SUM(D75:D78) -> 0 | E74: 0 | F74: 0 | G74: 0 | H74: 0 | I74: 0 | J74: 0
A75: Капітальні трансферти підприємствам (установам, організаціям) | B75: 3210 | C75: 530 | D75: 0 | E75: 0 | F75: 0 | G75: 0 | H75: 0 | I75: 0 | J75: 0
A76: Капітальні трансферти органам державного управління інших рівнів | B76: 3220 | C76: 540 | D76: 0 | E76: 0 | F76: 0 | G76: 0 | H76: 0 | I76: 0 | J76: 0
A77: Капітальні трансферти урядам іноземних держав та міжнародним організаціям | B77: 3230 | C77: 550 | D77: 0 | E77: 0 | F77: 0 | G77: 0 | H77: 0 | I77: 0 | J77: 0
A78: Капітальні трансферти населенню | B78: 3240 | C78: 560 | D78: 0 | E78: 0 | F78: 0 | G78: 0 | H78: 0 | I78: 0 | J78: 0
A79: Внутрішнє кредитування | B79: 4100 | C79: 570 | D79: =SUM(D80) -> 0 | E79: 0 | F79: 0 | G79: 0 | H79: 0 | I79: 0 | J79: 0
A80: Надання внутрішніх кредитів | B80: 4110 | C80: 580 | D80: =SUM(D81:D83) -> 0 | E80: 0 | F80: 0 | G80: 0 | H80: 0 | I80: 0 | J80: 0
A81: Надання кредитів органам державного управління інших рівнів | B81: 4111 | C81: 590 | D81: 0 | E81: 0 | F81: 0 | G81: 0 | H81: 0 | I81: 0 | J81: 0
A82: Надання кредитів підприємствам, установам, організаціям | B82: 4112 | C82: 600 | D82: 0 | E82: 0 | F82: 0 | G82: 0 | H82: 0 | I82: 0 | J82: 0
A83: Надання інших внутрішніх кредитів | B83: 4113 | C83: 610 | D83: 0 | E83: 0 | F83: 0 | G83: 0 | H83: 0 | I83: 0 | J83: 0
A84: Зовнішнє кредитування | B84: 4200 | C84: 620 | D84: =D85 -> 0 | E84: 0 | F84: 0 | G84: 0 | H84: 0 | I84: 0 | J84: 0
A85: Надання зовнішніх кредитів | B85: 4210 | C85: 630 | D85: 0 | E85: 0 | F85: 0 | G85: 0 | H85: 0 | I85: 0 | J85: 0
A86: Інші видатки | B86: 5000 | C86: 640 | D86: X | E86: 0 | F86: X | G86: X | H86: X | I86: X | J86: X
A87: Нерозподілені видатки | B87: 9000 | C87: 650 | D87: 0 | E87: 0 | F87: 0 | G87: 0 | H87: 0 | I87: 0 | J87: 0
C88: 650
A100: 1 Заповнюється розпорядниками бюджетних коштів.
A101: =ЗАПОЛНИТЬ!F30 -> Керівник | G101: =ЗАПОЛНИТЬ!F26 -> Нєтков Р.В.
D102: (підпис) | G102: (ініціали, прізвище)
A103: =ЗАПОЛНИТЬ!F31 -> Головний бухгалтер | G103: =ЗАПОЛНИТЬ!F28 -> Саватєєва О.І.
A104: =ЗАПОЛНИТЬ!C19 -> "08" жовтня 2018 року | D104: (підпис) | G104: (ініціали, прізвище)

Sheet Ф.2.27 (hidden)
G1: Додаток 1 до Порядку складання бюджетної звітності розпорядниками та одержувачами бюджетних коштів, звітності фондами загальнообов’язкового державного соціального і пенсійного страхування (пункт 1 розділу ІІ)
A4: ЗВІТ
A5: =IF(ЗАПОЛНИТЬ!$F$7=1,CONCATENATE(шапки!A2),CONCATENATE(шапки!A2,шапки!C2)) -> про надходження та використання коштів загального фонду (форма №2д, | G5: =IF(ЗАПОЛНИТЬ!$F$7=1,шапки!C2,шапки!D2) -> №2м) | H5: =IF(ЗАПОЛНИТЬ!$F$7=1,шапки!D2,"") -> 
A6: =CONCATENATE("за ",ЗАПОЛНИТЬ!$B$17," ",ЗАПОЛНИТЬ!$C$17) -> за ІІІ квартал 2018 р.
J7: коди
A9: Установа | B9: =ЗАПОЛНИТЬ!B3 -> Комунальний заклад "Орлівська загальноосвітня школа І-ІІІ ступенів" Приморської районної ради Запорізької області | H9: за ЄДРПОУ | J9: =ЗАПОЛНИТЬ!B13 -> 26291242
A10: Територія | B10: =ЗАПОЛНИТЬ!B5 -> с.Орлівка Приморського району Запорізької області | H10: за КОАТУУ | J10: =ЗАПОЛНИТЬ!B14 -> 232484201
A11: Організаційно-правова форма господарювання | B11: =ЗАПОЛНИТЬ!D15 -> Комунальна організація (установа, заклад) | H11: за КОПФГ | J11: =ЗАПОЛНИТЬ!B15 -> 430
A12: Код та назва відомчої класифікації видатків та кредитування державного бюджету | D12: =ЗАПОЛНИТЬ!H9 -> 0 | E12: =IF(D12>0,VLOOKUP(D12,'ДовидникКВК(ГОС)'!A:B,2,FALSE),"") -> 
A13: Код та назва програмної класифікації видатків та кредитування державного бюджету | E13: =IF(D13>0,VLOOKUP(D13,ДовидникКПК!B:C,2,FALSE),"") -> 
A14: Код та назва типової відомчої класифікації видатків та кредитування місцевих бюджетів | D14: =ЗАПОЛНИТЬ!H10 -> 06 | E14: =ЗАПОЛНИТЬ!I10 -> Відділ освіти Приморського района Запорізької області
A15: Код та назва програмної класифікації видатків та кредитування місцевих бюджетів (код та назва Типової програмної класифікації видатків та кредитування місцевих бюджетів / Тимчасової класифікації видатків та кредитування для бюджетів місцевого самоврядування, які не застосовують програмно-цільового методу) | D15: - | E15: =VLOOKUP(RIGHT(D15,4),КПКВМБ!A:B,2,FALSE) -> -
A16: Періодичність: квартальна, річна
A17: Одиниця виміру: грн, коп.
A19: Показники | B19: КЕКВ та/або ККК | C19: Код рядка | D19: Затверджено на звітний рік | E19: Затверджено на звітний період (рік)1 | F19: Залишок на початок звітного року | G19: Надійшло коштів за звітний період (рік) | H19: Касові за звітний період (рік) | I19: Фактичні за звітний період (рік) | J19: Залишок на кінець звітного періоду (року)
A22: 1 | B22: 2 | C22: 3 | D22: 4 | E22: 5 | F22: 6 | G22: 7 | H22: 8 | I22: 9 | J22: 9
A23: Видатки та надання кредитів - усього | B23: Х | C23: 010 | D23: =D24+D59+D79+D84+D87 -> 0 | E23: =E26+E29+E32+E33+E37+E45+E46+E86+E54 -> 0 | F23: =F24+F59+F79+F84+F87 -> 0 | G23: =G24+G59+G79+G84+G87 -> 0 | H23: =H24+H59+H79+H84+H87 -> 0 | I23: =I24+I59+I79+I84+I87 -> 0 | J23: =F23+G23-H23 -> 0
A24: у тому числі: Поточні видатки | B24: 2000 | C24: 020 | D24: =D25+D30+D47+D50+D54+D58 -> 0 | E24: 0 | F24: 0 | G24: 0 | H24: 0 | I24: 0 | J24: =F24+G24-H24 -> 0
A25: Оплата праці і нарахування на заробітну плату | B25: 2100 | C25: 030 | D25: =D26+D29 -> 0 | E25: 0 | F25: =F26+F29 -> 0 | G25: =G26+G29 -> 0 | H25: =H26+H29 -> 0 | I25: =I26+I29 -> 0 | J25: 0
A26: Оплата праці | B26: 2110 | C26: 040 | D26: =SUM(D27:D28) -> 0 | E26: 0 | F26: 0 | G26: 0 | H26: 0 | I26: 0 | J26: 0
A27: Заробітна плата | B27: 2111 | C27: 050 | D27: 0 | E27: 0 | F27: 0 | G27: 0 | H27: 0 | I27: 0 | J27: 0
A28: Грошове забезпечення військовослужбовців | B28: 2112 | C28: 060 | D28: 0 | E28: 0 | F28: 0 | G28: 0 | H28: 0 | I28: 0 | J28: 0
A29: Нарахування на оплату праці | B29: 2120 | C29: 070 | D29: 0 | E29: 0 | F29: 0 | G29: 0 | H29: 0 | I29: 0 | J29: 0
A30: Використання товарів і послуг | B30: 2200 | C30: 080 | D30: =SUM(D31:D37)+D44 -> 0 | E30: 0 | F30: =SUM(F31:F37)+F44 -> 0 | G30: =SUM(G31:G37)+G44 -> 0 | H30: =SUM(H31:H37)+H44 -> 0 | I30: =SUM(I31:I37)+I44 -> 0 | J30: 0
A31: Предмети, матеріали, обладнання та інвентар | B31: 2210 | C31: 090 | D31: 0 | E31: 0 | F31: 0 | G31: 0 | H31: 0 | I31: 0 | J31: 0
A32: Медикаменти та перев’язувальні матеріали | B32: 2220 | C32: 100 | D32: 0 | E32: 0 | F32: 0 | G32: 0 | H32: 0 | I32: 0 | J32: 0
A33: Продукти харчування | B33: 2230 | C33: 110 | D33: 0 | E33: 0 | F33: 0 | G33: 0 | H33: 0 | I33: 0 | J33: 0
A34: Оплата послуг (крім комунальних) | B34: 2240 | C34: 120 | D34: 0 | E34: 0 | F34: 0 | G34: 0 | H34: 0 | I34: 0 | J34: 0
A35: Видатки на відрядження | B35: 2250 | C35: 130 | D35: 0 | E35: 0 | F35: 0 | G35: 0 | H35: 0 | I35: 0 | J35: 0
A36: Видатки та заходи спеціального призначення | B36: 2260 | C36: 140 | D36: 0 | E36: 0 | F36: 0 | G36: 0 | H36: 0 | I36: 0 | J36: 0
A37: Оплата комунальних послуг та енергоносіїв | B37: 2270 | C37: 150 | D37: =SUM(D38:D43) -> 0 | E37: 0 | F37: =SUM(F38:F43) -> 0 | G37: =SUM(G38:G43) -> 0 | H37: =SUM(H38:H43) -> 0 | I37: =SUM(I38:I43) -> 0 | J37: =F37+G37-H37 -> 0
A38: Оплата теплопостачання | B38: 2271 | C38: 160 | D38: 0 | E38: 0 | F38: 0 | G38: 0 | H38: 0 | I38: 0 | J38: 0
A39: Оплата водопостачання та водовідведення | B39: 2272 | C39: 170 | D39: 0 | E39: 0 | F39: 0 | G39: 0 | H39: 0 | I39: 0 | J39: 0
A40: Оплата електроенергії | B40: 2273 | C40: 180 | D40: 0 | E40: 0 | F40: 0 | G40: 0 | H40: 0 | I40: 0 | J40: 0
A41: Оплата природного газу | B41: 2274 | C41: 190 | D41: 0 | E41: 0 | F41: 0 | G41: 0 | H41: 0 | I41: 0 | J41: 0
A42: Оплата інших енергоносіїв | B42: 2275 | C42: 200 | D42: 0 | E42: 0 | F42: 0 | G42: 0 | H42: 0 | I42: 0 | J42: 0
A43: Оплата енергосервісу | B43: 2276 | C43: 210 | D43: 0 | E43: 0 | F43: 0 | G43: 0 | H43: 0 | I43: 0 | J43: =F43+G43-H43 -> 0
A44: Дослідження і розробки, окремі заходи по реалізації державних (регіональних) програм | B44: 2280 | C44: 220 | D44: =SUM(D45:D46) -> 0 | E44: 0 | F44: =SUM(F45:F46) -> 0 | G44: =SUM(G45:G46) -> 0 | H44: =SUM(H45:H46) -> 0 | I44: =SUM(I45:I46) -> 0 | J44: 0
A45: Дослідження і розробки, окремі заходи розвитку по реалізації державних (регіональних) програм | B45: 2281 | C45: 230 | D45: 0 | E45: 0 | F45: 0 | G45: 0 | H45: 0 | I45: 0 | J45: 0
A46: Окремі заходи по реалізації державних (регіональних) програм, не віднесені до заходів розвитку | B46: 2282 | C46: 240 | D46: 0 | E46: 0 | F46: 0 | G46: 0 | H46: 0 | I46: 0 | J46: 0
A47: Обслуговування боргових зобов’язань | B47: 2400 | C47: 250 | D47: =SUM(D48:D49) -> 0 | E47: 0 | F47: 0 | G47: 0 | H47: 0 | I47: 0 | J47: 0
A48: Обслуговування внутрішніх боргових зобов’язань | B48: 2410 | C48: 260 | D48: 0 | E48: 0 | F48: 0 | G48: 0 | H48: 0 | I48: 0 | J48: 0
A49: Обслуговування зовнішніх боргових зобов’язань | B49: 2420 | C49: 270 | D49: 0 | E49: 0 | F49: 0 | G49: 0 | H49: 0 | I49: 0 | J49: 0
A50: Поточні трансферти | B50: 2600 | C50: 280 | D50: =SUM(D51:D53) -> 0 | E50: 0 | F50: 0 | G50: 0 | H50: 0 | I50: 0 | J50: 0
A51: Субсидії та поточні трансферти підприємствам (установам, організаціям) | B51: 2610 | C51: 290 | D51: 0 | E51: 0 | F51: 0 | G51: 0 | H51: 0 | I51: 0 | J51: 0
A52: Поточні трансферти органам державного управління інших рівнів | B52: 2620 | C52: 300 | D52: 0 | E52: 0 | F52: 0 | G52: 0 | H52: 0 | I52: 0 | J52: 0
A53: Поточні трансферти урядам іноземних держав та міжнародним організаціям | B53: 2630 | C53: 310 | D53: 0 | E53: 0 | F53: 0 | G53: 0 | H53: 0 | I53: 0 | J53: 0
A54: Соціальне забезпечення | B54: 2700 | C54: 320 | D54: =SUM(D55:D57) -> 0 | E54: 0 | F54: 0 | G54: 0 | H54: 0 | I54: 0 | J54: 0
A55: Виплата пенсій і допомоги | B55: 2710 | C55: 330 | D55: 0 | E55: 0 | F55: 0 | G55: 0 | H55: 0 | I55: 0 | J55: 0
A56: Стипендії | B56: 2720 | C56: 340 | D56: 0 | E56: 0 | F56: 0 | G56: 0 | H56: 0 | I56: 0 | J56: 0
A57: Інші виплати населенню | B57: 2730 | C57: 350 | D57: 0 | E57: 0 | F57: 0 | G57: 0 | H57: 0 | I57: 0 | J57: 0
A58: Інші поточні видатки | B58: 2800 | C58: 360 | D58: 0 | E58: 0 | F58: 0 | G58: 0 | H58: 0 | I58: 0 | J58: 0
A59: Капітальні видатки | B59: 3000 | C59: 370 | D59: =D60+D74 -> 0 | E59: 0 | F59: 0 | G59: 0 | H59: 0 | I59: 0 | J59: 0
A60: Придбання основного капіталу | B60: 3100 | C60: 380 | D60: =D61+D62+D65+D68+D72+D73 -> 0 | E60: 0 | F60: 0 | G60: 0 | H60: 0 | I60: 0 | J60: 0
A61: Придбання обладнання і предметів довгострокового користування | B61: 3110 | C61: 390 | D61: 0 | E61: 0 | F61: 0 | G61: 0 | H61: 0 | I61: 0 | J61: 0
A62: Капітальне будівництво (придбання) | B62: 3120 | C62: 400 | D62: =SUM(D63:D64) -> 0 | E62: 0 | F62: 0 | G62: 0 | H62: 0 | I62: 0 | J62: 0
A63: Капітальне будівництво (придбання) житла | B63: 3121 | C63: 410 | D63: 0 | E63: 0 | F63: 0 | G63: 0 | H63: 0 | I63: 0 | J63: 0
A64: Капітальне будівництво (придбання) інших об’єктів | B64: 3122 | C64: 420 | D64: 0 | E64: 0 | F64: 0 | G64: 0 | H64: 0 | I64: 0 | J64: 0
A65: Капітальний ремонт | B65: 3130 | C65: 430 | D65: =SUM(D66:D67) -> 0 | E65: 0 | F65: 0 | G65: 0 | H65: 0 | I65: 0 | J65: 0
A66: Капітальний ремонт житлового фонду (приміщень) | B66: 3131 | C66: 440 | D66: 0 | E66: 0 | F66: 0 | G66: 0 | H66: 0 | I66: 0 | J66: 0
A67: Капітальний ремонт інших об’єктів | B67: 3132 | C67: 450 | D67: 0 | E67: 0 | F67: 0 | G67: 0 | H67: 0 | I67: 0 | J67: 0
A68: Реконструкція та реставрація | B68: 3140 | C68: 460 | D68: =SUM(D69:D71) -> 0 | E68: 0 | F68: 0 | G68: 0 | H68: 0 | I68: 0 | J68: 0
A69: Реконструкція житлового фонду (приміщень) | B69: 3141 | C69: 470 | D69: 0 | E69: 0 | F69: 0 | G69: 0 | H69: 0 | I69: 0 | J69: 0
A70: Реконструкція та реставрація інших об’єктів | B70: 3142 | C70: 480 | D70: 0 | E70: 0 | F70: 0 | G70: 0 | H70: 0 | I70: 0 | J70: 0
A71: Реставрація пам’яток культури, історії та архітектури | B71: 3143 | C71: 490 | D71: 0 | E71: 0 | F71: 0 | G71: 0 | H71: 0 | I71: 0 | J71: 0
A72: Створення державних запасів і резервів | B72: 3150 | C72: 500 | D72: 0 | E72: 0 | F72: 0 | G72: 0 | H72: 0 | I72: 0 | J72: 0
A73: Придбання землі та нематеріальних активів | B73: 3160 | C73: 510 | D73: 0 | E73: 0 | F73: 0 | G73: 0 | H73: 0 | I73: 0 | J73: 0
A74: Капітальні трансферти | B74: 3200 | C74: 520 | D74: =SUM(D75:D78) -> 0 | E74: 0 | F74: 0 | G74: 0 | H74: 0 | I74: 0 | J74: 0
A75: Капітальні трансферти підприємствам (установам, організаціям) | B75: 3210 | C75: 530 | D75: 0 | E75: 0 | F75: 0 | G75: 0 | H75: 0 | I75: 0 | J75: 0
A76: Капітальні трансферти органам державного управління інших рівнів | B76: 3220 | C76: 540 | D76: 0 | E76: 0 | F76: 0 | G76: 0 | H76: 0 | I76: 0 | J76: 0
A77: Капітальні трансферти урядам іноземних держав та міжнародним організаціям | B77: 3230 | C77: 550 | D77: 0 | E77: 0 | F77: 0 | G77: 0 | H77: 0 | I77: 0 | J77: 0
A78: Капітальні трансферти населенню | B78: 3240 | C78: 560 | D78: 0 | E78: 0 | F78: 0 | G78: 0 | H78: 0 | I78: 0 | J78: 0
A79: Внутрішнє кредитування | B79: 4100 | C79: 570 | D79: =SUM(D80) -> 0 | E79: 0 | F79: 0 | G79: 0 | H79: 0 | I79: 0 | J79: 0
A80: Надання внутрішніх кредитів | B80: 4110 | C80: 580 | D80: =SUM(D81:D83) -> 0 | E80: 0 | F80: 0 | G80: 0 | H80: 0 | I80: 0 | J80: 0
A81: Надання кредитів органам державного управління інших рівнів | B81: 4111 | C81: 590 | D81: 0 | E81: 0 | F81: 0 | G81: 0 | H81: 0 | I81: 0 | J81: 0
A82: Надання кредитів підприємствам, установам, організаціям | B82: 4112 | C82: 600 | D82: 0 | E82: 0 | F82: 0 | G82: 0 | H82: 0 | I82: 0 | J82: 0
A83: Надання інших внутрішніх кредитів | B83: 4113 | C83: 610 | D83: 0 | E83: 0 | F83: 0 | G83: 0 | H83: 0 | I83: 0 | J83: 0
A84: Зовнішнє кредитування | B84: 4200 | C84: 620 | D84: =D85 -> 0 | E84: 0 | F84: 0 | G84: 0 | H84: 0 | I84: 0 | J84: 0
A85: Надання зовнішніх кредитів | B85: 4210 | C85: 630 | D85: 0 | E85: 0 | F85: 0 | G85: 0 | H85: 0 | I85: 0 | J85: 0
A86: Інші видатки | B86: 5000 | C86: 640 | D86: X | E86: 0 | F86: X | G86: X | H86: X | I86: X | J86: X
A87: Нерозподілені видатки | B87: 9000 | C87: 650 | D87: 0 | E87: 0 | F87: 0 | G87: 0 | H87: 0 | I87: 0 | J87: 0
C88: 650
A100: 1 Заповнюється розпорядниками бюджетних коштів.
A101: =ЗАПОЛНИТЬ!F30 -> Керівник | G101: =ЗАПОЛНИТЬ!F26 -> Нєтков Р.В.
D102: (підпис) | G102: (ініціали, прізвище)
A103: =ЗАПОЛНИТЬ!F31 -> Головний бухгалтер | G103: =ЗАПОЛНИТЬ!F28 -> Саватєєва О.І.
A104: =ЗАПОЛНИТЬ!C19 -> "08" жовтня 2018 року | D104: (підпис) | G104: (ініціали, прізвище)

Sheet Ф.2.28 (hidden)
G1: Додаток 1 до Порядку складання бюджетної звітності розпорядниками та одержувачами бюджетних коштів, звітності фондами загальнообов’язкового державного соціального і пенсійного страхування (пункт 1 розділу ІІ)
A4: ЗВІТ
A5: =IF(ЗАПОЛНИТЬ!$F$7=1,CONCATENATE(шапки!A2),CONCATENATE(шапки!A2,шапки!C2)) -> про надходження та використання коштів загального фонду (форма №2д, | G5: =IF(ЗАПОЛНИТЬ!$F$7=1,шапки!C2,шапки!D2) -> №2м) | H5: =IF(ЗАПОЛНИТЬ!$F$7=1,шапки!D2,"") -> 
A6: =CONCATENATE("за ",ЗАПОЛНИТЬ!$B$17," ",ЗАПОЛНИТЬ!$C$17) -> за ІІІ квартал 2018 р.
J7: коди
A9: Установа | B9: =ЗАПОЛНИТЬ!B3 -> Комунальний заклад "Орлівська загальноосвітня школа І-ІІІ ступенів" Приморської районної ради Запорізької області | H9: за ЄДРПОУ | J9: =ЗАПОЛНИТЬ!B13 -> 26291242
A10: Територія | B10: =ЗАПОЛНИТЬ!B5 -> с.Орлівка Приморського району Запорізької області | H10: за КОАТУУ | J10: =ЗАПОЛНИТЬ!B14 -> 232484201
A11: Організаційно-правова форма господарювання | B11: =ЗАПОЛНИТЬ!D15 -> Комунальна організація (установа, заклад) | H11: за КОПФГ | J11: =ЗАПОЛНИТЬ!B15 -> 430
A12: Код та назва відомчої класифікації видатків та кредитування державного бюджету | D12: =ЗАПОЛНИТЬ!H9 -> 0 | E12: =IF(D12>0,VLOOKUP(D12,'ДовидникКВК(ГОС)'!A:B,2,FALSE),"") -> 
A13: Код та назва програмної класифікації видатків та кредитування державного бюджету | E13: =IF(D13>0,VLOOKUP(D13,ДовидникКПК!B:C,2,FALSE),"") -> 
A14: Код та назва типової відомчої класифікації видатків та кредитування місцевих бюджетів | D14: =ЗАПОЛНИТЬ!H10 -> 06 | E14: =ЗАПОЛНИТЬ!I10 -> Відділ освіти Приморського района Запорізької області
A15: Код та назва програмної класифікації видатків та кредитування місцевих бюджетів (код та назва Типової програмної класифікації видатків та кредитування місцевих бюджетів / Тимчасової класифікації видатків та кредитування для бюджетів місцевого самоврядування, які не застосовують програмно-цільового методу) | D15: - | E15: =VLOOKUP(RIGHT(D15,4),КПКВМБ!A:B,2,FALSE) -> -
A16: Періодичність: квартальна, річна
A17: Одиниця виміру: грн, коп.
A19: Показники | B19: КЕКВ та/або ККК | C19: Код рядка | D19: Затверджено на звітний рік | E19: Затверджено на звітний період (рік)1 | F19: Залишок на початок звітного року | G19: Надійшло коштів за звітний період (рік) | H19: Касові за звітний період (рік) | I19: Фактичні за звітний період (рік) | J19: Залишок на кінець звітного періоду (року)
A22: 1 | B22: 2 | C22: 3 | D22: 4 | E22: 5 | F22: 6 | G22: 7 | H22: 8 | I22: 9 | J22: 9
A23: Видатки та надання кредитів - усього | B23: Х | C23: 010 | D23: =D24+D59+D79+D84+D87 -> 0 | E23: =E26+E29+E32+E33+E37+E45+E46+E86+E54 -> 0 | F23: =F24+F59+F79+F84+F87 -> 0 | G23: =G24+G59+G79+G84+G87 -> 0 | H23: =H24+H59+H79+H84+H87 -> 0 | I23: =I24+I59+I79+I84+I87 -> 0 | J23: =F23+G23-H23 -> 0
A24: у тому числі: Поточні видатки | B24: 2000 | C24: 020 | D24: =D25+D30+D47+D50+D54+D58 -> 0 | E24: 0 | F24: 0 | G24: 0 | H24: 0 | I24: 0 | J24: =F24+G24-H24 -> 0
A25: Оплата праці і нарахування на заробітну плату | B25: 2100 | C25: 030 | D25: =D26+D29 -> 0 | E25: 0 | F25: =F26+F29 -> 0 | G25: =G26+G29 -> 0 | H25: =H26+H29 -> 0 | I25: =I26+I29 -> 0 | J25: 0
A26: Оплата праці | B26: 2110 | C26: 040 | D26: =SUM(D27:D28) -> 0 | E26: 0 | F26: 0 | G26: 0 | H26: 0 | I26: 0 | J26: 0
A27: Заробітна плата | B27: 2111 | C27: 050 | D27: 0 | E27: 0 | F27: 0 | G27: 0 | H27: 0 | I27: 0 | J27: 0
A28: Грошове забезпечення військовослужбовців | B28: 2112 | C28: 060 | D28: 0 | E28: 0 | F28: 0 | G28: 0 | H28: 0 | I28: 0 | J28: 0
A29: Нарахування на оплату праці | B29: 2120 | C29: 070 | D29: 0 | E29: 0 | F29: 0 | G29: 0 | H29: 0 | I29: 0 | J29: 0
A30: Використання товарів і послуг | B30: 2200 | C30: 080 | D30: =SUM(D31:D37)+D44 -> 0 | E30: 0 | F30: =SUM(F31:F37)+F44 -> 0 | G30: =SUM(G31:G37)+G44 -> 0 | H30: =SUM(H31:H37)+H44 -> 0 | I30: =SUM(I31:I37)+I44 -> 0 | J30: 0
A31: Предмети, матеріали, обладнання та інвентар | B31: 2210 | C31: 090 | D31: 0 | E31: 0 | F31: 0 | G31: 0 | H31: 0 | I31: 0 | J31: 0
A32: Медикаменти та перев’язувальні матеріали | B32: 2220 | C32: 100 | D32: 0 | E32: 0 | F32: 0 | G32: 0 | H32: 0 | I32: 0 | J32: 0
A33: Продукти харчування | B33: 2230 | C33: 110 | D33: 0 | E33: 0 | F33: 0 | G33: 0 | H33: 0 | I33: 0 | J33: 0
A34: Оплата послуг (крім комунальних) | B34: 2240 | C34: 120 | D34: 0 | E34: 0 | F34: 0 | G34: 0 | H34: 0 | I34: 0 | J34: 0
A35: Видатки на відрядження | B35: 2250 | C35: 130 | D35: 0 | E35: 0 | F35: 0 | G35: 0 | H35: 0 | I35: 0 | J35: 0
A36: Видатки та заходи спеціального призначення | B36: 2260 | C36: 140 | D36: 0 | E36: 0 | F36: 0 | G36: 0 | H36: 0 | I36: 0 | J36: 0
A37: Оплата комунальних послуг та енергоносіїв | B37: 2270 | C37: 150 | D37: =SUM(D38:D43) -> 0 | E37: 0 | F37: =SUM(F38:F43) -> 0 | G37: =SUM(G38:G43) -> 0 | H37: =SUM(H38:H43) -> 0 | I37: =SUM(I38:I43) -> 0 | J37: =F37+G37-H37 -> 0
A38: Оплата теплопостачання | B38: 2271 | C38: 160 | D38: 0 | E38: 0 | F38: 0 | G38: 0 | H38: 0 | I38: 0 | J38: 0
A39: Оплата водопостачання та водовідведення | B39: 2272 | C39: 170 | D39: 0 | E39: 0 | F39: 0 | G39: 0 | H39: 0 | I39: 0 | J39: 0
A40: Оплата електроенергії | B40: 2273 | C40: 180 | D40: 0 | E40: 0 | F40: 0 | G40: 0 | H40: 0 | I40: 0 | J40: 0
A41: Оплата природного газу | B41: 2274 | C41: 190 | D41: 0 | E41: 0 | F41: 0 | G41: 0 | H41: 0 | I41: 0 | J41: 0
A42: Оплата інших енергоносіїв | B42: 2275 | C42: 200 | D42: 0 | E42: 0 | F42: 0 | G42: 0 | H42: 0 | I42: 0 | J42: 0
A43: Оплата енергосервісу | B43: 2276 | C43: 210 | D43: 0 | E43: 0 | F43: 0 | G43: 0 | H43: 0 | I43: 0 | J43: =F43+G43-H43 -> 0
A44: Дослідження і розробки, окремі заходи по реалізації державних (регіональних) програм | B44: 2280 | C44: 220 | D44: =SUM(D45:D46) -> 0 | E44: 0 | F44: =SUM(F45:F46) -> 0 | G44: =SUM(G45:G46) -> 0 | H44: =SUM(H45:H46) -> 0 | I44: =SUM(I45:I46) -> 0 | J44: 0
A45: Дослідження і розробки, окремі заходи розвитку по реалізації державних (регіональних) програм | B45: 2281 | C45: 230 | D45: 0 | E45: 0 | F45: 0 | G45: 0 | H45: 0 | I45: 0 | J45: 0
